Workbook

Sheet Enero-Julio 2017 (hidden)
A1: Código | B1: Grupo | C1: Fecha | D1: Costo | E1: Código Resp. | F1: Apellido | G1: Nombre | H1: Cédula | I1: Zona | J1: Total Horas Trab. | K1: Total Horas Trans | L1: Total Horas | M1: Total Costo | N1: Subsistema | O1: Dirección | P1: Alimentador | Q1: Actividad | R1: Cantidad | S1: Fuente | T1: Conteo | U1: Transporte | V1: Hora Inicio Programada | W1: Hora Fin Programada | X1: Hora Inicio | Y1: Hora Fin | Z1: horasi | AA1: mini | AB1: horasid | AC1: minid | AD1: mincv | AE1: horadi | AF1: horasf | AG1: minfd | AH1: horasfd | AI1: minfd | AJ1: minfcv | AK1: horadf | AL1: Tiempo Mant | AM1: Tiempo | AN1: Tensión | AO1: Costo Actividad | AP1: Cuenta | AQ1: Costo Trans | AR1: Costo Mant
A2: 123017 | B2: 49A | C2: 2017-01-01 | D2: 13.77 | E2: 0102354040 | F2: PIEDRA MARTINEZ | G2: JORGE IVAN | H2: PMJI | I2: 3 | J2: 7 | K2: 1 | L2: 8 | M2: 110.16 | N2: RS | O2: SAN GABRIEL | P2: 0500050V05 | Q2: C-01 | R2: 1 | S2: MP-1 | T2: 1 | U2: 0 | X2: 08:00 | Y2: 13:00 | Z2: =LEFT(X2,2) -> 08 | AA2: =RIGHT(X2,2) -> 00 | AB2: =FIXED(Z2,0) -> 8 | AC2: =FIXED(AA2,0) -> 0 | AD2: =+AC2/60 -> 0 | AE2: =+AB2+AD2 -> 8 | AF2: =LEFT(Y2,2) -> 13 | AG2: =RIGHT(Y2,2) -> 00 | AH2: =FIXED(AF2,2) -> 13.00 | AI2: =FIXED(AG2,2) -> 0.00 | AJ2: =+AI2/60 -> 0 | AK2: =+AH2+AJ2 -> 13 | AL2: =+AK2-AE2 -> 5 | AM2: 5 | AN2: 0 | AO2: 68.85 | AP2: 0741102 | AQ2: =+U2*D2 -> 0 | AR2: =+AL2*D2 -> 68.85
A3: 123017 | B3: 49A | C3: 2017-01-01 | D3: 13.77 | E3: 0102354040 | F3: PIEDRA MARTINEZ | G3: JORGE IVAN | H3: PMJI | I3: 3 | J3: 7 | K3: 1 | L3: 8 | M3: 110.16 | N3: RS | O3: SAN GABRIEL | P3: 0500050V05 | Q3: C-01 | R3: 1 | S3: MP-1 | T3: 1 | U3: 0 | X3: 15:00 | Y3: 16:00 | Z3: 15 | AA3: 00 | AB3: 15 | AC3: 0 | AD3: 0 | AE3: 15 | AF3: 16 | AG3: 00 | AH3: 16.00 | AI3: 0.00 | AJ3: 0 | AK3: 16 | AL3: 1 | AM3: 1 | AN3: 0 | AO3: 13.77 | AP3: 0741102 | AQ3: 0 | AR3: 13.77
A4: 123487 | B4: 13 | C4: 2017-02-22 | D4: 53.28 | E4: 0101278976 | F4: IDROVO IDROVO | G4: JORGE EDUARDO | H4: IIJE | I4: 2 | J4: 7 | K4: 1.5 | L4: 8.83335 | M4: 470.640888 | N4: AP | O4: PLASOLETA 9 DE OCTUBRE | P4: 0500010S02 | Q4: P-02 | R4: 2 | S4: MP-1 | T4: 1 | U4: 0.5 | X4: 13:30 | Y4: 15:30 | Z4: =LEFT(X4,2) -> 13 | AA4: =RIGHT(X4,2) -> 30 | AB4: =FIXED(Z4,0) -> 13 | AC4: =FIXED(AA4,0) -> 30 | AD4: =+AC4/60 -> 0.5 | AE4: =+AB4+AD4 -> 13.5 | AF4: =LEFT(Y4,2) -> 15 | AG4: =RIGHT(Y4,2) -> 30 | AH4: =FIXED(AF4,2) -> 15.00 | AI4: =FIXED(AG4,2) -> 30.00 | AJ4: =+AI4/60 -> 0.5 | AK4: =+AH4+AJ4 -> 15.5 | AL4: =+AK4-AE4 -> 2 | AM4: 2 | AN4: 0 | AO4: 106.56 | AP4: 0750502 | AQ4: =+U4*D4 -> 26.64 | AR4: =+AL4*D4 -> 106.56
A5: 122661 | B5: 47A | C5: 2017-01-01 | D5: 32.97 | E5: 0103072583 | F5: VAZQUEZ CALVACHE | G5: GERARDO PATRICIO | H5: VCGP | I5: 3 | J5: 2 | K5: 2 | L5: 4 | M5: 131.88 | N5: TD | O5: SANTA TERESA | P5: 0500140V03 | Q5: E-23 | R5: 2 | S5: MP-6 | T5: 1 | U5: 1 | X5: 09:00 | Y5: 10:00 | Z5: 09 | AA5: 00 | AB5: 9 | AC5: 0 | AD5: 0 | AE5: 9 | AF5: 10 | AG5: 00 | AH5: 10.00 | AI5: 0.00 | AJ5: 0 | AK5: 10 | AL5: 1 | AM5: 1 | AN5: 0 | AO5: 32.97 | AP5: 0740604 | AQ5: 32.97 | AR5: 32.97
A6: 122661 | B6: 47A | C6: 2017-01-01 | D6: 32.97 | E6: 0103072583 | F6: VAZQUEZ CALVACHE | G6: GERARDO PATRICIO | H6: VCGP | I6: 3 | J6: 2 | K6: 2 | L6: 4 | M6: 131.88 | N6: AP | O6: SANTA ANA , CAUQUIL, BESTION | P6: 0500140V03 | Q6: E-24 | R6: 2 | S6: MP-6 | T6: 1 | U6: 1 | X6: 11:00 | Y6: 12:30 | Z6: 11 | AA6: 00 | AB6: 11 | AC6: 0 | AD6: 0 | AE6: 11 | AF6: 12 | AG6: 30 | AH6: 12.00 | AI6: 30.00 | AJ6: 0.5 | AK6: 12.5 | AL6: 1.5 | AM6: 1 | AN6: 0 | AO6: 32.97 | AP6: 0740602 | AQ6: 32.97 | AR6: 49.455
A7: 122928 | B7: 45B | C7: 2017-01-01 | D7: 23.15 | E7: 0102017084 | F7: MOLINA ALVARADO | G7: ENRIQUE | H7: MAE | I7: 2 | J7: 1 | K7: 0.4 | L7: 1.66668 | M7: 38.583642 | N7: TD | O7: CUCHIL | P7: 0500150V01 | Q7: T-07 | R7: 1 | S7: MP-6 | T7: 1 | U7: 0.4 | X7: 10:30 | Y7: 11:00 | Z7: 10 | AA7: 30 | AB7: 10 | AC7: 30 | AD7: 0.5 | AE7: 10.5 | AF7: 11 | AG7: 00 | AH7: 11.00 | AI7: 0.00 | AJ7: 0 | AK7: 11 | AL7: 0.5 | AM7: 1 | AN7: 0 | AO7: 23.15 | AP7: 0730704 | AQ7: 9.26 | AR7: 11.575
A8: 123959 | B8: 25 | C8: 2017-03-22 | D8: 48.69 | E8: 0101550978 | F8: SEMPERTEGUI CAÑIZARE | G8: EDUARDO | H8: SCE | I8: 1 | J8: 7 | K8: 1 | L8: 8 | M8: 389.52 | N8: AP | O8: ESTEVES DE TORAL Y MUÑOS VERNAZA | P8: 0500010S04 | Q8: S-01 | R8: 1 | S8: MP-1 | T8: 1 | U8: 0 | X8: 14:00 | Y8: 15:00 | Z8: 14 | AA8: 00 | AB8: 14 | AC8: 0 | AD8: 0 | AE8: 14 | AF8: 15 | AG8: 00 | AH8: 15.00 | AI8: 0.00 | AJ8: 0 | AK8: 15 | AL8: 1 | AM8: 1 | AN8: 0 | AO8: 48.69 | AP8: 0720401 | AQ8: 0 | AR8: 48.69
A9: 122521 | B9: 44A | C9: 2017-01-02 | D9: 31.67 | E9: 0101219749 | F9: ABRIL ABRIL | G9: MANUEL ROSENDO | H9: AAMR | I9: 2 | J9: 2 | K9: 0.6 | L9: 3.00002 | M9: 95.0106334 | N9: RS | O9: TOMEBAMBA | P9: 0500120V02 | Q9: S-03 | R9: 1 | S9: MP-1 | T9: 1 | U9: 0.2 | X9: 09:20 | Y9: 10:00 | Z9: 09 | AA9: 20 | AB9: 9 | AC9: 20 | AD9: 0.3333333333 | AE9: 9.333333333 | AF9: 10 | AG9: 00 | AH9: 10.00 | AI9: 0.00 | AJ9: 0 | AK9: 10 | AL9: 0.6666666667 | AM9: 1 | AN9: 0 | AO9: 31.67 | AP9: 0730605 | AQ9: 6.334 | AR9: 21.11333333
A10: 122521 | B10: 44A | C10: 2017-01-02 | D10: 31.67 | E10: 0101219749 | F10: ABRIL ABRIL | G10: MANUEL ROSENDO | H10: AAMR | I10: 2 | J10: 2 | K10: 0.6 | L10: 3.00002 | M10: 95.0106334 | N10: RS | O10: MARGINAL RIO PAUTE | P10: 0500120V03 | Q10: S-02 | R10: 1 | S10: MP-1 | T10: 1 | U10: 0.05 | X10: 15:30 | Y10: 16:00 | Z10: 15 | AA10: 30 | AB10: 15 | AC10: 30 | AD10: 0.5 | AE10: 15.5 | AF10: 16 | AG10: 00 | AH10: 16.00 | AI10: 0.00 | AJ10: 0 | AK10: 16 | AL10: 0.5 | AM10: 1 | AN10: 0 | AO10: 31.67 | AP10: 0730602 | AQ10: 1.5835 | AR10: 15.835
A11: 122521 | B11: 44A | C11: 2017-01-02 | D11: 31.67 | E11: 0101219749 | F11: ABRIL ABRIL | G11: MANUEL ROSENDO | H11: AAMR | I11: 2 | J11: 2 | K11: 0.6 | L11: 3.00002 | M11: 95.0106334 | N11: RS | O11: GUABLID ALTO | P11: 0500120V03 | Q11: T-07 | R11: 1 | S11: MP-1 | T11: 1 | U11: 0.15 | X11: 12:00 | Y11: 12:30 | Z11: 12 | AA11: 00 | AB11: 12 | AC11: 0 | AD11: 0 | AE11: 12 | AF11: 12 | AG11: 30 | AH11: 12.00 | AI11: 30.00 | AJ11: 0.5 | AK11: 12.5 | AL11: 0.5 | AM11: 0 | AN11: 0 | AO11: 0 | AP11: 0730604 | AQ11: 4.7505 | AR11: 15.835
A12: 122929 | B12: 45A | C12: 2017-01-02 | D12: 23.15 | E12: 0102017084 | F12: MOLINA ALVARADO | G12: ENRIQUE | H12: MAE | I12: 2 | J12: 9 | K12: 2 | L12: 11 | M12: 254.65 | N12: RS | O12: CHURUCO | P12: 0500150V01 | Q12: R-01 | R12: 1 | S12: MP-6 | T12: 1 | U12: 2 | X12: 09:00 | Y12: 18:00 | Z12: 09 | AA12: 00 | AB12: 9 | AC12: 0 | AD12: 0 | AE12: 9 | AF12: 18 | AG12: 00 | AH12: 18.00 | AI12: 0.00 | AJ12: 0 | AK12: 18 | AL12: 9 | AM12: 9 | AN12: 0 | AO12: 208.35 | AP12: 0730702 | AQ12: 46.3 | AR12: 208.35
A13: 122521 | B13: 44A | C13: 2017-01-02 | D13: 31.67 | E13: 0101219749 | F13: ABRIL ABRIL | G13: MANUEL ROSENDO | H13: AAMR | I13: 2 | J13: 2 | K13: 0.6 | L13: 3.00002 | M13: 95.0106334 | N13: IP | O13: PANCALLE | P13: 0500150V03 | Q13: A-03 | R13: 1 | S13: MP-1 | T13: 1 | U13: 0.2 | X13: 10:20 | Y13: 10:40 | Z13: 10 | AA13: 20 | AB13: 10 | AC13: 20 | AD13: 0.3333333333 | AE13: 10.33333333 | AF13: 10 | AG13: 40 | AH13: 10.00 | AI13: 40.00 | AJ13: 0.6666666667 | AK13: 10.66666667 | AL13: 0.3333333333 | AM13: 0 | AN13: 0 | AO13: 0 | AP13: 0730603 | AQ13: 6.334 | AR13: 10.55666667
A14: 122648 | B14: 25 | C14: 2017-01-03 | D14: 48.69 | E14: 0101550978 | F14: SEMPERTEGUI CAÑIZARE | G14: EDUARDO | H14: SCE | I14: 1 | J14: 7 | K14: 1 | L14: 8 | M14: 389.52 | O14: MONAY | P14: 99999 | Q14: C-01 | R14: 1 | S14: MP-1 | T14: 1 | U14: 0 | X14: 08:00 | Y14: 09:00 | Z14: 08 | AA14: 00 | AB14: 8 | AC14: 0 | AD14: 0 | AE14: 8 | AF14: 09 | AG14: 00 | AH14: 9.00 | AI14: 0.00 | AJ14: 0 | AK14: 9 | AL14: 1 | AM14: 1 | AN14: 0 | AO14: 48.69 | AP14: 0720401 | AQ14: 0 | AR14: 48.69
A15: 122481 | B15: 05 | C15: 2017-01-03 | D15: 32.97 | E15: 0101526895 | F15: DURAN CONTRERAS | G15: EDGAR FERNANDO | H15: DCEF | I15: 1 | J15: 7 | K15: 1 | L15: 8 | M15: 263.76 | N15: RS | O15: MARISCAL LAMAR Y JUAN MONTALVO | P15: 0500010S03 | Q15: R-05 | R15: 1 | S15: MP-1 | T15: 1 | U15: 0.5 | X15: 10:00 | Y15: 12:00 | Z15: 10 | AA15: 00 | AB15: 10 | AC15: 0 | AD15: 0 | AE15: 10 | AF15: 12 | AG15: 00 | AH15: 12.00 | AI15: 0.00 | AJ15: 0 | AK15: 12 | AL15: 2 | AM15: 2 | AN15: 0 | AO15: 65.94 | AP15: 0720401 | AQ15: 16.485 | AR15: 65.94
A16: 122481 | B16: 05 | C16: 2017-01-03 | D16: 32.97 | E16: 0101526895 | F16: DURAN CONTRERAS | G16: EDGAR FERNANDO | H16: DCEF | I16: 1 | J16: 7 | K16: 1 | L16: 8 | M16: 263.76 | N16: RS | O16: MARIANO CUEVA Y SUCRE | P16: 0500020S01 | Q16: S-02 | R16: 1 | S16: MP-1 | T16: 1 | U16: 0 | X16: 14:00 | Y16: 15:00 | Z16: 14 | AA16: 00 | AB16: 14 | AC16: 0 | AD16: 0 | AE16: 14 | AF16: 15 | AG16: 00 | AH16: 15.00 | AI16: 0.00 | AJ16: 0 | AK16: 15 | AL16: 1 | AM16: 1 | AN16: 0 | AO16: 32.97 | AP16: 0720401 | AQ16: 0 | AR16: 32.97
A17: 122481 | B17: 05 | C17: 2017-01-03 | D17: 32.97 | E17: 0101526895 | F17: DURAN CONTRERAS | G17: EDGAR FERNANDO | H17: DCEF | I17: 1 | J17: 7 | K17: 1 | L17: 8 | M17: 263.76 | N17: RS | O17: LUIS CORDERO Y HONORATO VASQUEZ | P17: 0500020S02 | Q17: S-02 | R17: 1 | S17: MP-1 | T17: 1 | U17: 0.5 | X17: 08:30 | Y17: 09:30 | Z17: 08 | AA17: 30 | AB17: 8 | AC17: 30 | AD17: 0.5 | AE17: 8.5 | AF17: 09 | AG17: 30 | AH17: 9.00 | AI17: 30.00 | AJ17: 0.5 | AK17: 9.5 | AL17: 1 | AM17: 1 | AN17: 0 | AO17: 32.97 | AP17: 0720401 | AQ17: 16.485 | AR17: 32.97
A18: 122481 | B18: 05 | C18: 2017-01-03 | D18: 32.97 | E18: 0101526895 | F18: DURAN CONTRERAS | G18: EDGAR FERNANDO | H18: DCEF | I18: 1 | J18: 7 | K18: 1 | L18: 8 | M18: 263.76 | N18: RS | O18: LUIS CORDERO Y HONORATO VASQUEZ | P18: 0500020S02 | Q18: S-02 | R18: 1 | S18: MP-1 | T18: 1 | U18: 0 | X18: 15:00 | Y18: 16:00 | Z18: 15 | AA18: 00 | AB18: 15 | AC18: 0 | AD18: 0 | AE18: 15 | AF18: 16 | AG18: 00 | AH18: 16.00 | AI18: 0.00 | AJ18: 0 | AK18: 16 | AL18: 1 | AM18: 1 | AN18: 0 | AO18: 32.97 | AP18: 0720401 | AQ18: 0 | AR18: 32.97
A19: 122853 | B19: 04 | C19: 2017-01-03 | D19: 42.14 | E19: 0103040309 | F19: AUCAPIÑA QUINDE | G19: JOHNSON OSWALDO | H19: JOAQ | I19: 3 | J19: 7 | K19: 0.7 | L19: 8.16669 | M19: 344.1443166 | N19: RS | O19: DESPACHO | P19: 0500030V01 | Q19: C-01 | R19: 1 | S19: MP-1 | T19: 1 | U19: 0 | X19: 08:00 | Y19: 08:30 | Z19: 08 | AA19: 00 | AB19: 8 | AC19: 0 | AD19: 0 | AE19: 8 | AF19: 08 | AG19: 30 | AH19: 8.00 | AI19: 30.00 | AJ19: 0.5 | AK19: 8.5 | AL19: 0.5 | AM19: 0 | AN19: 0 | AO19: 0 | AP19: 0740401 | AQ19: 0 | AR19: 21.07
A20: 122853 | B20: 04 | C20: 2017-01-03 | D20: 42.14 | E20: 0103040309 | F20: AUCAPIÑA QUINDE | G20: JOHNSON OSWALDO | H20: JOAQ | I20: 3 | J20: 7 | K20: 0.7 | L20: 8.16669 | M20: 344.1443166 | N20: RS | O20: BODEGA | P20: 0500030V01 | Q20: O-06 | R20: 1 | S20: MP-1 | T20: 1 | U20: 0.25 | X20: 15:45 | Y20: 16:00 | Z20: 15 | AA20: 45 | AB20: 15 | AC20: 45 | AD20: 0.75 | AE20: 15.75 | AF20: 16 | AG20: 00 | AH20: 16.00 | AI20: 0.00 | AJ20: 0 | AK20: 16 | AL20: 0.25 | AM20: 1 | AN20: 0 | AO20: 42.14 | AP20: 0740401 | AQ20: 10.535 | AR20: 10.535
A21: 122853 | B21: 04 | C21: 2017-01-03 | D21: 42.14 | E21: 0103040309 | F21: AUCAPIÑA QUINDE | G21: JOHNSON OSWALDO | H21: JOAQ | I21: 3 | J21: 7 | K21: 0.7 | L21: 8.16669 | M21: 344.1443166 | N21: RS | O21: RAYOLOMA | P21: 0500030V01 | Q21: P-04 | R21: 1 | S21: MP-1 | T21: 1 | U21: 0.25 | X21: 13:00 | Y21: 15:45 | Z21: 13 | AA21: 00 | AB21: 13 | AC21: 0 | AD21: 0 | AE21: 13 | AF21: 15 | AG21: 45 | AH21: 15.00 | AI21: 45.00 | AJ21: 0.75 | AK21: 15.75 | AL21: 2.75 | AM21: 2 | AN21: 0 | AO21: 84.28 | AP21: 0740401 | AQ21: 10.535 | AR21: 115.885
A22: 122853 | B22: 04 | C22: 2017-01-03 | D22: 42.14 | E22: 0103040309 | F22: AUCAPIÑA QUINDE | G22: JOHNSON OSWALDO | H22: JOAQ | I22: 3 | J22: 7 | K22: 0.7 | L22: 8.16669 | M22: 344.1443166 | N22: RS | O22: CARACAS Y OEA | P22: 0500030V01 | Q22: R-01 | R22: 5 | S22: MP-1 | T22: 1 | U22: 0.2 | X22: 08:40 | Y22: 12:45 | Z22: 08 | AA22: 40 | AB22: 8 | AC22: 40 | AD22: 0.6666666667 | AE22: 8.666666667 | AF22: 12 | AG22: 45 | AH22: 12.00 | AI22: 45.00 | AJ22: 0.75 | AK22: 12.75 | AL22: 4.083333333 | AM22: 4 | AN22: 0 | AO22: 168.56 | AP22: 0740401 | AQ22: 8.428 | AR22: 172.0716667
A23: 124534 | B23: 25 | C23: 2017-04-12 | D23: 48.69 | E23: 0101550978 | F23: SEMPERTEGUI CAÑIZARE | G23: EDUARDO | H23: SCE | I23: 1 | J23: 8 | K23: 5 | L23: 13 | M23: 632.97 | N23: AP | O23: OCTAVIO CORDERO | P23: 0500010S04 | Q23: P-02 | R23: 1 | S23: MP-1 | T23: 1 | U23: 4 | X23: 09:00 | Y23: 15:00 | Z23: 09 | AA23: 00 | AB23: 9 | AC23: 0 | AD23: 0 | AE23: 9 | AF23: 15 | AG23: 00 | AH23: 15.00 | AI23: 0.00 | AJ23: 0 | AK23: 15 | AL23: 6 | AM23: 6 | AN23: 0 | AO23: 292.14 | AP23: 0720401 | AQ23: 194.76 | AR23: 292.14
A24: 122549 | B24: 11 | C24: 2017-01-03 | D24: 41.48 | E24: 0101195089 | F24: LEON CORDOVA | G24: PEDRO ALEJANDRO | H24: LCPA | I24: 3 | J24: 7 | K24: 1 | L24: 8 | M24: 331.84 | N24: RS | O24: COLEGIO LOS ÁLAMOS - V. DEL PORTETE | P24: 0500050V01 | Q24: F-03 | R24: 1 | S24: MP-1 | T24: 1 | U24: 0.5 | X24: 08:30 | Y24: 12:00 | Z24: 08 | AA24: 30 | AB24: 8 | AC24: 30 | AD24: 0.5 | AE24: 8.5 | AF24: 12 | AG24: 00 | AH24: 12.00 | AI24: 0.00 | AJ24: 0 | AK24: 12 | AL24: 3.5 | AM24: 4 | AN24: 0 | AO24: 165.92 | AP24: 0740401 | AQ24: 20.74 | AR24: 145.18
A25: 122549 | B25: 11 | C25: 2017-01-03 | D25: 41.48 | E25: 0101195089 | F25: LEON CORDOVA | G25: PEDRO ALEJANDRO | H25: LCPA | I25: 3 | J25: 7 | K25: 1 | L25: 8 | M25: 331.84 | N25: RS | O25: RETORNO MATRIZ | P25: 0500050V01 | Q25: O-06 | R25: 1 | S25: MP-1 | T25: 1 | U25: 0.5 | X25: 15:30 | Y25: 15:30 | Z25: 15 | AA25: 30 | AB25: 15 | AC25: 30 | AD25: 0.5 | AE25: 15.5 | AF25: 15 | AG25: 30 | AH25: 15.00 | AI25: 30.00 | AJ25: 0.5 | AK25: 15.5 | AL25: 0 | AM25: 0 | AN25: 0 | AO25: 0 | AP25: 0740401 | AQ25: 20.74 | AR25: 0
A26: 122549 | B26: 11 | C26: 2017-01-03 | D26: 41.48 | E26: 0101195089 | F26: LEON CORDOVA | G26: PEDRO ALEJANDRO | H26: LCPA | I26: 3 | J26: 7 | K26: 1 | L26: 8 | M26: 331.84 | N26: RS | O26: COLEGIO LOS ÁLAMOS - V. DEL PORTETE | P26: 0500050V01 | Q26: P-04 | R26: 1 | S26: MP-1 | T26: 1 | U26: 0 | X26: 12:30 | Y26: 13:00 | Z26: 12 | AA26: 30 | AB26: 12 | AC26: 30 | AD26: 0.5 | AE26: 12.5 | AF26: 13 | AG26: 00 | AH26: 13.00 | AI26: 0.00 | AJ26: 0 | AK26: 13 | AL26: 0.5 | AM26: 1 | AN26: 0 | AO26: 41.48 | AP26: 0740401 | AQ26: 0 | AR26: 20.74
A27: 122549 | B27: 11 | C27: 2017-01-03 | D27: 41.48 | E27: 0101195089 | F27: LEON CORDOVA | G27: PEDRO ALEJANDRO | H27: LCPA | I27: 3 | J27: 7 | K27: 1 | L27: 8 | M27: 331.84 | N27: RS | O27: COLEGIO LOS ÁLAMOS - V. DEL PORTETE | P27: 0500050V01 | Q27: P-05 | R27: 1 | S27: MP-1 | T27: 1 | U27: 0 | X27: 12:00 | Y27: 12:30 | Z27: 12 | AA27: 00 | AB27: 12 | AC27: 0 | AD27: 0 | AE27: 12 | AF27: 12 | AG27: 30 | AH27: 12.00 | AI27: 30.00 | AJ27: 0.5 | AK27: 12.5 | AL27: 0.5 | AM27: 0 | AN27: 0 | AO27: 0 | AP27: 0740401 | AQ27: 0 | AR27: 20.74
A28: 122549 | B28: 11 | C28: 2017-01-03 | D28: 41.48 | E28: 0101195089 | F28: LEON CORDOVA | G28: PEDRO ALEJANDRO | H28: LCPA | I28: 3 | J28: 7 | K28: 1 | L28: 8 | M28: 331.84 | N28: RS | O28: COLEGIO LOS ÁLAMOS - V. DEL PORTETE | P28: 0500050V01 | Q28: R-01 | R28: 4 | S28: MP-1 | T28: 1 | U28: 0 | X28: 13:00 | Y28: 14:00 | Z28: 13 | AA28: 00 | AB28: 13 | AC28: 0 | AD28: 0 | AE28: 13 | AF28: 14 | AG28: 00 | AH28: 14.00 | AI28: 0.00 | AJ28: 0 | AK28: 14 | AL28: 1 | AM28: 1 | AN28: 0 | AO28: 41.48 | AP28: 0740401 | AQ28: 0 | AR28: 41.48
A29: 122549 | B29: 11 | C29: 2017-01-03 | D29: 41.48 | E29: 0101195089 | F29: LEON CORDOVA | G29: PEDRO ALEJANDRO | H29: LCPA | I29: 3 | J29: 7 | K29: 1 | L29: 8 | M29: 331.84 | N29: RS | O29: ESTACIÓN DE CUMBE # 2846, 949, 7369 | P29: 0500050V01 | Q29: T-06 | R29: 3 | S29: MP-1 | T29: 1 | U29: 0 | X29: 14:00 | Y29: 15:30 | Z29: 14 | AA29: 00 | AB29: 14 | AC29: 0 | AD29: 0 | AE29: 14 | AF29: 15 | AG29: 30 | AH29: 15.00 | AI29: 30.00 | AJ29: 0.5 | AK29: 15.5 | AL29: 1.5 | AM29: 1 | AN29: 0 | AO29: 41.48 | AP29: 0740401 | AQ29: 0 | AR29: 62.22
A30: 122648 | B30: 25 | C30: 2017-01-03 | D30: 48.69 | E30: 0101550978 | F30: SEMPERTEGUI CAÑIZARE | G30: EDUARDO | H30: SCE | I30: 1 | J30: 7 | K30: 1 | L30: 8 | M30: 389.52 | N30: RS | O30: LOS HIGOS Y CESAR CORDERO | P30: 0500050V03 | Q30: P-02 | R30: 1 | S30: MP-1 | T30: 1 | U30: 1 | X30: 09:00 | Y30: 15:00 | Z30: 09 | AA30: 00 | AB30: 9 | AC30: 0 | AD30: 0 | AE30: 9 | AF30: 15 | AG30: 00 | AH30: 15.00 | AI30: 0.00 | AJ30: 0 | AK30: 15 | AL30: 6 | AM30: 6 | AN30: 0 | AO30: 292.14 | AP30: 0720401 | AQ30: 48.69 | AR30: 292.14
A31: 125925 | B31: 13 | C31: 2017-07-06 | D31: 53.28 | E31: 0101278976 | F31: IDROVO IDROVO | G31: JORGE EDUARDO | H31: IIJE | I31: 2 | J31: 5 | K31: 2.5 | L31: 7.83335 | M31: 417.360888 | N31: AP | O31: CALLE PIO BRAVO | P31: 0500010S04 | Q31: P-02 | R31: 1 | S31: MP-1 | T31: 1 | U31: 1 | X31: 08:30 | Y31: 10:30 | Z31: 08 | AA31: 30 | AB31: 8 | AC31: 30 | AD31: 0.5 | AE31: 8.5 | AF31: 10 | AG31: 30 | AH31: 10.00 | AI31: 30.00 | AJ31: 0.5 | AK31: 10.5 | AL31: 2 | AM31: 2 | AN31: 1 | AO31: 106.56 | AP31: 0720401 | AQ31: 53.28 | AR31: 106.56
A32: 126107 | B32: 14 | C32: 2017-07-21 | D32: 31.42 | E32: 0102354040 | F32: PIEDRA MARTINEZ | G32: JORGE IVAN | H32: PMJI | I32: 3 | J32: 6 | K32: 2.5 | L32: 8.83335 | M32: 277.543857 | N32: AP | O32: DANIEL ALVARADO Y MARISCAL LA MAR | P32: 0500010S04 | Q32: R-01 | R32: 3 | S32: MP-1 | T32: 1 | U32: 1 | X32: 09:00 | Y32: 11:00 | Z32: 09 | AA32: 00 | AB32: 9 | AC32: 0 | AD32: 0 | AE32: 9 | AF32: 11 | AG32: 00 | AH32: 11.00 | AI32: 0.00 | AJ32: 0 | AK32: 11 | AL32: 2 | AM32: 2 | AN32: 1 | AO32: 62.84 | AP32: 0740401 | AQ32: 31.42 | AR32: 62.84
A33: 122461 | B33: 13 | C33: 2017-01-03 | D33: 53.28 | E33: 0101278976 | F33: IDROVO IDROVO | G33: JORGE EDUARDO | H33: IIJE | I33: 2 | J33: 6 | K33: 2 | L33: 8 | M33: 426.24 | N33: AP | O33: BALSAY EL DESCANSO | P33: 0500050V03 | Q33: P-08 | R33: 2 | S33: MP-1 | T33: 1 | U33: 1 | X33: 13:00 | Y33: 15:30 | Z33: 13 | AA33: 00 | AB33: 13 | AC33: 0 | AD33: 0 | AE33: 13 | AF33: 15 | AG33: 30 | AH33: 15.00 | AI33: 30.00 | AJ33: 0.5 | AK33: 15.5 | AL33: 2.5 | AM33: 2 | AN33: 0 | AO33: 106.56 | AP33: 0720401 | AQ33: 53.28 | AR33: 133.2
A34: 122469 | B34: 13 | C34: 2017-01-03 | D34: 53.28 | E34: 0101278976 | F34: IDROVO IDROVO | G34: JORGE EDUARDO | H34: IIJE | I34: 2 | J34: 6 | K34: 2 | L34: 8 | M34: 426.24 | N34: AP | O34: SAN JOSE DE BALSAY EL DESCANSO | P34: 0500050V03 | Q34: P-08 | R34: 2 | S34: MP-1 | T34: 1 | U34: 1 | X34: 13:00 | Y34: 15:30 | Z34: 13 | AA34: 00 | AB34: 13 | AC34: 0 | AD34: 0 | AE34: 13 | AF34: 15 | AG34: 30 | AH34: 15.00 | AI34: 30.00 | AJ34: 0.5 | AK34: 15.5 | AL34: 2.5 | AM34: 2 | AN34: 0 | AO34: 106.56 | AP34: 0720401 | AQ34: 53.28 | AR34: 133.2
A35: 122668 | B35: 14 | C35: 2017-01-03 | D35: 31.42 | E35: 0102354040 | F35: PIEDRA MARTINEZ | G35: JORGE IVAN | H35: PMJI | I35: 3 | J35: 7 | K35: 2 | L35: 9 | M35: 282.78 | N35: AP | O35: AV. LOJA Y NICOLAS DE ROCHA | P35: 0500050V04 | Q35: E-02 | R35: 3 | S35: MP-1 | T35: 1 | U35: 0 | X35: 11:00 | Y35: 13:00 | Z35: 11 | AA35: 00 | AB35: 11 | AC35: 0 | AD35: 0 | AE35: 11 | AF35: 13 | AG35: 00 | AH35: 13.00 | AI35: 0.00 | AJ35: 0 | AK35: 13 | AL35: 2 | AM35: 2 | AN35: 0 | AO35: 62.84 | AP35: 0740401 | AQ35: 0 | AR35: 62.84
A36: 122668 | B36: 14 | C36: 2017-01-03 | D36: 31.42 | E36: 0102354040 | F36: PIEDRA MARTINEZ | G36: JORGE IVAN | H36: PMJI | I36: 3 | J36: 7 | K36: 2 | L36: 9 | M36: 282.78 | N36: AP | O36: AV. LOJA Y NICOLAS DE ROCHA | P36: 0500050V04 | Q36: E-07 | R36: 3 | S36: MP-1 | T36: 1 | U36: 0 | X36: 13:00 | Y36: 15:00 | Z36: 13 | AA36: 00 | AB36: 13 | AC36: 0 | AD36: 0 | AE36: 13 | AF36: 15 | AG36: 00 | AH36: 15.00 | AI36: 0.00 | AJ36: 0 | AK36: 15 | AL36: 2 | AM36: 2 | AN36: 0 | AO36: 62.84 | AP36: 0740401 | AQ36: 0 | AR36: 62.84
A37: 122668 | B37: 14 | C37: 2017-01-03 | D37: 31.42 | E37: 0102354040 | F37: PIEDRA MARTINEZ | G37: JORGE IVAN | H37: PMJI | I37: 3 | J37: 7 | K37: 2 | L37: 9 | M37: 282.78 | N37: AP | O37: RETORNO MATRIZ DE LA EMPRESA | P37: 0500050V04 | Q37: O-06 | R37: 1 | S37: MP-1 | T37: 1 | U37: 1 | X37: 15:00 | Y37: 16:00 | Z37: 15 | AA37: 00 | AB37: 15 | AC37: 0 | AD37: 0 | AE37: 15 | AF37: 16 | AG37: 00 | AH37: 16.00 | AI37: 0.00 | AJ37: 0 | AK37: 16 | AL37: 1 | AM37: 1 | AN37: 0 | AO37: 31.42 | AP37: 0740401 | AQ37: 31.42 | AR37: 31.42
A38: 123473 | B38: 25 | C38: 2017-02-17 | D38: 48.69 | E38: 0101550978 | F38: SEMPERTEGUI CAÑIZARE | G38: EDUARDO | H38: SCE | I38: 1 | J38: 11 | K38: 1 | L38: 12 | M38: 584.28 | N38: AP | O38: M.J.CALLE Y PAUCARBAMBA | P38: 0500020S04 | Q38: P-02 | R38: 1 | S38: MP-1 | T38: 1 | U38: 1 | X38: 08:30 | Y38: 19:30 | Z38: 08 | AA38: 30 | AB38: 8 | AC38: 30 | AD38: 0.5 | AE38: 8.5 | AF38: 19 | AG38: 30 | AH38: 19.00 | AI38: 30.00 | AJ38: 0.5 | AK38: 19.5 | AL38: 11 | AM38: 11 | AN38: 0 | AO38: 535.59 | AP38: 0720401 | AQ38: 48.69 | AR38: 535.59
A39: 124251 | B39: 03 | C39: 2017-03-19 | D39: 42.14 | E39: 0102513595 | F39: GUAMAN ORTIZ | G39: WALTER LIGORIO | H39: GOWL | I39: 1 | J39: 15 | K39: 1 | L39: 16 | M39: 674.24 | N39: AP | O39: JOSE PERALTA | P39: 0500020S04 | Q39: P-02 | R39: 1 | S39: MP-1 | T39: 1 | U39: 1 | X39: 06:30 | Y39: 21:00 | Z39: 06 | AA39: 30 | AB39: 6 | AC39: 30 | AD39: 0.5 | AE39: 6.5 | AF39: 21 | AG39: 00 | AH39: 21.00 | AI39: 0.00 | AJ39: 0 | AK39: 21 | AL39: 14.5 | AM39: 15 | AN39: 0 | AO39: 632.1 | AP39: 0720401 | AQ39: 42.14 | AR39: 611.03
A40: 122481 | B40: 05 | C40: 2017-01-03 | D40: 32.97 | E40: 0101526895 | F40: DURAN CONTRERAS | G40: EDGAR FERNANDO | H40: DCEF | I40: 1 | J40: 7 | K40: 1 | L40: 8 | M40: 263.76 | N40: RS | O40: CALLE DEL ARRIERO Y DE LA YUNTA | P40: 0500050V07 | Q40: O-06 | R40: 1 | S40: MP-1 | T40: 1 | U40: 0 | X40: 12:00 | Y40: 14:00 | Z40: 12 | AA40: 00 | AB40: 12 | AC40: 0 | AD40: 0 | AE40: 12 | AF40: 14 | AG40: 00 | AH40: 14.00 | AI40: 0.00 | AJ40: 0 | AK40: 14 | AL40: 2 | AM40: 2 | AN40: 0 | AO40: 65.94 | AP40: 0720401 | AQ40: 0 | AR40: 65.94
A41: 122777 | B41: 19 | C41: 2017-01-03 | D41: 45.26 | E41: 0101195089 | F41: LEON CORDOVA | G41: PEDRO ALEJANDRO | H41: LCPA | I41: 3 | J41: 6 | K41: 2 | L41: 8 | M41: 362.08 | N41: AP | O41: DESPACHO DE GRUPOS | P41: 0500080V03 | Q41: C-02 | R41: 1 | S41: MP-1 | T41: 1 | U41: 0 | X41: 08:00 | Y41: 08:30 | Z41: 08 | AA41: 00 | AB41: 8 | AC41: 0 | AD41: 0 | AE41: 8 | AF41: 08 | AG41: 30 | AH41: 8.00 | AI41: 30.00 | AJ41: 0.5 | AK41: 8.5 | AL41: 0.5 | AM41: 0 | AN41: 0 | AO41: 0 | AP41: 0740401 | AQ41: 0 | AR41: 22.63
A42: 122777 | B42: 19 | C42: 2017-01-03 | D42: 45.26 | E42: 0101195089 | F42: LEON CORDOVA | G42: PEDRO ALEJANDRO | H42: LCPA | I42: 3 | J42: 6 | K42: 2 | L42: 8 | M42: 362.08 | N42: TD | O42: SECTOR DE TAÑILOMA | P42: 0500080V03 | Q42: T-03 | R42: 1 | S42: MP-1 | T42: 1 | U42: 1 | X42: 09:30 | Y42: 13:30 | Z42: 09 | AA42: 30 | AB42: 9 | AC42: 30 | AD42: 0.5 | AE42: 9.5 | AF42: 13 | AG42: 30 | AH42: 13.00 | AI42: 30.00 | AJ42: 0.5 | AK42: 13.5 | AL42: 4 | AM42: 4 | AN42: 0 | AO42: 181.04 | AP42: 0740401 | AQ42: 45.26 | AR42: 181.04
A43: 122522 | B43: 44A | C43: 2017-01-03 | D43: 31.67 | E43: 0101219749 | F43: ABRIL ABRIL | G43: MANUEL ROSENDO | H43: AAMR | I43: 2 | J43: 3 | K43: 1.55 | L43: 4.916685 | M43: 155.711414 | N43: RS | O43: RUMIHURCO | P43: 0500120V03 | Q43: E-07 | R43: 1 | S43: MP-1 | T43: 1 | U43: 0.15 | X43: 11:30 | Y43: 12:15 | Z43: 11 | AA43: 30 | AB43: 11 | AC43: 30 | AD43: 0.5 | AE43: 11.5 | AF43: 12 | AG43: 15 | AH43: 12.00 | AI43: 15.00 | AJ43: 0.25 | AK43: 12.25 | AL43: 0.75 | AM43: 1 | AN43: 0 | AO43: 31.67 | AP43: 0730602 | AQ43: 4.7505 | AR43: 23.7525
A44: 122522 | B44: 44A | C44: 2017-01-03 | D44: 31.67 | E44: 0101219749 | F44: ABRIL ABRIL | G44: MANUEL ROSENDO | H44: AAMR | I44: 2 | J44: 3 | K44: 1.55 | L44: 4.916685 | M44: 155.711414 | N44: RS | O44: COPZHAL | P44: 0500120V03 | Q44: R-07 | R44: 1 | S44: MP-1 | T44: 1 | U44: 0.3 | X44: 15:30 | Y44: 15:45 | Z44: 15 | AA44: 30 | AB44: 15 | AC44: 30 | AD44: 0.5 | AE44: 15.5 | AF44: 15 | AG44: 45 | AH44: 15.00 | AI44: 45.00 | AJ44: 0.75 | AK44: 15.75 | AL44: 0.25 | AM44: 0 | AN44: 0 | AO44: 0 | AP44: 0730602 | AQ44: 9.501 | AR44: 7.9175
A45: 122522 | B45: 44A | C45: 2017-01-03 | D45: 31.67 | E45: 0101219749 | F45: ABRIL ABRIL | G45: MANUEL ROSENDO | H45: AAMR | I45: 2 | J45: 3 | K45: 1.55 | L45: 4.916685 | M45: 155.711414 | N45: RS | O45: ZHAUZHIN | P45: 0500120V03 | Q45: R-07 | R45: 1 | S45: MP-1 | T45: 1 | U45: 0.3 | X45: 10:30 | Y45: 10:45 | Z45: 10 | AA45: 30 | AB45: 10 | AC45: 30 | AD45: 0.5 | AE45: 10.5 | AF45: 10 | AG45: 45 | AH45: 10.00 | AI45: 45.00 | AJ45: 0.75 | AK45: 10.75 | AL45: 0.25 | AM45: 0 | AN45: 0 | AO45: 0 | AP45: 0730602 | AQ45: 9.501 | AR45: 7.9175
A46: 122522 | B46: 44A | C46: 2017-01-03 | D46: 31.67 | E46: 0101219749 | F46: ABRIL ABRIL | G46: MANUEL ROSENDO | H46: AAMR | I46: 2 | J46: 3 | K46: 1.55 | L46: 4.916685 | M46: 155.711414 | N46: RS | O46: MONJAS | P46: 0500120V03 | Q46: T-07 | R46: 1 | S46: MP-1 | T46: 1 | U46: 0.2 | X46: 09:00 | Y46: 10:00 | Z46: 09 | AA46: 00 | AB46: 9 | AC46: 0 | AD46: 0 | AE46: 9 | AF46: 10 | AG46: 00 | AH46: 10.00 | AI46: 0.00 | AJ46: 0 | AK46: 10 | AL46: 1 | AM46: 1 | AN46: 0 | AO46: 31.67 | AP46: 0730602 | AQ46: 6.334 | AR46: 31.67
A47: 122522 | B47: 44A | C47: 2017-01-03 | D47: 31.67 | E47: 0101219749 | F47: ABRIL ABRIL | G47: MANUEL ROSENDO | H47: AAMR | I47: 2 | J47: 3 | K47: 1.55 | L47: 4.916685 | M47: 155.711414 | N47: RS | O47: RUMIHURCO | P47: 0500120V03 | Q47: T-07 | R47: 1 | S47: MP-1 | T47: 1 | U47: 0.15 | X47: 14:30 | Y47: 14:45 | Z47: 14 | AA47: 30 | AB47: 14 | AC47: 30 | AD47: 0.5 | AE47: 14.5 | AF47: 14 | AG47: 45 | AH47: 14.00 | AI47: 45.00 | AJ47: 0.75 | AK47: 14.75 | AL47: 0.25 | AM47: 0 | AN47: 0 | AO47: 0 | AP47: 0730602 | AQ47: 4.7505 | AR47: 7.9175
A48: 123956 | B48: 25 | C48: 2017-03-19 | D48: 48.69 | E48: 0101550978 | F48: SEMPERTEGUI CAÑIZARE | G48: EDUARDO | H48: SCE | I48: 1 | J48: 14 | K48: 1 | L48: 15 | M48: 730.35 | N48: AP | O48: JOSE PERALTA | P48: 0500020S04 | Q48: P-02 | R48: 12 | S48: MP-1 | T48: 1 | U48: 1 | X48: 06:00 | Y48: 20:30 | Z48: 06 | AA48: 00 | AB48: 6 | AC48: 0 | AD48: 0 | AE48: 6 | AF48: 20 | AG48: 30 | AH48: 20.00 | AI48: 30.00 | AJ48: 0.5 | AK48: 20.5 | AL48: 14.5 | AM48: 14 | AN48: 0 | AO48: 681.66 | AP48: 0720401 | AQ48: 48.69 | AR48: 706.005
A49: 122488 | B49: 47B | C49: 2017-01-03 | D49: 25.14 | E49: 0103072583 | F49: VAZQUEZ CALVACHE | G49: GERARDO PATRICIO | H49: VCGP | I49: 3 | J49: 3 | K49: 2 | L49: 5 | M49: 125.7 | N49: RS | O49: CAUQUIL | P49: 0500140V03 | Q49: F-03 | R49: 1 | S49: MP-1 | T49: 1 | U49: 1 | X49: 10:00 | Y49: 12:00 | Z49: 10 | AA49: 00 | AB49: 10 | AC49: 0 | AD49: 0 | AE49: 10 | AF49: 12 | AG49: 00 | AH49: 12.00 | AI49: 0.00 | AJ49: 0 | AK49: 12 | AL49: 2 | AM49: 2 | AN49: 0 | AO49: 50.28 | AP49: 0740602 | AQ49: 25.14 | AR49: 50.28
A50: 122662 | B50: 47A | C50: 2017-01-03 | D50: 32.97 | E50: 0103072583 | F50: VAZQUEZ CALVACHE | G50: GERARDO PATRICIO | H50: VCGP | I50: 3 | J50: 4 | K50: 2 | L50: 6 | M50: 197.82 | N50: RS | O50: SAUCES SHOGRA | P50: 0500140V03 | Q50: F-03 | R50: 2 | S50: MP-1 | T50: 1 | U50: 1 | X50: 09:00 | Y50: 11:00 | Z50: 09 | AA50: 00 | AB50: 9 | AC50: 0 | AD50: 0 | AE50: 9 | AF50: 11 | AG50: 00 | AH50: 11.00 | AI50: 0.00 | AJ50: 0 | AK50: 11 | AL50: 2 | AM50: 2 | AN50: 0 | AO50: 65.94 | AP50: 0740602 | AQ50: 32.97 | AR50: 65.94
A51: 122662 | B51: 47A | C51: 2017-01-03 | D51: 32.97 | E51: 0103072583 | F51: VAZQUEZ CALVACHE | G51: GERARDO PATRICIO | H51: VCGP | I51: 3 | J51: 4 | K51: 2 | L51: 6 | M51: 197.82 | N51: RS | O51: CACHI, PUCUCARI | P51: 0500140V03 | Q51: S-01 | R51: 3 | S51: MP-6 | T51: 1 | U51: 1 | X51: 12:00 | Y51: 14:00 | Z51: 12 | AA51: 00 | AB51: 12 | AC51: 0 | AD51: 0 | AE51: 12 | AF51: 14 | AG51: 00 | AH51: 14.00 | AI51: 0.00 | AJ51: 0 | AK51: 14 | AL51: 2 | AM51: 2 | AN51: 0 | AO51: 65.94 | AP51: 0740605 | AQ51: 32.97 | AR51: 65.94
A52: 123226 | B52: 43B | C52: 2017-01-03 | D52: 22.27 | E52: 0301648150 | F52: LOZADO DIEZ | G52: DANIEL VICENTE | H52: DVLD | I52: 2 | J52: 5 | K52: 0.8 | L52: 6.33336 | M52: 141.0439272 | N52: IP | O52: PRINCIPAL | P52: 0500150V01 | Q52: A-03 | R52: 1 | S52: MP-1 | T52: 1 | U52: 0.3 | X52: 09:00 | Y52: 10:00 | Z52: 09 | AA52: 00 | AB52: 9 | AC52: 0 | AD52: 0 | AE52: 9 | AF52: 10 | AG52: 00 | AH52: 10.00 | AI52: 0.00 | AJ52: 0 | AK52: 10 | AL52: 1 | AM52: 1 | AN52: 0 | AO52: 22.27 | AP52: 0730503 | AQ52: 6.681 | AR52: 22.27
A53: 123226 | B53: 43B | C53: 2017-01-03 | D53: 22.27 | E53: 0301648150 | F53: LOZADO DIEZ | G53: DANIEL VICENTE | H53: DVLD | I53: 2 | J53: 5 | K53: 0.8 | L53: 6.33336 | M53: 141.0439272 | N53: IP | O53: ZIUQUIN | P53: 0500150V01 | Q53: A-03 | R53: 1 | S53: MP-1 | T53: 1 | U53: 0.2 | X53: 10:20 | Y53: 11:00 | Z53: 10 | AA53: 20 | AB53: 10 | AC53: 20 | AD53: 0.3333333333 | AE53: 10.33333333 | AF53: 11 | AG53: 00 | AH53: 11.00 | AI53: 0.00 | AJ53: 0 | AK53: 11 | AL53: 0.6666666667 | AM53: 1 | AN53: 0 | AO53: 22.27 | AP53: 0730503 | AQ53: 4.454 | AR53: 14.84666667
A54: 122930 | B54: 45A | C54: 2017-01-03 | D54: 23.15 | E54: 0102017084 | F54: MOLINA ALVARADO | G54: ENRIQUE | H54: MAE | I54: 2 | J54: 4 | K54: 2 | L54: 6 | M54: 138.9 | N54: RS | O54: CHURUCO | P54: 0500150V01 | Q54: E-02 | R54: 3 | S54: MP-6 | T54: 1 | U54: 2 | X54: 09:00 | Y54: 13:00 | Z54: 09 | AA54: 00 | AB54: 9 | AC54: 0 | AD54: 0 | AE54: 9 | AF54: 13 | AG54: 00 | AH54: 13.00 | AI54: 0.00 | AJ54: 0 | AK54: 13 | AL54: 4 | AM54: 4 | AN54: 0 | AO54: 92.6 | AP54: 0730702 | AQ54: 46.3 | AR54: 92.6
A55: 123123 | B55: 43A | C55: 2017-01-03 | D55: 29.48 | E55: 0301648150 | F55: LOZADO DIEZ | G55: DANIEL VICENTE | H55: DVLD | I55: 2 | J55: 5 | K55: 0.8 | L55: 6.33336 | M55: 186.7074528 | N55: AP | O55: MAYUNTUR | P55: 0500150V01 | Q55: E-24 | R55: 1 | S55: MP-1 | T55: 1 | U55: 0.2 | X55: 14:20 | Y55: 15:00 | Z55: 14 | AA55: 20 | AB55: 14 | AC55: 20 | AD55: 0.3333333333 | AE55: 14.33333333 | AF55: 15 | AG55: 00 | AH55: 15.00 | AI55: 0.00 | AJ55: 0 | AK55: 15 | AL55: 0.6666666667 | AM55: 1 | AN55: 0 | AO55: 29.48 | AP55: 0730502 | AQ55: 5.896 | AR55: 19.65333333
A56: 122931 | B56: 45B | C56: 2017-01-03 | D56: 23.15 | E56: 0102017084 | F56: MOLINA ALVARADO | G56: ENRIQUE | H56: MAE | I56: 2 | J56: 1 | K56: 0.3 | L56: 1.50001 | M56: 34.7252315 | N56: TD | O56: ZHOTOR | P56: 0500150V01 | Q56: T-07 | R56: 1 | S56: MP-6 | T56: 1 | U56: 0.3 | X56: 18:30 | Y56: 19:00 | Z56: 18 | AA56: 30 | AB56: 18 | AC56: 30 | AD56: 0.5 | AE56: 18.5 | AF56: 19 | AG56: 00 | AH56: 19.00 | AI56: 0.00 | AJ56: 0 | AK56: 19 | AL56: 0.5 | AM56: 1 | AN56: 0 | AO56: 23.15 | AP56: 0730704 | AQ56: 6.945 | AR56: 11.575
A57: 123226 | B57: 43B | C57: 2017-01-03 | D57: 22.27 | E57: 0301648150 | F57: LOZADO DIEZ | G57: DANIEL VICENTE | H57: DVLD | I57: 2 | J57: 5 | K57: 0.8 | L57: 6.33336 | M57: 141.0439272 | N57: IP | O57: CIRCUNVALACION | P57: 0500150V02 | Q57: A-03 | R57: 1 | S57: MP-1 | T57: 1 | U57: 0.1 | X57: 12:10 | Y57: 13:00 | Z57: 12 | AA57: 10 | AB57: 12 | AC57: 10 | AD57: 0.1666666667 | AE57: 12.16666667 | AF57: 13 | AG57: 00 | AH57: 13.00 | AI57: 0.00 | AJ57: 0 | AK57: 13 | AL57: 0.8333333333 | AM57: 1 | AN57: 0 | AO57: 22.27 | AP57: 0730503 | AQ57: 2.227 | AR57: 18.55833333
A58: 123226 | B58: 43B | C58: 2017-01-03 | D58: 22.27 | E58: 0301648150 | F58: LOZADO DIEZ | G58: DANIEL VICENTE | H58: DVLD | I58: 2 | J58: 5 | K58: 0.8 | L58: 6.33336 | M58: 141.0439272 | N58: IP | O58: ESTADIO | P58: 0500150V02 | Q58: A-03 | R58: 1 | S58: MP-1 | T58: 1 | U58: 0.1 | X58: 14:20 | Y58: 15:00 | Z58: 14 | AA58: 20 | AB58: 14 | AC58: 20 | AD58: 0.3333333333 | AE58: 14.33333333 | AF58: 15 | AG58: 00 | AH58: 15.00 | AI58: 0.00 | AJ58: 0 | AK58: 15 | AL58: 0.6666666667 | AM58: 1 | AN58: 0 | AO58: 22.27 | AP58: 0730503 | AQ58: 2.227 | AR58: 14.84666667
A59: 123226 | B59: 43B | C59: 2017-01-03 | D59: 22.27 | E59: 0301648150 | F59: LOZADO DIEZ | G59: DANIEL VICENTE | H59: DVLD | I59: 2 | J59: 5 | K59: 0.8 | L59: 6.33336 | M59: 141.0439272 | N59: IP | O59: GUALACEO CENTRO | P59: 0500150V02 | Q59: A-03 | R59: 1 | S59: MP-1 | T59: 1 | U59: 0.1 | X59: 11:10 | Y59: 12:00 | Z59: 11 | AA59: 10 | AB59: 11 | AC59: 10 | AD59: 0.1666666667 | AE59: 11.16666667 | AF59: 12 | AG59: 00 | AH59: 12.00 | AI59: 0.00 | AJ59: 0 | AK59: 12 | AL59: 0.8333333333 | AM59: 1 | AN59: 0 | AO59: 22.27 | AP59: 0730503 | AQ59: 2.227 | AR59: 18.55833333
A60: 123123 | B60: 43A | C60: 2017-01-03 | D60: 29.48 | E60: 0301648150 | F60: LOZADO DIEZ | G60: DANIEL VICENTE | H60: DVLD | I60: 2 | J60: 5 | K60: 0.8 | L60: 6.33336 | M60: 186.7074528 | N60: TD | O60: TOCTELOMA | P60: 0500150V02 | Q60: E-23 | R60: 1 | S60: MP-1 | T60: 1 | U60: 0.2 | X60: 11:20 | Y60: 12:00 | Z60: 11 | AA60: 20 | AB60: 11 | AC60: 20 | AD60: 0.3333333333 | AE60: 11.33333333 | AF60: 12 | AG60: 00 | AH60: 12.00 | AI60: 0.00 | AJ60: 0 | AK60: 12 | AL60: 0.6666666667 | AM60: 1 | AN60: 0 | AO60: 29.48 | AP60: 0730504 | AQ60: 5.896 | AR60: 19.65333333
A61: 123123 | B61: 43A | C61: 2017-01-03 | D61: 29.48 | E61: 0301648150 | F61: LOZADO DIEZ | G61: DANIEL VICENTE | H61: DVLD | I61: 2 | J61: 5 | K61: 0.8 | L61: 6.33336 | M61: 186.7074528 | N61: RS | O61: AV. CAÑAVERALES | P61: 0500150V02 | Q61: O-05 | R61: 1 | S61: MP-1 | T61: 1 | U61: 0.1 | X61: 10:20 | Y61: 11:00 | Z61: 10 | AA61: 20 | AB61: 10 | AC61: 20 | AD61: 0.3333333333 | AE61: 10.33333333 | AF61: 11 | AG61: 00 | AH61: 11.00 | AI61: 0.00 | AJ61: 0 | AK61: 11 | AL61: 0.6666666667 | AM61: 1 | AN61: 0 | AO61: 29.48 | AP61: 0730502 | AQ61: 2.948 | AR61: 19.65333333
A62: 123123 | B62: 43A | C62: 2017-01-03 | D62: 29.48 | E62: 0301648150 | F62: LOZADO DIEZ | G62: DANIEL VICENTE | H62: DVLD | I62: 2 | J62: 5 | K62: 0.8 | L62: 6.33336 | M62: 186.7074528 | N62: RS | O62: GUALACEO CENTRO | P62: 0500150V02 | Q62: O-06 | R62: 1 | S62: MP-1 | T62: 1 | U62: 0.1 | X62: 08:30 | Y62: 09:00 | Z62: 08 | AA62: 30 | AB62: 8 | AC62: 30 | AD62: 0.5 | AE62: 8.5 | AF62: 09 | AG62: 00 | AH62: 9.00 | AI62: 0.00 | AJ62: 0 | AK62: 9 | AL62: 0.5 | AM62: 1 | AN62: 0 | AO62: 29.48 | AP62: 0730502 | AQ62: 2.948 | AR62: 14.74
A63: 123123 | B63: 43A | C63: 2017-01-03 | D63: 29.48 | E63: 0301648150 | F63: LOZADO DIEZ | G63: DANIEL VICENTE | H63: DVLD | I63: 2 | J63: 5 | K63: 0.8 | L63: 6.33336 | M63: 186.7074528 | N63: RS | O63: PATUL | P63: 0500150V02 | Q63: S-01 | R63: 1 | S63: MP-1 | T63: 1 | U63: 0.2 | X63: 09:20 | Y63: 10:00 | Z63: 09 | AA63: 20 | AB63: 9 | AC63: 20 | AD63: 0.3333333333 | AE63: 9.333333333 | AF63: 10 | AG63: 00 | AH63: 10.00 | AI63: 0.00 | AJ63: 0 | AK63: 10 | AL63: 0.6666666667 | AM63: 1 | AN63: 0 | AO63: 29.48 | AP63: 0730502 | AQ63: 5.896 | AR63: 19.65333333
A64: 122522 | B64: 44A | C64: 2017-01-03 | D64: 31.67 | E64: 0101219749 | F64: ABRIL ABRIL | G64: MANUEL ROSENDO | H64: AAMR | I64: 2 | J64: 3 | K64: 1.55 | L64: 4.916685 | M64: 155.711414 | N64: RS | O64: GUAYAN | P64: 0500150V03 | Q64: R-07 | R64: 1 | S64: MP-1 | T64: 1 | U64: 0.15 | X64: 12:45 | Y64: 13:00 | Z64: 12 | AA64: 45 | AB64: 12 | AC64: 45 | AD64: 0.75 | AE64: 12.75 | AF64: 13 | AG64: 00 | AH64: 13.00 | AI64: 0.00 | AJ64: 0 | AK64: 13 | AL64: 0.25 | AM64: 1 | AN64: 0 | AO64: 31.67 | AP64: 0730602 | AQ64: 4.7505 | AR64: 7.9175
A65: 122522 | B65: 44A | C65: 2017-01-03 | D65: 31.67 | E65: 0101219749 | F65: ABRIL ABRIL | G65: MANUEL ROSENDO | H65: AAMR | I65: 2 | J65: 3 | K65: 1.55 | L65: 4.916685 | M65: 155.711414 | N65: RS | O65: SAN JOSE DE HUACAS | P65: 0500150V03 | Q65: R-07 | R65: 1 | S65: MP-1 | T65: 1 | U65: 0.3 | X65: 16:30 | Y65: 16:45 | Z65: 16 | AA65: 30 | AB65: 16 | AC65: 30 | AD65: 0.5 | AE65: 16.5 | AF65: 16 | AG65: 45 | AH65: 16.00 | AI65: 45.00 | AJ65: 0.75 | AK65: 16.75 | AL65: 0.25 | AM65: 0 | AN65: 0 | AO65: 0 | AP65: 0730602 | AQ65: 9.501 | AR65: 7.9175
A66: 122571 | B66: 05 | C66: 2017-01-04 | D66: 32.97 | E66: 0101526895 | F66: DURAN CONTRERAS | G66: EDGAR FERNANDO | H66: DCEF | I66: 1 | J66: 7 | K66: 1 | L66: 8 | M66: 263.76 | N66: RS | O66: MATRIZ | P66: 99999 | Q66: C-01 | R66: 1 | S66: MP-1 | T66: 1 | U66: 0 | X66: 08:00 | Y66: 09:00 | Z66: 08 | AA66: 00 | AB66: 8 | AC66: 0 | AD66: 0 | AE66: 8 | AF66: 09 | AG66: 00 | AH66: 9.00 | AI66: 0.00 | AJ66: 0 | AK66: 9 | AL66: 1 | AM66: 1 | AN66: 0 | AO66: 32.97 | AP66: 0720401 | AQ66: 0 | AR66: 32.97
A67: 122649 | B67: 25 | C67: 2017-01-04 | D67: 48.69 | E67: 0101550978 | F67: SEMPERTEGUI CAÑIZARE | G67: EDUARDO | H67: SCE | I67: 1 | J67: 7 | K67: 1 | L67: 8 | M67: 389.52 | O67: MONAY | P67: 99999 | Q67: C-01 | R67: 1 | S67: MP-1 | T67: 1 | U67: 0 | X67: 08:00 | Y67: 08:30 | Z67: 08 | AA67: 00 | AB67: 8 | AC67: 0 | AD67: 0 | AE67: 8 | AF67: 08 | AG67: 30 | AH67: 8.00 | AI67: 30.00 | AJ67: 0.5 | AK67: 8.5 | AL67: 0.5 | AM67: 0 | AN67: 0 | AO67: 0 | AP67: 0720401 | AQ67: 0 | AR67: 24.345
A68: 122571 | B68: 05 | C68: 2017-01-04 | D68: 32.97 | E68: 0101526895 | F68: DURAN CONTRERAS | G68: EDGAR FERNANDO | H68: DCEF | I68: 1 | J68: 7 | K68: 1 | L68: 8 | M68: 263.76 | N68: RS | O68: MARIANO CUEVA Y SUCRE | P68: 0500020S01 | Q68: R-04 | R68: 1 | S68: MP-1 | T68: 1 | U68: 0.5 | X68: 09:30 | Y68: 11:30 | Z68: =LEFT(X68,2) -> 09 | AA68: =RIGHT(X68,2) -> 30 | AB68: =FIXED(Z68,0) -> 9 | AC68: =FIXED(AA68,0) -> 30 | AD68: =+AC68/60 -> 0.5 | AE68: =+AB68+AD68 -> 9.5 | AF68: =LEFT(Y68,2) -> 11 | AG68: =RIGHT(Y68,2) -> 30 | AH68: =FIXED(AF68,2) -> 11.00 | AI68: =FIXED(AG68,2) -> 30.00 | AJ68: =+AI68/60 -> 0.5 | AK68: =+AH68+AJ68 -> 11.5 | AL68: =+AK68-AE68 -> 2 | AM68: 2 | AN68: 0 | AO68: 65.94 | AP68: 0720401 | AQ68: =+U68*D68 -> 16.485 | AR68: =+AL68*D68 -> 65.94
A69: 122571 | B69: 05 | C69: 2017-01-04 | D69: 32.97 | E69: 0101526895 | F69: DURAN CONTRERAS | G69: EDGAR FERNANDO | H69: DCEF | I69: 1 | J69: 7 | K69: 1 | L69: 8 | M69: 263.76 | N69: RS | O69: SUCRE Y BENIGNO MALO | P69: 0500020S02 | Q69: O-06 | R69: 1 | S69: MP-1 | T69: 1 | U69: 0 | X69: 13:00 | Y69: 16:00 | Z69: 13 | AA69: 00 | AB69: 13 | AC69: 0 | AD69: 0 | AE69: 13 | AF69: 16 | AG69: 00 | AH69: 16.00 | AI69: 0.00 | AJ69: 0 | AK69: 16 | AL69: 3 | AM69: 3 | AN69: 0 | AO69: 98.91 | AP69: 0720401 | AQ69: 0 | AR69: 98.91
A70: 122571 | B70: 05 | C70: 2017-01-04 | D70: 32.97 | E70: 0101526895 | F70: DURAN CONTRERAS | G70: EDGAR FERNANDO | H70: DCEF | I70: 1 | J70: 7 | K70: 1 | L70: 8 | M70: 263.76 | N70: RS | O70: CALLE LARGA Y PADRE AGUIRRE | P70: 0500020S03 | Q70: S-02 | R70: 1 | S70: MP-1 | T70: 1 | U70: 0.5 | X70: 12:00 | Y70: 13:00 | Z70: 12 | AA70: 00 | AB70: 12 | AC70: 0 | AD70: 0 | AE70: 12 | AF70: 13 | AG70: 00 | AH70: 13.00 | AI70: 0.00 | AJ70: 0 | AK70: 13 | AL70: 1 | AM70: 1 | AN70: 0 | AO70: 32.97 | AP70: 0720401 | AQ70: 16.485 | AR70: 32.97
A71: 123847 | B71: 13 | C71: 2017-03-19 | D71: 53.28 | E71: 0101278976 | F71: IDROVO IDROVO | G71: JORGE EDUARDO | H71: IIJE | I71: 2 | J71: 13 | K71: 0.5 | L71: 13.83335 | M71: 737.040888 | N71: AP | O71: CALLE JOSE PERALTA | P71: 0500020S04 | Q71: P-02 | R71: 3 | S71: MP-1 | T71: 1 | U71: 0 | X71: 14:00 | Y71: 19:00 | Z71: 14 | AA71: 00 | AB71: 14 | AC71: 0 | AD71: 0 | AE71: 14 | AF71: 19 | AG71: 00 | AH71: 19.00 | AI71: 0.00 | AJ71: 0 | AK71: 19 | AL71: 5 | AM71: 5 | AN71: 0 | AO71: 266.4 | AP71: 0720401 | AQ71: 0 | AR71: 266.4
A72: 122778 | B72: 19 | C72: 2017-01-04 | D72: 45.26 | E72: 0101195089 | F72: LEON CORDOVA | G72: PEDRO ALEJANDRO | H72: LCPA | I72: 3 | J72: 11 | K72: 1 | L72: 12 | M72: 543.12 | N72: AP | O72: DESPACHO DE GRUPOS | P72: 0500050V01 | Q72: C-02 | R72: 1 | S72: MP-1 | T72: 1 | U72: 0 | X72: 08:00 | Y72: 08:30 | Z72: 08 | AA72: 00 | AB72: 8 | AC72: 0 | AD72: 0 | AE72: 8 | AF72: 08 | AG72: 30 | AH72: 8.00 | AI72: 30.00 | AJ72: 0.5 | AK72: 8.5 | AL72: 0.5 | AM72: 0 | AN72: 0 | AO72: 0 | AP72: 0740401 | AQ72: 0 | AR72: 22.63
A73: 122671 | B73: 14 | C73: 2017-01-04 | D73: 31.42 | E73: 0102354040 | F73: PIEDRA MARTINEZ | G73: JORGE IVAN | H73: PMJI | I73: 3 | J73: 12 | K73: 2 | L73: 14 | M73: 439.88 | N73: AP | O73: BEETHOVEN Y VIVALDI | P73: 0500050V01 | Q73: E-02 | R73: 8 | S73: MP-1 | T73: 1 | U73: 0 | X73: 14:00 | Y73: 18:00 | Z73: 14 | AA73: 00 | AB73: 14 | AC73: 0 | AD73: 0 | AE73: 14 | AF73: 18 | AG73: 00 | AH73: 18.00 | AI73: 0.00 | AJ73: 0 | AK73: 18 | AL73: 4 | AM73: 4 | AN73: 0 | AO73: 125.68 | AP73: 0740401 | AQ73: 0 | AR73: 125.68
A74: 122551 | B74: 11 | C74: 2017-01-04 | D74: 41.48 | E74: 0101195089 | F74: LEON CORDOVA | G74: PEDRO ALEJANDRO | H74: LCPA | I74: 3 | J74: 11 | K74: 1 | L74: 12 | M74: 497.76 | N74: RS | O74: RETORNO MATRIZ | P74: 0500050V01 | Q74: O-06 | R74: 1 | S74: MP-1 | T74: 1 | U74: 0.5 | X74: 19:30 | Y74: 19:30 | Z74: 19 | AA74: 30 | AB74: 19 | AC74: 30 | AD74: 0.5 | AE74: 19.5 | AF74: 19 | AG74: 30 | AH74: 19.00 | AI74: 30.00 | AJ74: 0.5 | AK74: 19.5 | AL74: 0 | AM74: 0 | AN74: 0 | AO74: 0 | AP74: 0740401 | AQ74: 20.74 | AR74: 0
A75: 122671 | B75: 14 | C75: 2017-01-04 | D75: 31.42 | E75: 0102354040 | F75: PIEDRA MARTINEZ | G75: JORGE IVAN | H75: PMJI | I75: 3 | J75: 12 | K75: 2 | L75: 14 | M75: 439.88 | N75: AP | O75: RETORNO MATRIZ DE LA EMPRESA | P75: 0500050V01 | Q75: O-06 | R75: 1 | S75: MP-1 | T75: 1 | U75: 1 | X75: 20:00 | Y75: 21:00 | Z75: 20 | AA75: 00 | AB75: 20 | AC75: 0 | AD75: 0 | AE75: 20 | AF75: 21 | AG75: 00 | AH75: 21.00 | AI75: 0.00 | AJ75: 0 | AK75: 21 | AL75: 1 | AM75: 1 | AN75: 0 | AO75: 31.42 | AP75: 0740401 | AQ75: 31.42 | AR75: 31.42
A76: 122671 | B76: 14 | C76: 2017-01-04 | D76: 31.42 | E76: 0102354040 | F76: PIEDRA MARTINEZ | G76: JORGE IVAN | H76: PMJI | I76: 3 | J76: 12 | K76: 2 | L76: 14 | M76: 439.88 | N76: AP | O76: BEETHOVEN Y VIVALDI | P76: 0500050V01 | Q76: P-01 | R76: 3 | S76: MP-1 | T76: 1 | U76: 1 | X76: 09:00 | Y76: 14:00 | Z76: 09 | AA76: 00 | AB76: 9 | AC76: 0 | AD76: 0 | AE76: 9 | AF76: 14 | AG76: 00 | AH76: 14.00 | AI76: 0.00 | AJ76: 0 | AK76: 14 | AL76: 5 | AM76: 5 | AN76: 0 | AO76: 157.1 | AP76: 0740401 | AQ76: 31.42 | AR76: 157.1
A77: 124536 | B77: 13 | C77: 2017-04-25 | D77: 53.28 | E77: 0101278976 | F77: IDROVO IDROVO | G77: JORGE EDUARDO | H77: IIJE | I77: 2 | J77: 7 | K77: 1.5 | L77: 8.83335 | M77: 470.640888 | N77: AP | O77: CALLE DE EL FAROL | P77: 0500020S04 | Q77: P-02 | R77: 2 | S77: MP-1 | T77: 1 | U77: 0.5 | X77: 13:30 | Y77: 15:30 | Z77: 13 | AA77: 30 | AB77: 13 | AC77: 30 | AD77: 0.5 | AE77: 13.5 | AF77: 15 | AG77: 30 | AH77: 15.00 | AI77: 30.00 | AJ77: 0.5 | AK77: 15.5 | AL77: 2 | AM77: 2 | AN77: 0 | AO77: 106.56 | AP77: 0750502 | AQ77: 26.64 | AR77: 106.56
A78: 124625 | B78: 13 | C78: 2017-04-30 | D78: 53.28 | E78: 0101278976 | F78: IDROVO IDROVO | G78: JORGE EDUARDO | H78: IIJE | I78: 2 | J78: 10 | K78: 1 | L78: 11 | M78: 586.08 | N78: AP | O78: AV. FLORENCIA ASTUDILLO | P78: 0500020S04 | Q78: P-02 | R78: 4 | S78: MP-1 | T78: 1 | U78: 1 | X78: 07:30 | Y78: 16:00 | Z78: 07 | AA78: 30 | AB78: 7 | AC78: 30 | AD78: 0.5 | AE78: 7.5 | AF78: 16 | AG78: 00 | AH78: 16.00 | AI78: 0.00 | AJ78: 0 | AK78: 16 | AL78: 8.5 | AM78: 9 | AN78: 0 | AO78: 479.52 | AP78: 0720401 | AQ78: 53.28 | AR78: 452.88
A79: 122778 | B79: 19 | C79: 2017-01-04 | D79: 45.26 | E79: 0101195089 | F79: LEON CORDOVA | G79: PEDRO ALEJANDRO | H79: LCPA | I79: 3 | J79: 11 | K79: 1 | L79: 12 | M79: 543.12 | N79: RS | O79: JORGE ISAC Y BETOWEN | P79: 0500050V01 | Q79: R-01 | R79: 2 | S79: MP-1 | T79: 1 | U79: 0 | X79: 17:00 | Y79: 20:00 | Z79: 17 | AA79: 00 | AB79: 17 | AC79: 0 | AD79: 0 | AE79: 17 | AF79: 20 | AG79: 00 | AH79: 20.00 | AI79: 0.00 | AJ79: 0 | AK79: 20 | AL79: 3 | AM79: 3 | AN79: 0 | AO79: 135.78 | AP79: 0740401 | AQ79: 0 | AR79: 135.78
A80: 122551 | B80: 11 | C80: 2017-01-04 | D80: 41.48 | E80: 0101195089 | F80: LEON CORDOVA | G80: PEDRO ALEJANDRO | H80: LCPA | I80: 3 | J80: 11 | K80: 1 | L80: 12 | M80: 497.76 | N80: RS | O80: BEETHOVEN | P80: 0500050V01 | Q80: R-02 | R80: 1 | S80: MP-1 | T80: 1 | U80: 0.5 | X80: 08:30 | Y80: 19:30 | Z80: 08 | AA80: 30 | AB80: 8 | AC80: 30 | AD80: 0.5 | AE80: 8.5 | AF80: 19 | AG80: 30 | AH80: 19.00 | AI80: 30.00 | AJ80: 0.5 | AK80: 19.5 | AL80: 11 | AM80: 11 | AN80: 0 | AO80: 456.28 | AP80: 0740401 | AQ80: 20.74 | AR80: 456.28
A81: 122649 | B81: 25 | C81: 2017-01-04 | D81: 48.69 | E81: 0101550978 | F81: SEMPERTEGUI CAÑIZARE | G81: EDUARDO | H81: SCE | I81: 1 | J81: 7 | K81: 1 | L81: 8 | M81: 389.52 | N81: RS | O81: SAN MIGUEL DE PUTUSHI | P81: 0500050V03 | Q81: F-01 | R81: 100 | S81: MP-1 | T81: 1 | U81: 1 | X81: 08:30 | Y81: 15:00 | Z81: 08 | AA81: 30 | AB81: 8 | AC81: 30 | AD81: 0.5 | AE81: 8.5 | AF81: 15 | AG81: 00 | AH81: 15.00 | AI81: 0.00 | AJ81: 0 | AK81: 15 | AL81: 6.5 | AM81: 7 | AN81: 0 | AO81: 340.83 | AP81: 0720401 | AQ81: 48.69 | AR81: 316.485
A82: 123019 | B82: 49A | C82: 2017-01-04 | D82: 13.77 | E82: 0102354040 | F82: PIEDRA MARTINEZ | G82: JORGE IVAN | H82: PMJI | I82: 3 | J82: 5 | K82: 3 | L82: 8 | M82: 110.16 | N82: RS | O82: SAN GABRIEL | P82: 0500050V05 | Q82: C-01 | R82: 1 | S82: MP-1 | T82: 1 | U82: 0 | X82: 08:00 | Y82: 12:00 | Z82: 08 | AA82: 00 | AB82: 8 | AC82: 0 | AD82: 0 | AE82: 8 | AF82: 12 | AG82: 00 | AH82: 12.00 | AI82: 0.00 | AJ82: 0 | AK82: 12 | AL82: 4 | AM82: 4 | AN82: 0 | AO82: 55.08 | AP82: 0741102 | AQ82: 0 | AR82: 55.08
A83: 123019 | B83: 49A | C83: 2017-01-04 | D83: 13.77 | E83: 0102354040 | F83: PIEDRA MARTINEZ | G83: JORGE IVAN | H83: PMJI | I83: 3 | J83: 5 | K83: 3 | L83: 8 | M83: 110.16 | N83: RS | O83: COCA | P83: 0500050V05 | Q83: R-07 | R83: 1 | S83: MP-1 | T83: 1 | U83: 3 | X83: 13:30 | Y83: 14:30 | Z83: 13 | AA83: 30 | AB83: 13 | AC83: 30 | AD83: 0.5 | AE83: 13.5 | AF83: 14 | AG83: 30 | AH83: 14.00 | AI83: 30.00 | AJ83: 0.5 | AK83: 14.5 | AL83: 1 | AM83: 1 | AN83: 0 | AO83: 13.77 | AP83: 0741105 | AQ83: 41.31 | AR83: 13.77
A84: 122524 | B84: 13 | C84: 2017-01-04 | D84: 53.28 | E84: 0101278976 | F84: IDROVO IDROVO | G84: JORGE EDUARDO | H84: IIJE | I84: 2 | J84: 6 | K84: 2 | L84: 8 | M84: 426.24 | N84: AP | O84: CISNE DE LLACAO | P84: 0500070V02 | Q84: P-03 | R84: 1 | S84: MP-1 | T84: 1 | U84: 0.5 | X84: 12:30 | Y84: 13:30 | Z84: 12 | AA84: 30 | AB84: 12 | AC84: 30 | AD84: 0.5 | AE84: 12.5 | AF84: 13 | AG84: 30 | AH84: 13.00 | AI84: 30.00 | AJ84: 0.5 | AK84: 13.5 | AL84: 1 | AM84: 1 | AN84: 0 | AO84: 53.28 | AP84: 0730401 | AQ84: 26.64 | AR84: 53.28
A85: 122855 | B85: 04 | C85: 2017-01-04 | D85: 42.14 | E85: 0103040309 | F85: AUCAPIÑA QUINDE | G85: JOHNSON OSWALDO | H85: JOAQ | I85: 3 | J85: 8 | K85: 0.65 | L85: 9.083355 | M85: 382.7725797 | N85: RS | O85: DESPACHO | P85: 0500080V01 | Q85: C-01 | R85: 1 | S85: MP-1 | T85: 1 | U85: 0 | X85: 08:00 | Y85: 08:30 | Z85: 08 | AA85: 00 | AB85: 8 | AC85: 0 | AD85: 0 | AE85: 8 | AF85: 08 | AG85: 30 | AH85: 8.00 | AI85: 30.00 | AJ85: 0.5 | AK85: 8.5 | AL85: 0.5 | AM85: 0 | AN85: 0 | AO85: 0 | AP85: 0740401 | AQ85: 0 | AR85: 21.07
A86: 122855 | B86: 04 | C86: 2017-01-04 | D86: 42.14 | E86: 0103040309 | F86: AUCAPIÑA QUINDE | G86: JOHNSON OSWALDO | H86: JOAQ | I86: 3 | J86: 8 | K86: 0.65 | L86: 9.083355 | M86: 382.7725797 | N86: RS | O86: JULIO MATOVELLE Y FCO PROAÑO | P86: 0500080V01 | Q86: O-01 | R86: 6 | S86: MP-1 | T86: 1 | U86: 0.2 | X86: 10:40 | Y86: 15:45 | Z86: 10 | AA86: 40 | AB86: 10 | AC86: 40 | AD86: 0.6666666667 | AE86: 10.66666667 | AF86: 15 | AG86: 45 | AH86: 15.00 | AI86: 45.00 | AJ86: 0.75 | AK86: 15.75 | AL86: 5.083333333 | AM86: 5 | AN86: 0 | AO86: 210.7 | AP86: 0740401 | AQ86: 8.428 | AR86: 214.2116667
A87: 122855 | B87: 04 | C87: 2017-01-04 | D87: 42.14 | E87: 0103040309 | F87: AUCAPIÑA QUINDE | G87: JOHNSON OSWALDO | H87: JOAQ | I87: 3 | J87: 8 | K87: 0.65 | L87: 9.083355 | M87: 382.7725797 | N87: RS | O87: R. CRESSPO Y SOLANO | P87: 0500080V01 | Q87: O-05 | R87: 1 | S87: MP-1 | T87: 1 | U87: 0.2 | X87: 08:40 | Y87: 10:30 | Z87: 08 | AA87: 40 | AB87: 8 | AC87: 40 | AD87: 0.6666666667 | AE87: 8.666666667 | AF87: 10 | AG87: 30 | AH87: 10.00 | AI87: 30.00 | AJ87: 0.5 | AK87: 10.5 | AL87: 1.833333333 | AM87: 2 | AN87: 0 | AO87: 84.28 | AP87: 0740401 | AQ87: 8.428 | AR87: 77.25666667
A88: 122855 | B88: 04 | C88: 2017-01-04 | D88: 42.14 | E88: 0103040309 | F88: AUCAPIÑA QUINDE | G88: JOHNSON OSWALDO | H88: JOAQ | I88: 3 | J88: 8 | K88: 0.65 | L88: 9.083355 | M88: 382.7725797 | N88: RS | O88: BODEGA | P88: 0500080V01 | Q88: O-06 | R88: 1 | S88: MP-1 | T88: 1 | U88: 0.25 | X88: 15:45 | Y88: 16:00 | Z88: 15 | AA88: 45 | AB88: 15 | AC88: 45 | AD88: 0.75 | AE88: 15.75 | AF88: 16 | AG88: 00 | AH88: 16.00 | AI88: 0.00 | AJ88: 0 | AK88: 16 | AL88: 0.25 | AM88: 1 | AN88: 0 | AO88: 42.14 | AP88: 0740401 | AQ88: 10.535 | AR88: 10.535
A89: 122559 | B89: 13 | C89: 2017-01-05 | D89: 53.28 | E89: 0101278976 | F89: IDROVO IDROVO | G89: JORGE EDUARDO | H89: IIJE | I89: 2 | J89: 7 | K89: 1.5 | L89: 8.83335 | M89: 470.640888 | N89: AP | O89: RUMIPAMBA DE QUIGEO | P89: 0500030V01 | Q89: P-02 | R89: 2 | S89: MP-1 | T89: 1 | U89: 1 | X89: 08:30 | Y89: 13:00 | Z89: 08 | AA89: 30 | AB89: 8 | AC89: 30 | AD89: 0.5 | AE89: 8.5 | AF89: 13 | AG89: 00 | AH89: 13.00 | AI89: 0.00 | AJ89: 0 | AK89: 13 | AL89: 4.5 | AM89: 5 | AN89: 0 | AO89: 266.4 | AP89: 0740401 | AQ89: 53.28 | AR89: 239.76
A90: 122672 | B90: 14 | C90: 2017-01-06 | D90: 31.42 | E90: 0102354040 | F90: PIEDRA MARTINEZ | G90: JORGE IVAN | H90: PMJI | I90: 3 | J90: 7 | K90: 4 | L90: 11 | M90: 345.62 | N90: AP | O90: CASPI CORRAL DE QUINGEO | P90: 0500030V01 | Q90: P-02 | R90: 2 | S90: MP-1 | T90: 1 | U90: 2 | X90: 10:00 | Y90: 13:00 | Z90: 10 | AA90: 00 | AB90: 10 | AC90: 0 | AD90: 0 | AE90: 10 | AF90: 13 | AG90: 00 | AH90: 13.00 | AI90: 0.00 | AJ90: 0 | AK90: 13 | AL90: 3 | AM90: 3 | AN90: 0 | AO90: 94.26 | AP90: 0740401 | AQ90: 62.84 | AR90: 94.26
A91: 122526 | B91: 44A | C91: 2017-01-04 | D91: 31.67 | E91: 0101219749 | F91: ABRIL ABRIL | G91: MANUEL ROSENDO | H91: AAMR | I91: 2 | J91: 3 | K91: 0.55 | L91: 3.916685 | M91: 124.041414 | N91: RS | O91: TOMEBAMBA | P91: 0500120V02 | Q91: R-07 | R91: 1 | S91: MP-1 | T91: 1 | U91: 0.15 | X91: 15:00 | Y91: 16:00 | Z91: 15 | AA91: 00 | AB91: 15 | AC91: 0 | AD91: 0 | AE91: 15 | AF91: 16 | AG91: 00 | AH91: 16.00 | AI91: 0.00 | AJ91: 0 | AK91: 16 | AL91: 1 | AM91: 1 | AN91: 0 | AO91: 31.67 | AP91: 0730602 | AQ91: 4.7505 | AR91: 31.67
A92: 122525 | B92: 44B | C92: 2017-01-04 | D92: 22.27 | E92: 0101219749 | F92: ABRIL ABRIL | G92: MANUEL ROSENDO | H92: AAMR | I92: 2 | J92: 6 | K92: 1.3 | L92: 7.50001 | M92: 167.0252227 | N92: RS | O92: TOMEBAMBA | P92: 0500120V02 | Q92: T-07 | R92: 1 | S92: MP-1 | T92: 1 | U92: 0.2 | X92: 10:30 | Y92: 11:00 | Z92: 10 | AA92: 30 | AB92: 10 | AC92: 30 | AD92: 0.5 | AE92: 10.5 | AF92: 11 | AG92: 00 | AH92: 11.00 | AI92: 0.00 | AJ92: 0 | AK92: 11 | AL92: 0.5 | AM92: 1 | AN92: 0 | AO92: 22.27 | AP92: 0730602 | AQ92: 4.454 | AR92: 11.135
A93: 122526 | B93: 44A | C93: 2017-01-04 | D93: 31.67 | E93: 0101219749 | F93: ABRIL ABRIL | G93: MANUEL ROSENDO | H93: AAMR | I93: 2 | J93: 3 | K93: 0.55 | L93: 3.916685 | M93: 124.041414 | N93: RS | O93: COPZHAL | P93: 0500120V03 | Q93: R-07 | R93: 1 | S93: MP-1 | T93: 1 | U93: 0.15 | X93: 09:00 | Y93: 10:00 | Z93: 09 | AA93: 00 | AB93: 9 | AC93: 0 | AD93: 0 | AE93: 9 | AF93: 10 | AG93: 00 | AH93: 10.00 | AI93: 0.00 | AJ93: 0 | AK93: 10 | AL93: 1 | AM93: 1 | AN93: 0 | AO93: 31.67 | AP93: 0730602 | AQ93: 4.7505 | AR93: 31.67
A94: 122525 | B94: 44B | C94: 2017-01-04 | D94: 22.27 | E94: 0101219749 | F94: ABRIL ABRIL | G94: MANUEL ROSENDO | H94: AAMR | I94: 2 | J94: 6 | K94: 1.3 | L94: 7.50001 | M94: 167.0252227 | N94: RS | O94: COPZHAL | P94: 0500120V03 | Q94: S-01 | R94: 1 | S94: MP-1 | T94: 1 | U94: 0.3 | X94: 16:10 | Y94: 16:40 | Z94: 16 | AA94: 10 | AB94: 16 | AC94: 10 | AD94: 0.1666666667 | AE94: 16.16666667 | AF94: 16 | AG94: 40 | AH94: 16.00 | AI94: 40.00 | AJ94: 0.6666666667 | AK94: 16.66666667 | AL94: 0.5 | AM94: 0 | AN94: 0 | AO94: 0 | AP94: 0730604 | AQ94: 6.681 | AR94: 11.135
A95: 122526 | B95: 44A | C95: 2017-01-04 | D95: 31.67 | E95: 0101219749 | F95: ABRIL ABRIL | G95: MANUEL ROSENDO | H95: AAMR | I95: 2 | J95: 3 | K95: 0.55 | L95: 3.916685 | M95: 124.041414 | N95: RS | O95: SAN PABLO | P95: 0500120V03 | Q95: S-01 | R95: 1 | S95: MP-1 | T95: 1 | U95: 0.05 | X95: 10:05 | Y95: 10:30 | Z95: 10 | AA95: 05 | AB95: 10 | AC95: 5 | AD95: 0.08333333333 | AE95: 10.08333333 | AF95: 10 | AG95: 30 | AH95: 10.00 | AI95: 30.00 | AJ95: 0.5 | AK95: 10.5 | AL95: 0.4166666667 | AM95: 0 | AN95: 0 | AO95: 0 | AP95: 0730602 | AQ95: 1.5835 | AR95: 13.19583333
A96: 122525 | B96: 44B | C96: 2017-01-04 | D96: 22.27 | E96: 0101219749 | F96: ABRIL ABRIL | G96: MANUEL ROSENDO | H96: AAMR | I96: 2 | J96: 6 | K96: 1.3 | L96: 7.50001 | M96: 167.0252227 | N96: RS | O96: CHICTI | P96: 0500120V03 | Q96: S-03 | R96: 1 | S96: MP-1 | T96: 1 | U96: 0.1 | X96: 08:30 | Y96: 09:00 | Z96: 08 | AA96: 30 | AB96: 8 | AC96: 30 | AD96: 0.5 | AE96: 8.5 | AF96: 09 | AG96: 00 | AH96: 9.00 | AI96: 0.00 | AJ96: 0 | AK96: 9 | AL96: 0.5 | AM96: 1 | AN96: 0 | AO96: 22.27 | AP96: 0730605 | AQ96: 2.227 | AR96: 11.135
A97: 122526 | B97: 44A | C97: 2017-01-04 | D97: 31.67 | E97: 0101219749 | F97: ABRIL ABRIL | G97: MANUEL ROSENDO | H97: AAMR | I97: 2 | J97: 3 | K97: 0.55 | L97: 3.916685 | M97: 124.041414 | N97: RS | O97: HUACARRUMI | P97: 0500120V03 | Q97: S-03 | R97: 1 | S97: MP-1 | T97: 1 | U97: 0.1 | X97: 10:40 | Y97: 11:50 | Z97: 10 | AA97: 40 | AB97: 10 | AC97: 40 | AD97: 0.6666666667 | AE97: 10.66666667 | AF97: 11 | AG97: 50 | AH97: 11.00 | AI97: 50.00 | AJ97: 0.8333333333 | AK97: 11.83333333 | AL97: 1.166666667 | AM97: 1 | AN97: 0 | AO97: 31.67 | AP97: 0730605 | AQ97: 3.167 | AR97: 36.94833333
A98: 122526 | B98: 44A | C98: 2017-01-04 | D98: 31.67 | E98: 0101219749 | F98: ABRIL ABRIL | G98: MANUEL ROSENDO | H98: AAMR | I98: 2 | J98: 3 | K98: 0.55 | L98: 3.916685 | M98: 124.041414 | N98: RS | O98: SAN PABLO | P98: 0500120V03 | Q98: S-03 | R98: 1 | S98: MP-1 | T98: 1 | U98: 0.1 | X98: 12:00 | Y98: 12:30 | Z98: 12 | AA98: 00 | AB98: 12 | AC98: 0 | AD98: 0 | AE98: 12 | AF98: 12 | AG98: 30 | AH98: 12.00 | AI98: 30.00 | AJ98: 0.5 | AK98: 12.5 | AL98: 0.5 | AM98: 0 | AN98: 0 | AO98: 0 | AP98: 0730605 | AQ98: 3.167 | AR98: 15.835
A99: 122525 | B99: 44B | C99: 2017-01-04 | D99: 22.27 | E99: 0101219749 | F99: ABRIL ABRIL | G99: MANUEL ROSENDO | H99: AAMR | I99: 2 | J99: 6 | K99: 1.3 | L99: 7.50001 | M99: 167.0252227 | N99: RS | O99: GUABLID | P99: 0500120V03 | Q99: T-07 | R99: 1 | S99: MP-1 | T99: 1 | U99: 0.2 | X99: 09:30 | Y99: 10:00 | Z99: 09 | AA99: 30 | AB99: 9 | AC99: 30 | AD99: 0.5 | AE99: 9.5 | AF99: 10 | AG99: 00 | AH99: 10.00 | AI99: 0.00 | AJ99: 0 | AK99: 10 | AL99: 0.5 | AM99: 1 | AN99: 0 | AO99: 22.27 | AP99: 0730602 | AQ99: 4.454 | AR99: 11.135
A100: 122663 | B100: 47A | C100: 2017-01-04 | D100: 32.97 | E100: 0103072583 | F100: VAZQUEZ CALVACHE | G100: GERARDO PATRICIO | H100: VCGP | I100: 3 | J100: 3 | K100: 3 | L100: 6 | M100: 197.82 | N100: AP | O100: POTRERILLOS, SANTA TERESA | P100: 0500140V03 | Q100: E-24 | R100: 3 | S100: MP-6 | T100: 1 | U100: 2 | X100: 10:00 | Y100: 12:00 | Z100: 10 | AA100: 00 | AB100: 10 | AC100: 0 | AD100: 0 | AE100: 10 | AF100: 12 | AG100: 00 | AH100: 12.00 | AI100: 0.00 | AJ100: 0 | AK100: 12 | AL100: 2 | AM100: 2 | AN100: 0 | AO100: 65.94 | AP100: 0740602 | AQ100: 65.94 | AR100: 65.94
A101: 122523 | B101: 47B | C101: 2017-01-04 | D101: 25.14 | E101: 0103072583 | F101: VAZQUEZ CALVACHE | G101: GERARDO PATRICIO | H101: VCGP | I101: 3 | J101: 4 | K101: 1.3 | L101: 5.50001 | M101: 138.2702514 | N101: RS | O101: BESTION, SULA | P101: 0500140V03 | Q101: F-03 | R101: 5 | S101: MP-1 | T101: 1 | U101: 1 | X101: 12:00 | Y101: 15:00 | Z101: 12 | AA101: 00 | AB101: 12 | AC101: 0 | AD101: 0 | AE101: 12 | AF101: 15 | AG101: 00 | AH101: 15.00 | AI101: 0.00 | AJ101: 0 | AK101: 15 | AL101: 3 | AM101: 3 | AN101: 0 | AO101: 75.42 | AP101: 0740602 | AQ101: 25.14 | AR101: 75.42
A102: 122523 | B102: 47B | C102: 2017-01-04 | D102: 25.14 | E102: 0103072583 | F102: VAZQUEZ CALVACHE | G102: GERARDO PATRICIO | H102: VCGP | I102: 3 | J102: 4 | K102: 1.3 | L102: 5.50001 | M102: 138.2702514 | N102: RS | O102: ZATAZHI | P102: 0500140V03 | Q102: R-01 | R102: 1 | S102: MP-1 | T102: 1 | U102: 0.3 | X102: 09:30 | Y102: 10:30 | Z102: 09 | AA102: 30 | AB102: 9 | AC102: 30 | AD102: 0.5 | AE102: 9.5 | AF102: 10 | AG102: 30 | AH102: 10.00 | AI102: 30.00 | AJ102: 0.5 | AK102: 10.5 | AL102: 1 | AM102: 1 | AN102: 0 | AO102: 25.14 | AP102: 0740602 | AQ102: 7.542 | AR102: 25.14
A103: 122663 | B103: 47A | C103: 2017-01-04 | D103: 32.97 | E103: 0103072583 | F103: VAZQUEZ CALVACHE | G103: GERARDO PATRICIO | H103: VCGP | I103: 3 | J103: 3 | K103: 3 | L103: 6 | M103: 197.82 | N103: RS | O103: RIRCAY, LEOCAPAC, LENTAG | P103: 0500140V03 | Q103: S-01 | R103: 3 | S103: MP-6 | T103: 1 | U103: 1 | X103: 14:00 | Y103: 15:00 | Z103: 14 | AA103: 00 | AB103: 14 | AC103: 0 | AD103: 0 | AE103: 14 | AF103: 15 | AG103: 00 | AH103: 15.00 | AI103: 0.00 | AJ103: 0 | AK103: 15 | AL103: 1 | AM103: 1 | AN103: 0 | AO103: 32.97 | AP103: 0740605 | AQ103: 32.97 | AR103: 32.97
A104: 123126 | B104: 43A | C104: 2017-01-04 | D104: 29.48 | E104: 0301648150 | F104: LOZADO DIEZ | G104: DANIEL VICENTE | H104: DVLD | I104: 2 | J104: 6 | K104: 0.8 | L104: 7.33336 | M104: 216.1874528 | N104: RS | O104: EL QUINCHE | P104: 0500150V01 | Q104: O-05 | R104: 1 | S104: MP-1 | T104: 1 | U104: 0.2 | X104: 12:20 | Y104: 13:00 | Z104: 12 | AA104: 20 | AB104: 12 | AC104: 20 | AD104: 0.3333333333 | AE104: 12.33333333 | AF104: 13 | AG104: 00 | AH104: 13.00 | AI104: 0.00 | AJ104: 0 | AK104: 13 | AL104: 0.6666666667 | AM104: 1 | AN104: 0 | AO104: 29.48 | AP104: 0730502 | AQ104: 5.896 | AR104: 19.65333333
A105: 123126 | B105: 43A | C105: 2017-01-04 | D105: 29.48 | E105: 0301648150 | F105: LOZADO DIEZ | G105: DANIEL VICENTE | H105: DVLD | I105: 2 | J105: 6 | K105: 0.8 | L105: 7.33336 | M105: 216.1874528 | N105: RS | O105: SAN JUAN | P105: 0500150V01 | Q105: S-01 | R105: 1 | S105: MP-1 | T105: 1 | U105: 0.3 | X105: 14:30 | Y105: 15:00 | Z105: 14 | AA105: 30 | AB105: 14 | AC105: 30 | AD105: 0.5 | AE105: 14.5 | AF105: 15 | AG105: 00 | AH105: 15.00 | AI105: 0.00 | AJ105: 0 | AK105: 15 | AL105: 0.5 | AM105: 1 | AN105: 0 | AO105: 29.48 | AP105: 0730502 | AQ105: 8.844 | AR105: 14.74
A106: 123126 | B106: 43A | C106: 2017-01-04 | D106: 29.48 | E106: 0301648150 | F106: LOZADO DIEZ | G106: DANIEL VICENTE | H106: DVLD | I106: 2 | J106: 6 | K106: 0.8 | L106: 7.33336 | M106: 216.1874528 | N106: RS | O106: PICAY | P106: 0500150V02 | Q106: S-01 | R106: 1 | S106: MP-1 | T106: 1 | U106: 0.1 | X106: 15:20 | Y106: 16:00 | Z106: 15 | AA106: 20 | AB106: 15 | AC106: 20 | AD106: 0.3333333333 | AE106: 15.33333333 | AF106: 16 | AG106: 00 | AH106: 16.00 | AI106: 0.00 | AJ106: 0 | AK106: 16 | AL106: 0.6666666667 | AM106: 1 | AN106: 0 | AO106: 29.48 | AP106: 0730502 | AQ106: 2.948 | AR106: 19.65333333
A107: 122525 | B107: 44B | C107: 2017-01-04 | D107: 22.27 | E107: 0101219749 | F107: ABRIL ABRIL | G107: MANUEL ROSENDO | H107: AAMR | I107: 2 | J107: 6 | K107: 1.3 | L107: 7.50001 | M107: 167.0252227 | N107: IP | O107: LA PLAYA | P107: 0500150V03 | Q107: A-03 | R107: 1 | S107: MP-1 | T107: 1 | U107: 0.1 | X107: 12:40 | Y107: 13:00 | Z107: 12 | AA107: 40 | AB107: 12 | AC107: 40 | AD107: 0.6666666667 | AE107: 12.66666667 | AF107: 13 | AG107: 00 | AH107: 13.00 | AI107: 0.00 | AJ107: 0 | AK107: 13 | AL107: 0.3333333333 | AM107: 1 | AN107: 0 | AO107: 22.27 | AP107: 0730603 | AQ107: 2.227 | AR107: 7.423333333
A108: 123126 | B108: 43A | C108: 2017-01-04 | D108: 29.48 | E108: 0301648150 | F108: LOZADO DIEZ | G108: DANIEL VICENTE | H108: DVLD | I108: 2 | J108: 6 | K108: 0.8 | L108: 7.33336 | M108: 216.1874528 | N108: SA | O108: AV. CAÑAVERALES | P108: 0500150V03 | Q108: F-03 | R108: 2 | S108: MP-1 | T108: 1 | U108: 0.2 | X108: 09:00 | Y108: 12:00 | Z108: 09 | AA108: 00 | AB108: 9 | AC108: 0 | AD108: 0 | AE108: 9 | AF108: 12 | AG108: 00 | AH108: 12.00 | AI108: 0.00 | AJ108: 0 | AK108: 12 | AL108: 3 | AM108: 3 | AN108: 0 | AO108: 88.44 | AP108: 0730502 | AQ108: 5.896 | AR108: 88.44
A109: 122525 | B109: 44B | C109: 2017-01-04 | D109: 22.27 | E109: 0101219749 | F109: ABRIL ABRIL | G109: MANUEL ROSENDO | H109: AAMR | I109: 2 | J109: 6 | K109: 1.3 | L109: 7.50001 | M109: 167.0252227 | N109: RS | O109: CIRCUNVALCION | P109: 0500150V03 | Q109: T-01 | R109: 1 | S109: MP-1 | T109: 1 | U109: 0.1 | X109: 14:10 | Y109: 15:00 | Z109: 14 | AA109: 10 | AB109: 14 | AC109: 10 | AD109: 0.1666666667 | AE109: 14.16666667 | AF109: 15 | AG109: 00 | AH109: 15.00 | AI109: 0.00 | AJ109: 0 | AK109: 15 | AL109: 0.8333333333 | AM109: 1 | AN109: 0 | AO109: 22.27 | AP109: 0730602 | AQ109: 2.227 | AR109: 18.55833333
A110: 122525 | B110: 44B | C110: 2017-01-04 | D110: 22.27 | E110: 0101219749 | F110: ABRIL ABRIL | G110: MANUEL ROSENDO | H110: AAMR | I110: 2 | J110: 6 | K110: 1.3 | L110: 7.50001 | M110: 167.0252227 | N110: RS | O110: PIRINCAY BAJO | P110: 0500150V03 | Q110: T-07 | R110: 1 | S110: MP-1 | T110: 1 | U110: 0.1 | X110: 15:10 | Y110: 15:40 | Z110: 15 | AA110: 10 | AB110: 15 | AC110: 10 | AD110: 0.1666666667 | AE110: 15.16666667 | AF110: 15 | AG110: 40 | AH110: 15.00 | AI110: 40.00 | AJ110: 0.6666666667 | AK110: 15.66666667 | AL110: 0.5 | AM110: 0 | AN110: 0 | AO110: 0 | AP110: 0730604 | AQ110: 2.227 | AR110: 11.135
A111: 122525 | B111: 44B | C111: 2017-01-04 | D111: 22.27 | E111: 0101219749 | F111: ABRIL ABRIL | G111: MANUEL ROSENDO | H111: AAMR | I111: 2 | J111: 6 | K111: 1.3 | L111: 7.50001 | M111: 167.0252227 | N111: RS | O111: TAMBILLO | P111: 0500150V03 | Q111: T-07 | R111: 1 | S111: MP-1 | T111: 1 | U111: 0.2 | X111: 11:30 | Y111: 12:30 | Z111: 11 | AA111: 30 | AB111: 11 | AC111: 30 | AD111: 0.5 | AE111: 11.5 | AF111: 12 | AG111: 30 | AH111: 12.00 | AI111: 30.00 | AJ111: 0.5 | AK111: 12.5 | AL111: 1 | AM111: 1 | AN111: 0 | AO111: 22.27 | AP111: 0730602 | AQ111: 4.454 | AR111: 22.27
A112: 122572 | B112: 05 | C112: 2017-01-05 | D112: 32.97 | E112: 0101526895 | F112: DURAN CONTRERAS | G112: EDGAR FERNANDO | H112: DCEF | I112: 1 | J112: 7 | K112: 1 | L112: 8 | M112: 263.76 | N112: RS | O112: MATRIZ | P112: 99999 | Q112: C-01 | R112: 1 | S112: MP-1 | T112: 1 | U112: 0 | X112: 08:00 | Y112: 09:00 | Z112: 08 | AA112: 00 | AB112: 8 | AC112: 0 | AD112: 0 | AE112: 8 | AF112: 09 | AG112: 00 | AH112: 9.00 | AI112: 0.00 | AJ112: 0 | AK112: 9 | AL112: 1 | AM112: 1 | AN112: 0 | AO112: 32.97 | AP112: 0720401 | AQ112: 0 | AR112: 32.97
A113: 122650 | B113: 25 | C113: 2017-01-05 | D113: 48.69 | E113: 0101550978 | F113: SEMPERTEGUI CAÑIZARE | G113: EDUARDO | H113: SCE | I113: 1 | J113: 7 | K113: 1 | L113: 8 | M113: 389.52 | O113: MONAY | P113: 99999 | Q113: C-01 | R113: 1 | S113: MP-1 | T113: 1 | U113: 0 | X113: 08:00 | Y113: 09:00 | Z113: 08 | AA113: 00 | AB113: 8 | AC113: 0 | AD113: 0 | AE113: 8 | AF113: 09 | AG113: 00 | AH113: 9.00 | AI113: 0.00 | AJ113: 0 | AK113: 9 | AL113: 1 | AM113: 1 | AN113: 0 | AO113: 48.69 | AP113: 0720401 | AQ113: 0 | AR113: 48.69
A114: 122650 | B114: 25 | C114: 2017-01-05 | D114: 48.69 | E114: 0101550978 | F114: SEMPERTEGUI CAÑIZARE | G114: EDUARDO | H114: SCE | I114: 1 | J114: 7 | K114: 1 | L114: 8 | M114: 389.52 | O114: MONAY | P114: 99999 | Q114: O-06 | R114: 1 | S114: MP-1 | T114: 1 | U114: 0 | X114: 14:00 | Y114: 15:00 | Z114: 14 | AA114: 00 | AB114: 14 | AC114: 0 | AD114: 0 | AE114: 14 | AF114: 15 | AG114: 00 | AH114: 15.00 | AI114: 0.00 | AJ114: 0 | AK114: 15 | AL114: 1 | AM114: 1 | AN114: 0 | AO114: 48.69 | AP114: 0720401 | AQ114: 0 | AR114: 48.69
A115: 122572 | B115: 05 | C115: 2017-01-05 | D115: 32.97 | E115: 0101526895 | F115: DURAN CONTRERAS | G115: EDGAR FERNANDO | H115: DCEF | I115: 1 | J115: 7 | K115: 1 | L115: 8 | M115: 263.76 | N115: RS | O115: SANGURIMA Y LUIS CORDERO | P115: 0500010S02 | Q115: S-02 | R115: 1 | S115: MP-1 | T115: 1 | U115: 0.5 | X115: 09:30 | Y115: 10:30 | Z115: 09 | AA115: 30 | AB115: 9 | AC115: 30 | AD115: 0.5 | AE115: 9.5 | AF115: 10 | AG115: 30 | AH115: 10.00 | AI115: 30.00 | AJ115: 0.5 | AK115: 10.5 | AL115: 1 | AM115: 1 | AN115: 0 | AO115: 32.97 | AP115: 0720401 | AQ115: 16.485 | AR115: 32.97
A116: 122572 | B116: 05 | C116: 2017-01-05 | D116: 32.97 | E116: 0101526895 | F116: DURAN CONTRERAS | G116: EDGAR FERNANDO | H116: DCEF | I116: 1 | J116: 7 | K116: 1 | L116: 8 | M116: 263.76 | N116: RS | O116: TOMAS ORDOÑEZ Y SUCRE | P116: 0500020S01 | Q116: S-03 | R116: 8 | S116: MP-1 | T116: 1 | U116: 0 | X116: 13:00 | Y116: 16:00 | Z116: 13 | AA116: 00 | AB116: 13 | AC116: 0 | AD116: 0 | AE116: 13 | AF116: 16 | AG116: 00 | AH116: 16.00 | AI116: 0.00 | AJ116: 0 | AK116: 16 | AL116: 3 | AM116: 3 | AN116: 0 | AO116: 98.91 | AP116: 0720401 | AQ116: 0 | AR116: 98.91
A117: 122572 | B117: 05 | C117: 2017-01-05 | D117: 32.97 | E117: 0101526895 | F117: DURAN CONTRERAS | G117: EDGAR FERNANDO | H117: DCEF | I117: 1 | J117: 7 | K117: 1 | L117: 8 | M117: 263.76 | N117: RS | O117: SUCRE Y BENIGNO MALO | P117: 0500020S02 | Q117: O-06 | R117: 1 | S117: MP-1 | T117: 1 | U117: 0 | X117: 12:00 | Y117: 13:00 | Z117: 12 | AA117: 00 | AB117: 12 | AC117: 0 | AD117: 0 | AE117: 12 | AF117: 13 | AG117: 00 | AH117: 13.00 | AI117: 0.00 | AJ117: 0 | AK117: 13 | AL117: 1 | AM117: 1 | AN117: 0 | AO117: 32.97 | AP117: 0720401 | AQ117: 0 | AR117: 32.97
A118: 122572 | B118: 05 | C118: 2017-01-05 | D118: 32.97 | E118: 0101526895 | F118: DURAN CONTRERAS | G118: EDGAR FERNANDO | H118: DCEF | I118: 1 | J118: 7 | K118: 1 | L118: 8 | M118: 263.76 | N118: RS | O118: JUAN JARAMILLO Y PADRE AGUIRRE | P118: 0500020S03 | Q118: S-02 | R118: 1 | S118: MP-1 | T118: 1 | U118: 0.5 | X118: 11:00 | Y118: 12:00 | Z118: 11 | AA118: 00 | AB118: 11 | AC118: 0 | AD118: 0 | AE118: 11 | AF118: 12 | AG118: 00 | AH118: 12.00 | AI118: 0.00 | AJ118: 0 | AK118: 12 | AL118: 1 | AM118: 1 | AN118: 0 | AO118: 32.97 | AP118: 0720401 | AQ118: 16.485 | AR118: 32.97
A119: 122856 | B119: 04 | C119: 2017-01-05 | D119: 42.14 | E119: 0103040309 | F119: AUCAPIÑA QUINDE | G119: JOHNSON OSWALDO | H119: JOAQ | I119: 3 | J119: 6 | K119: 1.75 | L119: 8.250025 | M119: 347.6560535 | N119: RS | O119: DESPACHO | P119: 0500030V01 | Q119: C-01 | R119: 1 | S119: MP-1 | T119: 1 | U119: 0 | X119: 08:00 | Y119: 08:30 | Z119: 08 | AA119: 00 | AB119: 8 | AC119: 0 | AD119: 0 | AE119: 8 | AF119: 08 | AG119: 30 | AH119: 8.00 | AI119: 30.00 | AJ119: 0.5 | AK119: 8.5 | AL119: 0.5 | AM119: 0 | AN119: 0 | AO119: 0 | AP119: 0740401 | AQ119: 0 | AR119: 21.07
A120: 122672 | B120: 14 | C120: 2017-01-06 | D120: 31.42 | E120: 0102354040 | F120: PIEDRA MARTINEZ | G120: JORGE IVAN | H120: PMJI | I120: 3 | J120: 7 | K120: 4 | L120: 11 | M120: 345.62 | N120: AP | O120: CASPI CORRAL DE QUINGEO | P120: 0500030V01 | Q120: R-01 | R120: 4 | S120: MP-1 | T120: 1 | U120: 0 | X120: 13:00 | Y120: 15:00 | Z120: 13 | AA120: 00 | AB120: 13 | AC120: 0 | AD120: 0 | AE120: 13 | AF120: 15 | AG120: 00 | AH120: 15.00 | AI120: 0.00 | AJ120: 0 | AK120: 15 | AL120: 2 | AM120: 2 | AN120: 0 | AO120: 62.84 | AP120: 0740401 | AQ120: 0 | AR120: 62.84
A121: 122856 | B121: 04 | C121: 2017-01-05 | D121: 42.14 | E121: 0103040309 | F121: AUCAPIÑA QUINDE | G121: JOHNSON OSWALDO | H121: JOAQ | I121: 3 | J121: 6 | K121: 1.75 | L121: 8.250025 | M121: 347.6560535 | N121: RS | O121: QUINGEO ROSAS DE NONADEL | P121: 0500030V01 | Q121: P-02 | R121: 1 | S121: MP-1 | T121: 1 | U121: 0.75 | X121: 09:15 | Y121: 13:30 | Z121: 09 | AA121: 15 | AB121: 9 | AC121: 15 | AD121: 0.25 | AE121: 9.25 | AF121: 13 | AG121: 30 | AH121: 13.00 | AI121: 30.00 | AJ121: 0.5 | AK121: 13.5 | AL121: 4.25 | AM121: 4 | AN121: 0 | AO121: 168.56 | AP121: 0740401 | AQ121: 31.605 | AR121: 179.095
A122: 122849 | B122: 14 | C122: 2017-01-09 | D122: 31.42 | E122: 0102354040 | F122: PIEDRA MARTINEZ | G122: JORGE IVAN | H122: PMJI | I122: 3 | J122: 7 | K122: 1.5 | L122: 8.83335 | M122: 277.543857 | N122: AP | O122: VIA A BAGUANCHI Y CIRCUNBALACIÓN SUR | P122: 0500030V01 | Q122: P-05 | R122: 1 | S122: MP-1 | T122: 1 | U122: 0 | X122: 11:00 | Y122: 12:00 | Z122: 11 | AA122: 00 | AB122: 11 | AC122: 0 | AD122: 0 | AE122: 11 | AF122: 12 | AG122: 00 | AH122: 12.00 | AI122: 0.00 | AJ122: 0 | AK122: 12 | AL122: 1 | AM122: 1 | AN122: 0 | AO122: 31.42 | AP122: 0740401 | AQ122: 0 | AR122: 31.42
A123: 122669 | B123: 14 | C123: 2017-01-05 | D123: 31.42 | E123: 0102354040 | F123: PIEDRA MARTINEZ | G123: JORGE IVAN | H123: PMJI | I123: 3 | J123: 7 | K123: 2 | L123: 9 | M123: 282.78 | N123: AP | O123: PANAMERICANA SUR JUNTO A RANCHO ALEGRE | P123: 0500050V01 | Q123: E-02 | R123: 2 | S123: MP-1 | T123: 1 | U123: 0 | X123: 13:00 | Y123: 15:00 | Z123: 13 | AA123: 00 | AB123: 13 | AC123: 0 | AD123: 0 | AE123: 13 | AF123: 15 | AG123: 00 | AH123: 15.00 | AI123: 0.00 | AJ123: 0 | AK123: 15 | AL123: 2 | AM123: 2 | AN123: 0 | AO123: 62.84 | AP123: 0740401 | AQ123: 0 | AR123: 62.84
A124: 122553 | B124: 11 | C124: 2017-01-05 | D124: 41.48 | E124: 0101195089 | F124: LEON CORDOVA | G124: PEDRO ALEJANDRO | H124: LCPA | I124: 3 | J124: 6 | K124: 1.5 | L124: 7.83335 | M124: 324.927358 | N124: RS | O124: BEETHOVEN Y VIVALDI | P124: 0500050V01 | Q124: E-03 | R124: 6 | S124: MP-1 | T124: 1 | U124: 0 | X124: 09:30 | Y124: 10:30 | Z124: 09 | AA124: 30 | AB124: 9 | AC124: 30 | AD124: 0.5 | AE124: 9.5 | AF124: 10 | AG124: 30 | AH124: 10.00 | AI124: 30.00 | AJ124: 0.5 | AK124: 10.5 | AL124: 1 | AM124: 1 | AN124: 0 | AO124: 41.48 | AP124: 0740401 | AQ124: 0 | AR124: 41.48
A125: 122553 | B125: 11 | C125: 2017-01-05 | D125: 41.48 | E125: 0101195089 | F125: LEON CORDOVA | G125: PEDRO ALEJANDRO | H125: LCPA | I125: 3 | J125: 6 | K125: 1.5 | L125: 7.83335 | M125: 324.927358 | N125: RS | O125: BEETHOVEN Y VIVALDI | P125: 0500050V01 | Q125: E-07 | R125: 3 | S125: MP-1 | T125: 1 | U125: 0.5 | X125: 08:30 | Y125: 09:30 | Z125: 08 | AA125: 30 | AB125: 8 | AC125: 30 | AD125: 0.5 | AE125: 8.5 | AF125: 09 | AG125: 30 | AH125: 9.00 | AI125: 30.00 | AJ125: 0.5 | AK125: 9.5 | AL125: 1 | AM125: 1 | AN125: 0 | AO125: 41.48 | AP125: 0740401 | AQ125: 20.74 | AR125: 41.48
A126: 122669 | B126: 14 | C126: 2017-01-05 | D126: 31.42 | E126: 0102354040 | F126: PIEDRA MARTINEZ | G126: JORGE IVAN | H126: PMJI | I126: 3 | J126: 7 | K126: 2 | L126: 9 | M126: 282.78 | N126: AP | O126: PANAMERICANA SUR JUNTO A RANCHO ALEGRE | P126: 0500050V01 | Q126: F-03 | R126: 1 | S126: MP-1 | T126: 1 | U126: 0 | X126: 11:00 | Y126: 13:00 | Z126: 11 | AA126: 00 | AB126: 11 | AC126: 0 | AD126: 0 | AE126: 11 | AF126: 13 | AG126: 00 | AH126: 13.00 | AI126: 0.00 | AJ126: 0 | AK126: 13 | AL126: 2 | AM126: 2 | AN126: 0 | AO126: 62.84 | AP126: 0740401 | AQ126: 0 | AR126: 62.84
A127: 122669 | B127: 14 | C127: 2017-01-05 | D127: 31.42 | E127: 0102354040 | F127: PIEDRA MARTINEZ | G127: JORGE IVAN | H127: PMJI | I127: 3 | J127: 7 | K127: 2 | L127: 9 | M127: 282.78 | N127: AP | O127: RETORNO MATRIZ DE LA EMPRESA | P127: 0500050V01 | Q127: O-06 | R127: 1 | S127: MP-1 | T127: 1 | U127: 1 | X127: 15:00 | Y127: 16:00 | Z127: 15 | AA127: 00 | AB127: 15 | AC127: 0 | AD127: 0 | AE127: 15 | AF127: 16 | AG127: 00 | AH127: 16.00 | AI127: 0.00 | AJ127: 0 | AK127: 16 | AL127: 1 | AM127: 1 | AN127: 0 | AO127: 31.42 | AP127: 0740401 | AQ127: 31.42 | AR127: 31.42
A128: 122669 | B128: 14 | C128: 2017-01-05 | D128: 31.42 | E128: 0102354040 | F128: PIEDRA MARTINEZ | G128: JORGE IVAN | H128: PMJI | I128: 3 | J128: 7 | K128: 2 | L128: 9 | M128: 282.78 | N128: AP | O128: PANAMERICANA SUR JUNTO A RANCHO ALEGRE | P128: 0500050V01 | Q128: P-01 | R128: 1 | S128: MP-1 | T128: 1 | U128: 1 | X128: 09:00 | Y128: 11:00 | Z128: 09 | AA128: 00 | AB128: 9 | AC128: 0 | AD128: 0 | AE128: 9 | AF128: 11 | AG128: 00 | AH128: 11.00 | AI128: 0.00 | AJ128: 0 | AK128: 11 | AL128: 2 | AM128: 2 | AN128: 0 | AO128: 62.84 | AP128: 0740401 | AQ128: 31.42 | AR128: 62.84
A129: 122553 | B129: 11 | C129: 2017-01-05 | D129: 41.48 | E129: 0101195089 | F129: LEON CORDOVA | G129: PEDRO ALEJANDRO | H129: LCPA | I129: 3 | J129: 6 | K129: 1.5 | L129: 7.83335 | M129: 324.927358 | N129: RS | O129: BEETHOVEN Y VIVALDI | P129: 0500050V01 | Q129: R-01 | R129: 3 | S129: MP-1 | T129: 1 | U129: 0 | X129: 10:30 | Y129: 11:30 | Z129: 10 | AA129: 30 | AB129: 10 | AC129: 30 | AD129: 0.5 | AE129: 10.5 | AF129: 11 | AG129: 30 | AH129: 11.00 | AI129: 30.00 | AJ129: 0.5 | AK129: 11.5 | AL129: 1 | AM129: 1 | AN129: 0 | AO129: 41.48 | AP129: 0740401 | AQ129: 0 | AR129: 41.48
A130: 122779 | B130: 19 | C130: 2017-01-05 | D130: 45.26 | E130: 0101195089 | F130: LEON CORDOVA | G130: PEDRO ALEJANDRO | H130: LCPA | I130: 3 | J130: 7 | K130: 1 | L130: 8 | M130: 362.08 | N130: AP | O130: AV. SALADO Y ANTONIO LLORET | P130: 0500050V04 | Q130: O-05 | R130: 1 | S130: MP-1 | T130: 1 | U130: 0 | X130: 14:30 | Y130: 16:00 | Z130: 14 | AA130: 30 | AB130: 14 | AC130: 30 | AD130: 0.5 | AE130: 14.5 | AF130: 16 | AG130: 00 | AH130: 16.00 | AI130: 0.00 | AJ130: 0 | AK130: 16 | AL130: 1.5 | AM130: 2 | AN130: 0 | AO130: 90.52 | AP130: 0740401 | AQ130: 0 | AR130: 67.89
A131: 123020 | B131: 49A | C131: 2017-01-05 | D131: 13.77 | E131: 0102354040 | F131: PIEDRA MARTINEZ | G131: JORGE IVAN | H131: PMJI | I131: 3 | J131: 4 | K131: 4 | L131: 8 | M131: 110.16 | N131: RS | O131: SAN GABRIEL | P131: 0500050V05 | Q131: C-01 | R131: 1 | S131: MP-1 | T131: 1 | U131: 0 | X131: 08:00 | Y131: 10:00 | Z131: 08 | AA131: 00 | AB131: 8 | AC131: 0 | AD131: 0 | AE131: 8 | AF131: 10 | AG131: 00 | AH131: 10.00 | AI131: 0.00 | AJ131: 0 | AK131: 10 | AL131: 2 | AM131: 2 | AN131: 0 | AO131: 27.54 | AP131: 0741102 | AQ131: 0 | AR131: 27.54
A132: 122779 | B132: 19 | C132: 2017-01-05 | D132: 45.26 | E132: 0101195089 | F132: LEON CORDOVA | G132: PEDRO ALEJANDRO | H132: LCPA | I132: 3 | J132: 7 | K132: 1 | L132: 8 | M132: 362.08 | N132: AP | O132: DESPACHO DE GRUPOS | P132: 0500050V05 | Q132: C-02 | R132: 1 | S132: MP-1 | T132: 1 | U132: 0 | X132: 08:00 | Y132: 08:30 | Z132: =LEFT(X132,2) -> 08 | AA132: =RIGHT(X132,2) -> 00 | AB132: =FIXED(Z132,0) -> 8 | AC132: =FIXED(AA132,0) -> 0 | AD132: =+AC132/60 -> 0 | AE132: =+AB132+AD132 -> 8 | AF132: =LEFT(Y132,2) -> 08 | AG132: =RIGHT(Y132,2) -> 30 | AH132: =FIXED(AF132,2) -> 8.00 | AI132: =FIXED(AG132,2) -> 30.00 | AJ132: =+AI132/60 -> 0.5 | AK132: =+AH132+AJ132 -> 8.5 | AL132: =+AK132-AE132 -> 0.5 | AM132: 0 | AN132: 0 | AO132: 0 | AP132: 0740401 | AQ132: =+U132*D132 -> 0 | AR132: =+AL132*D132 -> 22.63
A133: 122553 | B133: 11 | C133: 2017-01-05 | D133: 41.48 | E133: 0101195089 | F133: LEON CORDOVA | G133: PEDRO ALEJANDRO | H133: LCPA | I133: 3 | J133: 6 | K133: 1.5 | L133: 7.83335 | M133: 324.927358 | N133: RS | O133: BAÑOS HUIZHIL | P133: 0500050V05 | Q133: E-02 | R133: 2 | S133: MP-1 | T133: 1 | U133: 0 | X133: 13:00 | Y133: 14:00 | Z133: 13 | AA133: 00 | AB133: 13 | AC133: 0 | AD133: 0 | AE133: 13 | AF133: 14 | AG133: 00 | AH133: 14.00 | AI133: 0.00 | AJ133: 0 | AK133: 14 | AL133: 1 | AM133: 1 | AN133: 0 | AO133: 41.48 | AP133: 0740401 | AQ133: 0 | AR133: 41.48
A134: 122553 | B134: 11 | C134: 2017-01-05 | D134: 41.48 | E134: 0101195089 | F134: LEON CORDOVA | G134: PEDRO ALEJANDRO | H134: LCPA | I134: 3 | J134: 6 | K134: 1.5 | L134: 7.83335 | M134: 324.927358 | N134: RS | O134: BAÑOS HUIZHIL | P134: 0500050V05 | Q134: F-01 | R134: 2 | S134: MP-1 | T134: 1 | U134: 0 | X134: 14:00 | Y134: 15:30 | Z134: 14 | AA134: 00 | AB134: 14 | AC134: 0 | AD134: 0 | AE134: 14 | AF134: 15 | AG134: 30 | AH134: 15.00 | AI134: 30.00 | AJ134: 0.5 | AK134: 15.5 | AL134: 1.5 | AM134: 1 | AN134: 0 | AO134: 41.48 | AP134: 0740401 | AQ134: 0 | AR134: 62.22
A135: 122553 | B135: 11 | C135: 2017-01-05 | D135: 41.48 | E135: 0101195089 | F135: LEON CORDOVA | G135: PEDRO ALEJANDRO | H135: LCPA | I135: 3 | J135: 6 | K135: 1.5 | L135: 7.83335 | M135: 324.927358 | N135: RS | O135: RETORNO MATRIZ | P135: 0500050V05 | Q135: O-06 | R135: 1 | S135: MP-1 | T135: 1 | U135: 0.5 | X135: 16:00 | Y135: 16:00 | Z135: 16 | AA135: 00 | AB135: 16 | AC135: 0 | AD135: 0 | AE135: 16 | AF135: 16 | AG135: 00 | AH135: 16.00 | AI135: 0.00 | AJ135: 0 | AK135: 16 | AL135: 0 | AM135: 0 | AN135: 0 | AO135: 0 | AP135: 0740401 | AQ135: 20.74 | AR135: 0
A136: 122849 | B136: 14 | C136: 2017-01-09 | D136: 31.42 | E136: 0102354040 | F136: PIEDRA MARTINEZ | G136: JORGE IVAN | H136: PMJI | I136: 3 | J136: 7 | K136: 1.5 | L136: 8.83335 | M136: 277.543857 | N136: AP | O136: VIA A BAGUANCHI Y CIRCUNVALACIÓN SUR | P136: 0500030V01 | Q136: R-01 | R136: 6 | S136: MP-1 | T136: 1 | U136: 0 | X136: 12:00 | Y136: 14:00 | Z136: 12 | AA136: 00 | AB136: 12 | AC136: 0 | AD136: 0 | AE136: 12 | AF136: 14 | AG136: 00 | AH136: 14.00 | AI136: 0.00 | AJ136: 0 | AK136: 14 | AL136: 2 | AM136: 2 | AN136: 0 | AO136: 62.84 | AP136: 0740401 | AQ136: 0 | AR136: 62.84
A137: 122553 | B137: 11 | C137: 2017-01-05 | D137: 41.48 | E137: 0101195089 | F137: LEON CORDOVA | G137: PEDRO ALEJANDRO | H137: LCPA | I137: 3 | J137: 6 | K137: 1.5 | L137: 7.83335 | M137: 324.927358 | N137: RS | O137: BAÑOS HUIZHIL | P137: 0500050V05 | Q137: P-02 | R137: 1 | S137: MP-1 | T137: 1 | U137: 0.5 | X137: 12:00 | Y137: 13:00 | Z137: 12 | AA137: 00 | AB137: 12 | AC137: 0 | AD137: 0 | AE137: 12 | AF137: 13 | AG137: 00 | AH137: 13.00 | AI137: 0.00 | AJ137: 0 | AK137: 13 | AL137: 1 | AM137: 1 | AN137: 0 | AO137: 41.48 | AP137: 0740401 | AQ137: 20.74 | AR137: 41.48
A138: 122779 | B138: 19 | C138: 2017-01-05 | D138: 45.26 | E138: 0101195089 | F138: LEON CORDOVA | G138: PEDRO ALEJANDRO | H138: LCPA | I138: 3 | J138: 7 | K138: 1 | L138: 8 | M138: 362.08 | N138: RS | O138: ARENAL ALTO | P138: 0500050V05 | Q138: P-06 | R138: 1 | S138: MP-1 | T138: 1 | U138: 0 | X138: 13:30 | Y138: 14:30 | Z138: 13 | AA138: 30 | AB138: 13 | AC138: 30 | AD138: 0.5 | AE138: 13.5 | AF138: 14 | AG138: 30 | AH138: 14.00 | AI138: 30.00 | AJ138: 0.5 | AK138: 14.5 | AL138: 1 | AM138: 1 | AN138: 0 | AO138: 45.26 | AP138: 0740401 | AQ138: 0 | AR138: 45.26
A139: 123020 | B139: 49A | C139: 2017-01-05 | D139: 13.77 | E139: 0102354040 | F139: PIEDRA MARTINEZ | G139: JORGE IVAN | H139: PMJI | I139: 3 | J139: 4 | K139: 4 | L139: 8 | M139: 110.16 | N139: TD | O139: BAÑOS YUNGA | P139: 0500050V05 | Q139: T-07 | R139: 1 | S139: MP-1 | T139: 1 | U139: 4 | X139: 12:00 | Y139: 14:00 | Z139: 12 | AA139: 00 | AB139: 12 | AC139: 0 | AD139: 0 | AE139: 12 | AF139: 14 | AG139: 00 | AH139: 14.00 | AI139: 0.00 | AJ139: 0 | AK139: 14 | AL139: 2 | AM139: 2 | AN139: 0 | AO139: 27.54 | AP139: 0741104 | AQ139: 55.08 | AR139: 27.54
A140: 122650 | B140: 25 | C140: 2017-01-05 | D140: 48.69 | E140: 0101550978 | F140: SEMPERTEGUI CAÑIZARE | G140: EDUARDO | H140: SCE | I140: 1 | J140: 7 | K140: 1 | L140: 8 | M140: 389.52 | N140: RS | O140: MISICATA | P140: 0500050V07 | Q140: O-05 | R140: 1 | S140: MP-1 | T140: 1 | U140: 0 | X140: 11:00 | Y140: 13:00 | Z140: 11 | AA140: 00 | AB140: 11 | AC140: 0 | AD140: 0 | AE140: 11 | AF140: 13 | AG140: 00 | AH140: 13.00 | AI140: 0.00 | AJ140: 0 | AK140: 13 | AL140: 2 | AM140: 2 | AN140: 0 | AO140: 97.38 | AP140: 0720401 | AQ140: 0 | AR140: 97.38
A141: 122650 | B141: 25 | C141: 2017-01-05 | D141: 48.69 | E141: 0101550978 | F141: SEMPERTEGUI CAÑIZARE | G141: EDUARDO | H141: SCE | I141: 1 | J141: 7 | K141: 1 | L141: 8 | M141: 389.52 | N141: RS | O141: SAN MIGUEL DE PUTUSHI | P141: 0500050V07 | Q141: O-05 | R141: 1 | S141: MP-1 | T141: 1 | U141: 0 | X141: 13:00 | Y141: 14:00 | Z141: 13 | AA141: 00 | AB141: 13 | AC141: 0 | AD141: 0 | AE141: 13 | AF141: 14 | AG141: 00 | AH141: 14.00 | AI141: 0.00 | AJ141: 0 | AK141: 14 | AL141: 1 | AM141: 1 | AN141: 0 | AO141: 48.69 | AP141: 0720401 | AQ141: 0 | AR141: 48.69
A142: 122650 | B142: 25 | C142: 2017-01-05 | D142: 48.69 | E142: 0101550978 | F142: SEMPERTEGUI CAÑIZARE | G142: EDUARDO | H142: SCE | I142: 1 | J142: 7 | K142: 1 | L142: 8 | M142: 389.52 | N142: RS | O142: PICHINZANA | P142: 0500050V07 | Q142: S-01 | R142: 1 | S142: MP-1 | T142: 1 | U142: 1 | X142: 09:00 | Y142: 11:00 | Z142: 09 | AA142: 00 | AB142: 9 | AC142: 0 | AD142: 0 | AE142: 9 | AF142: 11 | AG142: 00 | AH142: 11.00 | AI142: 0.00 | AJ142: 0 | AK142: 11 | AL142: 2 | AM142: 2 | AN142: 0 | AO142: 97.38 | AP142: 0720401 | AQ142: 48.69 | AR142: 97.38
A143: 122851 | B143: 14 | C143: 2017-01-11 | D143: 31.42 | E143: 0102354040 | F143: PIEDRA MARTINEZ | G143: JORGE IVAN | H143: PMJI | I143: 3 | J143: 9 | K143: 2 | L143: 11 | M143: 345.62 | N143: AP | O143: VIA A BAGUANCHI Y CIRCUNVALACION SUR | P143: 0500030V01 | Q143: E-13 | R143: 1 | S143: MP-1 | T143: 1 | U143: 0 | X143: 12:00 | Y143: 14:00 | Z143: 12 | AA143: 00 | AB143: 12 | AC143: 0 | AD143: 0 | AE143: 12 | AF143: 14 | AG143: 00 | AH143: 14.00 | AI143: 0.00 | AJ143: 0 | AK143: 14 | AL143: 2 | AM143: 2 | AN143: 0 | AO143: 62.84 | AP143: 0740401 | AQ143: 0 | AR143: 62.84
A144: 122856 | B144: 04 | C144: 2017-01-05 | D144: 42.14 | E144: 0103040309 | F144: AUCAPIÑA QUINDE | G144: JOHNSON OSWALDO | H144: JOAQ | I144: 3 | J144: 6 | K144: 1.75 | L144: 8.250025 | M144: 347.6560535 | N144: RS | O144: BODEGA | P144: 0500080V04 | Q144: O-06 | R144: 1 | S144: MP-1 | T144: 1 | U144: 0.25 | X144: 16:00 | Y144: 16:15 | Z144: 16 | AA144: 00 | AB144: 16 | AC144: 0 | AD144: 0 | AE144: 16 | AF144: 16 | AG144: 15 | AH144: 16.00 | AI144: 15.00 | AJ144: 0.25 | AK144: 16.25 | AL144: 0.25 | AM144: 0 | AN144: 0 | AO144: 0 | AP144: 0740401 | AQ144: 10.535 | AR144: 10.535
A145: 122856 | B145: 04 | C145: 2017-01-05 | D145: 42.14 | E145: 0103040309 | F145: AUCAPIÑA QUINDE | G145: JOHNSON OSWALDO | H145: JOAQ | I145: 3 | J145: 6 | K145: 1.75 | L145: 8.250025 | M145: 347.6560535 | N145: RS | O145: EL VALLE LA VICTORIA | P145: 0500080V04 | Q145: P-02 | R145: 1 | S145: MP-1 | T145: 1 | U145: 0.75 | X145: 14:15 | Y145: 16:00 | Z145: 14 | AA145: 15 | AB145: 14 | AC145: 15 | AD145: 0.25 | AE145: 14.25 | AF145: 16 | AG145: 00 | AH145: 16.00 | AI145: 0.00 | AJ145: 0 | AK145: 16 | AL145: 1.75 | AM145: 2 | AN145: 0 | AO145: 84.28 | AP145: 0740401 | AQ145: 31.605 | AR145: 73.745
A146: 122606 | B146: 44B | C146: 2017-01-05 | D146: 22.27 | E146: 0101219749 | F146: ABRIL ABRIL | G146: MANUEL ROSENDO | H146: AAMR | I146: 2 | J146: 3 | K146: 1.5 | L146: 4.83335 | M146: 107.6387045 | N146: RS | O146: BELLAVISTA | P146: 0500120V02 | Q146: S-01 | R146: 1 | S146: MP-1 | T146: 1 | U146: 0.3 | X146: 09:00 | Y146: 09:30 | Z146: 09 | AA146: 00 | AB146: 9 | AC146: 0 | AD146: 0 | AE146: 9 | AF146: 09 | AG146: 30 | AH146: 9.00 | AI146: 30.00 | AJ146: 0.5 | AK146: 9.5 | AL146: 0.5 | AM146: 0 | AN146: 0 | AO146: 0 | AP146: 0730605 | AQ146: 6.681 | AR146: 11.135
A147: 122606 | B147: 44B | C147: 2017-01-05 | D147: 22.27 | E147: 0101219749 | F147: ABRIL ABRIL | G147: MANUEL ROSENDO | H147: AAMR | I147: 2 | J147: 3 | K147: 1.5 | L147: 4.83335 | M147: 107.6387045 | N147: RS | O147: EL CABO | P147: 0500120V02 | Q147: S-01 | R147: 1 | S147: MP-1 | T147: 1 | U147: 0.1 | X147: 10:30 | Y147: 11:00 | Z147: 10 | AA147: 30 | AB147: 10 | AC147: 30 | AD147: 0.5 | AE147: 10.5 | AF147: 11 | AG147: 00 | AH147: 11.00 | AI147: 0.00 | AJ147: 0 | AK147: 11 | AL147: 0.5 | AM147: 1 | AN147: 0 | AO147: 22.27 | AP147: 0730605 | AQ147: 2.227 | AR147: 11.135
A148: 122606 | B148: 44B | C148: 2017-01-05 | D148: 22.27 | E148: 0101219749 | F148: ABRIL ABRIL | G148: MANUEL ROSENDO | H148: AAMR | I148: 2 | J148: 3 | K148: 1.5 | L148: 4.83335 | M148: 107.6387045 | N148: RS | O148: LA ESTANCIA | P148: 0500120V02 | Q148: S-01 | R148: 1 | S148: MP-1 | T148: 1 | U148: 0.2 | X148: 09:50 | Y148: 10:20 | Z148: 09 | AA148: 50 | AB148: 9 | AC148: 50 | AD148: 0.8333333333 | AE148: 9.833333333 | AF148: 10 | AG148: 20 | AH148: 10.00 | AI148: 20.00 | AJ148: 0.3333333333 | AK148: 10.33333333 | AL148: 0.5 | AM148: 1 | AN148: 0 | AO148: 22.27 | AP148: 0730605 | AQ148: 4.454 | AR148: 11.135
A149: 122573 | B149: 44A | C149: 2017-01-05 | D149: 31.67 | E149: 0101219749 | F149: ABRIL ABRIL | G149: MANUEL ROSENDO | H149: AAMR | I149: 2 | J149: 3 | K149: 0.9 | L149: 4.50003 | M149: 142.5159501 | N149: RS | O149: DON JULO | P149: 0500120V03 | Q149: T-07 | R149: 1 | S149: MP-1 | T149: 1 | U149: 0.3 | X149: 11:00 | Y149: 11:30 | Z149: 11 | AA149: 00 | AB149: 11 | AC149: 0 | AD149: 0 | AE149: 11 | AF149: 11 | AG149: 30 | AH149: 11.00 | AI149: 30.00 | AJ149: 0.5 | AK149: 11.5 | AL149: 0.5 | AM149: 0 | AN149: 0 | AO149: 0 | AP149: 0730602 | AQ149: 9.501 | AR149: 15.835
A150: 122664 | B150: 47A | C150: 2017-01-05 | D150: 32.97 | E150: 0103072583 | F150: VAZQUEZ CALVACHE | G150: GERARDO PATRICIO | H150: VCGP | I150: 3 | J150: 3 | K150: 2 | L150: 5 | M150: 164.85 | N150: RS | O150: RUMIPAMBA, CHORRO | P150: 0500140V03 | Q150: E-16 | R150: 2 | S150: MP-6 | T150: 1 | U150: 1 | X150: 10:00 | Y150: 11:00 | Z150: 10 | AA150: 00 | AB150: 10 | AC150: 0 | AD150: 0 | AE150: 10 | AF150: 11 | AG150: 00 | AH150: 11.00 | AI150: 0.00 | AJ150: 0 | AK150: 11 | AL150: 1 | AM150: 1 | AN150: 0 | AO150: 32.97 | AP150: 0740605 | AQ150: 32.97 | AR150: 32.97
A151: 122570 | B151: 47B | C151: 2017-01-05 | D151: 25.14 | E151: 0103072583 | F151: VAZQUEZ CALVACHE | G151: GERARDO PATRICIO | H151: VCGP | I151: 3 | J151: 3 | K151: 1.3 | L151: 4.50001 | M151: 113.1302514 | N151: RS | O151: GUAGRIN, BESTION | P151: 0500140V03 | Q151: F-03 | R151: 2 | S151: MP-1 | T151: 1 | U151: 1 | X151: 12:00 | Y151: 14:00 | Z151: 12 | AA151: 00 | AB151: 12 | AC151: 0 | AD151: 0 | AE151: 12 | AF151: 14 | AG151: 00 | AH151: 14.00 | AI151: 0.00 | AJ151: 0 | AK151: 14 | AL151: 2 | AM151: 2 | AN151: 0 | AO151: 50.28 | AP151: 0740602 | AQ151: 25.14 | AR151: 50.28
A152: 122664 | B152: 47A | C152: 2017-01-05 | D152: 32.97 | E152: 0103072583 | F152: VAZQUEZ CALVACHE | G152: GERARDO PATRICIO | H152: VCGP | I152: 3 | J152: 3 | K152: 2 | L152: 5 | M152: 164.85 | N152: RS | O152: LENTAG, LEOCAPAC | P152: 0500140V03 | Q152: S-01 | R152: 3 | S152: MP-6 | T152: 1 | U152: 1 | X152: 13:00 | Y152: 15:00 | Z152: 13 | AA152: 00 | AB152: 13 | AC152: 0 | AD152: 0 | AE152: 13 | AF152: 15 | AG152: 00 | AH152: 15.00 | AI152: 0.00 | AJ152: 0 | AK152: 15 | AL152: 2 | AM152: 2 | AN152: 0 | AO152: 65.94 | AP152: 0740605 | AQ152: 32.97 | AR152: 65.94
A153: 122570 | B153: 47B | C153: 2017-01-05 | D153: 25.14 | E153: 0103072583 | F153: VAZQUEZ CALVACHE | G153: GERARDO PATRICIO | H153: VCGP | I153: 3 | J153: 3 | K153: 1.3 | L153: 4.50001 | M153: 113.1302514 | N153: RS | O153: ZATAZHI | P153: 0500140V03 | Q153: S-01 | R153: 1 | S153: MP-1 | T153: 1 | U153: 0.3 | X153: 09:00 | Y153: 10:00 | Z153: 09 | AA153: 00 | AB153: 9 | AC153: 0 | AD153: 0 | AE153: 9 | AF153: 10 | AG153: 00 | AH153: 10.00 | AI153: 0.00 | AJ153: 0 | AK153: 10 | AL153: 1 | AM153: 1 | AN153: 0 | AO153: 25.14 | AP153: 0740602 | AQ153: 7.542 | AR153: 25.14
A154: 122932 | B154: 45A | C154: 2017-01-05 | D154: 23.15 | E154: 0102017084 | F154: MOLINA ALVARADO | G154: ENRIQUE | H154: MAE | I154: 2 | J154: 2 | K154: 1.2 | L154: 3.33334 | M154: 77.166821 | N154: IP | O154: CALLE VEGA | P154: 0500150V01 | Q154: A-03 | R154: 1 | S154: MP-6 | T154: 1 | U154: 0.2 | X154: 15:00 | Y154: 16:00 | Z154: 15 | AA154: 00 | AB154: 15 | AC154: 0 | AD154: 0 | AE154: 15 | AF154: 16 | AG154: 00 | AH154: 16.00 | AI154: 0.00 | AJ154: 0 | AK154: 16 | AL154: 1 | AM154: 1 | AN154: 0 | AO154: 23.15 | AP154: 0730703 | AQ154: 4.63 | AR154: 23.15
A155: 123127 | B155: 43A | C155: 2017-01-05 | D155: 29.48 | E155: 0301648150 | F155: LOZADO DIEZ | G155: DANIEL VICENTE | H155: DVLD | I155: 2 | J155: 5 | K155: 0.7 | L155: 6.16669 | M155: 181.7940212 | N155: RS | O155: SAN JUAN | P155: 0500150V01 | Q155: R-01 | R155: 1 | S155: MP-1 | T155: 1 | U155: 0.3 | X155: 08:30 | Y155: 10:00 | Z155: 08 | AA155: 30 | AB155: 8 | AC155: 30 | AD155: 0.5 | AE155: 8.5 | AF155: 10 | AG155: 00 | AH155: 10.00 | AI155: 0.00 | AJ155: 0 | AK155: 10 | AL155: 1.5 | AM155: 2 | AN155: 0 | AO155: 58.96 | AP155: 0730502 | AQ155: 8.844 | AR155: 44.22
A156: 123127 | B156: 43A | C156: 2017-01-05 | D156: 29.48 | E156: 0301648150 | F156: LOZADO DIEZ | G156: DANIEL VICENTE | H156: DVLD | I156: 2 | J156: 5 | K156: 0.7 | L156: 6.16669 | M156: 181.7940212 | N156: RS | O156: CELEL | P156: 0500150V01 | Q156: S-01 | R156: 1 | S156: MP-1 | T156: 1 | U156: 0.2 | X156: 10:30 | Y156: 11:00 | Z156: 10 | AA156: 30 | AB156: 10 | AC156: 30 | AD156: 0.5 | AE156: 10.5 | AF156: 11 | AG156: 00 | AH156: 11.00 | AI156: 0.00 | AJ156: 0 | AK156: 11 | AL156: 0.5 | AM156: 1 | AN156: 0 | AO156: 29.48 | AP156: 0730502 | AQ156: 5.896 | AR156: 14.74
A157: 122932 | B157: 45A | C157: 2017-01-05 | D157: 23.15 | E157: 0102017084 | F157: MOLINA ALVARADO | G157: ENRIQUE | H157: MAE | I157: 2 | J157: 2 | K157: 1.2 | L157: 3.33334 | M157: 77.166821 | N157: TD | O157: RASCORRAL | P157: 0500150V01 | Q157: T-07 | R157: 1 | S157: MP-6 | T157: 1 | U157: 1 | X157: 12:00 | Y157: 13:00 | Z157: 12 | AA157: 00 | AB157: 12 | AC157: 0 | AD157: 0 | AE157: 12 | AF157: 13 | AG157: 00 | AH157: 13.00 | AI157: 0.00 | AJ157: 0 | AK157: 13 | AL157: 1 | AM157: 1 | AN157: 0 | AO157: 23.15 | AP157: 0730704 | AQ157: 23.15 | AR157: 23.15
A158: 123127 | B158: 43A | C158: 2017-01-05 | D158: 29.48 | E158: 0301648150 | F158: LOZADO DIEZ | G158: DANIEL VICENTE | H158: DVLD | I158: 2 | J158: 5 | K158: 0.7 | L158: 6.16669 | M158: 181.7940212 | N158: RS | O158: PICAY | P158: 0500150V02 | Q158: R-01 | R158: 1 | S158: MP-1 | T158: 1 | U158: 0.2 | X158: 14:30 | Y158: 16:00 | Z158: 14 | AA158: 30 | AB158: 14 | AC158: 30 | AD158: 0.5 | AE158: 14.5 | AF158: 16 | AG158: 00 | AH158: 16.00 | AI158: 0.00 | AJ158: 0 | AK158: 16 | AL158: 1.5 | AM158: 2 | AN158: 0 | AO158: 58.96 | AP158: 0730502 | AQ158: 5.896 | AR158: 44.22
A159: 122573 | B159: 44A | C159: 2017-01-05 | D159: 31.67 | E159: 0101219749 | F159: ABRIL ABRIL | G159: MANUEL ROSENDO | H159: AAMR | I159: 2 | J159: 3 | K159: 0.9 | L159: 4.50003 | M159: 142.5159501 | N159: RS | O159: ZHUMIR | P159: 0500150V03 | Q159: F-01 | R159: 1 | S159: MP-1 | T159: 1 | U159: 0.1 | X159: 14:15 | Y159: 16:00 | Z159: 14 | AA159: 15 | AB159: 14 | AC159: 15 | AD159: 0.25 | AE159: 14.25 | AF159: 16 | AG159: 00 | AH159: 16.00 | AI159: 0.00 | AJ159: 0 | AK159: 16 | AL159: 1.75 | AM159: 2 | AN159: 0 | AO159: 63.34 | AP159: 0730602 | AQ159: 3.167 | AR159: 55.4225
A160: 122573 | B160: 44A | C160: 2017-01-05 | D160: 31.67 | E160: 0101219749 | F160: ABRIL ABRIL | G160: MANUEL ROSENDO | H160: AAMR | I160: 2 | J160: 3 | K160: 0.9 | L160: 4.50003 | M160: 142.5159501 | N160: RS | O160: ABDON CALDERON | P160: 0500150V03 | Q160: R-07 | R160: 1 | S160: MP-1 | T160: 1 | U160: 0.1 | X160: 16:30 | Y160: 16:45 | Z160: 16 | AA160: 30 | AB160: 16 | AC160: 30 | AD160: 0.5 | AE160: 16.5 | AF160: 16 | AG160: 45 | AH160: 16.00 | AI160: 45.00 | AJ160: 0.75 | AK160: 16.75 | AL160: 0.25 | AM160: 0 | AN160: 0 | AO160: 0 | AP160: 0730602 | AQ160: 3.167 | AR160: 7.9175
A161: 122573 | B161: 44A | C161: 2017-01-05 | D161: 31.67 | E161: 0101219749 | F161: ABRIL ABRIL | G161: MANUEL ROSENDO | H161: AAMR | I161: 2 | J161: 3 | K161: 0.9 | L161: 4.50003 | M161: 142.5159501 | N161: RS | O161: SUMAN | P161: 0500150V03 | Q161: R-07 | R161: 1 | S161: MP-1 | T161: 1 | U161: 0.3 | X161: 09:30 | Y161: 10:00 | Z161: 09 | AA161: 30 | AB161: 9 | AC161: 30 | AD161: 0.5 | AE161: 9.5 | AF161: 10 | AG161: 00 | AH161: 10.00 | AI161: 0.00 | AJ161: 0 | AK161: 10 | AL161: 0.5 | AM161: 1 | AN161: 0 | AO161: 31.67 | AP161: 0730602 | AQ161: 9.501 | AR161: 15.835
A162: 122606 | B162: 44B | C162: 2017-01-05 | D162: 22.27 | E162: 0101219749 | F162: ABRIL ABRIL | G162: MANUEL ROSENDO | H162: AAMR | I162: 2 | J162: 3 | K162: 1.5 | L162: 4.83335 | M162: 107.6387045 | N162: RS | O162: EL TABLON | P162: 0500150V03 | Q162: S-01 | R162: 1 | S162: MP-1 | T162: 1 | U162: 0.15 | X162: 14:00 | Y162: 14:30 | Z162: 14 | AA162: 00 | AB162: 14 | AC162: 0 | AD162: 0 | AE162: 14 | AF162: 14 | AG162: 30 | AH162: 14.00 | AI162: 30.00 | AJ162: 0.5 | AK162: 14.5 | AL162: 0.5 | AM162: 0 | AN162: 0 | AO162: 0 | AP162: 0730605 | AQ162: 3.3405 | AR162: 11.135
A163: 122606 | B163: 44B | C163: 2017-01-05 | D163: 22.27 | E163: 0101219749 | F163: ABRIL ABRIL | G163: MANUEL ROSENDO | H163: AAMR | I163: 2 | J163: 3 | K163: 1.5 | L163: 4.83335 | M163: 107.6387045 | N163: RS | O163: TACAPAMBA | P163: 0500150V03 | Q163: S-01 | R163: 1 | S163: MP-1 | T163: 1 | U163: 0.15 | X163: 12:15 | Y163: 12:45 | Z163: 12 | AA163: 15 | AB163: 12 | AC163: 15 | AD163: 0.25 | AE163: 12.25 | AF163: 12 | AG163: 45 | AH163: 12.00 | AI163: 45.00 | AJ163: 0.75 | AK163: 12.75 | AL163: 0.5 | AM163: 0 | AN163: 0 | AO163: 0 | AP163: 0730605 | AQ163: 3.3405 | AR163: 11.135
A164: 122606 | B164: 44B | C164: 2017-01-05 | D164: 22.27 | E164: 0101219749 | F164: ABRIL ABRIL | G164: MANUEL ROSENDO | H164: AAMR | I164: 2 | J164: 3 | K164: 1.5 | L164: 4.83335 | M164: 107.6387045 | N164: RS | O164: TAMBILLO | P164: 0500150V03 | Q164: S-01 | R164: 1 | S164: MP-1 | T164: 1 | U164: 0.3 | X164: 15:00 | Y164: 15:30 | Z164: 15 | AA164: 00 | AB164: 15 | AC164: 0 | AD164: 0 | AE164: 15 | AF164: 15 | AG164: 30 | AH164: 15.00 | AI164: 30.00 | AJ164: 0.5 | AK164: 15.5 | AL164: 0.5 | AM164: 0 | AN164: 0 | AO164: 0 | AP164: 0730605 | AQ164: 6.681 | AR164: 11.135
A165: 122606 | B165: 44B | C165: 2017-01-05 | D165: 22.27 | E165: 0101219749 | F165: ABRIL ABRIL | G165: MANUEL ROSENDO | H165: AAMR | I165: 2 | J165: 3 | K165: 1.5 | L165: 4.83335 | M165: 107.6387045 | N165: RS | O165: VILLAFLOR | P165: 0500150V03 | Q165: S-01 | R165: 1 | S165: MP-1 | T165: 1 | U165: 0.3 | X165: 11:30 | Y165: 12:00 | Z165: 11 | AA165: 30 | AB165: 11 | AC165: 30 | AD165: 0.5 | AE165: 11.5 | AF165: 12 | AG165: 00 | AH165: 12.00 | AI165: 0.00 | AJ165: 0 | AK165: 12 | AL165: 0.5 | AM165: 1 | AN165: 0 | AO165: 22.27 | AP165: 0730605 | AQ165: 6.681 | AR165: 11.135
A166: 122573 | B166: 44A | C166: 2017-01-05 | D166: 31.67 | E166: 0101219749 | F166: ABRIL ABRIL | G166: MANUEL ROSENDO | H166: AAMR | I166: 2 | J166: 3 | K166: 0.9 | L166: 4.50003 | M166: 142.5159501 | N166: RS | O166: ANTONIO TAPIA | P166: 0500150V03 | Q166: T-07 | R166: 1 | S166: MP-1 | T166: 1 | U166: 0.1 | X166: 12:15 | Y166: 12:30 | Z166: 12 | AA166: 15 | AB166: 12 | AC166: 15 | AD166: 0.25 | AE166: 12.25 | AF166: 12 | AG166: 30 | AH166: 12.00 | AI166: 30.00 | AJ166: 0.5 | AK166: 12.5 | AL166: 0.25 | AM166: 0 | AN166: 0 | AO166: 0 | AP166: 0730602 | AQ166: 3.167 | AR166: 7.9175
A167: 122651 | B167: 25 | C167: 2017-01-06 | D167: 48.69 | E167: 0101550978 | F167: SEMPERTEGUI CAÑIZARE | G167: EDUARDO | H167: SCE | I167: 1 | J167: 11 | K167: 1 | L167: 12 | M167: 584.28 | O167: MONAY | P167: 99999 | Q167: C-01 | R167: 1 | S167: MP-1 | T167: 1 | U167: 0 | X167: 08:00 | Y167: 08:30 | Z167: 08 | AA167: 00 | AB167: 8 | AC167: 0 | AD167: 0 | AE167: 8 | AF167: 08 | AG167: 30 | AH167: 8.00 | AI167: 30.00 | AJ167: 0.5 | AK167: 8.5 | AL167: 0.5 | AM167: 0 | AN167: 0 | AO167: 0 | AP167: 0720401 | AQ167: 0 | AR167: 24.345
A168: 122588 | B168: 05 | C168: 2017-01-06 | D168: 32.97 | E168: 0101526895 | F168: DURAN CONTRERAS | G168: EDGAR FERNANDO | H168: DCEF | I168: 1 | J168: 7 | K168: 1 | L168: 8 | M168: 263.76 | N168: RS | O168: MANUEL VEGA Y SANGURIMA | P168: 0500010S01 | Q168: S-02 | R168: 1 | S168: MP-1 | T168: 1 | U168: 0 | X168: 15:00 | Y168: 16:00 | Z168: 15 | AA168: 00 | AB168: 15 | AC168: 0 | AD168: 0 | AE168: 15 | AF168: 16 | AG168: 00 | AH168: 16.00 | AI168: 0.00 | AJ168: 0 | AK168: 16 | AL168: 1 | AM168: 1 | AN168: 0 | AO168: 32.97 | AP168: 0720401 | AQ168: 0 | AR168: 32.97
A169: 122588 | B169: 05 | C169: 2017-01-06 | D169: 32.97 | E169: 0101526895 | F169: DURAN CONTRERAS | G169: EDGAR FERNANDO | H169: DCEF | I169: 1 | J169: 7 | K169: 1 | L169: 8 | M169: 263.76 | N169: RS | O169: SANGURIMA Y VARGAS MACHUCA | P169: 0500010S01 | Q169: S-02 | R169: 1 | S169: MP-1 | T169: 1 | U169: 0 | X169: 13:00 | Y169: 14:00 | Z169: 13 | AA169: 00 | AB169: 13 | AC169: 0 | AD169: 0 | AE169: 13 | AF169: 14 | AG169: 00 | AH169: 14.00 | AI169: 0.00 | AJ169: 0 | AK169: 14 | AL169: 1 | AM169: 1 | AN169: 0 | AO169: 32.97 | AP169: 0720401 | AQ169: 0 | AR169: 32.97
A170: 122588 | B170: 05 | C170: 2017-01-06 | D170: 32.97 | E170: 0101526895 | F170: DURAN CONTRERAS | G170: EDGAR FERNANDO | H170: DCEF | I170: 1 | J170: 7 | K170: 1 | L170: 8 | M170: 263.76 | N170: RS | O170: TOMAS ORDOÑEZ Y SUCRE | P170: 0500020S01 | Q170: E-21 | R170: 1 | S170: MP-1 | T170: 1 | U170: 0.5 | X170: 11:00 | Y170: 13:00 | Z170: 11 | AA170: 00 | AB170: 11 | AC170: 0 | AD170: 0 | AE170: 11 | AF170: 13 | AG170: 00 | AH170: 13.00 | AI170: 0.00 | AJ170: 0 | AK170: 13 | AL170: 2 | AM170: 2 | AN170: 0 | AO170: 65.94 | AP170: 0720401 | AQ170: 16.485 | AR170: 65.94
A171: 122588 | B171: 05 | C171: 2017-01-06 | D171: 32.97 | E171: 0101526895 | F171: DURAN CONTRERAS | G171: EDGAR FERNANDO | H171: DCEF | I171: 1 | J171: 7 | K171: 1 | L171: 8 | M171: 263.76 | N171: RS | O171: MARIANO CUEVA Y SUCRE | P171: 0500020S01 | Q171: S-02 | R171: 1 | S171: MP-1 | T171: 1 | U171: 0 | X171: 14:00 | Y171: 15:00 | Z171: 14 | AA171: 00 | AB171: 14 | AC171: 0 | AD171: 0 | AE171: 14 | AF171: 15 | AG171: 00 | AH171: 15.00 | AI171: 0.00 | AJ171: 0 | AK171: 15 | AL171: 1 | AM171: 1 | AN171: 0 | AO171: 32.97 | AP171: 0720401 | AQ171: 0 | AR171: 32.97
A172: 122588 | B172: 05 | C172: 2017-01-06 | D172: 32.97 | E172: 0101526895 | F172: DURAN CONTRERAS | G172: EDGAR FERNANDO | H172: DCEF | I172: 1 | J172: 7 | K172: 1 | L172: 8 | M172: 263.76 | N172: RS | O172: CALLE LARGA Y PADRE AGUIRRE | P172: 0500020S03 | Q172: R-05 | R172: 1 | S172: MP-1 | T172: 1 | U172: 0.5 | X172: 08:30 | Y172: 10:30 | Z172: 08 | AA172: 30 | AB172: 8 | AC172: 30 | AD172: 0.5 | AE172: 8.5 | AF172: 10 | AG172: 30 | AH172: 10.00 | AI172: 30.00 | AJ172: 0.5 | AK172: 10.5 | AL172: 2 | AM172: 2 | AN172: 0 | AO172: 65.94 | AP172: 0720401 | AQ172: 16.485 | AR172: 65.94
A173: 122858 | B173: 04 | C173: 2017-01-06 | D173: 42.14 | E173: 0103040309 | F173: AUCAPIÑA QUINDE | G173: JOHNSON OSWALDO | H173: JOAQ | I173: 3 | J173: 7 | K173: 1.5 | L173: 8.83335 | M173: 372.237369 | N173: RS | O173: DESPACHO | P173: 0500030V01 | Q173: C-01 | R173: 1 | S173: MP-1 | T173: 1 | U173: 0 | X173: 08:00 | Y173: 08:30 | Z173: 08 | AA173: 00 | AB173: 8 | AC173: 0 | AD173: 0 | AE173: 8 | AF173: 08 | AG173: 30 | AH173: 8.00 | AI173: 30.00 | AJ173: 0.5 | AK173: 8.5 | AL173: 0.5 | AM173: 0 | AN173: 0 | AO173: 0 | AP173: 0740401 | AQ173: 0 | AR173: 21.07
A174: 122858 | B174: 04 | C174: 2017-01-06 | D174: 42.14 | E174: 0103040309 | F174: AUCAPIÑA QUINDE | G174: JOHNSON OSWALDO | H174: JOAQ | I174: 3 | J174: 7 | K174: 1.5 | L174: 8.83335 | M174: 372.237369 | N174: RS | O174: BODEGA | P174: 0500030V01 | Q174: O-06 | R174: 1 | S174: MP-1 | T174: 1 | U174: 0.75 | X174: 15:30 | Y174: 16:15 | Z174: 15 | AA174: 30 | AB174: 15 | AC174: 30 | AD174: 0.5 | AE174: 15.5 | AF174: 16 | AG174: 15 | AH174: 16.00 | AI174: 15.00 | AJ174: 0.25 | AK174: 16.25 | AL174: 0.75 | AM174: 1 | AN174: 0 | AO174: 42.14 | AP174: 0740401 | AQ174: 31.605 | AR174: 31.605
A175: 122672 | B175: 14 | C175: 2017-01-06 | D175: 31.42 | E175: 0102354040 | F175: PIEDRA MARTINEZ | G175: JORGE IVAN | H175: PMJI | I175: 3 | J175: 7 | K175: 4 | L175: 11 | M175: 345.62 | N175: AP | O175: RETORNO MATRIZ DE LA EMPRESA | P175: 0500030V01 | Q175: O-06 | R175: 1 | S175: MP-1 | T175: 1 | U175: 2 | X175: 15:00 | Y175: 17:00 | Z175: 15 | AA175: 00 | AB175: 15 | AC175: 0 | AD175: 0 | AE175: 15 | AF175: 17 | AG175: 00 | AH175: 17.00 | AI175: 0.00 | AJ175: 0 | AK175: 17 | AL175: 2 | AM175: 2 | AN175: 0 | AO175: 62.84 | AP175: 0740401 | AQ175: 62.84 | AR175: 62.84
A176: 122765 | B176: 13 | C176: 2017-01-11 | D176: 53.28 | E176: 0101278976 | F176: IDROVO IDROVO | G176: JORGE EDUARDO | H176: IIJE | I176: 2 | J176: 8 | K176: 1 | L176: 9 | M176: 479.52 | N176: AP | O176: AV. RAYO LOMA | P176: 0500030V01 | Q176: P-02 | R176: 1 | S176: MP-1 | T176: 1 | U176: 0 | X176: 15:00 | Y176: 16:00 | Z176: 15 | AA176: 00 | AB176: 15 | AC176: 0 | AD176: 0 | AE176: 15 | AF176: 16 | AG176: 00 | AH176: 16.00 | AI176: 0.00 | AJ176: 0 | AK176: 16 | AL176: 1 | AM176: 1 | AN176: 0 | AO176: 53.28 | AP176: 0740401 | AQ176: 0 | AR176: 53.28
A177: 122858 | B177: 04 | C177: 2017-01-06 | D177: 42.14 | E177: 0103040309 | F177: AUCAPIÑA QUINDE | G177: JOHNSON OSWALDO | H177: JOAQ | I177: 3 | J177: 7 | K177: 1.5 | L177: 8.83335 | M177: 372.237369 | N177: RS | O177: QUINGEO EL RAMAL | P177: 0500030V01 | Q177: P-02 | R177: 3 | S177: MP-1 | T177: 1 | U177: 0.75 | X177: 09:15 | Y177: 15:30 | Z177: 09 | AA177: 15 | AB177: 9 | AC177: 15 | AD177: 0.25 | AE177: 9.25 | AF177: 15 | AG177: 30 | AH177: 15.00 | AI177: 30.00 | AJ177: 0.5 | AK177: 15.5 | AL177: 6.25 | AM177: 6 | AN177: 0 | AO177: 252.84 | AP177: 0740401 | AQ177: 31.605 | AR177: 263.375
A178: 122851 | B178: 14 | C178: 2017-01-11 | D178: 31.42 | E178: 0102354040 | F178: PIEDRA MARTINEZ | G178: JORGE IVAN | H178: PMJI | I178: 3 | J178: 9 | K178: 2 | L178: 11 | M178: 345.62 | N178: AP | O178: VIA A BAGUANCHI Y CIRCUNVALACION SUR | P178: 0500030V01 | Q178: R-01 | R178: 3 | S178: MP-1 | T178: 1 | U178: 0 | X178: 14:00 | Y178: 15:00 | Z178: 14 | AA178: 00 | AB178: 14 | AC178: 0 | AD178: 0 | AE178: 14 | AF178: 15 | AG178: 00 | AH178: 15.00 | AI178: 0.00 | AJ178: 0 | AK178: 15 | AL178: 1 | AM178: 1 | AN178: 0 | AO178: 31.42 | AP178: 0740401 | AQ178: 0 | AR178: 31.42
A179: 122891 | B179: 14 | C179: 2017-01-16 | D179: 31.42 | E179: 0102354040 | F179: PIEDRA MARTINEZ | G179: JORGE IVAN | H179: PMJI | I179: 3 | J179: 6 | K179: 3 | L179: 9 | M179: 282.78 | N179: AP | O179: EL DESPACHO DEL VALLE | P179: 0500030V01 | Q179: P-02 | R179: 1 | S179: MP-1 | T179: 1 | U179: 1 | X179: 09:00 | Y179: 10:00 | Z179: 09 | AA179: 00 | AB179: 9 | AC179: 0 | AD179: 0 | AE179: 9 | AF179: 10 | AG179: 00 | AH179: 10.00 | AI179: 0.00 | AJ179: 0 | AK179: 10 | AL179: 1 | AM179: 1 | AN179: 0 | AO179: 31.42 | AP179: 0740401 | AQ179: 31.42 | AR179: 31.42
A180: 122674 | B180: 11 | C180: 2017-01-06 | D180: 41.48 | E180: 0103040309 | F180: AUCAPIÑA QUINDE | G180: JOHNSON OSWALDO | H180: JOAQ | I180: 3 | J180: 9 | K180: 1 | L180: 10 | M180: 414.8 | N180: AP | O180: RETORNO MATRIZ | P180: 0500030V03 | Q180: O-06 | R180: 1 | S180: MP-1 | T180: 1 | U180: 0.5 | X180: 17:30 | Y180: 17:30 | Z180: 17 | AA180: 30 | AB180: 17 | AC180: 30 | AD180: 0.5 | AE180: 17.5 | AF180: 17 | AG180: 30 | AH180: 17.00 | AI180: 30.00 | AJ180: 0.5 | AK180: 17.5 | AL180: 0 | AM180: 0 | AN180: 0 | AO180: 0 | AP180: 0740401 | AQ180: 20.74 | AR180: 0
A181: 122924 | B181: 14 | C181: 2017-01-20 | D181: 31.42 | E181: 0102354040 | F181: PIEDRA MARTINEZ | G181: JORGE IVAN | H181: PMJI | I181: 3 | J181: 9 | K181: 2.5 | L181: 11.83335 | M181: 371.803857 | N181: AP | O181: GUNCAY DEL VALLE | P181: 0500030V01 | Q181: R-01 | R181: 6 | S181: MP-1 | T181: 1 | U181: 0 | X181: 16:00 | Y181: 17:00 | Z181: 16 | AA181: 00 | AB181: 16 | AC181: 0 | AD181: 0 | AE181: 16 | AF181: 17 | AG181: 00 | AH181: 17.00 | AI181: 0.00 | AJ181: 0 | AK181: 17 | AL181: 1 | AM181: 1 | AN181: 0 | AO181: 31.42 | AP181: 0740401 | AQ181: 0 | AR181: 31.42
A182: 122780 | B182: 19 | C182: 2017-01-06 | D182: 45.26 | E182: 0101195089 | F182: LEON CORDOVA | G182: PEDRO ALEJANDRO | H182: LCPA | I182: 3 | J182: 7 | K182: 1 | L182: 8 | M182: 362.08 | N182: AP | O182: ENTRAD A GUZHO | P182: 0500050V04 | Q182: O-05 | R182: 1 | S182: MP-1 | T182: 1 | U182: 0 | X182: 11:30 | Y182: 12:30 | Z182: 11 | AA182: 30 | AB182: 11 | AC182: 30 | AD182: 0.5 | AE182: 11.5 | AF182: 12 | AG182: 30 | AH182: 12.00 | AI182: 30.00 | AJ182: 0.5 | AK182: 12.5 | AL182: 1 | AM182: 1 | AN182: 0 | AO182: 45.26 | AP182: 0740401 | AQ182: 0 | AR182: 45.26
A183: 123021 | B183: 49A | C183: 2017-01-06 | D183: 13.77 | E183: 0102354040 | F183: PIEDRA MARTINEZ | G183: JORGE IVAN | H183: PMJI | I183: 3 | J183: 6 | K183: 2 | L183: 8 | M183: 110.16 | N183: RS | O183: SAN GABRIEL | P183: 0500050V05 | Q183: C-01 | R183: 1 | S183: MP-1 | T183: 1 | U183: 0 | X183: 13:00 | Y183: 16:00 | Z183: 13 | AA183: 00 | AB183: 13 | AC183: 0 | AD183: 0 | AE183: 13 | AF183: 16 | AG183: 00 | AH183: 16.00 | AI183: 0.00 | AJ183: 0 | AK183: 16 | AL183: 3 | AM183: 3 | AN183: 0 | AO183: 41.31 | AP183: 0741102 | AQ183: 0 | AR183: 41.31
A184: 123021 | B184: 49A | C184: 2017-01-06 | D184: 13.77 | E184: 0102354040 | F184: PIEDRA MARTINEZ | G184: JORGE IVAN | H184: PMJI | I184: 3 | J184: 6 | K184: 2 | L184: 8 | M184: 110.16 | N184: RS | O184: SAN GABRIEL | P184: 0500050V05 | Q184: C-01 | R184: 1 | S184: MP-1 | T184: 1 | U184: 0 | X184: 08:00 | Y184: 09:00 | Z184: 08 | AA184: 00 | AB184: 8 | AC184: 0 | AD184: 0 | AE184: 8 | AF184: 09 | AG184: 00 | AH184: 9.00 | AI184: 0.00 | AJ184: 0 | AK184: 9 | AL184: 1 | AM184: 1 | AN184: 0 | AO184: 13.77 | AP184: 0741102 | AQ184: 0 | AR184: 13.77
A185: 122780 | B185: 19 | C185: 2017-01-06 | D185: 45.26 | E185: 0101195089 | F185: LEON CORDOVA | G185: PEDRO ALEJANDRO | H185: LCPA | I185: 3 | J185: 7 | K185: 1 | L185: 8 | M185: 362.08 | N185: AP | O185: DESPACHO DE GRUPOS | P185: 0500050V05 | Q185: C-02 | R185: 1 | S185: MP-1 | T185: 1 | U185: 0 | X185: 08:00 | Y185: 08:30 | Z185: 08 | AA185: 00 | AB185: 8 | AC185: 0 | AD185: 0 | AE185: 8 | AF185: 08 | AG185: 30 | AH185: 8.00 | AI185: 30.00 | AJ185: 0.5 | AK185: 8.5 | AL185: 0.5 | AM185: 0 | AN185: 0 | AO185: 0 | AP185: 0740401 | AQ185: 0 | AR185: 22.63
A186: 122780 | B186: 19 | C186: 2017-01-06 | D186: 45.26 | E186: 0101195089 | F186: LEON CORDOVA | G186: PEDRO ALEJANDRO | H186: LCPA | I186: 3 | J186: 7 | K186: 1 | L186: 8 | M186: 362.08 | N186: RS | O186: PEDRO VICENTE MALDONADO Y ANTONIO ULLOA | P186: 0500050V05 | Q186: O-03 | R186: 3 | S186: MP-1 | T186: 1 | U186: 1 | X186: 09:30 | Y186: 11:30 | Z186: 09 | AA186: 30 | AB186: 9 | AC186: 30 | AD186: 0.5 | AE186: 9.5 | AF186: 11 | AG186: 30 | AH186: 11.00 | AI186: 30.00 | AJ186: 0.5 | AK186: 11.5 | AL186: 2 | AM186: 2 | AN186: 0 | AO186: 90.52 | AP186: 0740401 | AQ186: 45.26 | AR186: 90.52
A187: 122780 | B187: 19 | C187: 2017-01-06 | D187: 45.26 | E187: 0101195089 | F187: LEON CORDOVA | G187: PEDRO ALEJANDRO | H187: LCPA | I187: 3 | J187: 7 | K187: 1 | L187: 8 | M187: 362.08 | N187: AP | O187: CANTON PUYANGO Y QUININDE | P187: 0500050V05 | Q187: O-05 | R187: 1 | S187: MP-1 | T187: 1 | U187: 0 | X187: 12:30 | Y187: 13:30 | Z187: 12 | AA187: 30 | AB187: 12 | AC187: 30 | AD187: 0.5 | AE187: 12.5 | AF187: 13 | AG187: 30 | AH187: 13.00 | AI187: 30.00 | AJ187: 0.5 | AK187: 13.5 | AL187: 1 | AM187: 1 | AN187: 0 | AO187: 45.26 | AP187: 0740401 | AQ187: 0 | AR187: 45.26
A188: 123021 | B188: 49A | C188: 2017-01-06 | D188: 13.77 | E188: 0102354040 | F188: PIEDRA MARTINEZ | G188: JORGE IVAN | H188: PMJI | I188: 3 | J188: 6 | K188: 2 | L188: 8 | M188: 110.16 | N188: IP | O188: ANGAS | P188: 0500050V05 | Q188: S-01 | R188: 3 | S188: MP-6 | T188: 1 | U188: 2 | X188: 10:00 | Y188: 12:00 | Z188: 10 | AA188: 00 | AB188: 10 | AC188: 0 | AD188: 0 | AE188: 10 | AF188: 12 | AG188: 00 | AH188: 12.00 | AI188: 0.00 | AJ188: 0 | AK188: 12 | AL188: 2 | AM188: 2 | AN188: 0 | AO188: 27.54 | AP188: 0741102 | AQ188: 27.54 | AR188: 27.54
A189: 122651 | B189: 25 | C189: 2017-01-06 | D189: 48.69 | E189: 0101550978 | F189: SEMPERTEGUI CAÑIZARE | G189: EDUARDO | H189: SCE | I189: 1 | J189: 11 | K189: 1 | L189: 12 | M189: 584.28 | N189: RS | O189: PICHINZANA | P189: 0500050V07 | Q189: P-02 | R189: 2 | S189: MP-1 | T189: 1 | U189: 1 | X189: 08:30 | Y189: 15:00 | Z189: 08 | AA189: 30 | AB189: 8 | AC189: 30 | AD189: 0.5 | AE189: 8.5 | AF189: 15 | AG189: 00 | AH189: 15.00 | AI189: 0.00 | AJ189: 0 | AK189: 15 | AL189: 6.5 | AM189: 7 | AN189: 0 | AO189: 340.83 | AP189: 0720401 | AQ189: 48.69 | AR189: 316.485
A190: 122987 | B190: 13 | C190: 2017-01-25 | D190: 53.28 | E190: 0101278976 | F190: IDROVO IDROVO | G190: JORGE EDUARDO | H190: IIJE | I190: 2 | J190: 6 | K190: 1.5 | L190: 7.83335 | M190: 417.360888 | N190: AP | O190: AUTOPISTA | P190: 0500030V01 | Q190: P-02 | R190: 1 | S190: MP-1 | T190: 1 | U190: 0.5 | X190: 08:30 | Y190: 10:30 | Z190: 08 | AA190: 30 | AB190: 8 | AC190: 30 | AD190: 0.5 | AE190: 8.5 | AF190: 10 | AG190: 30 | AH190: 10.00 | AI190: 30.00 | AJ190: 0.5 | AK190: 10.5 | AL190: 2 | AM190: 2 | AN190: 0 | AO190: 106.56 | AP190: 0750502 | AQ190: 26.64 | AR190: 106.56
A191: 122589 | B191: 13 | C191: 2017-01-06 | D191: 53.28 | E191: 0101278976 | F191: IDROVO IDROVO | G191: JORGE EDUARDO | H191: IIJE | I191: 2 | J191: 7 | K191: 1 | L191: 8 | M191: 426.24 | N191: AP | O191: EL DESCANSO PINCHISANA | P191: 0500050V07 | Q191: P-08 | R191: 2 | S191: MP-1 | T191: 1 | U191: 1 | X191: 08:30 | Y191: 10:30 | Z191: 08 | AA191: 30 | AB191: 8 | AC191: 30 | AD191: 0.5 | AE191: 8.5 | AF191: 10 | AG191: 30 | AH191: 10.00 | AI191: 30.00 | AJ191: 0.5 | AK191: 10.5 | AL191: 2 | AM191: 2 | AN191: 0 | AO191: 106.56 | AP191: 0720401 | AQ191: 53.28 | AR191: 106.56
A192: 123365 | B192: 14 | C192: 2017-02-10 | D192: 31.42 | E192: 0102354040 | F192: PIEDRA MARTINEZ | G192: JORGE IVAN | H192: PMJI | I192: 3 | J192: 7 | K192: 2 | L192: 9 | M192: 282.78 | N192: AP | O192: GORDELEG DE SANTANA | P192: 0500030V01 | Q192: P-05 | R192: 6 | S192: MP-1 | T192: 1 | U192: 0 | X192: 13:00 | Y192: 15:00 | Z192: 13 | AA192: 00 | AB192: 13 | AC192: 0 | AD192: 0 | AE192: 13 | AF192: 15 | AG192: 00 | AH192: 15.00 | AI192: 0.00 | AJ192: 0 | AK192: 15 | AL192: 2 | AM192: 2 | AN192: 0 | AO192: 62.84 | AP192: 0740401 | AQ192: 0 | AR192: 62.84
A193: 122780 | B193: 19 | C193: 2017-01-06 | D193: 45.26 | E193: 0101195089 | F193: LEON CORDOVA | G193: PEDRO ALEJANDRO | H193: LCPA | I193: 3 | J193: 7 | K193: 1 | L193: 8 | M193: 362.08 | N193: TD | O193: ISABEL LA CATOLICA | P193: 0500080V02 | Q193: E-06 | R193: 21 | S193: MP-1 | T193: 1 | U193: 0 | X193: 13:30 | Y193: 16:00 | Z193: 13 | AA193: 30 | AB193: 13 | AC193: 30 | AD193: 0.5 | AE193: 13.5 | AF193: 16 | AG193: 00 | AH193: 16.00 | AI193: 0.00 | AJ193: 0 | AK193: 16 | AL193: 2.5 | AM193: 3 | AN193: 0 | AO193: 135.78 | AP193: 0740401 | AQ193: 0 | AR193: 113.15
A194: 122624 | B194: 44B | C194: 2017-01-06 | D194: 22.27 | E194: 0101219749 | F194: ABRIL ABRIL | G194: MANUEL ROSENDO | H194: AAMR | I194: 2 | J194: 2 | K194: 2.65 | L194: 5.083355 | M194: 113.2063158 | N194: RS | O194: SANTUL | P194: 0500120V02 | Q194: S-01 | R194: 1 | S194: MP-1 | T194: 1 | U194: 0.3 | X194: 09:00 | Y194: 09:30 | Z194: 09 | AA194: 00 | AB194: 9 | AC194: 0 | AD194: 0 | AE194: 9 | AF194: 09 | AG194: 30 | AH194: 9.00 | AI194: 30.00 | AJ194: 0.5 | AK194: 9.5 | AL194: 0.5 | AM194: 0 | AN194: 0 | AO194: 0 | AP194: 0730605 | AQ194: 6.681 | AR194: 11.135
A195: 122607 | B195: 44A | C195: 2017-01-06 | D195: 31.67 | E195: 0101219749 | F195: ABRIL ABRIL | G195: MANUEL ROSENDO | H195: AAMR | I195: 2 | J195: 5 | K195: 0.9 | L195: 6.50003 | M195: 205.8559501 | N195: RS | O195: JARDINES DE PAUTE | P195: 0500120V02 | Q195: S-02 | R195: 1 | S195: MP-1 | T195: 1 | U195: 0.1 | X195: 12:10 | Y195: 13:00 | Z195: 12 | AA195: 10 | AB195: 12 | AC195: 10 | AD195: 0.1666666667 | AE195: 12.16666667 | AF195: 13 | AG195: 00 | AH195: 13.00 | AI195: 0.00 | AJ195: 0 | AK195: 13 | AL195: 0.8333333333 | AM195: 1 | AN195: 0 | AO195: 31.67 | AP195: 0730605 | AQ195: 3.167 | AR195: 26.39166667
A196: 122607 | B196: 44A | C196: 2017-01-06 | D196: 31.67 | E196: 0101219749 | F196: ABRIL ABRIL | G196: MANUEL ROSENDO | H196: AAMR | I196: 2 | J196: 5 | K196: 0.9 | L196: 6.50003 | M196: 205.8559501 | N196: RS | O196: GUAGAL | P196: 0500120V02 | Q196: T-07 | R196: 1 | S196: MP-1 | T196: 1 | U196: 0.2 | X196: 11:00 | Y196: 12:00 | Z196: =LEFT(X196,2) -> 11 | AA196: =RIGHT(X196,2) -> 00 | AB196: =FIXED(Z196,0) -> 11 | AC196: =FIXED(AA196,0) -> 0 | AD196: =+AC196/60 -> 0 | AE196: =+AB196+AD196 -> 11 | AF196: =LEFT(Y196,2) -> 12 | AG196: =RIGHT(Y196,2) -> 00 | AH196: =FIXED(AF196,2) -> 12.00 | AI196: =FIXED(AG196,2) -> 0.00 | AJ196: =+AI196/60 -> 0 | AK196: =+AH196+AJ196 -> 12 | AL196: =+AK196-AE196 -> 1 | AM196: 1 | AN196: 0 | AO196: 31.67 | AP196: 0730602 | AQ196: =+U196*D196 -> 6.334 | AR196: =+AL196*D196 -> 31.67
A197: 123490 | B197: 11 | C197: 2017-02-20 | D197: 41.48 | E197: 0103040309 | F197: AUCAPIÑA QUINDE | G197: JOHNSON OSWALDO | H197: JOAQ | I197: 3 | J197: 6 | K197: 2 | L197: 8 | M197: 331.84 | N197: AP | O197: GORDELEG SANTA ANA | P197: 0500030V01 | Q197: P-02 | R197: 1 | S197: MP-1 | T197: 1 | U197: 1 | X197: 09:00 | Y197: 15:00 | Z197: 09 | AA197: 00 | AB197: 9 | AC197: 0 | AD197: 0 | AE197: 9 | AF197: 15 | AG197: 00 | AH197: 15.00 | AI197: 0.00 | AJ197: 0 | AK197: 15 | AL197: 6 | AM197: 6 | AN197: 0 | AO197: 248.88 | AP197: 0740401 | AQ197: 41.48 | AR197: 248.88
A198: 122624 | B198: 44B | C198: 2017-01-06 | D198: 22.27 | E198: 0101219749 | F198: ABRIL ABRIL | G198: MANUEL ROSENDO | H198: AAMR | I198: 2 | J198: 2 | K198: 2.65 | L198: 5.083355 | M198: 113.2063158 | N198: RS | O198: CHICAN | P198: 0500120V03 | Q198: S-01 | R198: 1 | S198: MP-1 | T198: 1 | U198: 0.2 | X198: 14:20 | Y198: 14:50 | Z198: 14 | AA198: 20 | AB198: 14 | AC198: 20 | AD198: 0.3333333333 | AE198: 14.33333333 | AF198: 14 | AG198: 50 | AH198: 14.00 | AI198: 50.00 | AJ198: 0.8333333333 | AK198: 14.83333333 | AL198: 0.5 | AM198: 0 | AN198: 0 | AO198: 0 | AP198: 0730605 | AQ198: 4.454 | AR198: 11.135
A199: 122624 | B199: 44B | C199: 2017-01-06 | D199: 22.27 | E199: 0101219749 | F199: ABRIL ABRIL | G199: MANUEL ROSENDO | H199: AAMR | I199: 2 | J199: 2 | K199: 2.65 | L199: 5.083355 | M199: 113.2063158 | N199: RS | O199: GUACHAPALA | P199: 0500120V03 | Q199: S-01 | R199: 1 | S199: MP-1 | T199: 1 | U199: 0.15 | X199: 13:30 | Y199: 13:45 | Z199: 13 | AA199: 30 | AB199: 13 | AC199: 30 | AD199: 0.5 | AE199: 13.5 | AF199: 13 | AG199: 45 | AH199: 13.00 | AI199: 45.00 | AJ199: 0.75 | AK199: 13.75 | AL199: 0.25 | AM199: 0 | AN199: 0 | AO199: 0 | AP199: 0730605 | AQ199: 3.3405 | AR199: 5.5675
A200: 122624 | B200: 44B | C200: 2017-01-06 | D200: 22.27 | E200: 0101219749 | F200: ABRIL ABRIL | G200: MANUEL ROSENDO | H200: AAMR | I200: 2 | J200: 2 | K200: 2.65 | L200: 5.083355 | M200: 113.2063158 | N200: RS | O200: GUASAG | P200: 0500120V03 | Q200: S-01 | R200: 1 | S200: MP-1 | T200: 1 | U200: 1 | X200: 10:30 | Y200: 11:00 | Z200: 10 | AA200: 30 | AB200: 10 | AC200: 30 | AD200: 0.5 | AE200: 10.5 | AF200: 11 | AG200: 00 | AH200: 11.00 | AI200: 0.00 | AJ200: 0 | AK200: 11 | AL200: 0.5 | AM200: 1 | AN200: 0 | AO200: 22.27 | AP200: 0730605 | AQ200: 22.27 | AR200: 11.135
... 2045 more rows

Sheet INICIO

Sheet Ind. A nivel Gen
H6: puntos | I6: x | J6: y | K6: pi*porcentaje
I7: 0 | J7: 0 | K7: =+IF(N52<1,N52*PI(),PI()) -> 3.141592654
I8: =+COS(K7)*-1 -> 1 | J8: =+SIN(K7) -> 1.225148455e-16
M17: puntos | N17: x | O17: y | P17: pi*porcentaje
N18: 0 | O18: 0 | P18: =+IF(N54<1,O54,PI()) -> 3.141592654
N19: =+COS(P18)*-1 -> 1 | O19: =+SIN(P18) -> 1.225148455e-16
H26: puntos | I26: x | J26: y | K26: pi*porcentaje
I27: 0 | J27: 0 | K27: =+IF(N53<1,O53,PI()) -> 3.141592654
I28: =+COS(K27)*-1 -> 1 | J28: =+SIN(K27) -> 1.225148455e-16
A48: Año | B48: 2017 | K48: AÑO | L48: =+B48 -> 2017 | Q48: 1 | R48: ENERO
A49: Mes | B49: OCTUBRE | K49: MES | L49: =+VLOOKUP(B49,R48:R59,1,FALSE) -> OCTUBRE | Q49: 2 | R49: FEBRERO
A50: MANTENIMIENTO POR ACTIVIDAD | H50: Porcentaje | I50: escala | Q50: 3 | R50: MARZO
A51: Actividad | B51: Frecuencia | C51: Costo. | H51: 0.1 | I51: 1 | L51: REAL | M51: META | N51: CUM | O51: CUM*PI | Q51: 4 | R51: ABRIL
A52: A-01 | B52: 4 | C52: 228.63 | H52: 0.2 | I52: 1 | J52: 46 | K52: FMIK GLOBAL | L52: =IFERROR(VLOOKUP(CONCATENATE($L$48,$L$49),INDIC!$B$2:$BE$1403,$J52,FALSE),0) -> 2.042 | M52: =IFERROR(VLOOKUP(CONCATENATE($L$48,$L$49),INDIC!$B$2:$BE$1403,$J52+1,FALSE),0) -> 4 | N52: =+M52/L52 -> 1.958863859 | O52: =IFERROR(N52*PI(),"") -> 6.153952309 | Q52: 5 | R52: MAYO
A53: A-02 | B53: 32 | C53: 901.45 | H53: 0.3 | I53: 1 | J53: 48 | K53: TTIK GLOBAL | L53: =IFERROR(VLOOKUP(CONCATENATE($L$48,$L$49),INDIC!$B$2:$BE$1403,$J53,FALSE),0) -> 1.473 | M53: =IFERROR(VLOOKUP(CONCATENATE($L$48,$L$49),INDIC!$B$2:$BE$1403,$J53+1,FALSE),0) -> 3.5 | N53: =+M53/L53 -> 2.376103191 | O53: =IFERROR(N53*PI(),"") -> 7.464748328 | Q53: 6 | R53: JUNIO
A54: A-03 | B54: 122 | C54: 3452.28 | H54: 0.4 | I54: 1 | J54: 50 | K54: PERDIDAS | L54: =IFERROR(VLOOKUP(CONCATENATE($L$48,$L$49),INDIC!$B$2:$BE$1403,$J54,FALSE),0) -> 0.0701 | M54: =IFERROR(VLOOKUP(CONCATENATE($L$48,$L$49),INDIC!$B$2:$BE$1403,$J54+1,FALSE),0) -> 0.0691 | N54: =+L54/M54 -> 1.01447178 | O54: =IFERROR(N54*PI(),"") -> 3.187057091 | Q54: 7 | R54: JULIO
A55: C-01 | B55: 104 | C55: 2781.45 | H55: 0.5 | I55: 1 | Q55: 8 | R55: AGOSTO
A56: C-02 | B56: 83 | C56: 245.24 | H56: 0.6 | I56: 1 | Q56: 9 | R56: SEPTIEMBRE
A57: C-03 | B57: 10 | C57: 1740.06 | H57: 0.7 | I57: 1 | Q57: 10 | R57: OCTUBRE
A58: E-01 | B58: 6 | C58: 1104.14 | H58: 0.8 | I58: 1 | Q58: 11 | R58: NOVIEMBRE
A59: E-02 | B59: 31 | C59: 4346 | H59: 0.9 | I59: 1 | Q59: 12 | R59: DICIEMBRE
A60: E-03 | B60: 9 | C60: 255.33 | H60: 1 | I60: 1
A61: E-04 | B61: 5 | C61: 427.34 | H61: 1.1 | I61: 10
A62: E-05 | B62: 1 | C62: 32.29
A63: E-06 | B63: 3 | C63: 316.82
A64: E-07 | B64: 9 | C64: 502.72
A65: E-08 | B65: 5 | C65: 229.83
A66: E-09 | B66: 1 | C66: 0
A67: E-11 | B67: 1 | C67: 13.77
A68: E-13 | B68: 3 | C68: 34.82
A69: E-14 | B69: 11 | C69: 160.88
A70: E-16 | B70: 7 | C70: 131.69
A71: E-17 | B71: 48 | C71: 884.9
A72: E-18 | B72: 16 | C72: 585.85
A73: E-21 | B73: 5 | C73: 362.67
A74: E-22 | B74: 4 | C74: 282.78
A75: E-23 | B75: 117 | C75: 2093.14
A76: E-24 | B76: 56 | C76: 1223.97
A77: F-01 | B77: 105 | C77: 8210.18
A78: F-02 | B78: 52 | C78: 6338.92
A79: F-03 | B79: 17 | C79: 1735.56
A80: O-01 | B80: 14 | C80: 1104.6
A81: O-02 | B81: 38 | C81: 1517.06
A82: O-04 | B82: 12 | C82: 527.84
A83: O-05 | B83: 11 | C83: 587.21
A84: O-06 | B84: 108 | C84: 4595.97
A85: P-01 | B85: 6 | C85: 1166.24
A86: P-02 | B86: 65 | C86: 10406.63
A87: P-03 | B87: 10 | C87: 1847.52
A88: P-04 | B88: 26 | C88: 3397.47
A89: P-05 | B89: 6 | C89: 547.75
A90: P-06 | B90: 4 | C90: 397.98
A91: P-07 | B91: 8 | C91: 309.33
A92: P-08 | B92: 15 | C92: 1588.23
A93: R-01 | B93: 99 | C93: 9793.69
A94: R-02 | B94: 2 | C94: 580.72
A95: R-03 | B95: 11 | C95: 1630.23
A96: R-05 | B96: 2 | C96: 131.88
A97: R-07 | B97: 84 | C97: 1690.24
A98: S-01 | B98: 174 | C98: 3846.84
A99: S-02 | B99: 38 | C99: 1714.44
A100: S-03 | B100: 19 | C100: 593.33
A101: S-06 | B101: 5 | C101: 38.43
A102: S-08 | B102: 41 | C102: 1062.3
A103: S-09 | B103: 3 | C103: 342.62
A104: S-10 | B104: 15 | C104: 1972.5
A105: S-11 | B105: 5 | C105: 62.84
A106: S-12 | B106: 4 | C106: 454.15
A107: S-13 | B107: 6 | C107: 782.05
A108: T-01 | B108: 4 | C108: 240.14
A109: T-02 | B109: 4 | C109: 306.59
A110: T-03 | B110: 4 | C110: 331.89
A111: T-04 | B111: 3 | C111: 454.92
A112: T-06 | B112: 30 | C112: 1270.65
A113: T-07 | B113: 60 | C113: 2225.91
A114: Total general | B114: 1803 | C114: 96142.9

Sheet Ind. A nivel de Direccion
H7: puntos | I7: x | J7: y | K7: pi*porcentaje
I8: 0 | J8: 0 | K8: =+IF(N52<1,N52*PI(),PI()) ->  | N8: puntos | O8: x | P8: y | Q8: pi*porcentaje
I9: =+COS(K8)*-1 ->  | J9: =+SIN(K8) ->  | O9: 0 | P9: 0 | Q9: =+IF(N54<1,O54,PI()) -> 
O10: =+COS(Q9)*-1 ->  | P10: =+SIN(Q9) -> 
S19: puntos | T19: x | U19: y | V19: pi*porcentaje
T20: 0 | U20: 0 | V20: =+IF(N56<1,O56,PI()) -> 
T21: =+COS(V20)*-1 ->  | U21: =+SIN(V20) -> 
H27: puntos | I27: x | J27: y | K27: pi*porcentaje
I28: 0 | J28: 0 | K28: =+IF(N53<1,O53,PI()) -> 
I29: =+COS(K28)*-1 ->  | J29: =+SIN(K28) ->  | N29: puntos | O29: x | P29: y | Q29: pi*porcentaje
O30: 0 | P30: 0 | Q30: =+IF(N55<1,O55,PI()) -> 
O31: =+COS(Q30)*-1 ->  | P31: =+SIN(Q30) -> 
A48: Año | B48: (Varios elementos) | K48: AÑO | L48: =+B48 -> (Varios elementos) | Q48: 1 | R48: ENERO
A49: Mes | B49: (Varios elementos) | K49: MES | L49: =+VLOOKUP(B49,R48:R59,1,FALSE) ->  | Q49: 2 | R49: FEBRERO
A50: MANTENIMIENTO POR ACTIVIDAD | H50: Porcentaje | I50: escala | Q50: 3 | R50: MARZO
A51: Actividad | B51: Frecuencia | C51: Costo. | H51: 0.1 | I51: 1 | L51: REAL | M51: META | N51: CUM | O51: CUM*PI | Q51: 4 | R51: ABRIL
A52: F-01 | B52: 523 | C52: 62408.2275 | H52: 0.2 | I52: 1 | J52: 4 | K52: FMIK GLOBAL | L52: =IFERROR(VLOOKUP(CONCATENATE($L$48,$L$49),INDIC!$B$2:$BE$1403,$J52,FALSE),0) -> 0 | M52: =IFERROR(VLOOKUP(CONCATENATE($L$48,$L$49),INDIC!$B$2:$BE$1403,$J52+1,FALSE),0) -> 0 | N52: =+M52/L52 ->  | O52: =IFERROR(N52*PI(),"") ->  | Q52: 5 | R52: MAYO
A53: F-02 | B53: 15 | C53: 1609.61 | H53: 0.3 | I53: 1 | J53: 6 | K53: TTIK GLOBAL | L53: =IFERROR(VLOOKUP(CONCATENATE($L$48,$L$49),INDIC!$B$2:$BE$1403,$J53,FALSE),0) -> 0 | M53: =IFERROR(VLOOKUP(CONCATENATE($L$48,$L$49),INDIC!$B$2:$BE$1403,$J53+1,FALSE),0) -> 0 | N53: =+M53/L53 ->  | O53: =IFERROR(N53*PI(),"") ->  | Q53: 6 | R53: JUNIO
A54: Total general | B54: 538 | C54: 64017.8375 | H54: 0.4 | I54: 1 | J54: 8 | K54: FAL | L54: =IFERROR(VLOOKUP(CONCATENATE($L$48,$L$49),INDIC!$B$2:$BE$1403,$J54,FALSE),0) -> 0 | M54: =IFERROR(VLOOKUP(CONCATENATE($L$48,$L$49),INDIC!$B$2:$BE$1403,$J54+1,FALSE),0) -> 0 | N54: =+M54/L54 ->  | O54: =IFERROR(N54*PI(),"") ->  | Q54: 7 | R54: JULIO
H55: 0.5 | I55: 1 | J55: 10 | K55: TAL | L55: =IFERROR(VLOOKUP(CONCATENATE($L$48,$L$49),INDIC!$B$2:$BE$1403,$J55,FALSE),0) -> 0 | M55: =IFERROR(VLOOKUP(CONCATENATE($L$48,$L$49),INDIC!$B$2:$BE$1403,$J55+1,FALSE),0) -> 0 | N55: =+M55/L55 ->  | O55: =IFERROR(N55*PI(),"") ->  | Q55: 8 | R55: AGOSTO
H56: 0.6 | I56: 1 | J56: 12 | K56: ITMARM | L56: =IFERROR(VLOOKUP(CONCATENATE($L$48,$L$49),INDIC!$B$2:$BE$1403,$J56,FALSE),0) -> 0 | M56: =IFERROR(VLOOKUP(CONCATENATE($L$48,$L$49),INDIC!$B$2:$BE$1403,$J56+1,FALSE),0) -> 0 | N56: =+M56/L56 ->  | O56: =IFERROR(N56*PI(),"") ->  | Q56: 9 | R56: SEPTIEMBRE
H57: 0.7 | I57: 1 | Q57: 10 | R57: OCTUBRE
H58: 0.8 | I58: 1 | Q58: 11 | R58: NOVIEMBRE
H59: 0.9 | I59: 1 | Q59: 12 | R59: DICIEMBRE
H60: 1 | I60: 1
H61: 1.1 | I61: 10

Sheet Ind. A nivel de Dep
Y9: puntos | Z9: x | AA9: y | AB9: pi*porcentaje
Z10: 0 | AA10: 0 | AB10: =+IF(N81<1,O81,PI()) -> 3.141592654
Z11: =+COS(AB10)*-1 -> 1 | AA11: =+SIN(AB10) -> 1.225148455e-16
H13: puntos | I13: x | J13: y | K13: pi*porcentaje | M13: puntos | N13: x | O13: y | P13: pi*porcentaje | Q13: puntos | R13: x | S13: y | T13: pi*porcentaje | U13: puntos | V13: x | W13: y | X13: pi*porcentaje
I14: 0 | J14: 0 | K14: =+IF(N73<1,O73,PI()) -> 1.611073156 | N14: 0 | O14: 0 | P14: =+IF(N74<1,O74,PI()) -> 2.371013323 | R14: 0 | S14: 0 | T14: =+IF(N75<1,O75,PI()) -> 3.141592654 | V14: 0 | W14: 0 | X14: =+IF(N79<1,O79,PI()) -> 3.141592654
I15: =+COS(K14)*-1 -> 0.04026594011 | J15: =+SIN(K14) -> 0.9991889982 | N15: =+COS(P14)*-1 -> 0.717507257 | O15: =+SIN(P14) -> 0.6965510291 | R15: =+COS(T14)*-1 -> 1 | S15: =+SIN(T14) -> 1.225148455e-16 | V15: =+COS(X14)*-1 -> 1 | W15: =+SIN(X14) -> 1.225148455e-16
Z21: puntos | AA21: x | AB21: y | AC21: pi*porcentaje
AA22: 0 | AB22: 0 | AC22: =+IF(N82<1,O82,PI()) -> 3.141592654
AA23: =+COS(AC22)*-1 -> 1 | AB23: =+SIN(AC22) -> 1.225148455e-16
H27: puntos | I27: x | J27: y | K27: pi*porcentaje
I28: 0 | J28: 0 | K28: =+IF(N76<1,O76,PI()) -> 3.141592654 | M28: puntos | N28: x | O28: y | P28: pi*porcentaje | Q28: puntos | R28: x | S28: y | T28: pi*porcentaje
I29: =+COS(K28)*-1 -> 1 | J29: =+SIN(K28) -> 1.225148455e-16 | N29: 0 | O29: 0 | P29: =+IF(N77<1,O77,PI()) -> 3.141592654 | R29: 0 | S29: 0 | T29: =+IF(N78<1,O78,PI()) -> 3.141592654
N30: =+COS(P29)*-1 -> 1 | O30: =+SIN(P29) -> 1.225148455e-16 | R30: =+COS(T29)*-1 -> 1 | S30: =+SIN(T29) -> 1.225148455e-16
U32: puntos | V32: x | W32: y | X32: pi*porcentaje
V33: 0 | W33: 0 | X33: =+IF(N80<1,O80,PI()) -> 2.533542463
V34: =+COS(X33)*-1 -> 0.8207634412 | W34: =+SIN(X33) -> 0.5712682151
Z36: puntos | AA36: x | AB36: y | AC36: pi*porcentaje
AA37: 0 | AB37: 0 | AC37: =+IF(N83<1,O83,PI()) -> 3.141592654
AA38: =+COS(AC37)*-1 -> 1 | AB38: =+SIN(AC37) -> 1.225148455e-16
A69: Año | B69: 2017 | K69: AÑO | L69: =+B69 -> 2017 | Q69: 1 | R69: ENERO
A70: Mes | B70: ENERO | K70: MES | L70: =+VLOOKUP(B70,R69:R80,1,FALSE) -> ENERO | Q70: 2 | R70: FEBRERO
A71: MANTENIMIENTO POR ACTIVIDAD | F71: Porcentaje | G71: escala | Q71: 3 | R71: MARZO
A72: Actividad | B72: Frecuencia | C72: Costo. | F72: 0.1 | G72: 1 | L72: REAL | M72: META | N72: CUM | O72: CUM*PI | Q72: 4 | R72: ABRIL
A73: A-01 | B73: 4 | C73: 89.08 | F73: 0.2 | G73: 1 | J73: 22 | K73: IRCAZ1 | L73: =IFERROR(VLOOKUP(CONCATENATE($L$69,$L$70),INDIC!$B$2:$BE$1403,$J73,FALSE),0) -> 0.039 | M73: =IFERROR(VLOOKUP(CONCATENATE($L$69,$L$70),INDIC!$B$2:$BE$1403,$J73+1,FALSE),0) -> 0.02 | N73: =+M73/L73 -> 0.5128205128 | O73: =IFERROR(N73*PI(),"") -> 1.611073156 | Q73: 5 | R73: MAYO
A74: A-03 | B74: 72 | C74: 1912.04 | F74: 0.3 | G74: 1 | J74: 24 | K74: IRCAZ2 | L74: =IFERROR(VLOOKUP(CONCATENATE($L$69,$L$70),INDIC!$B$2:$BE$1403,$J74,FALSE),0) -> 0.053 | M74: =IFERROR(VLOOKUP(CONCATENATE($L$69,$L$70),INDIC!$B$2:$BE$1403,$J74+1,FALSE),0) -> 0.04 | N74: 0.7547169811 | O74: =IFERROR(N74*PI(),"") -> 2.371013323 | Q74: 6 | R74: JUNIO
A75: C-01 | B75: 91 | C75: 2557.59 | F75: 0.4 | G75: 1 | J75: =+J74+2 -> 26 | K75: IRCAZ3 | L75: =IFERROR(VLOOKUP(CONCATENATE($L$69,$L$70),INDIC!$B$2:$BE$1403,$J75,FALSE),0) -> 0.007 | M75: =IFERROR(VLOOKUP(CONCATENATE($L$69,$L$70),INDIC!$B$2:$BE$1403,$J75+1,FALSE),0) -> 0.04 | N75: 5.714285714 | O75: =IFERROR(N75*PI(),"") -> 17.95195802 | Q75: 7 | R75: JULIO
A76: C-02 | B76: 21 | C76: 135.78 | F76: 0.5 | G76: 1 | J76: 29 | K76: ICVAZ1 | L76: =IFERROR(VLOOKUP(CONCATENATE($L$69,$L$70),INDIC!$B$2:$BE$1403,$J76,FALSE),0) -> 223127 | M76: =IFERROR(VLOOKUP(CONCATENATE($L$69,$L$70),INDIC!$B$2:$BE$1403,$J76+1,FALSE),0) -> 223127 | N76: 1 | O76: =IFERROR(N76*PI(),"") -> 3.141592654 | Q76: 8 | R76: AGOSTO
A77: C-03 | B77: 3 | C77: 269.09 | F77: 0.6 | G77: 1 | J77: =+J76+2 -> 31 | K77: ICVAZ2 | L77: =IFERROR(VLOOKUP(CONCATENATE($L$69,$L$70),INDIC!$B$2:$BE$1403,$J77,FALSE),0) -> 145133 | M77: =IFERROR(VLOOKUP(CONCATENATE($L$69,$L$70),INDIC!$B$2:$BE$1403,$J77+1,FALSE),0) -> 145133 | N77: 1 | O77: =IFERROR(N77*PI(),"") -> 3.141592654 | Q77: 9 | R77: SEPTIEMBRE
A78: E-01 | B78: 2 | C78: 165.92 | F78: 0.7 | G78: 1 | J78: 33 | K78: ICVAZ3 | L78: =IFERROR(VLOOKUP(CONCATENATE($L$69,$L$70),INDIC!$B$2:$BE$1403,$J78,FALSE),0) -> 118528 | M78: =IFERROR(VLOOKUP(CONCATENATE($L$69,$L$70),INDIC!$B$2:$BE$1403,$J78+1,FALSE),0) -> 118528 | N78: 1 | O78: =IFERROR(N78*PI(),"") -> 3.141592654 | Q78: 10 | R78: OCTUBRE
A79: E-02 | B79: 20 | C79: 2032.98 | F79: 0.8 | G79: 1 | J79: 36 | K79: SIGADE IAC | L79: =IFERROR(VLOOKUP(CONCATENATE($L$69,$L$70),INDIC!$B$2:$BE$1403,$J79,FALSE),0) -> 1.63 | M79: =IFERROR(VLOOKUP(CONCATENATE($L$69,$L$70),INDIC!$B$2:$BE$1403,$J79+1,FALSE),0) -> 2.35 | N79: =+M79/L79 -> 1.441717791 | O79: 4.529290022 | Q79: 11 | R79: NOVIEMBRE
A80: E-03 | B80: 4 | C80: 145.8 | F80: 0.9 | G80: 1 | J80: 38 | K80: SUBSE IFL | L80: =IFERROR(VLOOKUP(CONCATENATE($L$69,$L$70),INDIC!$B$2:$BE$1403,$J80,FALSE),0) -> 0.62 | M80: =IFERROR(VLOOKUP(CONCATENATE($L$69,$L$70),INDIC!$B$2:$BE$1403,$J80+1,FALSE),0) -> 0.5 | N80: 0.8064516129 | O80: 2.533542463 | Q80: 12 | R80: DICIEMBRE
A81: E-04 | B81: 4 | C81: 157.1 | F81: 1 | G81: 1 | J81: 42 | K81: TASA DE FALLAS 0,02% | L81: =IFERROR(VLOOKUP(CONCATENATE($L$69,$L$70),INDIC!$B$2:$BE$1403,$J81,FALSE),0) -> 10.46 | M81: =IFERROR(VLOOKUP(CONCATENATE($L$69,$L$70),INDIC!$B$2:$BE$1403,$J81+1,FALSE),0) -> 12.9 | N81: 1.233269598 | O81: 3.87443071
A82: E-05 | B82: 2 | C82: 184.78 | F82: 1.1 | G82: 10 | J82: 44 | K82: REP. SERV. URBANO 24 horas | L82: =IFERROR(VLOOKUP(CONCATENATE($L$69,$L$70),INDIC!$B$2:$BE$1403,$J82,FALSE),0) -> 10.27 | M82: =IFERROR(VLOOKUP(CONCATENATE($L$69,$L$70),INDIC!$B$2:$BE$1403,$J82+1,FALSE),0) -> 17.3 | N82: 1.684518014 | O82: 5.292069416
A83: E-06 | B83: 3 | C83: 316.82 | J83: 44 | K83: REP. SERV. RURAL 72 HORAS | L83: =IFERROR(VLOOKUP(CONCATENATE($L$69,$L$70),INDIC!$B$2:$BE$1403,$J83,FALSE),0) -> 10.27 | M83: =IFERROR(VLOOKUP(CONCATENATE($L$69,$L$70),INDIC!$B$2:$BE$1403,$J83+1,FALSE),0) -> 17.3 | N83: 1.684518014 | O83: 5.292069416
A84: E-07 | B84: 14 | C84: 608.45
A85: E-08 | B85: 4 | C85: 119.4
A86: E-09 | B86: 1 | C86: 41.48
A87: E-11 | B87: 2 | C87: 372.96
A88: E-13 | B88: 2 | C88: 187.28
A89: E-14 | B89: 1 | C89: 0
A90: E-16 | B90: 2 | C90: 127.23
A91: E-17 | B91: 8 | C91: 279.04
A92: E-18 | B92: 7 | C92: 435.07
A93: E-19 | B93: 1 | C93: 22.27
A94: E-21 | B94: 6 | C94: 428.61
A95: E-22 | B95: 2 | C95: 92.32
A96: E-23 | B96: 13 | C96: 339.77
A97: E-24 | B97: 9 | C97: 267.75
A98: F-01 | B98: 56 | C98: 4779.45
A99: F-02 | B99: 19 | C99: 2412.01
A100: F-03 | B100: 34 | C100: 2530.4
A101: O-01 | B101: 8 | C101: 1058.77
A102: O-02 | B102: 39 | C102: 1208.92
A103: O-03 | B103: 1 | C103: 90.52
A104: O-04 | B104: 13 | C104: 1083.14
A105: O-05 | B105: 23 | C105: 1321.91
A106: O-06 | B106: 85 | C106: 3613.01
A107: P-01 | B107: 13 | C107: 1517.72
A108: P-02 | B108: 66 | C108: 9841.61
A109: P-03 | B109: 9 | C109: 1065.6
A110: P-04 | B110: 17 | C110: 1740.1
A111: P-05 | B111: 9 | C111: 348.62
A112: P-06 | B112: 7 | C112: 460.15
A113: P-07 | B113: 6 | C113: 241.8
A114: P-08 | B114: 10 | C114: 1003.14
A115: R-01 | B115: 53 | C115: 4530.49
A116: R-02 | B116: 3 | C116: 705.16
A117: R-03 | B117: 8 | C117: 1079.9
A118: R-04 | B118: 1 | C118: 65.94
A119: R-05 | B119: 4 | C119: 263.76
A120: R-07 | B120: 37 | C120: 834.1
A121: S-01 | B121: 110 | C121: 2508.36
A122: S-02 | B122: 22 | C122: 755.71
A123: S-03 | B123: 33 | C123: 934.17
A124: S-06 | B124: 3 | C124: 932.76
A125: S-07 | B125: 2 | C125: 570.09
A126: S-08 | B126: 2 | C126: 136.24
A127: S-09 | B127: 2 | C127: 375.8
A128: S-10 | B128: 3 | C128: 119.3
A129: S-12 | B129: 2 | C129: 51.75
A130: S-13 | B130: 2 | C130: 340.83
A131: T-01 | B131: 2 | C131: 117.28
A132: T-03 | B132: 5 | C132: 725.86
A133: T-04 | B133: 5 | C133: 307.88
A134: T-05 | B134: 1 | C134: 117.92
A135: T-06 | B135: 6 | C135: 696.22
A136: T-07 | B136: 73 | C136: 2127.31
A137: Total general | B137: 1092 | C137: 63902.31

Sheet Ind. A nivel de Act
F1: =+GETPIVOTDATA("Costo.",$H$21) -> 64017.8375 | G1: =+GETPIVOTDATA("Frecuencia",$H$21) -> 538 | AL1: AÑO | AM1: =+I18 -> (Varios elementos)
AE2: Porcentaje | AH2: escala | AJ2: INDICADOR CUM*PI ESCOGIDO | AL2: MES | AM2: =+VLOOKUP(I19,BF2:BG13,2,FALSE) ->  | BF2: 1 | BG2: ENERO
AE3: 0.1 | AH3: 1 | BF3: 2 | BG3: FEBRERO
AE4: 0.2 | AH4: 1 | AJ4: =+IF(VLOOKUP(J16,AL5:AP24,5,FALSE)<(100%*PI()),VLOOKUP(J16,AL5:AP24,5,FALSE),100%*PI()) ->  | AM4: REAL | AN4: META | AO4: CUM | AP4: CUM*PI | BF4: 3 | BG4: MARZO
AE5: 0.3 | AH5: 1 | AJ5: =+AJ6/PI() ->  | AK5: 4 | AL5: FMIK GLOBAL | AM5: =IFERROR(VLOOKUP(CONCATENATE($AM$1,$AM$2),INDIC!$B$2:$BE$1403,$AK5,FALSE),0) -> 0 | AN5: =IFERROR(VLOOKUP(CONCATENATE($AM$1,$AM$2),INDIC!$B$2:$BE$1403,$AK5+1,FALSE),0) -> 0 | AO5: =+AN5/AM5 ->  | AP5: =IFERROR(AO5*PI(),"") ->  | AQ5: CUANDO MENOS ES MAS SE DIVIDE META/REAL | BF5: 4 | BG5: ABRIL
AE6: 0.4 | AH6: 1 | AJ6: =+VLOOKUP(J16,AL5:AP24,5,FALSE) ->  | AK6: 6 | AL6: TTIK GLOBAL | AM6: =IFERROR(VLOOKUP(CONCATENATE($AM$1,$AM$2),INDIC!$B$2:$BE$1403,$AK6,FALSE),0) -> 0 | AN6: =IFERROR(VLOOKUP(CONCATENATE($AM$1,$AM$2),INDIC!$B$2:$BE$1403,$AK6+1,FALSE),0) -> 0 | AO6: =+AN6/AM6 ->  | AP6: =IFERROR(AO6*PI(),"") ->  | BF6: 5 | BG6: MAYO
A7: MANTENIMIENTO POR ACTIVIDAD | AE7: 0.5 | AH7: 1 | AK7: 8 | AL7: FMIK CABECERA | AM7: =IFERROR(VLOOKUP(CONCATENATE($AM$1,$AM$2),INDIC!$B$2:$BE$1403,$AK7,FALSE),0) -> 0 | AN7: =IFERROR(VLOOKUP(CONCATENATE($AM$1,$AM$2),INDIC!$B$2:$BE$1403,$AK7+1,FALSE),0) -> 0 | BF7: 6 | BG7: JUNIO
AE8: 0.6 | AF8: =SUM(AF9:AF655)-1 -> 2 | AG8: =IF(H21="ZONA",CONCATENATE("EN EL PERIODO Y ACTIVIDADES SEÑALADAS SE HA TRABAJADO EN ",AF8," ZONAS"),CONCATENATE("EN EL PERIODO SEÑALADO SE HA REALIZADO ",AF8," ACTIVIDADES")) -> EN EL PERIODO SEÑALADO SE HA REALIZADO 2 ACTIVIDADES | AH8: 1 | AK8: 10 | AL8: TTIK CABECERA | AM8: =IFERROR(VLOOKUP(CONCATENATE($AM$1,$AM$2),INDIC!$B$2:$BE$1403,$AK8,FALSE),0) -> 0 | AN8: =IFERROR(VLOOKUP(CONCATENATE($AM$1,$AM$2),INDIC!$B$2:$BE$1403,$AK8+1,FALSE),0) -> 0 | BF8: 7 | BG8: JULIO
AE9: 0.7 | AF9: =+IF(H22>0,1,0) -> 1 | AH9: 1 | AK9: 12 | AL9: ITMARM | AM9: =IFERROR(VLOOKUP(CONCATENATE($AM$1,$AM$2),INDIC!$B$2:$BE$1403,$AK9,FALSE),0) -> 0 | AN9: =IFERROR(VLOOKUP(CONCATENATE($AM$1,$AM$2),INDIC!$B$2:$BE$1403,$AK9+1,FALSE),0) -> 0 | BF9: 8 | BG9: AGOSTO
AE10: 0.8 | AF10: 1 | AH10: 1 | AK10: 22 | AL10: IRCAZ1 | AM10: =IFERROR(VLOOKUP(CONCATENATE($AM$1,$AM$2),INDIC!$B$2:$BE$1403,$AK10,FALSE),0) -> 0 | AN10: =IFERROR(VLOOKUP(CONCATENATE($AM$1,$AM$2),INDIC!$B$2:$BE$1403,$AK10+1,FALSE),0) -> 0 | BF10: 9 | BG10: SEPTIEMBRE
AE11: 0.9 | AF11: 1 | AH11: 1 | AK11: 24 | AL11: IRCAZ2 | AM11: =IFERROR(VLOOKUP(CONCATENATE($AM$1,$AM$2),INDIC!$B$2:$BE$1403,$AK11,FALSE),0) -> 0 | AN11: =IFERROR(VLOOKUP(CONCATENATE($AM$1,$AM$2),INDIC!$B$2:$BE$1403,$AK11+1,FALSE),0) -> 0 | BF11: 10 | BG11: OCTUBRE
AE12: 1 | AF12: 0 | AH12: 1 | AK12: =+AK11+2 -> 26 | AL12: IRCAZ3 | AM12: =IFERROR(VLOOKUP(CONCATENATE($AM$1,$AM$2),INDIC!$B$2:$BE$1403,$AK12,FALSE),0) -> 0 | AN12: =IFERROR(VLOOKUP(CONCATENATE($AM$1,$AM$2),INDIC!$B$2:$BE$1403,$AK12+1,FALSE),0) -> 0 | BF12: 11 | BG12: NOVIEMBRE
AE13: 1.1 | AF13: 0 | AH13: 10 | AK13: 29 | AL13: ICVAZ1 | AM13: =IFERROR(VLOOKUP(CONCATENATE($AM$1,$AM$2),INDIC!$B$2:$BE$1403,$AK13,FALSE),0) -> 0 | AN13: =IFERROR(VLOOKUP(CONCATENATE($AM$1,$AM$2),INDIC!$B$2:$BE$1403,$AK13+1,FALSE),0) -> 0 | BF13: 12 | BG13: DICIEMBRE
Q14: Indicador >> | R14: Arboles a Plantar | AE14: puntos | AF14: 0 | AH14: x | AI14: y | AK14: =+AK13+2 -> 31 | AL14: ICVAZ2 | AM14: =IFERROR(VLOOKUP(CONCATENATE($AM$1,$AM$2),INDIC!$B$2:$BE$1403,$AK14,FALSE),0) -> 0 | AN14: =IFERROR(VLOOKUP(CONCATENATE($AM$1,$AM$2),INDIC!$B$2:$BE$1403,$AK14+1,FALSE),0) -> 0
AE15: inicio | AF15: 0 | AH15: 0 | AI15: 0 | AK15: 33 | AL15: ICVAZ3 | AM15: =IFERROR(VLOOKUP(CONCATENATE($AM$1,$AM$2),INDIC!$B$2:$BE$1403,$AK15,FALSE),0) -> 0 | AN15: =IFERROR(VLOOKUP(CONCATENATE($AM$1,$AM$2),INDIC!$B$2:$BE$1403,$AK15+1,FALSE),0) -> 0
Q16: Año | R16: Arboles | AE16: fin | AF16: 0 | AH16: =+COS(AJ4)*-1 ->  | AI16: =+SIN(AJ4) ->  | AK16: 36 | AL16: SIGADE IAC | AM16: =IFERROR(VLOOKUP(CONCATENATE($AM$1,$AM$2),INDIC!$B$2:$BE$1403,$AK16,FALSE),0) -> 0 | AN16: =IFERROR(VLOOKUP(CONCATENATE($AM$1,$AM$2),INDIC!$B$2:$BE$1403,$AK16+2,FALSE),0) -> 0
Q17: 2016 | R17: 41.7 | AF17: 0 | AK17: 39 | AL17: SUBSE IFL | AM17: =IFERROR(VLOOKUP(CONCATENATE($AM$1,$AM$2),INDIC!$B$2:$BE$1403,$AK17,FALSE),0) -> 0 | AN17: =IFERROR(VLOOKUP(CONCATENATE($AM$1,$AM$2),INDIC!$B$2:$BE$1403,$AK17+2,FALSE),0) -> 0
H18: Año | I18: (Varios elementos) | Q18: 2017 | R18: 39 | AF18: 0 | AK18: 42 | AL18: TASA DE FALLAS 0,02% | AM18: =IFERROR(VLOOKUP(CONCATENATE($AM$1,$AM$2),INDIC!$B$2:$BE$1403,$AK18,FALSE),0) -> 0 | AN18: =IFERROR(VLOOKUP(CONCATENATE($AM$1,$AM$2),INDIC!$B$2:$BE$1403,$AK18+1,FALSE),0) -> 0
H19: Mes | I19: (Varios elementos) | Q19: Total general | R19: 80.7 | AF19: 0 | AK19: 44 | AL19: REP. SERV. URBANO 24 horas | AM19: =IFERROR(VLOOKUP(CONCATENATE($AM$1,$AM$2),INDIC!$B$2:$BE$1403,$AK19,FALSE),0) -> 0 | AN19: =IFERROR(VLOOKUP(CONCATENATE($AM$1,$AM$2),INDIC!$B$2:$BE$1403,$AK19+1,FALSE),0) -> 0
H20: MANTENIMIENTO POR ACTIVIDAD | AF20: 0 | AK20: 46 | AL20: REP. SERV. RURAL 72 HORAS | AM20: =IFERROR(VLOOKUP(CONCATENATE($AM$1,$AM$2),INDIC!$B$2:$BE$1403,$AK20,FALSE),0) -> 0 | AN20: =IFERROR(VLOOKUP(CONCATENATE($AM$1,$AM$2),INDIC!$B$2:$BE$1403,$AK20+1,FALSE),0) -> 0
H21: Actividad | I21: Frecuencia | J21: Costo. | AF21: 0 | AP21: 0
H22: F-01 | I22: 523 | J22: 62408.2275 | AF22: 0 | AP22: 0
H23: F-02 | I23: 15 | J23: 1609.61 | AF23: 0 | AP23: 0
H24: Total general | I24: 538 | J24: 64017.8375 | AF24: 0 | AP24: 0
AF25: 0 | AP25: 0
AF26: 0 | AP26: 0
AF27: 0 | AP27: 0
AF28: 0 | AP28: 0
AF29: =+IF(F29>0,1,0) -> 0 | AP29: 0
AF30: 0 | AP30: 0
AF31: 0 | AP31: 0
AF32: 0 | AP32: 0
AF33: 0 | AP33: 0
AF34: 0 | AP34: 0
AF35: 0 | AP35: 0
AF36: 0 | AP36: 0
AF40: 0
AF41: 0
AF42: 0
AF43: 0
AF44: 0
AF45: 0
AF46: 0
AF47: 0
AF48: 0
AF49: 0
AF50: 0
AF51: 0
AF52: 0
AF53: 0
AF54: 0
AF55: 0
AF56: 0
AF57: 0
AF58: 0
AF59: 0
AF60: 0
AF61: =+IF(F61>0,1,0) -> 0
AF62: 0
AF63: 0
AF64: 0
AF65: 0
AF66: 0
AF67: 0
AF68: 0
AF69: 0
AF70: 0
AF71: 0
AF72: 0
AF73: 0
AF74: 0
AF75: 0
AF76: 0
AF77: 0
AF78: 0
AF79: 0
AF80: 0
AF81: 0
AF82: 0
AF83: 0
AF84: 0
AF85: 0
AF86: 0
AF87: 0
AF88: 0
AF89: 0
AF90: 0
AF91: 0
AF92: 0
AF93: 0
AF94: 0
AF95: 0
AF96: 0
AF97: 0
AF98: 0
AF99: 0
AF100: 0
AF101: 0
AF102: 0
AF103: 0
AF104: 0
AF105: 0
AF106: 0
AF107: 0
AF108: 0
AF109: 0
AF110: 0
AF111: 0
AF112: 0
AF113: 0
AF114: 0
AF115: 0
AF116: 0
AF117: 0
AF118: 0
AF119: 0
AF120: 0
AF121: 0
AF122: 0
AF123: 0
AF124: 0
AF125: =+IF(F125>0,1,0) -> 0
AF126: 0
AF127: 0
AF128: 0
AF129: 0
AF130: 0
AF131: 0
AF132: 0
AF133: 0
AF134: 0
AF135: 0
AF136: 0
AF137: 0
AF138: 0
AF139: 0
AF140: 0
AF141: 0
AF142: 0
AF143: 0
AF144: 0
AF145: 0
AF146: 0
AF147: 0
AF148: 0
AF149: 0
AF150: 0
AF151: 0
AF152: 0
AF153: 0
AF154: 0
AF155: 0
AF156: 0
AF157: 0
AF158: 0
AF159: 0
AF160: 0
AF161: 0
AF162: 0
AF163: 0
AF164: 0
AF165: 0
AF166: 0
AF167: 0
AF168: 0
AF169: 0
AF170: 0
AF171: 0
AF172: 0
AF173: 0
AF174: 0
AF175: 0
AF176: 0
AF177: 0
AF178: 0
AF179: 0
AF180: 0
AF181: 0
AF182: 0
AF183: 0
AF184: 0
AF185: 0
AF186: 0
AF187: 0
AF188: 0
AF189: =+IF(F189>0,1,0) -> 0
AF190: 0
AF191: 0
AF192: 0
AF193: 0
AF194: 0
AF195: 0
AF196: 0
AF197: 0
AF198: 0
AF199: 0
AF200: 0
AF201: 0
AF202: 0
AF203: 0
... 452 more rows

Sheet INDIC
C1: Año | D1: Meses | E1: FMIK REAL | F1: meta FMIK | G1: TTIK REAL | H1: meta TTIK | I1: FMIK REAL | J1: meta FMIK cabecera | K1: TTIK REAL | L1: TTIK META | M1: ITMARM REAL | N1: ITMARM META | O1: REAL (PIZ1) | P1: REAL (PIZ2) | Q1: REAL (PIZ3) | R1: REAL (PISIGADE) | S1: REAL (PISUP) | T1: REAL (PISUBSE) | U1: REAL (PIDOC) | V1: REAL (PIALUM) | W1: REAL IRCAZ1 | X1: Meta IRCAZ1 | Y1: REAL IRCAZ2 | Z1: meta IRCAZ2 | AA1: REAL IRCAZ3 | AB1: Meta IRCAZ3 | AC1: TOTAL | AD1: REAL ICVAZ1 | AE1: meta ICVAZ1 | AF1: REAL ICVAZ2 | AG1: meta ICVAZ2 | AH1: REAL ICVAZ3 | AI1: meta ICVAZ3 | AJ1: TOTAL | AK1: IAC REAL | AL1: IAC meta | AM1: IFL REAL | AN1: IFL meta | AO1: TASA DE FALLAS 0,02 | AP1: TASA DE FALLAS meta 0,02 | AQ1: REP. SERV. URBANO 24H | AR1: REP. SERV. URBANO 24H meta | AS1: REP. SERV. RURAL 72H | AT1: REP. SERV. RURAL 72H meta | AU1: FMIK REAL | AV1: meta FMIK | AW1: TTIK REAL | AX1: meta TTIK | AY1: Pérdidas Real | AZ1: Pérdidas Meta
A2: 2 | C2: 2012 | D2: JULIO | E2: 7.58 | G2: 14.92 | I2: 4.35 | K2: 4.98 | M2: 26.99 | O2: 42.27 | P2: 48.42 | Q2: 54.96 | R2: 0 | S2: 33.35 | T2: 40.68 | U2: 55.29 | W2: 0.065 | Y2: 0.041 | AA2: 0.034 | AC2: 0.047 | AD2: 234155 | AF2: 169665 | AH2: 115828 | AJ2: 519648 | AK2: 5.11 | AM2: 4.27
A3: =+A2+1 -> 3 | C3: 2012 | D3: AGOSTO | E3: 7.2 | G3: 14.51 | I3: 3.97 | K3: 4.3 | M3: 30.32 | O3: 47.79 | P3: 47.84 | Q3: 53.98 | R3: 0 | S3: 26.76 | T3: 22.6 | U3: 55.86 | W3: 0.062 | Y3: 0.039 | AA3: 0.032 | AC3: 0.045 | AD3: 238635 | AF3: 175979 | AH3: 113788 | AJ3: 528402 | AK3: 5.03 | AM3: 4.27
A4: =+A3+1 -> 4 | C4: 2012 | D4: SEPTIEMBRE | E4: 7.44 | G4: 15.04 | I4: 4.08 | K4: 4.36 | M4: 34.57 | O4: 61.59 | P4: 59.22 | Q4: 61.96 | R4: 0 | S4: 24.84 | T4: 23.55 | U4: 59 | W4: 0.057 | Y4: 0.053 | AA4: 0.034 | AC4: 0.049 | AD4: 242207 | AF4: 190948 | AH4: 118494 | AJ4: 551648 | AK4: 4.86 | AM4: 5.36
A5: 5 | C5: 2012 | D5: OCTUBRE | E5: 7.43 | G5: 15.18 | I5: 4.15 | K5: 4.44 | M5: 38.76 | O5: 67.42 | P5: 49.93 | Q5: 54.71 | R5: 0 | S5: 34.51 | T5: 30.64 | U5: 60.75 | V5: 38.69 | W5: 0.054 | Y5: 0.077 | AA5: 0.038 | AC5: 0.059 | AD5: 237908 | AF5: 186041 | AH5: 118556 | AJ5: 542504 | AK5: 4.83 | AM5: 5.9
A6: 6 | C6: 2012 | D6: NOVIEMBRE | E6: 7.35 | G6: 15.13 | I6: 4.17 | K6: 4.76 | M6: 42.4 | O6: 70.64 | P6: 59.3 | Q6: 70.45 | R6: 100 | S6: 49.87 | T6: 38.32 | U6: 63.38 | V6: 42.94 | W6: 0.051 | Y6: 0.084 | AA6: 0.039 | AC6: 0.059 | AD6: 246053 | AF6: 188539 | AH6: 113379 | AJ6: 547971 | AK6: 4.84 | AM6: 6.99
A7: 7 | C7: 2012 | D7: DICIEMBRE | E7: 7.42 | G7: 15.05 | I7: 4.31 | K7: 4.88 | M7: 45.51 | O7: 76.76 | P7: 68.08 | Q7: 75.14 | R7: 100 | S7: 73.65 | T7: 43.44 | U7: 64.12 | V7: 46.54 | W7: 0.048 | Y7: 0.081 | AA7: 0.044 | AC7: 0.061 | AD7: 257894 | AF7: 202645 | AH7: 123614 | AJ7: 584152 | AK7: 4.78 | AM7: 6.99
A8: 8 | C8: 2013 | D8: ENERO | E8: 7.42 | G8: 14.4 | I8: 4.42 | K8: 4.81 | M8: 3.26 | O8: 10.61 | P8: 23.26 | Q8: 12.62 | R8: 0 | S8: 3.91 | T8: 16.87 | U8: 3.37 | V8: 35.18 | W8: 0.039 | Y8: 0.089 | AA8: 0.041 | AC8: 0.061 | AD8: 261835 | AF8: 221693 | AH8: 123775 | AJ8: 607304 | AK8: 4.69 | AM8: 0.499
A9: 9 | C9: 2013 | D9: FEBRERO | E9: 7.09 | G9: 13.62 | I9: 4.22 | K9: 4.68 | M9: 6.37 | O9: 5.92 | P9: 24.59 | Q9: 15.77 | R9: 0 | S9: 4.95 | T9: 22.35 | U9: 5.37 | V9: 42.92 | W9: 0.029 | Y9: 0.085 | AA9: 0.034 | AC9: 0.053 | AD9: 255820 | AF9: 222784 | AH9: 121386 | AJ9: 599990 | AK9: 4.52 | AM9: =+AM8+0.499 -> 0.998
A10: 10 | C10: 2013 | D10: MARZO | E10: 6.81 | G10: 12.01 | I10: 3.97 | K10: 3.15 | M10: 8.97 | O10: 5.97 | P10: 37.19 | Q10: 21.18 | R10: 0 | S10: 6.18 | T10: 26.8 | U10: 6.94 | V10: 47.96 | W10: 0.035 | Y10: 0.068 | AA10: 0.048 | AC10: 0.052 | AD10: 240964 | AF10: 199465 | AH10: 118504 | AJ10: 558932 | AK10: 4.42 | AM10: 2
A11: 11 | C11: 2013 | D11: ABRIL | E11: 6.53 | G11: 10.84 | I11: 3.86 | K11: 2.97 | M11: 11.49 | O11: 9.01 | P11: 40.48 | Q11: 23.14 | R11: 0 | S11: 6.71 | T11: 37.31 | U11: 8.54 | V11: 52.54 | W11: 0.033 | Y11: 0.057 | AA11: 0.045 | AC11: 0.045 | AD11: 228683 | AF11: 169610 | AH11: 119453 | AJ11: 517746 | AK11: 4.21 | AM11: 2.43
A12: 12 | C12: 2013 | D12: MAYO | E12: 6.56 | G12: 11.16 | I12: 3.88 | K12: 3.09 | M12: 14.09 | O12: 12.3 | P12: 50.7 | Q12: 34 | R12: 0 | S12: 9.71 | T12: 43.58 | U12: 10.7 | V12: 68.16 | W12: 0.035 | Y12: 0.051 | AA12: 0.038 | AC12: 0.042 | AD12: 223339 | AF12: 162706 | AH12: 122016 | AJ12: 508062 | AK12: 4.03 | AM12: 4.58
A13: 13 | C13: 2013 | D13: JUNIO | E13: 6.24 | G13: 10.91 | I13: 3.67 | K13: 3 | M13: 16.51666667 | O13: 14.87 | P13: 53.65 | Q13: 38.44 | R13: 100 | S13: 12.16 | T13: 43.01 | U13: 16.39 | V13: 72.64 | W13: 0.032 | Y13: 0.049 | AA13: 0.038 | AC13: 0.042 | AD13: 223283 | AF13: 162851 | AH13: 120923 | AJ13: 507057 | AK13: 3.83 | AM13: 5.02
A14: 14 | C14: 2013 | D14: JULIO | E14: 5.94 | G14: 10.57 | I14: 3.38 | K14: 2.63 | M14: 19.34 | O14: 18.4 | P14: 61.85 | Q14: 48.69 | R14: 100 | S14: 13.6 | T14: 46.92 | U14: 18.75 | V14: 76.33 | W14: 0.031 | Y14: 0.045 | AA14: 0.039 | AC14: 0.039 | AD14: 219166 | AF14: 144471 | AH14: 124099 | AJ14: 487736 | AK14: 3.64 | AM14: 5.45
A15: 15 | C15: 2013 | D15: AGOSTO | E15: 5.78 | G15: 9.9 | I15: 3.37 | K15: 2.6 | M15: 22.16 | O15: 26.15 | P15: 45.82 | Q15: 37.77 | R15: 100 | S15: 19.76 | T15: 64.33 | U15: 21.68 | V15: 57.77 | W15: 0.027 | Y15: 0.042 | AA15: 0.042 | AC15: 0.037 | AD15: 220144 | AF15: 145124 | AH15: 124435 | AJ15: 489703 | AK15: 3.44 | AM15: =0.431+AM14 -> 5.881
A16: 16 | C16: 2013 | D16: SEPTIEMBRE | E16: 5.54 | G16: 8.96 | I16: 3.36 | K16: 2.52 | M16: 25.55 | O16: 27.99 | P16: 51.88 | Q16: 36.96 | R16: 100 | S16: 25.65 | T16: 66.23 | U16: 23.07 | V16: 54.67 | W16: 0.027 | Y16: 0.048 | AA16: 0.041 | AC16: 0.04 | AD16: 220814 | AF16: 149107 | AH16: 133846 | AJ16: 503767 | AK16: 3.31 | AM16: =+AM15+0 -> 5.881
A17: 17 | C17: 2013 | D17: OCTUBRE | E17: 5.63 | G17: 8.75 | I17: 3.41 | K17: 2.54 | M17: 29.06 | O17: 33.32 | P17: 60.41 | Q17: 39.48 | R17: 100 | S17: 31.54 | T17: 66.34 | U17: 27.52 | V17: 55.04 | W17: 0.028 | Y17: 0.053 | AA17: 0.042 | AC17: 0.042 | AD17: 218801 | AF17: 138761 | AH17: 136745 | AJ17: 494307 | AK17: 2.89 | AM17: 6.11
A18: 18 | C18: 2013 | D18: NOVIEMBRE | E18: 5.67 | G18: 8.57 | I18: 3.37 | K18: 2.28 | M18: 31.73 | O18: 38.2 | P18: 69.7 | Q18: 44.79 | R18: 100 | S18: 36.73 | T18: 68.11 | U18: 31.55 | V18: 57.33 | W18: 0.029 | Y18: 0.052 | AA18: 0.042 | AC18: 0.042 | AD18: 219018 | AF18: 147708 | AH18: 142331 | AJ18: 512469 | AK18: 2.87 | AM18: 6.83
A19: 19 | C19: 2013 | D19: DICIEMBRE | E19: 5.3 | G19: 8.14 | I19: 3.05 | K19: 1.99 | M19: 34.26 | O19: 51.9 | P19: 75.83 | Q19: 48.34 | R19: 100 | S19: 54.12 | T19: 70.8 | U19: 35.86 | V19: 59 | W19: 0.029 | Y19: 0.049 | AA19: 0.042 | AC19: 0.042 | AD19: 219018 | AF19: 147708 | AH19: 142331 | AJ19: 509056 | AK19: 2.86 | AM19: 6.83 | AQ19: 24 | AS19: 48
A20: 20 | C20: 2014 | D20: ENERO | E20: 5.07 | G20: 8.29 | I20: 3.15 | K20: 2.14 | M20: 3.19 | O20: 19.36 | P20: 47.31 | Q20: 8.3 | R20: 100 | S20: 11.98 | T20: 17.6 | U20: 2.35 | V20: 0.08 | W20: 0.028 | Y20: 0.044 | AA20: 0.078 | AC20: 0.048 | AD20: 223007 | AF20: 144961 | AH20: 151381 | AJ20: 519349 | AK20: 2.78 | AM20: 0.65 | AO20: 0.02 | AQ20: 24 | AS20: 48
A21: 21 | C21: 2014 | D21: FEBRERO | E21: 5.62 | G21: 8.76 | I21: 3.3 | K21: 2.36 | M21: 5.64 | O21: 32.43 | P21: 50.83 | Q21: 8.88 | R21: 30.71 | S21: 11.98 | T21: 17.6 | U21: 3.91 | V21: 22.97 | W21: 0.034 | Y21: 0.039 | AA21: 0.078 | AC21: 0.045 | AD21: 220863 | AF21: 147327 | AH21: 153227 | AJ21: 521417 | AK21: 2.65 | AM21: 1 | AO21: 0.01077 | AQ21: 18.29 | AS21: 32.75
A22: 22 | C22: 2014 | D22: MARZO | E22: 6.03 | G22: 8.92 | I22: 3.63 | K22: 2.57 | M22: 8.54 | O22: 40.51 | P22: 54.67 | Q22: 15.69 | R22: 100 | S22: 11.98 | T22: 17.71 | U22: 8.6 | V22: 30.32 | W22: 0.033 | Y22: 0.085 | AA22: 0.063 | AC22: 0.062 | AD22: 221427 | AF22: 152934 | AH22: 139527 | AJ22: 513889 | AK22: 2.57 | AM22: 1.7 | AO22: 0.01393 | AQ22: 22.52 | AS22: 33.68
A23: 23 | C23: 2014 | D23: ABRIL | E23: 6.34 | G23: 9.14 | I23: 3.82 | K23: 2.74 | M23: 11.08 | O23: 42.94 | P23: 69.77 | Q23: 22.25 | R23: 30.71 | S23: 11.98 | T23: 22.52 | U23: 9.81 | V23: 31.4 | W23: 0.036 | Y23: 0.09 | AA23: 0.051 | AC23: 0.062 | AD23: 221712 | AF23: 140867 | AH23: 138972 | AJ23: 501550 | AK23: 2.51 | AM23: 2.2 | AO23: 0.01622 | AQ23: 25.16 | AS23: 16.58
A24: 24 | C24: 2014 | D24: MAYO | E24: 6.57 | G24: 9.04 | I24: 3.9 | K24: 2.67 | M24: 14.16 | O24: 47.79 | P24: 67.71 | Q24: 24.96 | R24: 45 | S24: 11.98 | T24: 35.06 | U24: 12.49 | V24: 32.84 | W24: 0.041 | Y24: 0.08 | AA24: 0.043 | AC24: 0.057 | AD24: 220456 | AF24: 145323 | AH24: 139024 | AJ24: 504803 | AK24: 2.21 | AM24: 2.73 | AO24: 0.01691 | AQ24: 18.74 | AS24: 16.09
A25: 25 | B25: =+CONCATENATE(C25,D25) -> 2014JUNIO | C25: 2014 | D25: JUNIO | E25: 6.81 | G25: 9.16 | I25: 4.06 | K25: 2.91 | M25: 16.56 | O25: 39.9 | P25: 50.02 | Q25: 21.47 | R25: 45 | S25: 11.98 | T25: 34.31 | U25: 14 | V25: 49.8 | W25: 0.046 | Y25: 0.076 | AA25: 0.038 | AC25: 0.057 | AD25: 225705 | AF25: 137628 | AH25: 136720 | AJ25: 500053 | AK25: 2.21 | AM25: 3.14 | AO25: 0.01022 | AQ25: 12.38 | AS25: 12.42
A26: 26 | B26: =+CONCATENATE(C26,D26) -> 2014JULIO | C26: 2014 | D26: JULIO | E26: 6.75 | G26: 8.8 | I26: 3.97 | K26: 2.79 | M26: 19.62 | O26: 45.65 | P26: 56.11 | Q26: 22.49 | R26: 45 | S26: 11.98 | T26: 34.31 | U26: 16.75 | V26: 57.23 | W26: 0.046 | Y26: 0.069 | AA26: 0.034 | AC26: 0.057 | AD26: 231086 | AF26: 142180 | AH26: 145707 | AJ26: 518972 | AK26: 2.19 | AM26: 3.64 | AO26: 0.01603 | AQ26: 11.46 | AS26: 22.94
A27: 27 | B27: 2014AGOSTO | C27: 2014 | D27: AGOSTO | E27: 6.7 | G27: 8.65 | I27: 3.95 | K27: 2.77 | M27: 22.15 | O27: 47.55 | P27: 56.37 | Q27: 22.45 | R27: 45 | S27: 21.92 | T27: 34.31 | U27: 19.42 | V27: 62.64 | W27: 0.044 | Y27: 0.065 | AA27: 0.031 | AC27: 0.049 | AD27: 232651 | AF27: 141817 | AH27: 150056 | AJ27: 524524 | AK27: 2.04 | AM27: 4.17 | AO27: 0.00834 | AQ27: 17.1 | AS27: 15.23
A28: 28 | B28: 2014SEPTIEMBRE | C28: 2014 | D28: SEPTIEMBRE | E28: 6.78 | G28: 9.16 | I28: 3.83 | K28: 2.77 | M28: 25.19166667 | O28: 30 | P28: 17 | Q28: 20 | R28: 45 | S28: 21.92 | T28: 32.5 | U28: 28 | V28: 70 | W28: 0.042 | Y28: 0.062 | AA28: 0.032 | AC28: 0.048 | AD28: 219433 | AF28: 146992 | AH28: 149164 | AJ28: 515590 | AK28: 2.04 | AM28: 4.64 | AO28: 0.01011 | AQ28: 17.95 | AS28: 15.25
A29: 29 | B29: 2014OCTUBRE | C29: 2014 | D29: OCTUBRE | E29: 6.61 | G29: 9.04 | I29: 3.57 | K29: 2.56 | M29: 27.8 | O29: 36.39 | P29: 30.1 | Q29: 22.32 | R29: 45 | S29: 21.92 | T29: 32.72 | U29: 26.56 | V29: 73.5 | W29: 0.044 | Y29: 0.058 | AA29: 0.04 | AC29: 0.049 | AD29: 217336 | AF29: 147874 | AH29: 156400 | AJ29: 521609 | AK29: 2.01 | AM29: 5.17 | AO29: 0.01249 | AQ29: 10.7 | AS29: 15.88
A30: 30 | B30: 2014NOVIEMBRE | C30: 2014 | D30: NOVIEMBRE | E30: 6.89 | G30: 9.29 | I30: 3.81 | K30: 2.66 | M30: 30.89166667 | O30: 36.3 | P30: 29.47 | Q30: 23.89 | R30: 45 | S30: 21.92 | T30: 36.18 | U30: 30.52 | V30: 73.24 | W30: 0.042 | Y30: 0.054 | AA30: 0.038 | AC30: 0.046 | AD30: 222719 | AF30: 144841 | AH30: 169405 | AJ30: 536965 | AK30: 2.01 | AM30: 5.74 | AO30: 0.01146 | AQ30: 13.17 | AS30: 10.86
A31: 31 | B31: 2014DICIEMBRE | C31: 2014 | D31: DICIEMBRE | E31: 7.43 | G31: 9.84 | I31: 3.66 | K31: 3.02 | M31: 33.375 | O31: 37.51 | P31: 32.38 | Q31: 25.63 | R31: 45 | S31: 21.92 | T31: 39.41 | U31: 36.31 | V31: 76.88 | W31: 0.039 | Y31: 0.051 | AA31: 0.037 | AC31: 0.043 | AD31: 221124 | AF31: 148323 | AH31: 154519 | AJ31: 523965 | AK31: 2.01 | AM31: 5.74 | AO31: 0.01118 | AQ31: 11.9 | AS31: 12.05
A32: 32 | B32: 2015ENERO | C32: 2015 | D32: ENERO | E32: 7.88 | F32: 6.99 | G32: 10.68 | H32: 8.85 | I32: 4.45 | J32: 4.17 | K32: 3.54 | L32: 5.22 | M32: 2.891666667 | N32: 2.67 | O32: 42.68 | P32: 37.75 | Q32: 27.5 | R32: 45 | S32: 51.57 | T32: 41.2 | U32: 36.9 | V32: 78.01 | W32: 0.018 | X32: 0.1 | Y32: 0.02 | Z32: 0.1 | AA32: 0.073 | AB32: 0.1 | AC32: 0.034 | AD32: 216465 | AE32: 241485 | AF32: 133572 | AG32: 146896 | AH32: 156620 | AI32: 134079 | AJ32: 506657 | AK32: 1.98 | AL32: 2.44 | AM32: 0.63 | AN32: 4.91 | AO32: 0.01315 | AP32: 2 | AQ32: 17.65 | AR32: 24 | AS32: 19.75 | AT32: 48
A33: 33 | B33: 2015FEBRERO | C33: 2015 | D33: FEBRERO | E33: 8.04 | F33: 6.99 | G33: 10.67 | H33: 8.85 | I33: 4.45 | J33: 4.17 | K33: 3.4 | L33: 5.22 | M33: 5.966666667 | N33: 5.34 | O33: 45.02 | P33: 45.02 | Q33: 38.76 | R33: 45 | S33: 51.57 | T33: 43.17 | U33: 39.97 | V33: 78.83 | W33: 0.031 | X33: 0.1 | Y33: 0.023 | Z33: 0.1 | AA33: 0.078 | AB33: 0.1 | AC33: 0.04 | AD33: 215962 | AE33: 241485 | AF33: 140468 | AG33: 146896 | AH33: 169935 | AI33: 134079 | AJ33: 526365 | AK33: 1.92 | AL33: 2.44 | AM33: 0.96 | AN33: 4.91 | AO33: 0.0111 | AP33: 2 | AQ33: 10.55 | AR33: 24 | AS33: 17.68 | AT33: 48
A34: 34 | B34: 2015MARZO | C34: 2015 | D34: MARZO | E34: 7.77 | F34: 6.99 | G34: 10.47 | H34: 8.85 | I34: 4.19 | J34: 4.17 | K34: 3.27 | L34: 5.22 | M34: 8.591666667 | N34: 8.01 | O34: 23.49 | P34: 30.66 | Q34: 21.32 | R34: 45 | S34: 43.82 | T34: 41.5 | U34: 26.81 | V34: 4.68 | W34: 0.027 | X34: 0.1 | Y34: 0.041 | Z34: 0.1 | AA34: 0.07 | AB34: 0.1 | AC34: 0.044 | AD34: 216365 | AE34: 241485 | AF34: 135268 | AG34: 146896 | AH34: 150503 | AI34: 134079 | AJ34: 502137 | AK34: 1.92 | AL34: 2.44 | AM34: 1.64 | AN34: 4.91 | AO34: 0.013332 | AP34: 2 | AQ34: 16.3 | AR34: 24 | AS34: 13.59 | AT34: 48
A35: 35 | B35: 2015ABRIL | C35: 2015 | D35: ABRIL | E35: 8.01 | F35: 6.99 | G35: 10.79 | H35: 8.85 | I35: 4.07 | J35: 4.17 | K35: 3.12 | L35: 5.22 | M35: 11.44 | N35: 10.68 | O35: 29.04 | P35: 36.05 | Q35: 27.46 | R35: 45 | S35: 43.82 | T35: 42.18 | U35: 27.65 | V35: 9.02 | W35: 0.023 | X35: 0.1 | Y35: 0.04 | Z35: 0.1 | AA35: 0.057 | AB35: 0.1 | AC35: 0.04 | AD35: 222238 | AE35: 241485 | AF35: 134887 | AG35: 146896 | AH35: 151395 | AI35: 134079 | AJ35: 510995 | AK35: 3.16 | AL35: 2.44 | AM35: 2.19 | AN35: 4.91 | AO35: 0.01011 | AP35: 2 | AQ35: 17.86 | AR35: 24 | AS35: 20.01 | AT35: 48
A36: 36 | B36: 2015MAYO | C36: 2015 | D36: MAYO | E36: 7.73 | F36: 6.99 | G36: 10.7 | H36: 8.85 | I36: 3.76 | J36: 4.17 | K36: 2.88 | L36: 5.22 | M36: 13.96666667 | N36: 13.35 | O36: 34.97 | P36: 51.33 | Q36: 44.04088084 | R36: 45 | S36: 43.82 | T36: 46.46 | U36: 28.58 | V36: 10.79 | W36: 0.02 | X36: 0.1 | Y36: 0.042 | Z36: 0.1 | AA36: 0.049 | AB36: 0.1 | AC36: 0.037 | AD36: 229424 | AE36: 241485 | AF36: 146739 | AG36: 146896 | AH36: 153933 | AI36: 134079 | AJ36: 530096 | AK36: 3.09 | AL36: 2.44 | AM36: 2.69 | AN36: 4.91 | AO36: 0.01271 | AP36: 2 | AQ36: 13.31 | AR36: 24 | AS36: 26.24 | AT36: 48
A37: 37 | B37: 2015JUNIO | C37: 2015 | D37: JUNIO | E37: 7.8 | F37: 6.99 | G37: 11.17 | H37: 8.85 | I37: 3.71 | J37: 4.17 | K37: 2.78 | L37: 5.22 | M37: 16.43333333 | N37: 18.69 | O37: 41.8 | P37: 55.86 | Q37: 47.19 | R37: 45 | S37: 43.82 | T37: 47.28 | U37: 31.81 | V37: 12.96 | W37: 0.017 | X37: 0.1 | Y37: 0.041 | Z37: 0.1 | AA37: 0.046 | AB37: 0.1 | AC37: 0.037 | AD37: 233218 | AE37: 241485 | AF37: 154166 | AG37: 146896 | AH37: 153063 | AI37: 134079 | AJ37: 540447 | AK37: 2.92 | AL37: 2.44 | AM37: 3.07 | AN37: 4.91 | AO37: 0.00983 | AP37: 2 | AQ37: 13.44 | AR37: 24 | AS37: 13.7 | AT37: 48
A38: =+A37+1 -> 38 | B38: 2015JULIO | C38: 2015 | D38: JULIO | E38: 8.12 | F38: 6.99 | G38: 11.71 | H38: 8.85 | I38: 3.91 | J38: 4.17 | K38: 3.03 | L38: 5.22 | M38: 18.96 | N38: 27.51083333 | O38: 55.44 | P38: 60.97 | Q38: 57.43 | R38: 45 | S38: 32.49 | T38: 50.44 | U38: 26.48 | V38: 14.79 | W38: 0.016 | X38: 0.1 | Y38: 0.039 | Z38: 0.1 | AA38: 0.044 | AB38: 0.1 | AC38: 0.033 | AD38: 229739 | AE38: 241485 | AF38: 149774 | AG38: 146896 | AH38: 130936 | AI38: 134079 | AJ38: 510449 | AK38: 2.87 | AL38: 2.44 | AM38: 3.54 | AN38: 4.91 | AO38: 0.01015 | AP38: 2 | AQ38: 9.96 | AR38: 24 | AS38: 17.58 | AT38: 48
A39: 39 | B39: 2015AGOSTO | C39: 2015 | D39: AGOSTO | E39: 8.06 | F39: 6.99 | G39: 12 | H39: 8.85 | I39: 3.85 | J39: 4.17 | K39: 3.15 | L39: 5.22 | M39: 21.65833333 | N39: 31.35597222 | O39: 61.64 | P39: 64.36 | Q39: 50.42 | R39: 45 | S39: 26.35 | T39: 39.08 | U39: 28.29 | V39: 14.55 | W39: 0.015 | X39: 0.1 | Y39: 0.036 | Z39: 0.1 | AA39: 0.039 | AB39: 0.1 | AC39: 0.03 | AD39: 236088 | AE39: 241485 | AF39: 142061 | AG39: 146896 | AH39: 128949 | AI39: 134079 | AJ39: 507098 | AK39: 2.8 | AL39: 2.37 | AM39: 4.03 | AN39: 5.78 | AO39: 0.01393 | AP39: 2 | AQ39: 10.09 | AR39: 24 | AS39: 27.28 | AT39: 48
A40: 40 | B40: 2015SEPTIEMBRE | C40: 2015 | D40: SEPTIEMBRE | E40: 8.27 | F40: 6.99 | G40: 12.12 | H40: 8.85 | I40: 4.11 | J40: 4.17 | K40: 3.69 | L40: 5.22 | M40: 24.58 | N40: 35.20111111 | O40: 66.71 | P40: 69.75 | Q40: 64.54 | R40: 45 | S40: 26.35 | T40: 39.94 | U40: 35.28 | V40: 24.97 | W40: 0.015 | X40: 0.05 | Y40: 0.036 | Z40: 0.05 | AA40: 0.04 | AB40: 0.05 | AC40: 0.03 | AD40: 244192 | AE40: 229922 | AF40: 143402 | AG40: 146896 | AH40: 127484 | AI40: 119320 | AJ40: 515078 | AK40: 2.65 | AL40: 2.3 | AM40: 4.47 | AN40: 6.38 | AO40: 0.01092 | AP40: 2 | AQ40: 39.82 | AR40: 24 | AS40: 13.09 | AT40: 48
A41: 41 | B41: 2015OCTUBRE | C41: 2015 | D41: OCTUBRE | E41: 8.03 | F41: 6.99 | G41: 11.54 | H41: 8.85 | I41: 4.16 | J41: 4.17 | K41: 3.71 | L41: 5.22 | M41: 27.19 | N41: 39.04625 | O41: 64.72 | P41: 70.27 | Q41: 68.93 | R41: 45 | S41: 11.45 | T41: 45.16 | U41: 36.81 | V41: 27.46 | W41: 0.017 | X41: 0.05 | Y41: 0.034 | Z41: 0.05 | AA41: 0.039 | AB41: 0.05 | AC41: 0.03 | AD41: 231978 | AE41: 229922 | AF41: 135870 | AG41: 163227 | AH41: 132559 | AI41: 119320 | AJ41: 500406 | AK41: 2.59 | AL41: 2.23 | AM41: 5.02 | AN41: 7.03 | AO41: 0.01105 | AP41: 2 | AQ41: 12.18 | AR41: 24 | AS41: 14.7 | AT41: 48
A42: 42 | B42: 2015NOVIEMBRE | C42: 2015 | D42: NOVIEMBRE | E42: 7.71 | F42: 6.99 | G42: 11.19 | H42: 8.85 | I42: 3.9 | J42: 4.17 | K42: 3.6 | L42: 5.22 | M42: 29.63 | N42: 42.89138889 | O42: 67.64 | P42: 71.94 | Q42: 70.51 | R42: 45 | S42: 6.31 | T42: 46.1 | U42: 39.86 | V42: 34.67 | W42: 0.017 | X42: 0.05 | Y42: 0.033 | Z42: 0.05 | AA42: 0.036 | AB42: 0.05 | AC42: 0.029 | AD42: 228497 | AE42: 229922 | AF42: 135626 | AG42: 163227 | AH42: 125395 | AI42: 119320 | AJ42: 489519 | AK42: 2.5 | AL42: 2.16 | AM42: 5.65 | AN42: 7.74 | AO42: 0.01272 | AP42: 2 | AQ42: 11.81 | AR42: 24 | AS42: 10.2 | AT42: 48
A43: 43 | B43: 2015DICIEMBRE | C43: 2015 | D43: DICIEMBRE | E43: 7.66 | F43: 6.99 | G43: 10.86 | H43: 8.85 | I43: 3.42 | J43: 4.17 | K43: 2.96 | L43: 5.22 | M43: 32.025 | N43: 46.73652778 | O43: 78.94 | P43: 72.64 | Q43: 76.58 | R43: 33.74 | S43: 6.31 | T43: 46.16 | U43: 43.61 | V43: 51.98 | W43: 0.016 | X43: 0.05 | Y43: 0.032 | Z43: 0.05 | AA43: 0.034 | AB43: 0.05 | AC43: 0.027 | AD43: 226967 | AE43: 241485 | AF43: 139494 | AG43: 146896 | AH43: 125680 | AI43: 134079 | AJ43: 492142 | AK43: 2.36 | AL43: 2.09 | AM43: 6.14 | AN43: 8.56 | AO43: 0.01176 | AP43: 2 | AQ43: 10.44 | AR43: 24 | AS43: 10.72 | AT43: 48
A44: 44 | B44: 2016ENERO | C44: 2016 | D44: ENERO | E44: 7.53 | F44: 6.21 | G44: 10.62 | H44: 10.65 | I44: 3.02 | J44: 3.66 | K44: 2.68 | L44: 3.02 | M44: 3.14 | N44: 2.67 | O44: 7.56 | P44: 9.55 | Q44: 26.72 | R44: 3.55 | S44: 0 | T44: 28.47 | U44: 16.92 | V44: 10.97 | W44: 0.014 | X44: 0.03 | Y44: 0.017 | Z44: 0.05 | AA44: 0.01 | AB44: 0.04 | AC44: 0.014 | AD44: 223628 | AE44: 229240 | AF44: 142704 | AG44: 163227 | AH44: 128102 | AI44: 118528 | AJ44: 494433 | AK44: 2.28 | AL44: 3.5 | AM44: 0.63 | AN44: 0.52 | AO44: 0.01042 | AP44: 2 | AQ44: 11.55 | AR44: 24 | AS44: 19.24 | AT44: 72 | AU44: 2.65 | AV44: 4 | AW44: 2.29 | AX44: 4.71 | AY44: 0.0746 | AZ44: 0.0746
A45: 45 | B45: 2016FEBRERO | C45: 2016 | D45: FEBRERO | E45: 7.35 | F45: 6.21 | G45: 10.43 | H45: 10.65 | I45: 2.98 | J45: 3.66 | K45: 2.73 | L45: 3.02 | M45: 5.31 | N45: =+N44+2.67 -> 5.34 | O45: 46.47 | P45: 27.65 | Q45: 41.96 | R45: 3.55 | S45: 0 | T45: 31.03 | U45: 31.03 | V45: 15.68 | W45: 0.022 | X45: 0.03 | Y45: 0.017 | Z45: 0.05 | AA45: 0.02 | AB45: 0.04 | AC45: 0.019 | AD45: 241814.346 | AE45: 229240 | AF45: 177420.6522 | AG45: 163227 | AH45: 128974.9728 | AI45: 118528 | AJ45: 100 | AK45: 2.25 | AL45: 3.4 | AM45: 0.95 | AN45: =+AN44+0.52 -> 1.04 | AO45: 0.01015 | AP45: 2 | AQ45: 10.26 | AR45: 24 | AS45: 9.91 | AT45: 72 | AU45: 2.56 | AV45: 4 | AW45: 2.26 | AX45: 4.71 | AY45: 0.0737 | AZ45: 0.0746
A46: 46 | B46: 2016MARZO | C46: 2016 | D46: MARZO | E46: 7.18 | F46: 6.21 | G46: 10.32 | H46: 10.65 | I46: 2.88 | J46: 3.66 | K46: 2.66 | L46: 3.02 | M46: 7.81 | N46: =+N45+2.67 -> 8.01 | O46: 59.58 | P46: 41.37 | Q46: 46.44 | R46: 100 | S46: 0 | T46: 50.86 | U46: 32 | V46: 33.72 | W46: 0.019 | X46: 0.03 | Y46: 0.019 | Z46: 0.05 | AA46: 0.017 | AB46: 0.04 | AC46: 0.019 | AD46: 233918.3673 | AE46: 229240 | AF46: 170028.125 | AG46: 163227 | AH46: 128834.7826 | AI46: 118528 | AJ46: 100 | AK46: 2.22 | AL46: 3.3 | AM46: 1.63 | AN46: =+AN45+0.52 -> 1.56 | AO46: 0.01363 | AP46: 2 | AQ46: 13.79 | AR46: 24 | AS46: 14.86 | AT46: 72 | AU46: 2.57 | AV46: 4 | AW46: 2.3 | AX46: 4.71 | AY46: 0.0742 | AZ46: 0.0746
A47: 47 | B47: 2016ABRIL | C47: 2016 | D47: ABRIL | E47: 6.89 | F47: 6.21 | G47: 9.91 | H47: 9.02 | I47: 2.72 | J47: 3.66 | K47: 2.6 | L47: 2.67 | M47: 10.12 | N47: 10.68 | O47: 65.65 | P47: 55.07 | Q47: 54.74 | R47: 20 | S47: 0 | T47: 50.94 | U47: 37.04 | V47: 35.59 | W47: 0.017 | X47: 0.03 | Y47: 0.02 | Z47: 0.05 | AA47: 0.018 | AB47: 0.04 | AC47: 0.018 | AD47: 231219.6891 | AE47: 223127 | AF47: 150085.8325 | AG47: 145133 | AH47: 134844.1411 | AI47: 118528 | AJ47: 100 | AK47: 2.19 | AL47: 3.2 | AM47: 2.18 | AN47: 2.08 | AO47: 0.01226 | AP47: 1.14 | AQ47: 12.81 | AR47: 16.64 | AS47: 17.51 | AT47: 31.06 | AU47: 2.38 | AV47: 4 | AW47: 2.22 | AX47: 4.71 | AY47: 0.0732 | AZ47: 0.0746
A48: 48 | B48: 2016MAYO | C48: 2016 | D48: MAYO | E48: 7.29 | F48: 6.21 | G48: 10.1 | H48: 9.02 | I48: 2.92 | J48: 3.66 | K48: 2.78 | L48: 2.67 | M48: 12.43 | N48: 13.35 | O48: 69.5 | P48: 61.21 | Q48: 59.54 | R48: 20 | S48: 0 | T48: 52.13 | U48: 44.02 | V48: 37.09 | W48: 0.017 | X48: 0.03 | Y48: 0.018 | Z48: 0.05 | AA48: 0.019 | AB48: 0.04 | AC48: 0.018 | AD48: 218751.9608 | AE48: 223127 | AF48: 142287.2549 | AG48: 145133 | AH48: 111818.8679 | AI48: 118528 | AJ48: 100 | AK48: 2.15 | AL48: 3.1 | AM48: 2.67 | AN48: 2.6 | AO48: 0.01232 | AP48: 1.14 | AQ48: 8.69 | AR48: 16.64 | AS48: 13.45 | AT48: 31.06 | AU48: 2.48 | AV48: 4 | AW48: 2.42 | AX48: 4.71 | AY48: 0.0727 | AZ48: 0.0746
A49: 49 | B49: 2016JUNIO | C49: 2016 | D49: JUNIO | E49: 7.21 | F49: 6.21 | G49: 9.53 | H49: 9.02 | I49: 2.81 | J49: 3.66 | K49: 2.67 | L49: 2.67 | M49: 15.27 | N49: 16.02 | O49: 72.79 | P49: 62.89 | Q49: 62.04 | R49: 20 | S49: 0 | T49: 52.17 | U49: 47.56 | V49: 44.15 | W49: 0.017 | X49: 0.03 | Y49: 0.02 | Z49: 0.05 | AA49: 0.02 | AB49: 0.04 | AC49: 0.019 | AD49: 209116.2137 | AE49: 223127 | AF49: 143270.4837 | AG49: 145133 | AH49: 106398.5637 | AI49: 118528 | AJ49: 100 | AK49: 2.1 | AL49: 3 | AM49: 3.06 | AN49: 3.12 | AO49: 0.01198 | AP49: 1.14 | AQ49: 10.01 | AR49: 16.64 | AS49: 15.47 | AT49: 31.06 | AU49: 2.45 | AV49: 4 | AW49: 2.41 | AX49: 4.71 | AY49: 0.071 | AZ49: 0.0746
A50: 50 | B50: 2016JULIO | C50: 2016 | D50: JULIO | E50: 7.28 | F50: 6.21 | G50: 9.46 | H50: 9.02 | I50: 2.75 | J50: 3.66 | K50: 2.43 | L50: 2.67 | M50: 17.76 | N50: 18.69 | O50: 71.32 | P50: 64.99 | Q50: 59.52 | R50: 17.74 | S50: 0 | T50: 53.75 | U50: 51.44 | V50: 47.91 | W50: 0.017 | X50: 0.03 | Y50: 0.021 | Z50: 0.05 | AA50: 0.019 | AB50: 0.04 | AC50: 0.019 | AD50: 220699.3076 | AE50: 223127 | AF50: 137697.3435 | AG50: 145133 | AH50: 100703.4834 | AI50: 118528 | AJ50: 100 | AK50: 2.04 | AL50: 2.9 | AM50: 3.43 | AN50: 3.64 | AO50: 0.01128 | AP50: 1.14 | AQ50: 8.26 | AR50: 16.64 | AS50: 11.49 | AT50: 31.06 | AU50: 2.62 | AV50: 4 | AW50: 2.48 | AX50: 4.71 | AY50: 0.069 | AZ50: 0.0746
A51: 51 | B51: 2016AGOSTO | C51: 2016 | D51: AGOSTO | E51: 7.27 | F51: 6.21 | G51: 9.16 | H51: 9.02 | I51: 2.7 | J51: 3.66 | K51: 2.21 | L51: 2.67 | M51: 20.41 | N51: 21.36 | O51: 70.85 | P51: 80.43 | Q51: 60.78 | R51: 43.46 | S51: 22.56 | T51: 54.38 | U51: 53.8 | V51: 36.04 | W51: 0.015 | X51: 0.03 | Y51: 0.02 | Z51: 0.05 | AA51: 0.018 | AB51: 0.04 | AC51: 0.018 | AD51: 210298.7747 | AE51: 223127 | AF51: 139550.9615 | AG51: 145133 | AH51: 109545.2865 | AI51: 118528 | AJ51: 100 | AK51: 1.99 | AL51: 2.8 | AM51: 3.96 | AN51: 4.16 | AO51: 0.01186 | AP51: 1.14 | AQ51: 11.22 | AR51: 16.64 | AS51: 11.55 | AT51: 31.06 | AU51: 2.61 | AV51: 4 | AW51: 2.39 | AX51: 4.71 | AY51: 0.0684 | AZ51: 0.0746
A52: 52 | B52: 2016SEPTIEMBRE | C52: 2016 | D52: SEPTIEMBRE | E52: 6.94 | F52: 6.21 | G52: 8.45 | H52: 9.02 | I52: 2.48 | J52: 3.66 | K52: 1.68 | L52: 2.67 | M52: 23.43 | N52: 24.03 | O52: 71.04 | P52: 82.01 | Q52: 70.28 | R52: 43.46 | S52: 21.26 | T52: 60.43 | U52: 56.08 | V52: 38.27 | W52: 0.015 | X52: 0.03 | Y52: 0.019 | Z52: 0.05 | AA52: 0.017 | AB52: 0.04 | AC52: 0.017 | AD52: 229790.9372 | AE52: 223127 | AF52: 143553.907 | AG52: 145133 | AH52: 117238.3778 | AI52: 118528 | AJ52: 100 | AK52: 1.94 | AL52: 2.7 | AM52: 4.39 | AN52: 4.68 | AO52: 0.01195 | AP52: 1.14 | AQ52: 7.99 | AR52: 16.64 | AS52: 12.03 | AT52: 31.06 | AU52: 2.5 | AV52: 4 | AW52: 2 | AX52: 4.71 | AY52: 0.068 | AZ52: 0.0746
A53: 53 | B53: 2016OCTUBRE | C53: 2016 | D53: OCTUBRE | E53: 7.53 | F53: 6.21 | G53: 8.81 | H53: 9.02 | I53: 2.59 | J53: 3.66 | K53: 1.7 | L53: 2.67 | M53: 26.01 | N53: 26.7 | O53: 71.05 | P53: 86.77 | Q53: 70.43 | S53: 21.26 | T53: 56.5 | U53: 57.83 | V53: 44.1 | W53: 0.015 | X53: 0.03 | Y53: 0.019 | Z53: 0.05 | AA53: 0.017 | AB53: 0.04 | AC53: 0.017 | AD53: 223127 | AE53: 223127 | AF53: 145133 | AG53: 145133 | AH53: 118528 | AI53: 118528 | AJ53: 100 | AK53: 1.7 | AL53: 2.6 | AM53: 4.97 | AN53: 5.2 | AO53: 0.01071 | AP53: 1.14 | AQ53: 8.95 | AR53: 16.64 | AS53: 16.93 | AT53: 31.06 | AU53: 2.87 | AV53: 4 | AW53: 2.19 | AX53: 4.71 | AY53: 0.0673 | AZ53: 0.0746
A54: 54 | B54: 2016NOVIEMBRE | C54: 2016 | D54: NOVIEMBRE | E54: 7.63 | F54: 6.21 | G54: 9.02 | H54: 9.02 | I54: 2.56 | J54: 3.66 | K54: 1.65 | L54: 2.67 | M54: 29.55 | N54: 29.37 | O54: 77.11 | P54: 88.35 | Q54: 81.12 | S54: 21.5 | T54: 55.55 | U54: 59.53 | V54: 64.52 | W54: 0.017 | X54: 0.03 | Y54: 0.018 | Z54: 0.05 | AA54: 0.016 | AB54: 0.04 | AC54: 0.017 | AD54: 223127 | AE54: 223127 | AF54: 145133 | AG54: 145133 | AH54: 118528 | AI54: 118528 | AJ54: 100 | AK54: 1.64 | AL54: 2.5 | AM54: 5.54 | AN54: 5.72 | AO54: 0.01139 | AP54: 1.14 | AQ54: 12.54 | AR54: 16.64 | AS54: 13.73 | AT54: 31.06 | AU54: 2.89 | AV54: 4 | AW54: 2.17 | AX54: 4.71 | AY54: 0.067 | AZ54: 0.0724
A55: 55 | B55: 2016DICIEMBRE | C55: 2016 | D55: DICIEMBRE | E55: 7.49 | F55: 6.21 | G55: 9.19 | H55: 9.02 | I55: 2.71 | J55: 3.66 | K55: 1.68 | L55: 2.67 | M55: 32.25 | N55: 32.04 | O55: 80.2 | P55: 92.61 | Q55: 82.74 | S55: 21.5 | T55: 55.55 | U55: 62.17 | V55: 65.32 | W55: 0.015 | X55: 0.03 | Y55: 0.017 | Z55: 0.05 | AA55: 0.015 | AB55: 0.04 | AC55: 0.016 | AD55: 223127 | AE55: 223127 | AF55: 145133 | AG55: 145133 | AH55: 118528 | AI55: 118528 | AJ55: 100 | AK55: 1.63 | AL55: 2.4 | AM55: 6.03 | AN55: 6.24 | AO55: 0.01077 | AP55: 1.14 | AQ55: 13.12 | AR55: 16.64 | AS55: 14.63 | AT55: 31.06 | AU55: 3.06 | AV55: 4 | AW55: 2.32 | AX55: 4.71 | AY55: 0.067 | AZ55: 0.07
A56: 56 | B56: 2017ENERO | C56: 2017 | D56: ENERO | E56: 7.17 | F56: 6.21 | G56: 8.39 | H56: 9.02 | I56: 2.49 | J56: 3.66 | K56: 1.38 | L56: 2.67 | M56: 2.31 | N56: 2.86 | O56: 84.87 | P56: 94.51 | Q56: 83.4 | R56: 44.26 | S56: 21.5 | T56: 55.55 | U56: 62.17 | V56: 66.25 | W56: 0.039 | X56: 0.02 | Y56: 0.053 | Z56: 0.04 | AA56: 0.007 | AB56: 0.04 | AC56: 0.036 | AD56: 223127 | AE56: 223127 | AF56: 145133 | AG56: 145133 | AH56: 118528 | AI56: 118528 | AJ56: 100 | AK56: 1.63 | AL56: 2.35 | AM56: 0.62 | AN56: 0.5 | AO56: 0.01298 | AP56: 1.14 | AQ56: 10.46 | AR56: 12.9 | AS56: 10.27 | AT56: 17.3 | AU56: 2.84 | AV56: 4 | AW56: 2.046 | AX56: 3.5 | AY56: 0.0706 | AZ56: 0.0691
A57: 57 | B57: 2017FEBRERO | C57: 2017 | D57: FEBRERO | E57: 7.21 | F57: 6.21 | G57: 8.41 | H57: 9.02 | I57: 2.37 | J57: 3.66 | K57: 1.3 | L57: 2.67 | M57: 4.53 | N57: =+N56+2.86 -> 5.72 | O57: 90.35 | P57: 96.26 | Q57: 83.63 | R57: 44.26 | S57: 21.5 | T57: 56 | U57: 62.17 | V57: 66.5 | W57: 0.027 | X57: 0.02 | Y57: 0.043 | Z57: 0.04 | AA57: 0.005 | AB57: 0.04 | AC57: 0.028 | AD57: 223127 | AE57: 223127 | AF57: 145133 | AG57: 145133 | AH57: 118528 | AI57: 118528 | AJ57: 100 | AK57: 1.62 | AL57: 2.3 | AM57: 1 | AN57: =+AN56+0.5 -> 1 | AO57: 0.00999 | AP57: 1.14 | AQ57: 9.59 | AR57: 12.9 | AS57: 9.83 | AT57: 17.3 | AU57: 2.939 | AV57: 4 | AW57: 2.086 | AX57: 3.5 | AY57: 0.0717 | AZ57: 0.0691
A58: 58 | B58: 2017MARZO | C58: 2017 | D58: MARZO | E58: 7.65 | F58: 6.21 | G58: 8.93 | H58: 9.02 | I58: 2.58 | J58: 3.66 | K58: 1.36 | L58: 2.67 | M58: 7.59 | N58: =+N57+2.86 -> 8.58 | O58: 90.58391326 | P58: 96.34618441 | Q58: 86.11818412 | R58: 46.85124441 | S58: 21.5 | T58: 74.49520166 | U58: 63.13713068 | V58: 73.71978613 | W58: 0.025 | X58: 0.02 | Y58: 0.038 | Z58: 0.04 | AA58: 0.006 | AB58: 0.04 | AC58: 0.025 | AD58: 223127 | AE58: 223127 | AF58: 145133 | AG58: 145133 | AH58: 118528 | AI58: 118528 | AJ58: 100 | AK58: 1.61 | AL58: 2.25 | AM58: 1.68 | AN58: =+AN57+0.5 -> 1.5 | AO58: 0.01749 | AP58: 1.14 | AQ58: 15.43 | AR58: 12.9 | AS58: 14.25 | AT58: 17.3 | AU58: 3.139 | AV58: 4 | AW58: 2.181 | AX58: 3.5 | AY58: 0.074 | AZ58: 0.0691
A59: 59 | B59: 2017ABRIL | C59: 2017 | D59: ABRIL | E59: 7.71 | F59: 6.21 | G59: 9.23 | H59: 9.02 | I59: 2.71 | J59: 3.66 | K59: 1.44 | L59: 2.67 | M59: 10.78 | N59: 11.44 | O59: 94.24 | P59: 96.39 | Q59: 88.69 | R59: 46.85 | S59: 21.5 | T59: 74.53 | U59: 64.2 | V59: 75.21 | W59: 0.02 | X59: 0.02 | Y59: 0.019 | Z59: 0.04 | AA59: 0.005 | AB59: 0.04 | AC59: 0.017 | AD59: 223127 | AE59: 223127 | AF59: 145133 | AG59: 145133 | AH59: 118528 | AI59: 118528 | AJ59: 100 | AK59: 1.58 | AL59: 2.2 | AM59: 2.2 | AN59: 2 | AO59: 0.01163 | AP59: 1.14 | AQ59: 13.22 | AR59: 12.9 | AS59: 17.57 | AT59: 17.3 | AU59: 3.245 | AV59: 4 | AW59: 2.292 | AX59: 3.5 | AY59: 0.0741 | AZ59: 0.0691
A60: 60 | B60: 2017MAYO | C60: 2017 | D60: MAYO | E60: 7.64 | F60: 6.21 | G60: 9.21 | H60: 9.02 | I60: 2.68 | J60: 3.66 | K60: 1.37 | L60: 2.67 | M60: 14.01 | N60: 14.3 | O60: 95.16 | P60: 96.5 | Q60: 93.47 | R60: 48.49 | S60: 43.27 | T60: 74.53 | U60: 65.07 | V60: 75.3 | W60: 0.018 | X60: 0.02 | Y60: 0.02 | Z60: 0.04 | AA60: 0.006 | AB60: 0.04 | AC60: 0.016 | AD60: 223127 | AE60: 223127 | AF60: 145133 | AG60: 145133 | AH60: 118528 | AI60: 118528 | AJ60: 100 | AK60: 1.49 | AL60: 2.15 | AM60: 2.7 | AN60: 2.5 | AO60: 0.01344 | AP60: 1.14 | AQ60: 12.4 | AR60: 12.9 | AS60: 14.24 | AT60: 17.3 | AU60: 3.19 | AV60: 4 | AW60: 2.104 | AX60: 3.5 | AY60: 0.0711 | AZ60: 0.0691
A61: 61 | B61: 2017JUNIO | C61: 2017 | D61: JUNIO | E61: 7.57 | F61: 6.21 | G61: 9.26 | H61: 9.02 | I61: 2.7 | J61: 3.66 | K61: 1.41 | L61: 2.67 | M61: 16.35 | N61: 17.16 | O61: 96.32 | P61: 96.52 | Q61: 93.77 | R61: 48.49 | S61: 43.5 | T61: 85.13 | U61: 66.1 | V61: 75.32 | W61: 0.017 | X61: 0.02 | Y61: 0.02 | Z61: 0.04 | AA61: 0.006 | AB61: 0.04 | AC61: 0.017 | AD61: 223127 | AE61: 223127 | AF61: 145133 | AG61: 145133 | AH61: 118528 | AI61: 118528 | AJ61: 100 | AK61: 1.47 | AL61: 2.1 | AM61: 3.03 | AN61: 3 | AO61: 0.01458 | AP61: 1.14 | AQ61: 10.84 | AR61: 12.9 | AS61: 10.55 | AT61: 17.3 | AU61: 3.169 | AV61: 4 | AW61: 2.024 | AX61: 3.5 | AY61: 0.0718 | AZ61: 0.0691
A62: 62 | B62: 2017JULIO | C62: 2017 | D62: JULIO | E62: 7.02 | F62: 6.21 | G62: 8.75 | H62: 9.02 | I62: 2.41 | J62: 3.66 | K62: 1.24 | L62: 2.67 | M62: 18.43 | N62: 20.02 | O62: 96.02 | P62: 96.52 | Q62: 93.77 | R62: 48.49 | S62: 43.5 | T62: 85.15 | U62: 66.1 | V62: 90.67 | W62: 0.016 | X62: 0.02 | Y62: 0.02 | Z62: 0.04 | AA62: 0.006 | AB62: 0.04 | AC62: 0.016 | AD62: 223127 | AE62: 223127 | AF62: 145133 | AG62: 145133 | AH62: 118528 | AI62: 118528 | AJ62: 100 | AK62: 1.45 | AL62: 2.05 | AM62: 3.44 | AN62: 3.5 | AO62: 0.00915 | AP62: 1.14 | AQ62: 8.56 | AR62: 12.9 | AS62: 10.14 | AT62: 17.3 | AU62: 2.699 | AV62: 4 | AW62: 1.649 | AX62: 3.5 | AY62: 0.0711 | AZ62: 0.0691
A63: 63 | B63: 2017AGOSTO | C63: 2017 | D63: AGOSTO | E63: 7.04 | F63: 6.21 | G63: 8.67 | H63: 9.02 | I63: 2.34 | J63: 3.66 | K63: 1.19 | L63: 2.67 | M63: 20.75 | N63: 22.88 | O63: 96.02 | P63: 96.52 | Q63: 93.81 | R63: 48.49 | S63: 43.5 | T63: 92.51 | U63: 66.12 | V63: 91.66 | W63: 0.016 | X63: 0.02 | Y63: 0.021 | Z63: 0.04 | AA63: 0.006 | AB63: 0.04 | AC63: 0.016 | AD63: 223127 | AE63: 223127 | AF63: 145133 | AG63: 145133 | AH63: 118528 | AI63: 118528 | AJ63: 100 | AK63: 1.42 | AL63: 2 | AM63: 3.91 | AN63: 4 | AO63: 0.01478 | AP63: 1.14 | AQ63: 9.36 | AR63: 12.9 | AS63: 9.56 | AT63: 17.3 | AU63: 2.642 | AV63: 4 | AW63: 1.639 | AX63: 3.5 | AY63: 0.0699 | AZ63: 0.0691
A64: 64 | B64: 2017SEPTIEMBRE | C64: 2017 | D64: SEPTIEMBRE | E64: 6.82 | F64: 6.21 | G64: 8.88 | H64: 9.02 | I64: 2.09 | J64: 3.66 | K64: 1.07 | L64: 2.67 | M64: 23.03 | N64: 25.74 | O64: 96.56 | P64: 96.52 | Q64: 93.81 | R64: 48.49 | S64: 50.42 | T64: 95.06 | U64: 68.12 | V64: 91.7 | W64: 0.014 | X64: 0.02 | Y64: 0.021 | Z64: 0.04 | AA64: 0.007 | AB64: 0.04 | AC64: 0.016 | AD64: 223127 | AE64: 223127 | AF64: 145133 | AG64: 145133 | AH64: 118528 | AI64: 118528 | AJ64: 100 | AK64: 1.37 | AL64: 1.95 | AM64: 4.32 | AN64: 4.5 | AO64: 0.01181 | AP64: 1.14 | AQ64: 9.2 | AR64: 12.9 | AS64: 9.52 | AT64: 17.3 | AU64: 2.442 | AV64: 4 | AW64: 1.673 | AX64: 3.5 | AY64: 0.0699 | AZ64: 0.0691
A65: 65 | B65: 2017OCTUBRE | C65: 2017 | D65: OCTUBRE | E65: 6.05 | F65: 6.21 | G65: 8.57 | H65: 9.02 | I65: 1.75 | J65: 3.66 | K65: 0.92 | L65: 2.67 | M65: 25.52 | N65: 28.6 | O65: 96.98 | P65: 96.52 | Q65: 94.16 | R65: 48.49 | S65: 50.42 | T65: 95.06 | U65: 68.12 | V65: 93.08 | W65: 0.013 | X65: 0.02 | Y65: 0.021 | Z65: 0.04 | AA65: 0.007 | AB65: 0.04 | AC65: 0.015 | AD65: 223127 | AE65: 223127 | AF65: 145133 | AG65: 145133 | AH65: 118528 | AI65: 118528 | AJ65: 100 | AK65: 1.32 | AL65: 1.9 | AM65: 4.86 | AN65: 5 | AO65: 0.01247 | AP65: 1.14 | AQ65: 10.62 | AR65: 12.9 | AS65: 11.51 | AT65: 17.3 | AU65: 2.042 | AV65: 4 | AW65: 1.473 | AX65: 3.5 | AY65: 0.0701 | AZ65: 0.0691
A66: 66 | B66: 2017NOVIEMBRE | C66: 2017 | D66: NOVIEMBRE | E66: 5.76 | F66: 6.21 | G66: 8.16 | H66: 9.02 | I66: 1.69 | J66: 3.66 | K66: 0.94 | L66: 2.67 | M66: 28.63 | N66: 31.46 | O66: 37.57270814 | P66: 28.9530744 | Q66: 36.8516614 | R66: 39.41344778 | S66: 44.50867948 | T66: 49.56124635 | U66: 11.89172261 | V66: 31.26175576 | W66: 0.013 | X66: 0.02 | Y66: 0.021 | Z66: 0.04 | AA66: 0.007 | AB66: 0.04 | AC66: 0.015 | AD66: 223127 | AE66: 223127 | AF66: 145133 | AG66: 145133 | AH66: 118528 | AI66: 118528 | AJ66: 100 | AK66: 0.9 | AL66: 1.85 | AM66: 5.48 | AN66: 5.5 | AO66: 0.01557 | AP66: 1.14 | AQ66: 11.06 | AR66: 12.9 | AS66: 12.84 | AT66: 17.3 | AU66: 1.938 | AV66: 4 | AW66: 1.459 | AX66: 3.5 | AY66: 0.0693 | AZ66: 0.0678
A67: 67 | B67: 2017DICIEMBRE | C67: 2017 | D67: DICIEMBRE | E67: 5.46 | F67: 6.21 | G67: 7.95 | H67: 9.02 | I67: 1.59 | J67: 3.66 | K67: 0.99 | L67: 2.67 | M67: 31.31 | N67: 34.32 | O67: 44.87 | P67: 31.37 | Q67: 47.63 | R67: 39.41 | S67: 48.77 | T67: 49.56 | U67: 11.96 | V67: 35.21 | W67: 0.013 | X67: 0.02 | Y67: 0.02 | Z67: 0.04 | AA67: 0.009 | AB67: 0.04 | AC67: 0.016 | AD67: 223127 | AE67: 223127 | AF67: 100 | AG67: 145133 | AH67: 118528 | AI67: 118528 | AJ67: 100 | AK67: 0.85 | AL67: 1.8 | AN67: 6 | AO67: 0.01158 | AP67: 1.14 | AQ67: 5.81 | AR67: 12.9 | AS67: 8.16 | AT67: 17.3 | AU67: 1.773 | AV67: 4 | AW67: 1.365 | AX67: 3.5 | AY67: 0.0669 | AZ67: 0.0665
A68: =+A67+1 -> 68
A69: 69
A70: 70
A71: 71
A72: 72
A73: 73
A74: 74
A75: 75
A76: 76
A77: 77
A78: 78
A79: 79
A80: 80 | AF80: 229240 | AG80: 100
A81: 81 | AF81: 230000 | AG81: X
A82: 82 | AD82: 0
A83: 83 | AD83: 0
A84: 84 | AD84: 0
A85: 85 | AD85: 0
A86: 86 | AD86: 0
A87: 87 | AD87: 0
A88: 88 | AD88: 0
A89: 89 | AD89: 0
A90: 90 | B90: =+CONCATENATE(C90,D90) ->  | AD90: 0
A91: 91 | AD91: 0
A92: 92 | AD92: 0
A93: 93 | AD93: 0
A94: 94 | AD94: 0
A95: 95 | AD95: 0
A96: 96 | AD96: 0
A97: 97 | AD97: 0
A98: 98 | AD98: 0
A99: 99 | AD99: 0
A100: 100 | AD100: 0
A101: 101 | AD101: 0
A102: 102 | AD102: 0
A103: 103 | AD103: 0
A104: 104 | AD104: 0
A105: 105 | AD105: 0
A106: 106 | AD106: 0
A107: 107 | AD107: 0
A108: 108 | AD108: 0
A109: 109 | AD109: 0
A110: 110 | AD110: 0
A111: 111 | AD111: 0
A112: 112 | AD112: 0
A113: 113 | AD113: 0
A114: 114 | AD114: 0
A115: 115 | AD115: 0
A116: 116 | AD116: 0
A117: 117 | AD117: 0
A118: 118 | AD118: 0
A119: 119 | AD119: 0
A120: 120 | AD120: 0
A121: 121 | AD121: 0
A122: 122 | AD122: 0
A123: 123 | AD123: 0
A124: 124 | AD124: 0
A125: 125 | AD125: 0
A126: 126 | AD126: 0
A127: 127 | AD127: 0
A128: 128 | AD128: 0
A129: 129 | AD129: 0
A130: 130 | AD130: 0
A131: 131 | AD131: 0
A132: =+A131+1 -> 132 | AD132: 0
A133: 133 | AD133: 0
A134: 134 | AD134: 0
A135: 135 | AD135: 0
A136: 136 | AD136: 0
A137: 137 | AD137: 0
A138: 138 | AD138: 0
A139: 139 | AD139: 0
A140: 140 | AD140: 0
A141: 141 | AD141: 0
A142: 142 | AD142: 0
A143: 143 | AD143: 0
A144: 144 | AD144: 0
A145: 145 | AD145: 0
A146: 146 | AD146: 0
A147: 147 | AD147: 0
A148: 148 | AD148: 0
A149: 149 | AD149: 0
A150: 150 | AD150: 0
A151: 151 | AD151: 0
A152: 152 | AD152: 0
A153: 153 | AD153: 0
A154: 154 | B154: =+CONCATENATE(C154,D154) ->  | AD154: 0
A155: 155 | AD155: 0
A156: 156 | AD156: 0
A157: 157 | AD157: 0
A158: 158 | AD158: 0
A159: 159 | AD159: 0
A160: 160 | AD160: 0
A161: 161 | AD161: 0
A162: 162 | AD162: 0
A163: 163 | AD163: 0
A164: 164 | AD164: 0
A165: 165 | AD165: 0
A166: 166 | AD166: 0
A167: 167 | AD167: 0
A168: 168 | AD168: 0
A169: 169 | AD169: 0
A170: 170 | AD170: 0
A171: 171 | AD171: 0
A172: 172 | AD172: 0
A173: 173 | AD173: 0
A174: 174 | AD174: 0
A175: 175 | AD175: 0
A176: 176 | AD176: 0
A177: 177 | AD177: 0
A178: 178 | AD178: 0
A179: 179 | AD179: 0
A180: 180 | AD180: 0
A181: 181 | AD181: 0
A182: 182 | AD182: 0
A183: 183 | AD183: 0
A184: 184 | AD184: 0
A185: 185 | AD185: 0
A186: 186 | AD186: 0
A187: 187 | AD187: 0
A188: 188 | AD188: 0
A189: 189 | AD189: 0
A190: 190 | AD190: 0
A191: 191 | AD191: 0
A192: 192 | AD192: 0
A193: 193 | AD193: 0
A194: 194 | AD194: 0
A195: 195 | AD195: 0
A196: =+A195+1 -> 196 | AD196: 0
A197: 197 | AD197: 0
A198: 198 | AD198: 0
A199: 199 | AD199: 0
A200: 200 | AD200: 0
... 669 more rows

Sheet Real (hidden)
C1: INDICADORES DE PRODUCTIVIDAD 2017 REAL
D3: INDICADORES A NIVEL DE DIRECCIÓN | N3: INDICADORES A NIVEL DE DEPARTAMENTOS
D4: GLOBAL | H4: CABECERA | N4: PRESUPUESTO DE INVERSIONES | V4: VARIOS
B5: Año | C5: Meses | D5: FMIK REAL | E5: META | F5: TTIK REAL | G5: META | H5: FMIK REAL | I5: META | J5: TTIK REAL | K5: META | L5: ITMARM REAL | M5: META | N5: Zona 1 | O5: Zona 2 | P5: Zonas 3 | Q5: SIGADE | R5: SUP | S5: SUBSE | T5: DOC | U5: AP | V5: IRCA REAL_14 | AC5: IVCA REAL_14 | AJ5: SIGADE | AL5: SUBSE | AM5: DOC | AO5: ALUMBRADO
N6: REAL (PIZ1) | O6: REAL (PIZ2) | P6: REAL (PIZ3) | Q6: REAL (PISIGADE) | R6: REAL (PISUP) | S6: REAL (PISUBSE) | T6: REAL (PIDOC) | U6: REAL (PIALUM) | V6: REAL IRCAZ1 | W6: META | X6: REAL IRCAZ2 | Y6: META | Z6: REAL IRCAZ3 | AA6: META | AB6: TOTAL | AC6: REAL ICVAZ1 | AD6: META | AE6: REAL ICVAZ2 | AF6: META | AG6: REAL ICVAZ3 | AH6: META | AI6: TOTAL | AJ6: IAC REAL | AK6: META | AL6: IFL REAL | AM6: ASG REAL | AN6: META | AO6: TASA DE FALLAS 0,02 | AP6: META | AQ6: REP. SERV. URBANO 24H | AR6: META | AS6: REP. SERV. RURAL 72H | AT6: META
A7: 38 | B7: 2015 | C7: JULIO | D7: 8.12 | E7: 6.99 | F7: 11.71 | G7: 8.85 | H7: 3.91 | I7: 4.17 | J7: 3.03 | K7: 5.22 | L7: 18.96 | M7: 27.51083333 | N7: 55.44 | O7: 60.97 | P7: 57.43 | Q7: 45 | R7: 32.49 | S7: 50.44 | T7: 26.48 | U7: 14.79 | V7: 0.016 | W7: 0.1 | X7: 0.039 | Y7: 0.1 | Z7: 0.044 | AA7: 0.1 | AB7: 0.033 | AC7: 229739 | AD7: 241485 | AE7: 149774 | AF7: 146896 | AG7: 130936 | AH7: 134079 | AI7: 510449 | AJ7: 2.87 | AK7: =+AK8+0.07 -> 2.44 | AL7: 3.54 | AN7: 4.91 | AO7: 0.01015 | AP7: 0 | AQ7: 9.96 | AR7: 24 | AS7: 17.58 | AT7: 48
A8: 39 | B8: 2015 | C8: AGOSTO | D8: 8.06 | E8: 6.99 | F8: 12 | G8: 8.85 | H8: 3.85 | I8: 4.17 | J8: 3.15 | K8: 5.22 | L8: 21.65833333 | M8: 31.35597222 | N8: 61.64 | O8: 64.36 | P8: 50.42 | Q8: 45 | R8: 26.35 | S8: 39.08 | T8: 28.29 | U8: 14.55 | V8: 0.015 | W8: 0.1 | X8: 0.036 | Y8: 0.1 | Z8: 0.039 | AA8: 0.1 | AB8: 0.03 | AC8: 236088 | AD8: 241485 | AE8: 142061 | AF8: 146896 | AG8: 128949 | AH8: 134079 | AI8: 507098 | AJ8: 2.8 | AK8: =+AK9+0.07 -> 2.37 | AL8: 4.03 | AN8: 5.78 | AO8: 0.01393 | AP8: 0 | AQ8: 10.09 | AR8: 24 | AS8: 27.28 | AT8: 48
A9: 40 | B9: 2015 | C9: SEPTIEMBRE | D9: 8.27 | E9: 6.99 | F9: 12.12 | G9: 8.85 | H9: 4.11 | I9: 4.17 | J9: 3.69 | K9: 5.22 | L9: 24.58 | M9: 35.20111111 | N9: 66.71 | O9: 69.75 | P9: 64.54 | Q9: 45 | R9: 26.35 | S9: 39.94 | T9: 35.28 | U9: 24.97 | V9: 0.015 | W9: 0.05 | X9: 0.036 | Y9: 0.05 | Z9: 0.04 | AA9: 0.05 | AB9: 0.03 | AC9: 244192 | AD9: 229922 | AE9: 143402 | AF9: 146896 | AG9: 127484 | AH9: 119320 | AI9: 515078 | AJ9: 2.65 | AK9: 2.3 | AL9: 4.47 | AN9: 6.38 | AO9: 0.01092 | AP9: 0 | AQ9: 39.82 | AR9: 24 | AS9: 13.09 | AT9: 48
A10: 41 | B10: 2015 | C10: OCTUBRE | D10: 8.03 | E10: 6.99 | F10: 11.54 | G10: 8.85 | H10: 4.16 | I10: 4.17 | J10: 3.71 | K10: 5.22 | L10: 27.19 | M10: 39.04625 | N10: 64.72 | O10: 70.27 | P10: 68.93 | Q10: 45 | R10: 11.45 | S10: 45.16 | T10: 36.81 | U10: 27.46 | V10: 0.017 | W10: 0.05 | X10: 0.034 | Y10: 0.05 | Z10: 0.039 | AA10: 0.05 | AB10: 0.03 | AC10: 231978 | AD10: 229922 | AE10: 135870 | AF10: 163227 | AG10: 132559 | AH10: 119320 | AI10: 500406 | AJ10: 2.59 | AK10: =+AK9-0.07 -> 2.23 | AL10: 5.02 | AN10: 7.03 | AO10: 0.01105 | AP10: 0 | AQ10: 12.18 | AR10: 24 | AS10: 14.7 | AT10: 48
A11: 42 | B11: 2015 | C11: NOVIEMBRE | D11: 7.71 | E11: 6.99 | F11: 11.19 | G11: 8.85 | H11: 3.9 | I11: 4.17 | J11: 3.6 | K11: 5.22 | L11: 29.63 | M11: 42.89138889 | N11: 67.64 | O11: 71.94 | P11: 70.51 | Q11: 45 | R11: 6.31 | S11: 46.1 | T11: 39.86 | U11: 34.67 | V11: 0.017 | W11: 0.05 | X11: 0.033 | Y11: 0.05 | Z11: 0.036 | AA11: 0.05 | AB11: 0.029 | AC11: 228497 | AD11: 229922 | AE11: 135626 | AF11: 163227 | AG11: 125395 | AH11: 119320 | AI11: 489519 | AJ11: 2.5 | AK11: =+AK10-0.07 -> 2.16 | AL11: 5.65 | AN11: 7.74 | AO11: 0.01272 | AP11: 0 | AQ11: 11.81 | AR11: 24 | AS11: 10.2 | AT11: 48
A12: 43 | B12: 2015 | C12: DICIEMBRE | D12: 7.66 | E12: 6.99 | F12: 10.86 | G12: 8.85 | H12: 3.42 | I12: 4.17 | J12: 2.96 | K12: 5.22 | L12: 32.025 | M12: 46.73652778 | N12: 78.94 | O12: 72.64 | P12: 76.58 | Q12: 33.74 | R12: 6.31 | S12: 46.16 | T12: 43.61 | U12: 51.98 | V12: 0.016 | W12: 0.05 | X12: 0.032 | Y12: 0.05 | Z12: 0.034 | AA12: 0.05 | AB12: 0.027 | AC12: 226967 | AD12: 241485 | AE12: 139494 | AF12: 146896 | AG12: 125680 | AH12: 134079 | AI12: 492142 | AJ12: 2.36 | AK12: 2.09 | AL12: 6.14 | AN12: 8.56 | AO12: 0.01176 | AP12: 0 | AQ12: 10.44 | AR12: 24 | AS12: 10.72 | AT12: 48
A13: 44 | B13: 2016 | C13: ENERO | D13: 7.53 | E13: 6.21 | F13: 10.62 | G13: 10.65 | H13: 3.02 | I13: 3.66 | J13: 2.68 | K13: 3.02 | L13: 3.14 | M13: 2.67 | N13: 7.56 | O13: 9.55 | P13: 26.72 | Q13: 3.55 | R13: 0 | S13: 28.47 | T13: 16.92 | U13: 10.97 | V13: 0.014 | W13: 0.03 | X13: 0.017 | Y13: 0.05 | Z13: 0.01 | AA13: 0.04 | AB13: 0.014 | AC13: 223628 | AD13: 229240 | AE13: 142704 | AF13: 163227 | AG13: 128102 | AH13: 118528 | AI13: 494433 | AJ13: 2.28 | AK13: 3.5 | AL13: 0.63 | AN13: 0.52 | AO13: 0.01042 | AP13: 2 | AQ13: 11.55 | AR13: 24 | AS13: 19.24 | AT13: 72
A14: 45 | B14: 2016 | C14: FEBRERO | D14: 7.35 | E14: 6.21 | F14: 10.43 | G14: 10.65 | H14: 2.98 | I14: 3.66 | J14: 2.73 | K14: 3.02 | L14: 5.31 | M14: =+M13+2.67 -> 5.34 | N14: 46.47 | O14: 27.65 | P14: 41.96 | Q14: 3.55 | R14: 0 | S14: 31.03 | T14: 31.03 | U14: 15.68 | V14: 0.022 | W14: 0.03 | X14: 0.017 | Y14: 0.05 | Z14: 0.02 | AA14: 0.04 | AB14: 0.019 | AC14: 94.8 | AD14: 229240 | AE14: 92 | AF14: 163227 | AG14: 91.9 | AH14: 118528 | AJ14: 2.25 | AK14: =+AK13-0.1 -> 3.4 | AL14: 0.95 | AN14: =+AN13+0.52 -> 1.04 | AO14: 0.01015 | AP14: 2 | AQ14: 10.26 | AR14: 24 | AS14: 9.91 | AT14: 72
A15: 46 | B15: 2016 | C15: MARZO | D15: 7.18 | E15: 6.21 | F15: 10.32 | G15: 10.65 | H15: 2.88 | I15: 3.66 | J15: 2.66 | K15: 3.02 | L15: 7.81 | M15: =+M14+2.67 -> 8.01 | N15: 59.58 | O15: 41.37 | P15: 46.44 | Q15: 100 | R15: 0 | S15: 50.86 | T15: 32 | U15: 33.72 | V15: 0.019 | W15: 0.03 | X15: 0.019 | Y15: 0.05 | Z15: 0.017 | AA15: 0.04 | AB15: 0.019 | AC15: 98 | AD15: 229240 | AE15: 96 | AF15: 163227 | AG15: 92 | AH15: 118528 | AJ15: 2.22 | AK15: =+AK14-0.1 -> 3.3 | AL15: 1.63 | AN15: =+AN14+0.52 -> 1.56 | AO15: 0.01363 | AP15: 2 | AQ15: 13.79 | AR15: 24 | AS15: 14.86 | AT15: 72
A16: 47 | B16: 2016 | C16: ABRIL | D16: 6.89 | E16: 6.21 | F16: 9.91 | G16: 9.02 | H16: 2.72 | I16: 3.66 | J16: 2.6 | K16: 2.67 | L16: 10.12 | M16: 10.68 | N16: 65.65 | O16: 55.07 | P16: 54.74 | Q16: 20 | R16: 0 | S16: 50.94 | T16: 37.04 | U16: 35.59 | V16: 0.017 | W16: 0.03 | X16: 0.02 | Y16: 0.05 | Z16: 0.018 | AA16: 0.04 | AB16: 0.018 | AC16: 96.5 | AD16: 223127 | AE16: 96.7 | AF16: 145133 | AG16: 87.9 | AH16: 118528 | AJ16: 2.19 | AK16: 3.2 | AL16: 2.18 | AN16: 2.08 | AO16: 0.01226 | AP16: 1.14 | AQ16: 12.81 | AR16: 16.64 | AS16: 17.51 | AT16: 31.06
A17: 48 | B17: 2016 | C17: MAYO | D17: 7.29 | E17: 6.21 | F17: 10.1 | G17: 9.02 | H17: 2.92 | I17: 3.66 | J17: 2.78 | K17: 2.67 | L17: 12.43 | M17: 13.35 | N17: 69.5 | O17: 61.21 | P17: 59.54 | Q17: 20 | R17: 0 | S17: 52.13 | T17: 44.02 | U17: 37.09 | V17: 0.017 | W17: 0.03 | X17: 0.018 | Y17: 0.05 | Z17: 0.019 | AA17: 0.04 | AB17: 0.018 | AC17: 102 | AD17: 223127 | AE17: 102 | AF17: 145133 | AG17: 106 | AH17: 118528 | AI17: 100 | AJ17: 2.15 | AK17: 3.1 | AL17: 2.67 | AN17: 2.6 | AO17: 0.01232 | AP17: 1.14 | AQ17: 8.69 | AR17: 16.64 | AS17: 13.45 | AT17: 31.06
A18: 49 | B18: 2016 | C18: JUNIO | D18: 7.21 | E18: 6.21 | F18: 9.53 | G18: 9.02 | H18: 2.81 | I18: 3.66 | J18: 2.67 | K18: 2.67 | L18: 15.27 | M18: 16.02 | N18: 72.79 | O18: 62.89 | P18: 62.04 | Q18: 20 | R18: 0 | S18: 52.17 | T18: 47.56 | U18: 44.15 | V18: 0.017 | W18: 0.03 | X18: 0.02 | Y18: 0.05 | Z18: 0.02 | AA18: 0.04 | AB18: 0.019 | AC18: 106.7 | AD18: 223127 | AE18: 101.3 | AF18: 145133 | AG18: 111.4 | AH18: 118528 | AI18: 100 | AJ18: 2.1 | AK18: 3 | AL18: 3.06 | AN18: 3.12 | AO18: 0.01198 | AP18: 1.14 | AQ18: 10.01 | AR18: 16.64 | AS18: 15.47 | AT18: 31.06
A19: 50 | B19: 2016 | C19: JULIO | D19: 7.28 | E19: 6.21 | F19: 9.46 | G19: 9.02 | H19: 2.75 | I19: 3.66 | J19: 2.43 | K19: 2.67 | L19: 17.76 | M19: 18.69 | N19: 71.32 | O19: 64.99 | P19: 59.52 | Q19: 17.74 | R19: 0 | S19: 53.75 | T19: 51.44 | U19: 47.91 | V19: 0.017 | W19: 0.03 | X19: 0.021 | Y19: 0.05 | Z19: 0.019 | AA19: 0.04 | AB19: 0.019 | AC19: 101.1 | AD19: 223127 | AE19: 105.4 | AF19: 145133 | AG19: 117.7 | AH19: 118528 | AI19: 100 | AJ19: 2.04 | AK19: 2.9 | AL19: 3.43 | AN19: 3.64 | AO19: 0.01128 | AP19: 1.14 | AQ19: 8.26 | AR19: 16.64 | AS19: 11.49 | AT19: 31.06
A20: 51 | B20: 2016 | C20: AGOSTO | D20: 7.27 | E20: 6.21 | F20: 9.16 | G20: 9.02 | H20: 2.7 | I20: 3.66 | J20: 2.21 | K20: 2.67 | L20: 20.41 | M20: 21.36 | N20: 70.85 | O20: 80.43 | P20: 60.78 | Q20: 43.46 | R20: 22.56 | S20: 54.38 | T20: 53.8 | U20: 36.04 | V20: 0.015 | W20: 0.03 | X20: 0.02 | Y20: 0.05 | Z20: 0.018 | AA20: 0.04 | AB20: 0.018 | AC20: 106.1 | AD20: 223127 | AE20: 104 | AF20: 145133 | AG20: 108.2 | AH20: 118528 | AI20: 100 | AJ20: 1.99 | AK20: 2.8 | AL20: 3.96 | AN20: 4.16 | AO20: 0.01186 | AP20: 1.14 | AQ20: 11.22 | AR20: 16.64 | AS20: 11.55 | AT20: 31.06
A21: 52 | B21: 2016 | C21: SEPTIEMBRE | D21: 6.94 | E21: 6.21 | F21: 8.45 | G21: 9.02 | H21: 2.48 | I21: 3.66 | J21: 1.68 | K21: 2.67 | L21: 23.43 | M21: 24.03 | N21: 71.04 | O21: 82.01 | P21: 70.28 | Q21: 43.46 | R21: 21.26 | S21: 60.43 | T21: 56.08 | U21: 38.27 | V21: 0.015 | W21: 0.03 | X21: 0.019 | Y21: 0.05 | Z21: 0.017 | AA21: 0.04 | AB21: 0.017 | AC21: 97.1 | AD21: 223127 | AE21: 101.1 | AF21: 145133 | AG21: 101.1 | AH21: 118528 | AI21: 100 | AJ21: 1.94 | AK21: 2.7 | AL21: 4.39 | AN21: 4.68 | AO21: 0.01195 | AP21: 1.14 | AQ21: 7.99 | AR21: 16.64 | AS21: 12.03 | AT21: 31.06
A22: 53 | B22: 2016 | C22: OCTUBRE | D22: 7.53 | E22: 6.21 | F22: 8.81 | G22: 9.02 | H22: 2.59 | I22: 3.66 | J22: 1.7 | K22: 2.67 | L22: 26.01 | M22: 26.7 | N22: 71.05 | O22: 86.77 | P22: 70.43 | R22: 21.26 | S22: 56.5 | T22: 57.83 | U22: 44.1 | V22: 0.015 | W22: 0.03 | X22: 0.019 | Y22: 0.05 | Z22: 0.017 | AA22: 0.04 | AB22: 0.017 | AC22: 100 | AD22: 223127 | AE22: 100 | AF22: 145133 | AG22: 100 | AH22: 118528 | AI22: 100 | AJ22: 1.7 | AK22: 2.6 | AL22: 4.97 | AN22: 5.2 | AO22: 0.01071 | AP22: 1.14 | AQ22: 8.95 | AR22: 16.64 | AS22: 16.93 | AT22: 31.06
A23: 54 | B23: 2016 | C23: NOVIEMBRE | D23: 7.63 | E23: 6.21 | F23: 9.02 | G23: 9.02 | H23: 2.56 | I23: 3.66 | J23: 1.65 | K23: 2.67 | L23: 29.55 | M23: 29.37 | N23: 77.11 | O23: 88.35 | P23: 81.12 | R23: 21.5 | S23: 55.55 | T23: 59.53 | U23: 64.52 | V23: 0.017 | W23: 0.03 | X23: 0.018 | Y23: 0.05 | Z23: 0.016 | AA23: 0.04 | AB23: 0.017 | AC23: 100 | AD23: 223127 | AE23: 100 | AF23: 145133 | AG23: 100 | AH23: 118528 | AI23: 100 | AJ23: 1.64 | AK23: 2.5 | AL23: 5.54 | AN23: 5.72 | AO23: 0.01139 | AP23: 1.14 | AQ23: 12.54 | AR23: 16.64 | AS23: 13.73 | AT23: 31.06
A24: 55 | B24: 2016 | C24: DICIEMBRE | D24: 7.49 | E24: 6.21 | F24: 9.19 | G24: 9.02 | H24: 2.71 | I24: 3.66 | J24: 1.68 | K24: 2.67 | L24: 32.25 | M24: 32.04 | N24: 80.2 | O24: 92.61 | P24: 82.74 | R24: 21.5 | S24: 55.55 | T24: 62.17 | U24: 65.32 | V24: 0.015 | W24: 0.03 | X24: 0.017 | Y24: 0.05 | Z24: 0.015 | AA24: 0.04 | AB24: 0.016 | AC24: 100 | AD24: 223127 | AE24: 100 | AF24: 145133 | AG24: 100 | AH24: 118528 | AI24: 100 | AJ24: 1.63 | AK24: 2.4 | AL24: 6.03 | AN24: 6.24 | AO24: 0.01077 | AP24: 1.14 | AQ24: 13.12 | AR24: 16.64 | AS24: 14.63 | AT24: 31.06
A25: 56 | B25: 2017 | C25: ENERO | D25: 7.17 | E25: 6.21 | F25: 8.39 | G25: 9.02 | H25: 2.49 | I25: 3.66 | J25: 1.38 | K25: 2.67 | L25: 2.31 | M25: 2.86 | N25: 84.87 | O25: 94.51 | P25: 83.4 | Q25: 44.26 | R25: 21.5 | S25: 55.55 | T25: 62.17 | U25: 66.25 | V25: 0.039 | W25: 0.02 | X25: 0.053 | Y25: 0.04 | Z25: 0.007 | AA25: 0.04 | AB25: 0.036 | AC25: 100 | AD25: 223127 | AE25: 100 | AF25: 145133 | AG25: 100 | AH25: 118528 | AI25: 100 | AJ25: 1.63 | AK25: 2.35 | AL25: 0.62 | AN25: 0.5 | AO25: 0.01298 | AP25: 1.14 | AQ25: 10.46 | AR25: 12.9 | AS25: 10.27 | AT25: 17.3
A26: 57 | B26: 2017 | C26: FEBRERO | D26: 7.21 | E26: 6.21 | F26: 8.41 | G26: 9.02 | H26: 2.37 | I26: 3.66 | J26: 1.3 | K26: 2.67 | L26: 4.53 | M26: =+M25+2.86 -> 5.72 | N26: 90.35 | O26: 96.26 | P26: 83.63 | Q26: 44.26 | R26: 21.5 | S26: 56 | T26: 62.17 | U26: 66.5 | V26: 0.027 | W26: 0.02 | X26: 0.043 | Y26: 0.04 | Z26: 0.005 | AA26: 0.04 | AB26: 0.028 | AC26: 100 | AD26: 223127 | AE26: 100 | AF26: 145133 | AG26: 100 | AH26: 118528 | AI26: 100 | AJ26: 1.62 | AK26: 2.3 | AL26: 1 | AN26: =+AN25+0.5 -> 1 | AO26: 0.00999 | AP26: 1.14 | AQ26: 9.59 | AR26: 12.9 | AS26: 9.83 | AT26: 17.3
A27: 58 | B27: 2017 | C27: MARZO | D27: 7.65 | E27: 6.21 | F27: 8.93 | G27: 9.02 | H27: 2.58 | I27: 3.66 | J27: 1.36 | K27: 2.67 | L27: 7.59 | M27: =+M26+2.86 -> 8.58 | N27: 90.58391326 | O27: 96.34618441 | P27: 86.11818412 | Q27: 46.85124441 | R27: 21.5 | S27: 74.49520166 | T27: 63.13713068 | U27: 73.71978613 | V27: 0.025 | W27: 0.02 | X27: 0.038 | Y27: 0.04 | Z27: 0.006 | AA27: 0.04 | AB27: 0.025 | AC27: 100 | AD27: 223127 | AE27: 100 | AF27: 145133 | AG27: 100 | AH27: 118528 | AI27: 100 | AJ27: 1.61 | AK27: 2.25 | AL27: 1.68 | AN27: =+AN26+0.5 -> 1.5 | AO27: 0.01749 | AP27: 1.14 | AQ27: 15.43 | AR27: 12.9 | AS27: 14.25 | AT27: 17.3
A28: 59 | B28: 2017 | C28: ABRIL | D28: 7.71 | E28: 6.21 | F28: 9.23 | G28: 9.02 | H28: 2.71 | I28: 3.66 | J28: 1.44 | K28: 2.67 | L28: 10.78 | M28: 11.44 | N28: 94.24 | O28: 96.39 | P28: 88.69 | Q28: 46.85 | R28: 21.5 | S28: 74.53 | T28: 64.2 | U28: 75.21 | V28: 0.02 | W28: 0.02 | X28: 0.019 | Y28: 0.04 | Z28: 0.005 | AA28: 0.04 | AB28: 0.017 | AC28: 100 | AD28: 223127 | AE28: 100 | AF28: 145133 | AG28: 100 | AH28: 118528 | AI28: 100 | AJ28: 1.58 | AK28: 2.2 | AL28: 2.2 | AN28: 2 | AO28: 0.01163 | AP28: 1.14 | AQ28: 13.22 | AR28: 12.9 | AS28: 17.57 | AT28: 17.3
A29: 60 | B29: 2017 | C29: MAYO | D29: 7.64 | E29: 6.21 | F29: 9.21 | G29: 9.02 | H29: 2.68 | I29: 3.66 | J29: 1.37 | K29: 2.67 | L29: 14.01 | M29: 14.3 | N29: 95.16 | O29: 96.5 | P29: 93.47 | Q29: 48.49 | R29: 43.27 | S29: 74.53 | T29: 65.07 | U29: 75.3 | V29: 0.018 | W29: 0.02 | X29: 0.02 | Y29: 0.04 | Z29: 0.006 | AA29: 0.04 | AB29: 0.016 | AC29: 100 | AD29: 223127 | AE29: 100 | AF29: 145133 | AG29: 100 | AH29: 118528 | AI29: 100 | AJ29: 1.49 | AK29: 2.15 | AL29: 2.7 | AN29: 2.5 | AO29: 0.01344 | AP29: 1.14 | AQ29: 12.4 | AR29: 12.9 | AS29: 14.24 | AT29: 17.3
A30: 61 | B30: 2017 | C30: JUNIO | D30: 7.57 | E30: 6.21 | F30: 9.26 | G30: 9.02 | H30: 2.7 | I30: 3.66 | J30: 1.41 | K30: 2.67 | L30: 16.35 | M30: 17.16 | N30: 96.32 | O30: 96.52 | P30: 93.77 | Q30: 48.49 | R30: 43.5 | S30: 85.13 | T30: 66.1 | U30: 75.32 | V30: 0.017 | W30: 0.02 | X30: 0.02 | Y30: 0.04 | Z30: 0.006 | AA30: 0.04 | AB30: 0.017 | AC30: 100 | AD30: 223127 | AE30: 100 | AF30: 145133 | AG30: 100 | AH30: 118528 | AI30: 100 | AJ30: 1.47 | AK30: 2.1 | AL30: 3.03 | AN30: 3 | AO30: 0.01458 | AP30: 1.14 | AQ30: 10.84 | AR30: 12.9 | AS30: 10.55 | AT30: 17.3
A31: 62 | B31: 2017 | C31: JULIO | D31: 7.02 | E31: 6.21 | F31: 8.75 | G31: 9.02 | H31: 2.41 | I31: 3.66 | J31: 1.24 | K31: 2.67 | L31: 18.43 | M31: 20.02 | N31: 96.02 | O31: 96.52 | P31: 93.77 | Q31: 48.49 | R31: 43.5 | S31: 85.15 | T31: 66.1 | U31: 90.67 | V31: 0.016 | W31: 0.02 | X31: 0.02 | Y31: 0.04 | Z31: 0.006 | AA31: 0.04 | AB31: 0.016 | AC31: 100 | AD31: 223127 | AE31: 100 | AF31: 145133 | AG31: 100 | AH31: 118528 | AI31: 100 | AJ31: 1.45 | AK31: 2.05 | AL31: 3.44 | AN31: 3.5 | AO31: 0.00915 | AP31: 1.14 | AQ31: 8.56 | AR31: 12.9 | AS31: 10.14 | AT31: 17.3
A32: 63 | B32: 2017 | C32: AGOSTO | D32: 7.04 | E32: 6.21 | F32: 8.67 | G32: 9.02 | H32: 2.34 | I32: 3.66 | J32: 1.19 | K32: 2.67 | L32: 20.75 | M32: 22.88 | N32: 96.02 | O32: 96.52 | P32: 93.81 | Q32: 48.49 | R32: 43.5 | S32: 92.51 | T32: 66.12 | U32: 91.66 | V32: 0.016 | W32: 0.02 | X32: 0.021 | Y32: 0.04 | Z32: 0.006 | AA32: 0.04 | AB32: 0.016 | AC32: 100 | AD32: 223127 | AE32: 100 | AF32: 145133 | AG32: 100 | AH32: 118528 | AI32: 100 | AJ32: 1.42 | AK32: 2 | AL32: 3.91 | AN32: 4 | AO32: 0.01478 | AP32: 1.14 | AQ32: 9.36 | AR32: 12.9 | AS32: 9.56 | AT32: 17.3
A33: 64 | B33: 2017 | C33: SEPTIEMBRE | D33: 6.82 | E33: 6.21 | F33: 8.88 | G33: 9.02 | H33: 2.09 | I33: 3.66 | J33: 1.07 | K33: 2.67 | L33: 23.03 | M33: 25.74 | N33: 96.56 | O33: 96.52 | P33: 93.81 | Q33: 48.49 | R33: 50.42 | S33: 95.06 | T33: 68.12 | U33: 91.7 | V33: 0.014 | W33: 0.02 | X33: 0.021 | Y33: 0.04 | Z33: 0.007 | AA33: 0.04 | AB33: 0.016 | AC33: 100 | AD33: 223127 | AE33: 100 | AF33: 145133 | AG33: 100 | AH33: 118528 | AI33: 100 | AJ33: 1.37 | AK33: 1.95 | AL33: 4.32 | AN33: 4.5 | AO33: 0.01181 | AP33: 1.14 | AQ33: 9.2 | AR33: 12.9 | AS33: 9.52 | AT33: 17.3 | AW33: 389000 | AX33: 100
A34: 65 | B34: 2017 | C34: OCTUBRE | D34: 6.05 | E34: 6.21 | F34: 8.57 | G34: 9.02 | H34: 1.75 | I34: 3.66 | J34: 0.92 | K34: 2.67 | L34: 25.52 | M34: 28.6 | N34: 96.98 | O34: 96.52 | P34: 94.16 | Q34: 48.49 | R34: 50.42 | S34: 95.06 | T34: 68.12 | U34: 93.08 | V34: 0.013 | W34: 0.02 | X34: 0.021 | Y34: 0.04 | Z34: 0.007 | AA34: 0.04 | AB34: 0.015 | AC34: 100 | AD34: 223127 | AE34: 100 | AF34: 145133 | AG34: 100 | AH34: 118528 | AI34: 100 | AJ34: 1.32 | AK34: 1.9 | AL34: 4.86 | AN34: 5 | AO34: 0.01247 | AP34: 1.14 | AQ34: 10.62 | AR34: 12.9 | AS34: 11.51 | AT34: 17.3 | AW34: 1500 | AX34: =+AW34*AX33/AW33 -> 0.3856041131 | AY34: 0.5 | AZ34: =+AJ36-AY34 -> 0.35
A35: 66 | B35: 2017 | C35: NOVIEMBRE | D35: 5.76 | E35: 6.21 | F35: 8.16 | G35: 9.02 | H35: 1.69 | I35: 3.66 | J35: 0.94 | K35: 2.67 | L35: 28.63 | M35: 31.46 | N35: 37.57270814 | O35: 28.9530744 | P35: 36.8516614 | Q35: 39.41344778 | R35: 44.50867948 | S35: 49.56124635 | T35: 11.89172261 | U35: 31.26175576 | V35: 0.013 | W35: 0.02 | X35: 0.021 | Y35: 0.04 | Z35: 0.007 | AA35: 0.04 | AB35: 0.015 | AC35: 100 | AD35: 223127 | AE35: 100 | AF35: 145133 | AG35: 100 | AH35: 118528 | AI35: 100 | AJ35: 0.9 | AK35: 1.85 | AL35: 5.48 | AN35: 5.5 | AO35: 0.01557 | AP35: 1.14 | AQ35: 11.06 | AR35: 12.9 | AS35: 12.84 | AT35: 17.3 | AZ35: =+AZ34/12 -> 0.02916666667
A36: 67 | B36: 2017 | C36: DICIEMBRE | D36: 5.46 | E36: 6.21 | F36: 7.95 | G36: 9.02 | H36: 1.59 | I36: 3.66 | J36: 0.99 | K36: 2.67 | L36: 31.31 | M36: 34.32 | N36: 44.87 | O36: 31.37 | P36: 47.63 | Q36: 39.41 | R36: 48.77 | S36: 49.56 | T36: 11.96 | U36: 35.21 | V36: 0.013 | W36: 0.02 | X36: 0.02 | Y36: 0.04 | Z36: 0.009 | AA36: 0.04 | AB36: 0.016 | AC36: 100 | AD36: 223127 | AE36: 100 | AF36: 145133 | AG36: 100 | AH36: 118528 | AI36: 100 | AJ36: 0.85 | AK36: 1.8 | AN36: 6 | AO36: 0.01158 | AP36: 1.14 | AQ36: 5.81 | AR36: 12.9 | AS36: 8.16 | AT36: 17.3
A37: 68 | AJ37: =+AJ36-$AL$37 -> 0.82 | AL37: 0.03
A38: 69 | L38: 1.59 | AJ38: =+AJ37-$AL$37 -> 0.79
A39: 70 | AJ39: 0.76
A40: 71 | AJ40: 0.73
A41: 72 | AJ41: 0.7
A42: 73 | AJ42: 0.67
AJ43: 0.64
X44: 4000 | Z44: =+X44/12 -> 333.3333333 | AB44: =+Z44*0.08/12 -> 2.222222222 | AG44: 20000 | AI44: 200 | AJ44: 0.61
Z45: =+Z44+333 -> 666.3333333 | AB45: =+Z45*0.08/12 -> 4.442222222 | AI45: =+AG44/AI44 -> 100 | AJ45: 0.58
Z46: =+Z45+333 -> 999.3333333 | AB46: 6.662222222 | AJ46: 0.55
Z47: 1332.333333 | AB47: 8.882222222 | AJ47: 0.52
O48: IRCA | Q48: ICVA | T48: 0.03 | Z48: 1665.333333 | AB48: 11.10222222 | AJ48: 0.49
O49: REPORTADO | P49: REAL | Q49: REPORTADO | R49: REAL | T49: 0.05 | Z49: 1998.333333 | AB49: 13.32222222
N50: ZONA 1 | O50: 0.03 | P50: 0.023 | Q50: 229240 | R50: 222238 | T50: 0.04 | Z50: 2331.333333 | AB50: 15.54222222
N51: ZONA 2 | O51: 0.05 | P51: 0.04 | Q51: 163227 | R51: 134887 | Z51: 2664.333333 | AB51: 17.76222222
N52: ZONA 3 | O52: 0.04 | P52: 0.057 | Q52: 118528 | R52: 151395 | T52: 229240 | Z52: 2997.333333 | AB52: 19.98222222
T53: 163227 | Z53: 3330.333333 | AB53: 22.20222222
T54: 118528 | Z54: 3663.333333 | AB54: 24.42222222
Z55: 3996.333333 | AB55: 26.64222222
P58: 17.95
P59: =+P58*1.22 -> 21.899
AI61: 800 | AJ61: 120
AJ62: =+AI61/AJ61 -> 6.666666667 | AL62: 1
AB63: 1400 | AJ63: 30 | AL63: =+AJ63/12 -> 2.5
AB64: =+AB63*12 -> 16800 | AC64: 800 | AJ64: 10
AC65: =+AC64*12 -> 9600 | AI65: 110 | AJ65: =+AI65*12/120 -> 11
AC66: =+AB64-AC65 -> 7200
AJ68: =+AJ65+AJ64+AL63+AL62 -> 24.5

Sheet Meta (hidden)
B1: INDICADORES DE PRODUCTIVIDAD PROYECCIÓN 2014
C3: INDICADORES A NIVEL DE DIRECCIÓN | H3: INDICADORES A NIVEL DE DEPARTAMENTO
C4: GLOBAL | E4: CABECERA | H4: PRESUPUESTO DE INVERSIONES | P4: VARIOS
B5: MESES | C5: FMIK META | D5: TTIK META | E5: FMIK META | F5: TTIK META | G5: ITMARM META | H5: Zonas 1 | I5: Zonas 2 | J5: Zonas 3 | K5: SIGADE | L5: SUP | M5: SUBSE | N5: DOC | O5: ALUM. | P5: META IRCA | T5: META ICVA | X5: SIGADE | Y5: SUP | Z5: SUBSE | AA5: DOC | AB5: ALUMBRADO
A6: año | H6: META (PIZ1) | I6: META (PIZ2) | J6: META (PIZ3) | K6: META (PISIGADE) | L6: META (PISUP) | M6: META (PISUBSE) | N6: META (PIDOC) | O6: META (PIALUM) | P6: META IRCAZ1 | Q6: META IRCAZ2 | R6: META IRCAZ3 | S6: TOTAL | T6: META ICVAZ1 | U6: META ICVAZ2 | V6: META ICVAZ3 | W6: TOTAL | X6: META IAC | Y6: META TMARAP | Z6: META IFL | AA6: META ASG | AB6: TASA DE FALLAS 2 | AC6: REP. SERV. URBANO 24horas | AD6: REP. SERV. RURAL 72 horas
A7: 2015 | B7: JUL | C7: 6.99 | D7: 8.85 | E7: 4.17 | F7: 5.22 | G7: 27.51083333 | H7: 50.65986811 | I7: 45.79373829 | J7: 51.44162035 | K7: 49.25 | L7: 49.15909091 | M7: 55.24 | N7: 29.78 | P7: 0.1 | Q7: 0.1 | R7: 0.1 | S7: 0.1 | T7: 241485 | U7: 146896 | V7: 134079 | W7: =SUM(T7:V7) -> 522460 | X7: =+X8+0.07 -> 2.44 | Y7: 174.7716667 | Z7: 4.91 | AA7: 0.9 | AC7: 24 | AD7: 48 | AE7: 0.02
A8: 2015 | B8: AGO | C8: 6.99 | D8: 8.85 | E8: 4.17 | F8: 5.22 | G8: 31.35597222 | H8: 58.52804993 | I8: 53.54260831 | J8: 59.15252944 | K8: 57.4 | L8: 57.32727273 | M8: 57.91 | N8: 38.51 | P8: 0.1 | Q8: 0.1 | R8: 0.1 | S8: 0.1 | T8: 241485 | U8: 146896 | V8: 134079 | W8: 522460 | X8: =+X9+0.07 -> 2.37 | Y8: 197.5369444 | Z8: 5.78 | AA8: 0.9 | AC8: 24 | AD8: 48 | AE8: 0.02
A9: 2015 | B9: SEP | C9: 6.99 | D9: 8.85 | E9: 4.17 | F9: 5.22 | G9: 35.20111111 | H9: 49.5 | I9: 48 | J9: 56 | K9: 0 | L9: 30 | M9: 23.5 | N9: 58 | P9: 0.05 | Q9: 0.05 | R9: 0.05 | S9: 0.05 | T9: 229922 | U9: 146896 | V9: 119320 | W9: 496138 | X9: 2.3 | Y9: 220.3022222 | Z9: 6.38 | AA9: 0.9 | AC9: 24 | AD9: 48 | AE9: 0.02
A10: 2015 | B10: OCT | C10: 6.99 | D10: 8.85 | E10: 4.17 | F10: 5.22 | G10: 39.04625 | H10: 74.26441357 | I10: 70.47899901 | J10: 74.57434762 | K10: 73.7 | L10: 73.66363636 | M10: 69.06 | N10: 59.44 | P10: 0.05 | Q10: 0.05 | R10: 0.05 | S10: 0.05 | T10: 229922 | U10: 163227 | V10: 119320 | W10: 512469 | X10: =+X9-0.07 -> 2.23 | Y10: 243.0675 | Z10: 7.03 | AA10: 0.9 | AC10: 24 | AD10: 48 | AE10: 0.02
A11: 2015 | B11: NOV | C11: 6.99 | D11: 8.85 | E11: 4.17 | F11: 5.22 | G11: 42.89138889 | H11: 68.5 | I11: 51 | J11: 55 | K11: 0 | L11: 35 | M11: 32 | N11: 63 | O11: 40 | P11: 0.05 | Q11: 0.05 | R11: 0.05 | S11: 0.05 | T11: 229922 | U11: 163227 | V11: 119320 | W11: 512469 | X11: =+X10-0.07 -> 2.16 | Y11: 265.8327778 | Z11: 7.74 | AA11: 0.9 | AC11: 24 | AD11: 48 | AE11: 0.02
A12: 2015 | B12: DIC | C12: 6.99 | D12: 8.85 | E12: 4.17 | F12: 5.22 | G12: 46.73652778 | H12: 73.7 | I12: 60.5 | J12: 72 | K12: 100 | L12: 55 | M12: 42 | N12: 67 | O12: 46 | P12: 0.05 | Q12: 0.05 | R12: 0.05 | S12: 0.05 | T12: 241485 | U12: 146896 | V12: 134079 | W12: 522460 | X12: 2.09 | Y12: 288.5980556 | Z12: 8.56 | AA12: 0.9 | AC12: 24 | AD12: 48 | AE12: 0.02
A13: 2016 | B13: ENE | C13: 6.21 | D13: 10.65 | E13: 3.66 | F13: 3.02 | G13: 2.67 | H13: 38.5 | I13: 33 | J13: 26 | K13: 0.01 | L13: 21.92 | M13: 39.5 | N13: 40 | O13: 80 | P13: 0.03 | Q13: 0.05 | R13: 0.04 | S13: 0.05 | T13: 229240 | U13: 163227 | V13: 118528 | W13: 512469 | X13: 3.5 | Y13: 11.79 | Z13: 0.52 | AB13: 2 | AC13: 24 | AD13: 72 | AE13: =+AB13/100 -> 0.02
A14: 2016 | B14: FEB | C14: 6.21 | D14: 10.65 | E14: 3.66 | F14: 3.02 | G14: =+G13+2.67 -> 5.34 | H14: 44 | I14: 39 | J14: 28 | K14: 0.01 | L14: 51.57 | M14: 41.4 | N14: 44 | O14: 80 | P14: 0.03 | Q14: 0.05 | R14: 0.04 | S14: 0.05 | T14: 229240 | U14: 163227 | V14: 118528 | W14: 512469 | X14: =+X13-0.1 -> 3.4 | Y14: =+Y13+11.79 -> 23.58 | Z14: =+Z13+0.52 -> 1.04 | AB14: 2 | AC14: 24 | AD14: 72 | AE14: =+AB14/100 -> 0.02
A15: 2016 | B15: MAR | C15: 6.21 | D15: 10.65 | E15: 3.66 | F15: 3.02 | G15: =+G14+2.67 -> 8.01 | H15: 46 | I15: 46 | J15: 39 | K15: 45 | L15: 52 | M15: 44 | N15: 44 | O15: 80 | P15: 0.03 | Q15: 0.05 | R15: 0.04 | S15: 0.05 | T15: 229240 | U15: 163227 | V15: 118528 | W15: 512469 | X15: =+X14-0.1 -> 3.3 | Y15: =+Y14+11.79 -> 35.37 | Z15: =+Z14+0.52 -> 1.56 | AB15: 2 | AC15: 24 | AD15: 72 | AE15: 0.02
A16: 2016 | B16: ABR | C16: 6.21 | D16: 9.02 | E16: 3.66 | F16: 2.67 | G16: 10.68 | H16: 24 | I16: 31 | J16: 21.8 | K16: 45 | L16: 44.3 | M16: 42 | N16: 27.3 | O16: 5.2 | P16: 0.03 | Q16: 0.05 | R16: 0.04 | S16: 0.05 | T16: 223127 | U16: 145133 | V16: 118528 | W16: =SUM(T16:V16) -> 486788 | X16: 3.2 | Y16: 47.16 | Z16: 2.08 | AB16: 1.14 | AC16: 16.64 | AD16: 31.06 | AE16: 0.0114
A17: 2016 | B17: MAY | C17: 6.21 | D17: 9.02 | E17: 3.66 | F17: 2.67 | G17: 13.35 | H17: 39 | I17: 53 | J17: 47.5 | K17: 45 | L17: 43.82 | M17: 47 | N17: 31 | O17: 15 | P17: 0.03 | Q17: 0.05 | R17: 0.04 | S17: 0.05 | T17: 223127 | U17: 145133 | V17: 118528 | W17: 486788 | X17: 3.1 | Y17: 58.95 | Z17: 2.6 | AB17: 1.14 | AC17: 16.64 | AD17: 31.06 | AE17: 0.0114
A18: 2016 | B18: JUN | C18: 6.21 | D18: 9.02 | E18: 3.66 | F18: 2.67 | G18: 16.02 | H18: 47 | I18: 57 | J18: 49 | K18: 45 | L18: 43.82 | M18: 47.5 | N18: 33 | O18: 15 | P18: 0.03 | Q18: 0.05 | R18: 0.04 | S18: 0.05 | T18: 223127 | U18: 145133 | V18: 118528 | W18: 486788 | X18: 3 | Y18: 70.74 | Z18: 3.12 | AB18: 1.14 | AC18: 16.64 | AD18: 31.06 | AE18: 0.0114
A19: 2016 | B19: JUL | C19: 6.21 | D19: 9.02 | E19: 3.66 | F19: 2.67 | G19: 18.69 | P19: 0.03 | Q19: 0.05 | R19: 0.04 | S19: 0.05 | T19: 223127 | U19: 145133 | V19: 118528 | W19: 486788 | X19: 2.9 | Y19: 82.53 | Z19: 3.64 | AB19: 1.14 | AC19: 16.64 | AD19: 31.06 | AE19: 0.0114
A20: 2016 | B20: AGO | C20: 6.21 | D20: 9.02 | E20: 3.66 | F20: 2.67 | G20: 21.36 | P20: 0.03 | Q20: 0.05 | R20: 0.04 | S20: 0.05 | T20: 223127 | U20: 145133 | V20: 118528 | W20: 486788 | X20: 2.8 | Y20: 94.32 | Z20: 4.16 | AB20: 1.14 | AC20: 16.64 | AD20: 31.06 | AE20: 0.0114
A21: 2016 | B21: SEP | C21: 6.21 | D21: 9.02 | E21: 3.66 | F21: 2.67 | G21: 24.03 | P21: 0.03 | Q21: 0.05 | R21: 0.04 | S21: 0.05 | T21: 223127 | U21: 145133 | V21: 118528 | W21: 486788 | X21: 2.7 | Y21: 106.11 | Z21: 4.68 | AB21: 1.14 | AC21: 16.64 | AD21: 31.06 | AE21: 0.0114
A22: 2016 | B22: OCT | C22: 6.21 | D22: 9.02 | E22: 3.66 | F22: 2.67 | G22: 26.7 | P22: 0.03 | Q22: 0.05 | R22: 0.04 | S22: 0.05 | T22: 223127 | U22: 145133 | V22: 118528 | W22: 486788 | X22: 2.6 | Y22: 117.9 | Z22: 5.2 | AB22: 1.14 | AC22: 16.64 | AD22: 31.06 | AE22: 0.0114
A23: 2016 | B23: NOV | C23: 6.21 | D23: 9.02 | E23: 3.66 | F23: 2.67 | G23: 29.37 | P23: 0.03 | Q23: 0.05 | R23: 0.04 | S23: 0.05 | T23: 223127 | U23: 145133 | V23: 118528 | W23: 486788 | X23: 2.5 | Y23: 129.69 | Z23: 5.72 | AB23: 1.14 | AC23: 16.64 | AD23: 31.06 | AE23: 0.0114
A24: 2016 | B24: DIC | C24: 6.21 | D24: 9.02 | E24: 3.66 | F24: 2.67 | G24: 32.04 | P24: 0.03 | Q24: 0.05 | R24: 0.04 | S24: 0.05 | T24: 223127 | U24: 145133 | V24: 118528 | W24: 486788 | X24: 2.4 | Y24: 141.48 | Z24: 6.24 | AB24: 1.14 | AC24: 16.64 | AD24: 31.06 | AE24: 0.0114
B25: Pesos | C25: 0.17 | D25: 0.17 | G25: 0.16 | H25: 0.35 | I25: 0.35 | J25: 0.35 | K25: 0.15 | L25: 0.35 | M25: 0.35 | N25: 0.35 | P25: 0.05 | Q25: 0.05 | R25: 0.05 | S25: 0.05 | T25: 0.1 | U25: 0.1 | V25: 0.1 | W25: 0.1 | X25: 0.35 | Y25: 0.15 | Z25: 0.15 | AA25: 0.15
W27: dic | X27: 4.78 | Y27: 4.23 | Z27: =+X27-Y27 -> 0.55 | AA27: =+Z27/12 -> 0.04583333333
W28: ene | X28: =+X27-$AA$27 -> 4.734166667
W29: feb | X29: 4.688333333
W30: mar | X30: 4.6425
W31: abr | X31: 4.596666667
W32: may | X32: 4.550833333
W33: jun | X33: 4.505
W34: jul | X34: 4.459166667
W35: ago | X35: 4.413333333
W36: sep | X36: 4.3675
W37: oct | X37: 4.321666667
W38: nov | X38: 4.275833333
W39: dic | X39: 4.23
A49: 2017 | B49: ENE | C49: 6.21 | D49: 9.02 | E49: 3.66 | F49: 2.67 | G49: 2.86 | P49: 0.02 | Q49: 0.04 | R49: 0.04 | S49: 0.05 | T49: 223127 | U49: 145133 | V49: 118528 | W49: 512469 | X49: =X24-0.05 -> 2.35 | Y49: 11.79 | Z49: 0.5 | AB49: 1.14 | AC49: 12.9 | AD49: 17.3 | AE49: =+AB49/100 -> 0.0114
A50: 2017 | B50: FEB | C50: 6.21 | D50: 9.02 | E50: 3.66 | F50: 2.67 | G50: =+G49+2.86 -> 5.72 | P50: 0.02 | Q50: 0.04 | R50: 0.04 | S50: 0.05 | T50: 223127 | U50: 145133 | V50: 118528 | W50: 512469 | X50: =+X49-0.05 -> 2.3 | Y50: =+Y49+11.79 -> 23.58 | Z50: =+Z49+0.5 -> 1 | AB50: 1.14 | AC50: 12.9 | AD50: 17.3 | AE50: =+AB50/100 -> 0.0114
A51: 2017 | B51: MAR | C51: 6.21 | D51: 9.02 | E51: 3.66 | F51: 2.67 | G51: =+G50+2.86 -> 8.58 | P51: 0.02 | Q51: 0.04 | R51: 0.04 | S51: 0.05 | T51: 223127 | U51: 145133 | V51: 118528 | W51: 512469 | X51: =+X50-0.05 -> 2.25 | Y51: =+Y50+11.79 -> 35.37 | Z51: =+Z50+0.5 -> 1.5 | AB51: 1.14 | AC51: 12.9 | AD51: 17.3 | AE51: 0.0114
A52: 2017 | B52: ABR | C52: 6.21 | D52: 9.02 | E52: 3.66 | F52: 2.67 | G52: 11.44 | P52: 0.02 | Q52: 0.04 | R52: 0.04 | S52: 0.05 | T52: 223127 | U52: 145133 | V52: 118528 | W52: =SUM(T52:V52) -> 486788 | X52: 2.2 | Y52: 47.16 | Z52: 2 | AB52: 1.14 | AC52: 12.9 | AD52: 17.3 | AE52: 0.0114
A53: 2017 | B53: MAY | C53: 6.21 | D53: 9.02 | E53: 3.66 | F53: 2.67 | G53: 14.3 | P53: 0.02 | Q53: 0.04 | R53: 0.04 | S53: 0.05 | T53: 223127 | U53: 145133 | V53: 118528 | W53: =SUM(T53:V53) -> 486788 | X53: 2.15 | Y53: 58.95 | Z53: 2.5 | AB53: 1.14 | AC53: 12.9 | AD53: 17.3 | AE53: 0.0114
A54: 2017 | B54: JUN | C54: 6.21 | D54: 9.02 | E54: 3.66 | F54: 2.67 | G54: 17.16 | P54: 0.02 | Q54: 0.04 | R54: 0.04 | S54: 0.05 | T54: 223127 | U54: 145133 | V54: 118528 | W54: 486788 | X54: 2.1 | Y54: 70.74 | Z54: 3 | AB54: 1.14 | AC54: 12.9 | AD54: 17.3 | AE54: 0.0114
A55: 2017 | B55: JUL | C55: 6.21 | D55: 9.02 | E55: 3.66 | F55: 2.67 | G55: 20.02 | P55: 0.02 | Q55: 0.04 | R55: 0.04 | S55: 0.05 | T55: 223127 | U55: 145133 | V55: 118528 | W55: 486788 | X55: 2.05 | Y55: 82.53 | Z55: 3.5 | AB55: 1.14 | AC55: 12.9 | AD55: 17.3 | AE55: 0.0114
A56: 2017 | B56: AGO | C56: 6.21 | D56: 9.02 | E56: 3.66 | F56: 2.67 | G56: 22.88 | P56: 0.02 | Q56: 0.04 | R56: 0.04 | S56: 0.05 | T56: 223127 | U56: 145133 | V56: 118528 | W56: 486788 | X56: 2 | Y56: 94.32 | Z56: 4 | AB56: 1.14 | AC56: 12.9 | AD56: 17.3 | AE56: 0.0114
A57: 2017 | B57: SEP | C57: 6.21 | D57: 9.02 | E57: 3.66 | F57: 2.67 | G57: 25.74 | P57: 0.02 | Q57: 0.04 | R57: 0.04 | S57: 0.05 | T57: 223127 | U57: 145133 | V57: 118528 | W57: 486788 | X57: 1.95 | Y57: 106.11 | Z57: 4.5 | AB57: 1.14 | AC57: 12.9 | AD57: 17.3 | AE57: 0.0114
A58: 2017 | B58: OCT | C58: 6.21 | D58: 9.02 | E58: 3.66 | F58: 2.67 | G58: 28.6 | P58: 0.02 | Q58: 0.04 | R58: 0.04 | S58: 0.05 | T58: 223127 | U58: 145133 | V58: 118528 | W58: 486788 | X58: 1.9 | Y58: 117.9 | Z58: 5 | AB58: 1.14 | AC58: 12.9 | AD58: 17.3 | AE58: 0.0114
A59: 2017 | B59: NOV | C59: 6.21 | D59: 9.02 | E59: 3.66 | F59: 2.67 | G59: 31.46 | P59: 0.02 | Q59: 0.04 | R59: 0.04 | S59: 0.05 | T59: 223127 | U59: 145133 | V59: 118528 | W59: 486788 | X59: 1.85 | Y59: 129.69 | Z59: 5.5 | AB59: 1.14 | AC59: 12.9 | AD59: 17.3 | AE59: 0.0114
A60: 2017 | B60: DIC | C60: 6.21 | D60: 9.02 | E60: 3.66 | F60: 2.67 | G60: 34.32 | P60: 0.02 | Q60: 0.04 | R60: 0.04 | S60: 0.05 | T60: 223127 | U60: 145133 | V60: 118528 | W60: 486788 | X60: 1.8 | Y60: 141.48 | Z60: 6 | AB60: 1.14 | AC60: 12.9 | AD60: 17.3 | AE60: 0.0114
T63: sico | U63: =346101 -> 346101
T64: sig | U64: 338688 | W64: =1-(U66/U63) -> 0.01867373975 | AD64: meta | AE64: real
D65: de ser factible solictamos corregir los valores antes de ser emitadas el rol de hpaf | N65: =346101 -> 346101 | O65: 100 | T65: actualizar | U65: -950 | Z65: 96.54 | AC65: 1 trimestrre | AD65: =+Z65+AB66 -> 96.805 | AE65: 96.9
N66: 338688 | O66: =+N66*O65/N65 -> 97.85813968 | U66: =+U64-U65 -> 339638 | Z66: =+Z67-Z65 -> 1.06 | AB66: =+Z66/4 -> 0.265 | AC66: 2 trimestre | AD66: =+AD65+AB66 -> 97.07
O67: =+O65-O66 -> 2.141860324 | Z67: =100-2.4 -> 97.6 | AC67: 3 trimestre | AD67: =+AD66+AB66 -> 97.335
AC68: 4 trimestre | AD68: =+AD67+AB66 -> 97.6
P69: 2.4

Sheet Clasificacion (hidden)
P1: Catego | Q1: Mantenimiento Preventivo
C2: CÓDIGO | D2: DESCRIPCIÓN | E2: Categoría | F2: Catego
C3: A-01 | D3: INSTALACIÓN DE LUMINARIA | E3: Mantenimiento Correctivo | F3: =+IF(E3="Mantenimiento Correctivo","",E3) ->  | P3: COD | Q3: DESCRIPCIÓN | S3: COD | T3: DESCRIPCIÓN | U3: COD | V3: DESCRIPCIÓN
C4: A-02 | D4: CAMBIO DE LUMINARIA | E4: Mantenimiento Correctivo | F4: =+IF(E4="Mantenimiento Correctivo","",E4) ->  | P4: E-01 | Q4: CAMBIO DE ESTRUCTURA | S4: E-01 | T4: CAMBIO DE ESTRUCTURA | U4: F-01 | V4: PODA DE ÁRBOLES
C5: A-03 | D5: CAMBIO PARTES DE LUMINARIA | E5: Mantenimiento Correctivo | P5: E-02 | Q5: MODIFICACIÓN DE ESTRUCTURA | S5: E-02 | T5: MODIFICACIÓN DE ESTRUCTURA | U5: F-02 | V5: LIMPIEZA DE FRANJA DE SERVICI
C6: A-04 | D6: REINGRESO TRAFO/INTERRUP/AP | E6: Mantenimiento Correctivo | P6: E-03 | Q6: CAMBIO DE PUENTES MEDIA TENSIÓ | S6: E-03 | T6: CAMBIO DE PUENTES MEDIA TENSIÓ | U6: O-04 | V6: REVISIÓN ALIMENTADOR PRIMARIO
C7: A-05 | D7: MANTENIMIENTO TRAFO/INTER/AP | E7: Mantenimiento Correctivo | P7: E-05 | Q7: CAMBIO DE TERMINALES | S7: E-05 | T7: CAMBIO DE TERMINALES | U7: P-01 | V7: CAMBIO DE POSTE
C8: A-06 | D8: AMPLIACIÓN BAJA TENSIÓN AP | E8: Mantenimiento Correctivo | P8: E-06 | Q8: AJUSTE DE TERMINALES | S8: E-06 | T8: AJUSTE DE TERMINALES | U8: P-02 | V8: REUBICACIÓN DE POSTE
C9: A-07 | D9: INSTALACIÓN ACOMETIDA SUBT AP | E9: Mantenimiento Correctivo | P9: E-07 | Q9: CAMBIO DE SECCIONADOR | S9: E-07 | T9: CAMBIO DE SECCIONADOR | U9: P-04 | V9: APLOMAR POSTE
C10: A-08 | D10: LIMPIEZA DE LUMINARIA | E10: Mantenimiento Correctivo | P10: E-10 | Q10: AJUSTE DE PARARRAYOS | S10: E-10 | T10: AJUSTE DE PARARRAYOS | U10: P-05 | V10: INSTALACIÓN DE TENSOR
C11: A-09 | D11: ENFOQUE DE PROYECTOR | E11: Mantenimiento Correctivo | P11: E-13 | Q11: AJUSTE DE RECONECTADOR | S11: E-13 | T11: AJUSTE DE RECONECTADOR | U11: P-06 | V11: REUBICACIÓN DE TENSOR
C12: A-10 | D12: CAMBIO DE RELÉ O RELOJ | E12: Mantenimiento Correctivo | P12: E-16 | Q12: AJUSTE DE INTERRUPTOR | S12: E-16 | T12: AJUSTE DE INTERRUPTOR | U12: P-07 | V12: CALIBRACIÓN DE TENSOR
C13: A-11 | D13: REPROGRAMACIÓN DE RELOJ | E13: Mantenimiento Correctivo | P13: E-17 | Q13: CAMBIO DE CONECTORES | S13: E-17 | T13: CAMBIO DE CONECTORES | U13: R-01 | V13: RECALIBRACIÓN DE REDES
C14: C-01 | D14: COORDINACIÓN PLANIFIC.TRABAJO | E14: Mantenimiento Correctivo | P14: E-19 | Q14: CAMBIO AISLADORES | S14: E-19 | T14: CAMBIO AISLADORES | U14: S-01 | V14: INSPECCION RED AÉREA
C15: C-02 | D15: COORDIN - INGENIERO RESPONSABL | E15: Mantenimiento Correctivo | P15: F-01 | Q15: PODA DE ÁRBOLES
C16: C-03 | D16: CAPACITACIÓN | E16: Mantenimiento Correctivo | P16: F-02 | Q16: LIMPIEZA DE FRANJA DE SERVICI
C17: E-01 | D17: CAMBIO DE ESTRUCTURA | E17: Mantenimiento Preventivo | F17: Mantenimiento Preventivo | P17: O-04 | Q17: REVISIÓN ALIMENTADOR PRIMARIO
C18: E-02 | D18: MODIFICACIÓN DE ESTRUCTURA | E18: Mantenimiento Preventivo | F18: Mantenimiento Preventivo | P18: P-01 | Q18: CAMBIO DE POSTE
C19: E-03 | D19: CAMBIO DE PUENTES MEDIA TENSIÓ | E19: Mantenimiento Preventivo | F19: Mantenimiento Preventivo | P19: P-02 | Q19: REUBICACIÓN DE POSTE
C20: E-04 | D20: MODIFICACIÓN DE PUENTES MEDIA | E20: Mantenimiento Correctivo | P20: P-04 | Q20: APLOMAR POSTE
C21: E-05 | D21: CAMBIO DE TERMINALES | E21: Mantenimiento Preventivo | F21: Mantenimiento Preventivo | P21: P-05 | Q21: INSTALACIÓN DE TENSOR
C22: E-06 | D22: AJUSTE DE TERMINALES | E22: Mantenimiento Preventivo | F22: Mantenimiento Preventivo | P22: P-06 | Q22: REUBICACIÓN DE TENSOR
C23: E-07 | D23: CAMBIO DE SECCIONADOR | E23: Mantenimiento Preventivo | F23: Mantenimiento Preventivo | P23: P-07 | Q23: CALIBRACIÓN DE TENSOR
C24: E-08 | D24: AJUSTE DE SECCIONADOR | E24: Mantenimiento Correctivo | P24: R-01 | Q24: RECALIBRACIÓN DE REDES
C25: E-09 | D25: CAMBIO DE PARARRAYOS | E25: Mantenimiento Correctivo | P25: S-01 | Q25: INSPECCION RED AÉREA
C26: E-10 | D26: AJUSTE DE PARARRAYOS | E26: Mantenimiento Preventivo | F26: Mantenimiento Preventivo | P26: Total general
C27: E-11 | D27: CAMBIO DE RECONECTADOR | E27: Mantenimiento Correctivo
C28: E-12 | D28: INSTALACIÓN DE RECONECTADOR | E28: Mantenimiento Correctivo
C29: E-13 | D29: AJUSTE DE RECONECTADOR | E29: Mantenimiento Preventivo | F29: Mantenimiento Preventivo
C30: E-14 | D30: CAMBIO DE INTERRUPTOR | E30: Mantenimiento Correctivo
C31: E-15 | D31: INSTALACIÓN DE INTERRUPTOR | E31: Mantenimiento Correctivo
C32: E-16 | D32: AJUSTE DE INTERRUPTOR | E32: Mantenimiento Preventivo | F32: Mantenimiento Preventivo
C33: E-17 | D33: CAMBIO DE CONECTORES | E33: Mantenimiento Preventivo | F33: Mantenimiento Preventivo
C34: E-18 | D34: AJUSTE DE CONECTORES | E34: Mantenimiento Correctivo
C35: E-19 | D35: CAMBIO AISLADORES | E35: Mantenimiento Preventivo | F35: Mantenimiento Preventivo
C36: E-20 | D36: CAMBIO VENTILADORES | E36: Mantenimiento Correctivo
C37: E-21 | D37: MANTENIMIENTO CABINAS SUBTERRÁ | E37: Mantenimiento Correctivo
C38: E-22 | D38: INSTALACIÓN DE SECCIONADOR | E38: Mantenimiento Correctivo
C39: E-23 | D39: CAMBIO DE NH | E39: Mantenimiento Correctivo
C40: E-24 | D40: CAMBIO DE TIRAFUSIBLE | E40: Mantenimiento Correctivo
C41: F-01 | D41: PODA DE ÁRBOLES | E41: Mantenimiento Preventivo | F41: Mantenimiento Preventivo
C42: F-02 | D42: LIMPIEZA DE FRANJA DE SERVICI | E42: Mantenimiento Preventivo | F42: Mantenimiento Preventivo
C43: F-03 | D43: EXCAVACIONES | E43: Mantenimiento Correctivo
C44: L-01 | D44: REVISIÓN TRAFOS 1F-3F/INSTAL-R | E44: Mantenimiento Correctivo
C45: L-02 | D45: RECEPCIÓN VERIFICACIÓN TRAFOS | E45: Mantenimiento Correctivo
C46: L-03 | D46: REINGRESO TRAFOS/RECON/INTERRU | E46: Mantenimiento Correctivo
C47: L-04 | D47: REVISIÓN TRAFOS DIMS | E47: Mantenimiento Correctivo
C48: L-05 | D48: PRUEBA-ANÁLISIS PCB´S/RIGIDEZ | E48: Mantenimiento Correctivo
C49: L-06 | D49: MANTENIMIENTO TRAFOS/RECON/INT | E49: Mantenimiento Correctivo
C50: L-07 | D50: REVISIÓN RECONEC/INTERRUP/CAPA | E50: Mantenimiento Correctivo
C51: L-08 | D51: INGRESO INFORMACION E INFORMES | E51: Mantenimiento Correctivo
C52: L-09 | D52: EVACUACIÓN ACEITE DIELÉTRICO | E52: Mantenimiento Correctivo
C53: L-10 | D53: LIMPIEZA LABORATORIO TRAFOS | E53: Mantenimiento Correctivo
C54: M-01 | D54: EJECUCIÓN OBRAS CIVILES MENORE | E54: Mantenimiento Correctivo
C55: O-01 | D55: MEDICIÓN PARÁMETROS ELÉCTRICOS | E55: Mantenimiento Correctivo
C56: O-02 | D56: MANIOBRAS EN MEDIA TENSIÓN | E56: Mantenimiento Correctivo
C57: O-03 | D57: BALANCEO DE FASES | E57: Mantenimiento Correctivo
C58: O-04 | D58: REVISIÓN ALIMENTADOR PRIMARIO | E58: Mantenimiento Preventivo | F58: Mantenimiento Preventivo
C59: O-05 | D59: RECEPCIÓN DE OBRA | E59: Mantenimiento Correctivo
C60: P-01 | D60: CAMBIO DE POSTE | E60: Mantenimiento Preventivo | F60: Mantenimiento Preventivo
C61: P-02 | D61: REUBICACIÓN DE POSTE | E61: Mantenimiento Preventivo | F61: Mantenimiento Preventivo
C62: P-03 | D62: MONTAJE DE POSTE | E62: Mantenimiento Correctivo
C63: P-04 | D63: APLOMAR POSTE | E63: Mantenimiento Preventivo | F63: Mantenimiento Preventivo
C64: P-05 | D64: INSTALACIÓN DE TENSOR | E64: Mantenimiento Preventivo | F64: Mantenimiento Preventivo
C65: P-06 | D65: REUBICACIÓN DE TENSOR | E65: Mantenimiento Preventivo | F65: Mantenimiento Preventivo
C66: P-07 | D66: CALIBRACIÓN DE TENSOR | E66: Mantenimiento Preventivo | F66: Mantenimiento Preventivo
C67: P-08 | D67: TRANSPORTE DE POSTE | E67: Mantenimiento Correctivo
C68: R-01 | D68: RECALIBRACIÓN DE REDES | E68: Mantenimiento Preventivo | F68: =+IF(E68="Mantenimiento Correctivo","",E68) -> Mantenimiento Preventivo
C69: R-02 | D69: AMPLIACIÓN MEDIA TENSIÓN | E69: Mantenimiento Correctivo
C70: R-03 | D70: AMPLIACIÓN BAJA TENSIÓN | E70: Mantenimiento Correctivo
C71: R-04 | D71: INSTALACIÓN ACOMETIDA SUBTERRÁ | E71: Mantenimiento Correctivo
C72: R-05 | D72: MODIFICACIÓN ACOMETIDA SUBTERR | E72: Mantenimiento Correctivo
C73: R-06 | D73: INSTALACIÓN ACOMETIDA AÉREA | E73: Mantenimiento Correctivo
C74: R-07 | D74: MODIFICACIÓN ACOMETIDA AÉREA | E74: Mantenimiento Correctivo
C75: S-01 | D75: INSPECCION RED AÉREA | E75: Mantenimiento Preventivo | F75: Mantenimiento Preventivo
C76: S-02 | D76: INSPECCIÓN RED SUBTERRÁNEA | E76: Mantenimiento Correctivo
C77: S-03 | D77: MANTENIMIENTO TABLEROS METÁLIC | E77: Mantenimiento Correctivo
C78: S-04 | D78: REPOSICION DE VEREDAS | E78: Mantenimiento Correctivo
C79: S-05 | D79: DESALOJO MATERIAL SOBRANTE | E79: Mantenimiento Correctivo
C80: S-06 | D80: REPOSICIÓN CABLE SUBTERRÁNEO M | E80: Mantenimiento Correctivo
C81: S-07 | D81: REPOSICIÓN CABLE SUBTERRÁNEO B | E81: Mantenimiento Correctivo
C82: S-08 | D82: RETIRO DE MATERIALES DE BODEGA | E82: Mantenimiento Correctivo
C83: S-09 | D83: REINGRESO MATERIALES A BODEGA | E83: Mantenimiento Correctivo
C84: S-10 | D84: LIMPIEZA BODEGA DE GRUPO | E84: Mantenimiento Correctivo
C85: S-11 | D85: FORRADO DE REDES MEDIA TENSIÓN | E85: Mantenimiento Correctivo
C86: S-12 | D86: FORRADO DE REDES BAJA TENSIÓN | E86: Mantenimiento Correctivo
C87: S-13 | D87: INGRESO INFORMACIÓN E INFORMES | E87: Mantenimiento Correctivo
C88: T-01 | D88: INSTALACIÓN DE PUESTA TIERRA | E88: Mantenimiento Correctivo
C89: T-02 | D89: MODIFICACIÓN PUESTA TIERRA | E89: Mantenimiento Correctivo
C90: T-03 | D90: CAMBIO DE TRANSFORMADOR | E90: Mantenimiento Correctivo
C91: T-04 | D91: REUBICACIÓN DE TRANSFORMADOR | E91: Mantenimiento Correctivo
C92: T-05 | D92: INSTALACIÓN DE TRANSFORMADOR | E92: Mantenimiento Correctivo
C93: T-06 | D93: CAMBIO BASES DE TRANSFORMADOR | E93: Mantenimiento Correctivo
C94: T-07 | D94: CAMBIO PARTES DE TRANSFORMADOR | E94: Mantenimiento Correctivo
C95: T-08 | D95: CAMBIO DE ACEITE TRANSFORMADOR | E95: Mantenimiento Correctivo
C96: T-09 | D96: CEBADO DE ACEITE TRANSFORMADOR | E96: Mantenimiento Correctivo

Sheet BASE DE DATOS 2016-2017
A1: Código | B1: Grupo | C1: Fecha | D1: Costo | E1: Código Resp. | F1: Apellido | G1: Nombre | H1: Cédula | I1: Zona | J1: Total Horas Trab. | K1: Total Horas Trans | L1: Total Horas | M1: Total Costo | N1: Subsistema | O1: Localidad | P1: Alimentador | Q1: Actividad | R1: Cantidad | S1: Fuente | T1: Conteo | U1: Transporte | V1: Mantenimiento | W1: Hora Inicio Programada | X1: Hora Inicio | Y1: Hora Fin | Z1: horasi | AA1: mini | AB1: horasid | AC1: minid | AD1: mincv | AE1: horadi | AF1: horasf | AG1: minfd | AH1: horasfd | AI1: minfd | AJ1: minfcv | AK1: horadf | AL1: Tiempo Mant | AM1: Tiempo | AN1: Prensa | AO1: Costo Actividad | AP1: Cuenta | AQ1: Costo Trans | AR1: Costo Mant | AS1: Año | AT1: Mes | AU1: Categoria | AV1: Actividad | AW1: Indicador | AX1: 4 | AY1: 5
A2: 118191 | B2: 43A | C2: 2016-05-10 | D2: 29.48 | E2: 0301648150 | F2: LOZADO DIEZ | G2: DANIEL VICENTE | H2: DVLD | I2: 2 | J2: 4 | K2: 0.8 | L2: 5.33336 | M2: 157.2274528 | N2: IP | O2: SAN LUIS | P2: 0500150V01 | Q2: A-01 | R2: 1 | S2: MP-1 | T2: 1 | U2: 0.3 | X2: 16:00 | Y2: 17:00 | Z2: =LEFT(X2,2) -> 16 | AA2: =RIGHT(X2,2) -> 00 | AB2: =FIXED(Z2,0) -> 16 | AC2: 0 | AD2: =+AC2/60 -> 0 | AE2: =+AB2+AD2 -> 16 | AF2: =LEFT(Y2,2) -> 17 | AG2: =RIGHT(Y2,2) -> 00 | AH2: =FIXED(AF2,2) -> 17,00 | AI2: 0,00 | AJ2: =+AI2/60 -> 0 | AK2: =+AH2+AJ2 -> 17 | AL2: =+AK2-AE2 -> 1 | AM2: 1 | AN2: 1 | AO2: 29.48 | AP2: 0730503 | AQ2: =+U2*D2 -> 8.844 | AR2: =+AL2*D2 -> 29.48 | AS2: =IF(A2>0,YEAR(C2),"") -> 2016 | AT2: =VLOOKUP(IF(A2>0,MONTH(C2),""),$BA$2:$BB$13,2,FALSE) -> MAYO | AU2: =IFERROR(VLOOKUP(Q2,Clasificacion!$C$3:$F$96,4,FALSE),"") ->  | AV2: =+IF(AU2="mantenimiento preventivo",Q2,"") ->  | AW2: =+IF(OR(Q2="F-01",Q2="f-02"),1*0.15,0) -> 0 | BA2: 1 | BB2: ENERO
A3: 118191 | B3: 43A | C3: 2016-05-10 | D3: 29.48 | E3: 0301648150 | F3: LOZADO DIEZ | G3: DANIEL VICENTE | H3: DVLD | I3: 2 | J3: 4 | K3: 0.8 | L3: 5.33336 | M3: 157.2274528 | N3: IP | O3: EL LLANO | P3: 0500150V02 | Q3: A-01 | R3: 1 | S3: MP-1 | T3: 1 | U3: 0.1 | X3: 14:00 | Y3: 15:00 | Z3: 14 | AA3: 00 | AB3: 14 | AC3: 0 | AD3: 0 | AE3: 14 | AF3: 15 | AG3: 00 | AH3: 15,00 | AI3: 0,00 | AJ3: 0 | AK3: 15 | AL3: 1 | AM3: 1 | AN3: 1 | AO3: 29.48 | AP3: 0730503 | AQ3: 2.948 | AR3: 29.48 | AS3: =IF(A3>0,YEAR(C3),"") -> 2016 | AT3: =VLOOKUP(IF(A3>0,MONTH(C3),""),$BA$2:$BB$13,2,FALSE) -> MAYO | AU3: =IFERROR(VLOOKUP(Q3,Clasificacion!$C$3:$F$96,4,FALSE),"") ->  | AV3: =+IF(AU3="mantenimiento preventivo",Q3,"") ->  | AW3: =+IF(OR(Q3="F-01",Q3="f-02"),1*0.15,0) -> 0 | BA3: 2 | BB3: FEBRERO
A4: 118191 | B4: 43A | C4: 2016-05-10 | D4: 29.48 | E4: 0301648150 | F4: LOZADO DIEZ | G4: DANIEL VICENTE | H4: DVLD | I4: 2 | J4: 4 | K4: 0.8 | L4: 5.33336 | M4: 157.2274528 | N4: IP | O4: GUALACEO CENTRO CALLE COLON | P4: 0500150V02 | Q4: A-01 | R4: 1 | S4: MP-1 | T4: 1 | U4: 0.1 | X4: 12:00 | Y4: 13:00 | Z4: 12 | AA4: 00 | AB4: 12 | AC4: 0 | AD4: 0 | AE4: 12 | AF4: 13 | AG4: 00 | AH4: 13,00 | AI4: 0,00 | AJ4: 0 | AK4: 13 | AL4: 1 | AM4: 1 | AN4: 1 | AO4: 29.48 | AP4: 0730503 | AQ4: 2.948 | AR4: 29.48 | AS4: 2016 | AT4: MAYO | AU4: =IFERROR(VLOOKUP(Q4,Clasificacion!$C$3:$F$96,4,FALSE),"") ->  | AW4: 0 | BA4: 3 | BB4: MARZO
A5: 118191 | B5: 43A | C5: 2016-05-10 | D5: 29.48 | E5: 0301648150 | F5: LOZADO DIEZ | G5: DANIEL VICENTE | H5: DVLD | I5: 2 | J5: 4 | K5: 0.8 | L5: 5.33336 | M5: 157.2274528 | N5: IP | O5: CRISTO REY | P5: 0500150V02 | Q5: A-01 | R5: 1 | S5: MP-1 | T5: 1 | U5: 0.3 | X5: 15:00 | Y5: 16:00 | Z5: 15 | AA5: 00 | AB5: 15 | AC5: 0 | AD5: 0 | AE5: 15 | AF5: 16 | AG5: 00 | AH5: 16,00 | AI5: 0,00 | AJ5: 0 | AK5: 16 | AL5: 1 | AM5: 1 | AN5: 1 | AO5: 29.48 | AP5: 0730503 | AQ5: 8.844 | AR5: 29.48 | AS5: 2016 | AT5: MAYO | AU5: =IFERROR(VLOOKUP(Q5,Clasificacion!$C$3:$F$96,4,FALSE),"") ->  | AW5: 0 | BA5: 4 | BB5: ABRIL
A6: 120011 | B6: 47B | C6: 2016-08-11 | D6: 25.14 | E6: 0103072583 | F6: VAZQUEZ CALVACHE | G6: GERARDO PATRICIO | H6: VCGP | I6: 3 | J6: 4 | K6: 1.8 | L6: 6.33336 | M6: 159.2206704 | N6: IP | O6: CANCHAS CHUMBLIN | P6: 0500140V03 | Q6: A-01 | R6: 7 | S6: MP-1 | T6: 1 | U6: 0.3 | X6: 12:00 | Y6: 15:00 | Z6: 12 | AA6: 00 | AB6: 12 | AC6: 0 | AD6: 0 | AE6: 12 | AF6: 15 | AG6: 00 | AH6: 15,00 | AI6: 0,00 | AJ6: 0 | AK6: 15 | AL6: 3 | AM6: 3 | AN6: 0 | AO6: 75.42 | AP6: 0740803 | AQ6: 7.542 | AR6: 75.42 | AS6: 2016 | AT6: AGOSTO | AU6: =IFERROR(VLOOKUP(Q6,Clasificacion!$C$3:$F$96,4,FALSE),"") ->  | AW6: 0 | BA6: 5 | BB6: MAYO
A7: 120959 | B7: 45A | C7: 2016-09-22 | D7: 23.15 | E7: 0102017084 | F7: MOLINA ALVARADO | G7: ENRIQUE | H7: MAE | I7: 2 | J7: 2 | K7: 0.5 | L7: 2.83335 | M7: 65.5920525 | N7: IP | O7: PALOPAMBA | P7: 0500150V01 | Q7: A-01 | R7: 1 | S7: MP-6 | T7: 1 | U7: 0.1 | X7: 10:30 | Y7: 11:00 | Z7: 10 | AA7: 30 | AB7: 10 | AC7: 30 | AD7: 0.5 | AE7: 10.5 | AF7: 11 | AG7: 00 | AH7: 11,00 | AI7: 0,00 | AJ7: 0 | AK7: 11 | AL7: 0.5 | AM7: 1 | AN7: 0 | AO7: 23.15 | AP7: 0730703 | AQ7: 2.315 | AR7: 11.575 | AS7: 2016 | AT7: SEPTIEMBRE | AU7: =IFERROR(VLOOKUP(Q7,Clasificacion!$C$3:$F$96,4,FALSE),"") ->  | AW7: 0 | BA7: 6 | BB7: JUNIO
A8: 121680 | B8: 43A | C8: 2016-10-28 | D8: 29.48 | E8: 0301648150 | F8: LOZADO DIEZ | G8: DANIEL VICENTE | H8: DVLD | I8: 2 | J8: 6 | K8: 0.7 | L8: 7.16669 | M8: 211.2740212 | N8: IP | O8: BULLZHUN | P8: 0500150V02 | Q8: A-01 | R8: 2 | S8: MP-1 | T8: 1 | U8: 0.2 | X8: 09:30 | Y8: 11:00 | Z8: 09 | AA8: 30 | AB8: 9 | AC8: 30 | AD8: 0.5 | AE8: 9.5 | AF8: 11 | AG8: 00 | AH8: 11,00 | AI8: 0,00 | AJ8: 0 | AK8: 11 | AL8: 1.5 | AM8: 2 | AN8: 1 | AO8: 58.96 | AP8: 0730503 | AQ8: 5.896 | AR8: 44.22 | AS8: 2016 | AT8: OCTUBRE | AU8: =IFERROR(VLOOKUP(Q8,Clasificacion!$C$3:$F$96,4,FALSE),"") ->  | AW8: 0 | BA8: 7 | BB8: JULIO
A9: 122149 | B9: 11 | C9: 2016-11-30 | D9: 41.48 | E9: 0103040309 | F9: AUCAPIÑA QUINDE | G9: JOHNSON OSWALDO | H9: JOAQ | I9: 3 | J9: 6 | K9: 2 | L9: 8 | M9: 331.84 | N9: AP | O9: VICTORIA DEL PORTETE | P9: 0500050V01 | Q9: A-01 | R9: 14 | S9: MP-1 | T9: 1 | U9: 1 | X9: 09:00 | Y9: 15:00 | Z9: 09 | AA9: 00 | AB9: 9 | AC9: 0 | AD9: 0 | AE9: 9 | AF9: 15 | AG9: 00 | AH9: 15,00 | AI9: 0,00 | AJ9: 0 | AK9: 15 | AL9: 6 | AM9: 6 | AN9: 1 | AO9: 248.88 | AP9: 0740401 | AQ9: 41.48 | AR9: 248.88 | AS9: 2016 | AT9: NOVIEMBRE | AU9: =IFERROR(VLOOKUP(Q9,Clasificacion!$C$3:$F$96,4,FALSE),"") ->  | AW9: 0 | BA9: 8 | BB9: AGOSTO
A10: 122145 | B10: 11 | C10: 2016-11-28 | D10: 41.48 | E10: 0103040309 | F10: AUCAPIÑA QUINDE | G10: JOHNSON OSWALDO | H10: JOAQ | I10: 3 | J10: 7 | K10: 1 | L10: 8 | M10: 331.84 | N10: AP | O10: BELLAVISTA - TARQUI | P10: 0500050V01 | Q10: A-01 | R10: 16 | S10: MP-1 | T10: 1 | U10: 0.5 | X10: 08:30 | Y10: 15:30 | Z10: 08 | AA10: 30 | AB10: 8 | AC10: 30 | AD10: 0.5 | AE10: 8.5 | AF10: 15 | AG10: 30 | AH10: 15,00 | AI10: 30,00 | AJ10: 0.5 | AK10: 15.5 | AL10: 7 | AM10: 7 | AN10: 1 | AO10: 290.36 | AP10: 0740401 | AQ10: 20.74 | AR10: 290.36 | AS10: 2016 | AT10: NOVIEMBRE | AU10: =IFERROR(VLOOKUP(Q10,Clasificacion!$C$3:$F$96,4,FALSE),"") ->  | AW10: 0 | BA10: 9 | BB10: SEPTIEMBRE
A11: 122148 | B11: 11 | C11: 2016-11-29 | D11: 41.48 | E11: 0103040309 | F11: AUCAPIÑA QUINDE | G11: JOHNSON OSWALDO | H11: JOAQ | I11: 3 | J11: 7 | K11: 1 | L11: 8 | M11: 331.84 | N11: AP | O11: BELLAVISTA - VICTORIA DEL PORTETE | P11: 0500050V01 | Q11: A-01 | R11: 16 | S11: MP-1 | T11: 1 | U11: 0.5 | X11: 08:30 | Y11: 15:30 | Z11: 08 | AA11: 30 | AB11: 8 | AC11: 30 | AD11: 0.5 | AE11: 8.5 | AF11: 15 | AG11: 30 | AH11: 15,00 | AI11: 30,00 | AJ11: 0.5 | AK11: 15.5 | AL11: 7 | AM11: 7 | AN11: 1 | AO11: 290.36 | AP11: 0740401 | AQ11: 20.74 | AR11: 290.36 | AS11: 2016 | AT11: NOVIEMBRE | AU11: =IFERROR(VLOOKUP(Q11,Clasificacion!$C$3:$F$96,4,FALSE),"") ->  | AW11: 0 | BA11: 10 | BB11: OCTUBRE
A12: 115614 | B12: 71 | C12: 2016-01-08 | D12: 65.5 | E12: 0102283876 | F12: GENOVEZ ZUÑIGA | G12: IVAN PATRICIO | H12: IPGZ | I12: 10 | J12: 6 | K12: 2 | L12: 8 | M12: 524 | N12: IP | O12: AMERICAS Y ENTRADA A QUINTA CHICA | P12: 0500040V02 | Q12: A-02 | R12: 2 | S12: MP-1 | T12: 1 | U12: 1 | X12: 09:00 | Y12: 10:00 | Z12: 09 | AA12: 00 | AB12: 9 | AC12: 0 | AD12: 0 | AE12: 9 | AF12: 10 | AG12: 00 | AH12: 10,00 | AI12: 0,00 | AJ12: 0 | AK12: 10 | AL12: 1 | AM12: 0 | AN12: 1 | AO12: 65.5 | AP12: 0750502 | AQ12: 65.5 | AR12: 65.5 | AS12: 2016 | AT12: ENERO | AU12: =IFERROR(VLOOKUP(Q12,Clasificacion!$C$3:$F$96,4,FALSE),"") ->  | AW12: 0 | BA12: 11 | BB12: NOVIEMBRE
A13: 115611 | B13: 71 | C13: 2016-01-06 | D13: 65.5 | E13: 0102283876 | F13: GENOVEZ ZUÑIGA | G13: IVAN PATRICIO | H13: IPGZ | I13: 10 | J13: 6 | K13: 2 | L13: 8 | M13: 524 | N13: IP | O13: BETHOVEN Y MANUEL DE FALLA | P13: 0500050V04 | Q13: A-02 | R13: 1 | S13: MP-1 | T13: 1 | U13: 1 | X13: 09:00 | Y13: 10:00 | Z13: 09 | AA13: 00 | AB13: 9 | AC13: 0 | AD13: 0 | AE13: 9 | AF13: 10 | AG13: 00 | AH13: 10,00 | AI13: 0,00 | AJ13: 0 | AK13: 10 | AL13: 1 | AM13: 0 | AN13: 1 | AO13: 65.5 | AP13: 0750502 | AQ13: 65.5 | AR13: 65.5 | AS13: 2016 | AT13: ENERO | AU13: =IFERROR(VLOOKUP(Q13,Clasificacion!$C$3:$F$96,4,FALSE),"") ->  | AW13: 0 | BA13: 12 | BB13: DICIEMBRE
A14: 115126 | B14: 46A | C14: 2016-01-08 | D14: 23.51 | E14: 1716325574 | F14: DELGADO CEVALLOS | G14: FERNANDO ARCENIO | H14: FD | I14: 3 | J14: 8 | K14: 1.65 | L14: 10.083355 | M14: 237.0596761 | N14: IP | O14: PORTOVELO | P14: 0500140V01 | Q14: A-02 | R14: 6 | S14: MP-6 | T14: 1 | U14: 0.25 | X14: 09:30 | Y14: 13:00 | Z14: 09 | AA14: 30 | AB14: 9 | AC14: 30 | AD14: 0.5 | AE14: 9.5 | AF14: 13 | AG14: 00 | AH14: 13,00 | AI14: 0,00 | AJ14: 0 | AK14: 13 | AL14: 3.5 | AM14: 0 | AN14: 1 | AO14: 94.04 | AP14: 0740703 | AQ14: 5.8775 | AR14: 82.285 | AS14: 2016 | AT14: ENERO | AU14: =IFERROR(VLOOKUP(Q14,Clasificacion!$C$3:$F$96,4,FALSE),"") ->  | AW14: 0
A15: 115980 | B15: 43B | C15: 2016-01-28 | D15: 22.27 | E15: 0301648150 | F15: LOZADO DIEZ | G15: DANIEL VICENTE | H15: DVLD | I15: 2 | J15: 4 | K15: 1.9 | L15: 6.50003 | M15: 144.7556681 | N15: IP | O15: SAN JOSE DE PIRCA | P15: 0500150V01 | Q15: A-02 | R15: 1 | S15: MP-1 | T15: 1 | U15: 0 | X15: 11:00 | Y15: 11:30 | Z15: 11 | AA15: 00 | AB15: 11 | AC15: 0 | AD15: 0 | AE15: 11 | AF15: 11 | AG15: 30 | AH15: 11,00 | AI15: 30,00 | AJ15: 0.5 | AK15: 11.5 | AL15: 0.5 | AM15: 0 | AN15: 1 | AO15: 0 | AP15: 0730503 | AQ15: 0 | AR15: 11.135 | AS15: 2016 | AT15: ENERO | AU15: =IFERROR(VLOOKUP(Q15,Clasificacion!$C$3:$F$96,4,FALSE),"") ->  | AW15: 0
A16: 115980 | B16: 43B | C16: 2016-01-28 | D16: 22.27 | E16: 0301648150 | F16: LOZADO DIEZ | G16: DANIEL VICENTE | H16: DVLD | I16: 2 | J16: 4 | K16: 1.9 | L16: 6.50003 | M16: 144.7556681 | N16: IP | O16: CHILCAPAMBA | P16: 0500150V01 | Q16: A-02 | R16: 1 | S16: MP-1 | T16: 1 | U16: 1 | X16: 09:00 | Y16: 10:30 | Z16: 09 | AA16: 00 | AB16: 9 | AC16: 0 | AD16: 0 | AE16: 9 | AF16: 10 | AG16: 30 | AH16: 10,00 | AI16: 30,00 | AJ16: 0.5 | AK16: 10.5 | AL16: 1.5 | AM16: 0 | AN16: 0 | AO16: 22.27 | AP16: 0730503 | AQ16: 22.27 | AR16: 33.405 | AS16: 2016 | AT16: ENERO | AU16: =IFERROR(VLOOKUP(Q16,Clasificacion!$C$3:$F$96,4,FALSE),"") ->  | AW16: 0
A17: 115984 | B17: 43B | C17: 2016-01-29 | D17: 22.27 | E17: 0301648150 | F17: LOZADO DIEZ | G17: DANIEL VICENTE | H17: DVLD | I17: 2 | J17: 4 | K17: 1.6 | L17: 6.00002 | M17: 133.6204454 | N17: IP | O17: GUNZHUN | P17: 0500150V02 | Q17: A-02 | R17: 1 | S17: MP-1 | T17: 1 | U17: 0.3 | X17: 14:30 | Y17: 15:00 | Z17: 14 | AA17: 30 | AB17: 14 | AC17: 30 | AD17: 0.5 | AE17: 14.5 | AF17: 15 | AG17: 00 | AH17: 15,00 | AI17: 0,00 | AJ17: 0 | AK17: 15 | AL17: 0.5 | AM17: 0 | AN17: 1 | AO17: 22.27 | AP17: 0730503 | AQ17: 6.681 | AR17: 11.135 | AS17: 2016 | AT17: ENERO | AU17: =IFERROR(VLOOKUP(Q17,Clasificacion!$C$3:$F$96,4,FALSE),"") ->  | AW17: 0
A18: 115984 | B18: 43B | C18: 2016-01-29 | D18: 22.27 | E18: 0301648150 | F18: LOZADO DIEZ | G18: DANIEL VICENTE | H18: DVLD | I18: 2 | J18: 4 | K18: 1.6 | L18: 6.00002 | M18: 133.6204454 | N18: IP | O18: CHINIPATA | P18: 0500150V03 | Q18: A-02 | R18: 1 | S18: MP-1 | T18: 1 | U18: 1 | X18: 09:00 | Y18: 09:30 | Z18: 09 | AA18: 00 | AB18: 9 | AC18: 0 | AD18: 0 | AE18: 9 | AF18: 09 | AG18: 30 | AH18: 9,00 | AI18: 30,00 | AJ18: 0.5 | AK18: 9.5 | AL18: 0.5 | AM18: 0 | AN18: 1 | AO18: 0 | AP18: 0730503 | AQ18: 22.27 | AR18: 11.135 | AS18: 2016 | AT18: ENERO | AU18: =IFERROR(VLOOKUP(Q18,Clasificacion!$C$3:$F$96,4,FALSE),"") ->  | AW18: 0
A19: 115618 | B19: 42B | C19: 2016-01-11 | D19: 13.77 | E19: 0301175360 | F19: GUAMAN GUAMAN | G19: CESAR | H19: GGC | I19: 1 | J19: 6 | K19: 0 | L19: 6 | M19: 82.62 | N19: IP | O19: VENDELECHE | P19: 0500180V01 | Q19: A-02 | R19: 2 | S19: MP-1 | T19: 1 | U19: 0 | X19: 10:35 | Y19: 11:10 | Z19: 10 | AA19: 35 | AB19: 10 | AC19: 35 | AD19: 0.5833333333 | AE19: 10.58333333 | AF19: 11 | AG19: 10 | AH19: 11,00 | AI19: 10,00 | AJ19: 0.1666666667 | AK19: 11.16666667 | AL19: 0.5833333333 | AM19: 0 | AN19: 1 | AO19: 13.77 | AP19: 0720603 | AQ19: 0 | AR19: 8.0325 | AS19: 2016 | AT19: ENERO | AU19: =IFERROR(VLOOKUP(Q19,Clasificacion!$C$3:$F$96,4,FALSE),"") ->  | AW19: 0
A20: 115567 | B20: 60B | C20: 2016-01-06 | D20: 32.1 | E20: 0919617290 | F20: CALLE LOYOLA | G20: JORGE EDWIN | H20: CLJE | I20: 1 | J20: 3 | K20: 0 | L20: 3 | M20: 96.3 | N20: AP | O20: JAIME ROLDOS Y ANGEL M IGLESIAS | P20: 0500500T02 | Q20: A-02 | R20: 1 | S20: MP-6 | T20: 1 | U20: 0 | X20: 10:30 | Y20: 10:55 | Z20: 10 | AA20: 30 | AB20: 10 | AC20: 30 | AD20: 0.5 | AE20: 10.5 | AF20: 10 | AG20: 55 | AH20: 10,00 | AI20: 55,00 | AJ20: 0.9166666667 | AK20: 10.91666667 | AL20: 0.4166666667 | AM20: 0 | AN20: 0 | AO20: 0 | AP20: 0721103 | AQ20: 0 | AR20: 13.375 | AS20: 2016 | AT20: ENERO | AU20: =IFERROR(VLOOKUP(Q20,Clasificacion!$C$3:$F$96,4,FALSE),"") ->  | AW20: 0
A21: 116543 | B21: 44A | C21: 2016-03-02 | D21: 31.67 | E21: 0101219749 | F21: ABRIL ABRIL | G21: MANUEL ROSENDO | H21: AAMR | I21: 2 | J21: 7 | K21: 0.8 | L21: 8.33336 | M21: 263.9175112 | N21: IP | O21: EL CABO | P21: 0500120V02 | Q21: A-02 | R21: 1 | S21: MP-1 | T21: 1 | U21: 0.3 | X21: 09:30 | Y21: 14:00 | Z21: 09 | AA21: 30 | AB21: 9 | AC21: 30 | AD21: 0.5 | AE21: 9.5 | AF21: 14 | AG21: 00 | AH21: 14,00 | AI21: 0,00 | AJ21: 0 | AK21: 14 | AL21: 4.5 | AM21: 5 | AN21: 1 | AO21: 158.35 | AP21: 0730603 | AQ21: 9.501 | AR21: 142.515 | AS21: 2016 | AT21: MARZO | AU21: =IFERROR(VLOOKUP(Q21,Clasificacion!$C$3:$F$96,4,FALSE),"") ->  | AW21: 0
A22: 116644 | B22: 44B | C22: 2016-03-07 | D22: 22.27 | E22: 0101219749 | F22: ABRIL ABRIL | G22: MANUEL ROSENDO | H22: AAMR | I22: 2 | J22: 5 | K22: 1.3 | L22: 6.50001 | M22: 144.7552227 | N22: IP | O22: ANDACOCHA | P22: 0500120V03 | Q22: A-02 | R22: 1 | S22: MP-1 | T22: 1 | U22: 0.3 | X22: 09:00 | Y22: 11:00 | Z22: 09 | AA22: 00 | AB22: 9 | AC22: 0 | AD22: 0 | AE22: 9 | AF22: 11 | AG22: 00 | AH22: 11,00 | AI22: 0,00 | AJ22: 0 | AK22: 11 | AL22: 2 | AM22: 2 | AN22: 1 | AO22: 44.54 | AP22: 0730603 | AQ22: 6.681 | AR22: 44.54 | AS22: 2016 | AT22: MARZO | AU22: =IFERROR(VLOOKUP(Q22,Clasificacion!$C$3:$F$96,4,FALSE),"") ->  | AW22: 0
A23: 116970 | B23: 44A | C23: 2016-03-24 | D23: 31.67 | E23: 0101219749 | F23: ABRIL ABRIL | G23: MANUEL ROSENDO | H23: AAMR | I23: 2 | J23: 7 | K23: 0.5 | L23: 7.83335 | M23: 248.0821945 | N23: IP | O23: GUABLID | P23: 0500120V03 | Q23: A-02 | R23: 1 | S23: MP-1 | T23: 1 | U23: 0.2 | X23: 08:00 | Y23: 09:00 | Z23: 08 | AA23: 00 | AB23: 8 | AC23: 0 | AD23: 0 | AE23: 8 | AF23: 09 | AG23: 00 | AH23: 9,00 | AI23: 0,00 | AJ23: 0 | AK23: 9 | AL23: 1 | AM23: 1 | AN23: 1 | AO23: 31.67 | AP23: 0730603 | AQ23: 6.334 | AR23: 31.67 | AS23: 2016 | AT23: MARZO | AU23: =IFERROR(VLOOKUP(Q23,Clasificacion!$C$3:$F$96,4,FALSE),"") ->  | AW23: 0
A24: 117133 | B24: 43B | C24: 2016-03-07 | D24: 22.27 | E24: 0301648150 | F24: LOZADO DIEZ | G24: DANIEL VICENTE | H24: DVLD | I24: 2 | J24: 4 | K24: 0.75 | L24: 5.250025 | M24: 116.9180568 | N24: IP | O24: LA UNION | P24: 0500150V01 | Q24: A-02 | R24: 1 | S24: MP-1 | T24: 1 | U24: 0.3 | X24: 12:00 | Y24: 13:00 | Z24: 12 | AA24: 00 | AB24: 12 | AC24: 0 | AD24: 0 | AE24: 12 | AF24: 13 | AG24: 00 | AH24: 13,00 | AI24: 0,00 | AJ24: 0 | AK24: 13 | AL24: 1 | AM24: 1 | AN24: 1 | AO24: 22.27 | AP24: 0730503 | AQ24: 6.681 | AR24: 22.27 | AS24: 2016 | AT24: MARZO | AU24: =IFERROR(VLOOKUP(Q24,Clasificacion!$C$3:$F$96,4,FALSE),"") ->  | AW24: 0
A25: 117150 | B25: 43B | C25: 2016-03-23 | D25: 22.27 | E25: 0301648150 | F25: LOZADO DIEZ | G25: DANIEL VICENTE | H25: DVLD | I25: 2 | J25: 7 | K25: 0.6 | L25: 8.00002 | M25: 178.1604454 | N25: IP | O25: PUZHIO | P25: 0500150V01 | Q25: A-02 | R25: 2 | S25: MP-1 | T25: 1 | U25: 0.2 | X25: 10:20 | Y25: 11:00 | Z25: 10 | AA25: 20 | AB25: 10 | AC25: 20 | AD25: 0.3333333333 | AE25: 10.33333333 | AF25: 11 | AG25: 00 | AH25: 11,00 | AI25: 0,00 | AJ25: 0 | AK25: 11 | AL25: 0.6666666667 | AM25: 1 | AN25: 1 | AO25: 22.27 | AP25: 0730503 | AQ25: 4.454 | AR25: 14.84666667 | AS25: 2016 | AT25: MARZO | AU25: =IFERROR(VLOOKUP(Q25,Clasificacion!$C$3:$F$96,4,FALSE),"") ->  | AW25: 0
A26: 117493 | B26: 44A | C26: 2016-04-14 | D26: 31.67 | E26: 0101219749 | F26: ABRIL ABRIL | G26: MANUEL ROSENDO | H26: AAMR | I26: 2 | J26: 3 | K26: 1 | L26: 4 | M26: 126.68 | N26: IP | O26: UZHUPUD | P26: 0500150V03 | Q26: A-02 | R26: 1 | S26: MP-1 | T26: 1 | U26: 0.1 | X26: 14:10 | Y26: 14:20 | Z26: 14 | AA26: 10 | AB26: 14 | AC26: 10 | AD26: 0.1666666667 | AE26: 14.16666667 | AF26: 14 | AG26: 20 | AH26: 14,00 | AI26: 20,00 | AJ26: 0.3333333333 | AK26: 14.33333333 | AL26: 0.1666666667 | AM26: 0 | AN26: 1 | AO26: 0 | AP26: 0730602 | AQ26: 3.167 | AR26: 5.278333333 | AS26: 2016 | AT26: ABRIL | AU26: =IFERROR(VLOOKUP(Q26,Clasificacion!$C$3:$F$96,4,FALSE),"") ->  | AW26: 0
A27: 118079 | B27: 14 | C27: 2016-05-19 | D27: 31.42 | E27: 0102354040 | F27: PIEDRA MARTINEZ | G27: JORGE IVAN | H27: PMJI | I27: 3 | J27: 7 | K27: 2 | L27: 9 | M27: 282.78 | N27: AP | O27: SALTO A LA SOGA Y PANAMERICANA SUR | P27: 0500050V05 | Q27: A-02 | R27: 6 | S27: MP-1 | T27: 1 | U27: 1 | X27: 09:00 | Y27: 13:00 | Z27: 09 | AA27: 00 | AB27: 9 | AC27: 0 | AD27: 0 | AE27: 9 | AF27: 13 | AG27: 00 | AH27: 13,00 | AI27: 0,00 | AJ27: 0 | AK27: 13 | AL27: 4 | AM27: 4 | AN27: 1 | AO27: 125.68 | AP27: 0740401 | AQ27: 31.42 | AR27: 125.68 | AS27: 2016 | AT27: MAYO | AU27: =IFERROR(VLOOKUP(Q27,Clasificacion!$C$3:$F$96,4,FALSE),"") ->  | AW27: 0
A28: 117936 | B28: 44A | C28: 2016-05-06 | D28: 31.67 | E28: 0101219749 | F28: ABRIL ABRIL | G28: MANUEL ROSENDO | H28: AAMR | I28: 2 | J28: 8 | K28: 0.9 | L28: 9.50003 | M28: 300.8659501 | N28: IP | O28: MARCOLOMA | P28: 0500150V03 | Q28: A-02 | R28: 1 | S28: MP-1 | T28: 1 | U28: 0.2 | X28: 08:30 | Y28: 10:00 | Z28: 08 | AA28: 30 | AB28: 8 | AC28: 30 | AD28: 0.5 | AE28: 8.5 | AF28: 10 | AG28: 00 | AH28: 10,00 | AI28: 0,00 | AJ28: 0 | AK28: 10 | AL28: 1.5 | AM28: 2 | AN28: 1 | AO28: 63.34 | AP28: 0730603 | AQ28: 6.334 | AR28: 47.505 | AS28: 2016 | AT28: MAYO | AU28: =IFERROR(VLOOKUP(Q28,Clasificacion!$C$3:$F$96,4,FALSE),"") ->  | AW28: 0
A29: 117919 | B29: 42B | C29: 2016-05-04 | D29: 13.77 | E29: 0301175360 | F29: GUAMAN GUAMAN | G29: CESAR | H29: GGC | I29: 1 | J29: 8 | K29: 0.7 | L29: 9.16669 | M29: 126.2253213 | N29: AP | O29: INGAPIRCA | P29: 0500180V01 | Q29: A-02 | R29: 1 | S29: MP-1 | T29: 1 | U29: 0.25 | X29: 13:10 | Y29: 14:10 | Z29: 13 | AA29: 10 | AB29: 13 | AC29: 10 | AD29: 0.1666666667 | AE29: 13.16666667 | AF29: 14 | AG29: 10 | AH29: 14,00 | AI29: 10,00 | AJ29: 0.1666666667 | AK29: 14.16666667 | AL29: 1 | AM29: 1 | AN29: 1 | AO29: 13.77 | AP29: 0720603 | AQ29: 3.4425 | AR29: 13.77 | AS29: 2016 | AT29: MAYO | AU29: =IFERROR(VLOOKUP(Q29,Clasificacion!$C$3:$F$96,4,FALSE),"") ->  | AW29: 0
A30: 118102 | B30: 42C | C30: 2016-05-18 | D30: 12.46 | E30: 0301175360 | F30: GUAMAN GUAMAN | G30: CESAR | H30: GGC | I30: 1 | J30: 3 | K30: 1.2 | L30: 4.33334 | M30: 53.9934164 | N30: IP | O30: CDL INTIRRAIMI | P30: 0500180V02 | Q30: A-02 | R30: 9 | S30: MP-1 | T30: 1 | U30: 0.3 | X30: 12:00 | Y30: 13:00 | Z30: 12 | AA30: 00 | AB30: 12 | AC30: 0 | AD30: 0 | AE30: 12 | AF30: 13 | AG30: 00 | AH30: 13,00 | AI30: 0,00 | AJ30: 0 | AK30: 13 | AL30: 1 | AM30: 1 | AN30: 1 | AO30: 12.46 | AP30: 0720603 | AQ30: 3.738 | AR30: 12.46 | AS30: 2016 | AT30: MAYO | AU30: =IFERROR(VLOOKUP(Q30,Clasificacion!$C$3:$F$96,4,FALSE),"") ->  | AW30: 0
A31: 118098 | B31: 42C | C31: 2016-05-11 | D31: 12.46 | E31: 0301175360 | F31: GUAMAN GUAMAN | G31: CESAR | H31: GGC | I31: 1 | J31: 2 | K31: 0.6 | L31: 3.00002 | M31: 37.3802492 | N31: IP | O31: EL TAMBO | P31: 0500180V02 | Q31: A-02 | R31: 3 | S31: MP-1 | T31: 1 | U31: 0.3 | X31: 10:00 | Y31: 11:00 | Z31: 10 | AA31: 00 | AB31: 10 | AC31: 0 | AD31: 0 | AE31: 10 | AF31: 11 | AG31: 00 | AH31: 11,00 | AI31: 0,00 | AJ31: 0 | AK31: 11 | AL31: 1 | AM31: 1 | AN31: 1 | AO31: 12.46 | AP31: 0720603 | AQ31: 3.738 | AR31: 12.46 | AS31: 2016 | AT31: MAYO | AU31: =IFERROR(VLOOKUP(Q31,Clasificacion!$C$3:$F$96,4,FALSE),"") ->  | AW31: 0
A32: 118099 | B32: 42C | C32: 2016-05-12 | D32: 12.46 | E32: 0301175360 | F32: GUAMAN GUAMAN | G32: CESAR | H32: GGC | I32: 1 | J32: 6 | K32: 2 | L32: 8 | M32: 99.68 | N32: IP | O32: NAR | P32: 0500180V02 | Q32: A-02 | R32: 9 | S32: MP-1 | T32: 1 | U32: 1 | X32: 11:40 | Y32: 16:00 | Z32: 11 | AA32: 40 | AB32: 11 | AC32: 40 | AD32: 0.6666666667 | AE32: 11.66666667 | AF32: 16 | AG32: 00 | AH32: 16,00 | AI32: 0,00 | AJ32: 0 | AK32: 16 | AL32: 4.333333333 | AM32: 5 | AN32: 1 | AO32: 62.3 | AP32: 0720603 | AQ32: 12.46 | AR32: 53.99333333 | AS32: 2016 | AT32: MAYO | AU32: =IFERROR(VLOOKUP(Q32,Clasificacion!$C$3:$F$96,4,FALSE),"") ->  | AW32: 0
A33: 118102 | B33: 42C | C33: 2016-05-18 | D33: 12.46 | E33: 0301175360 | F33: GUAMAN GUAMAN | G33: CESAR | H33: GGC | I33: 1 | J33: 3 | K33: 1.2 | L33: 4.33334 | M33: 53.9934164 | N33: IP | O33: CALLE EZEQUIEL CARDENAS | P33: 0500180V04 | Q33: A-02 | R33: 1 | S33: MP-1 | T33: 1 | U33: 0.3 | X33: 14:00 | Y33: 14:30 | Z33: 14 | AA33: 00 | AB33: 14 | AC33: 0 | AD33: 0 | AE33: 14 | AF33: 14 | AG33: 30 | AH33: 14,00 | AI33: 30,00 | AJ33: 0.5 | AK33: 14.5 | AL33: 0.5 | AM33: 0 | AN33: 1 | AO33: 0 | AP33: 0720602 | AQ33: 3.738 | AR33: 6.23 | AS33: 2016 | AT33: MAYO | AU33: =IFERROR(VLOOKUP(Q33,Clasificacion!$C$3:$F$96,4,FALSE),"") ->  | AW33: 0
A34: 118662 | B34: 14 | C34: 2016-06-11 | D34: 31.42 | E34: 0102354040 | F34: PIEDRA MARTINEZ | G34: JORGE IVAN | H34: PMJI | I34: 3 | J34: 5 | K34: 4 | L34: 9 | M34: 282.78 | N34: AP | O34: SALTO A LA SOGA Y PANAMERICANA SUR | P34: 0500050V05 | Q34: A-02 | R34: 6 | S34: MP-1 | T34: 1 | U34: 1 | X34: 11:00 | Y34: 13:00 | Z34: 11 | AA34: 00 | AB34: 11 | AC34: 0 | AD34: 0 | AE34: 11 | AF34: 13 | AG34: 00 | AH34: 13,00 | AI34: 0,00 | AJ34: 0 | AK34: 13 | AL34: 2 | AM34: 2 | AN34: 1 | AO34: 62.84 | AP34: 0740401 | AQ34: 31.42 | AR34: 62.84 | AS34: 2016 | AT34: JUNIO | AU34: =IFERROR(VLOOKUP(Q34,Clasificacion!$C$3:$F$96,4,FALSE),"") ->  | AW34: 0
A35: 118667 | B35: 14 | C35: 2016-06-13 | D35: 31.42 | E35: 0102354040 | F35: PIEDRA MARTINEZ | G35: JORGE IVAN | H35: PMJI | I35: 3 | J35: 5 | K35: 4 | L35: 9 | M35: 282.78 | N35: AP | O35: SALTO A LA SOGA Y PANAMERICANA SUR | P35: 0500050V05 | Q35: A-02 | R35: 6 | S35: MP-1 | T35: 1 | U35: 1 | X35: 11:00 | Y35: 13:00 | Z35: 11 | AA35: 00 | AB35: 11 | AC35: 0 | AD35: 0 | AE35: 11 | AF35: 13 | AG35: 00 | AH35: 13,00 | AI35: 0,00 | AJ35: 0 | AK35: 13 | AL35: 2 | AM35: 2 | AN35: 1 | AO35: 62.84 | AP35: 0740401 | AQ35: 31.42 | AR35: 62.84 | AS35: 2016 | AT35: JUNIO | AU35: =IFERROR(VLOOKUP(Q35,Clasificacion!$C$3:$F$96,4,FALSE),"") ->  | AW35: 0
A36: 118770 | B36: 42C | C36: 2016-06-06 | D36: 12.46 | E36: 0301175360 | F36: GUAMAN GUAMAN | G36: CESAR | H36: GGC | I36: 1 | J36: 4 | K36: 0.3 | L36: 4.50001 | M36: 56.0701246 | N36: IP | O36: JAGUATAMBO | P36: 0500180V02 | Q36: A-02 | R36: 7 | S36: MP-1 | T36: 1 | U36: 0.3 | X36: 09:30 | Y36: 12:30 | Z36: 09 | AA36: 30 | AB36: 9 | AC36: 30 | AD36: 0.5 | AE36: 9.5 | AF36: 12 | AG36: 30 | AH36: 12,00 | AI36: 30,00 | AJ36: 0.5 | AK36: 12.5 | AL36: 3 | AM36: 3 | AN36: 1 | AO36: 37.38 | AP36: 0720603 | AQ36: 3.738 | AR36: 37.38 | AS36: 2016 | AT36: JUNIO | AU36: =IFERROR(VLOOKUP(Q36,Clasificacion!$C$3:$F$96,4,FALSE),"") ->  | AW36: 0
A37: 118774 | B37: 42C | C37: 2016-06-15 | D37: 12.46 | E37: 0301175360 | F37: GUAMAN GUAMAN | G37: CESAR | H37: GGC | I37: 1 | J37: 5 | K37: 0.6 | L37: 6.00002 | M37: 74.7602492 | N37: IP | O37: GUANTUG | P37: 0500180V02 | Q37: A-02 | R37: 4 | S37: MP-1 | T37: 1 | U37: 0.3 | X37: 12:00 | Y37: 14:00 | Z37: 12 | AA37: 00 | AB37: 12 | AC37: 0 | AD37: 0 | AE37: 12 | AF37: 14 | AG37: 00 | AH37: 14,00 | AI37: 0,00 | AJ37: 0 | AK37: 14 | AL37: 2 | AM37: 2 | AN37: 1 | AO37: 24.92 | AP37: 0720603 | AQ37: 3.738 | AR37: 24.92 | AS37: 2016 | AT37: JUNIO | AU37: =IFERROR(VLOOKUP(Q37,Clasificacion!$C$3:$F$96,4,FALSE),"") ->  | AW37: 0
A38: 118569 | B38: 54A | C38: 2016-06-10 | D38: 24.45 | E38: 0300934155 | F38: VELEZ ROMERO | G38: RENE MIGUEL | H38: VRRM | I38: 1 | J38: 3 | K38: 0 | L38: 3 | M38: 73.35 | N38: TD | O38: CHILCHIL | P38: 0500180V03 | Q38: A-02 | R38: 1 | S38: MP-4 | T38: 1 | U38: 0 | X38: 12:00 | Y38: 12:45 | Z38: 12 | AA38: 00 | AB38: 12 | AC38: 0 | AD38: 0 | AE38: 12 | AF38: 12 | AG38: 45 | AH38: 12,00 | AI38: 45,00 | AJ38: 0.75 | AK38: 12.75 | AL38: 0.75 | AM38: 0 | AN38: 1 | AO38: 0 | AP38: 0720704 | AQ38: 0 | AR38: 18.3375 | AS38: 2016 | AT38: JUNIO | AU38: =IFERROR(VLOOKUP(Q38,Clasificacion!$C$3:$F$96,4,FALSE),"") ->  | AW38: 0
A39: 119404 | B39: 43B | C39: 2016-07-21 | D39: 22.27 | E39: 0301648150 | F39: LOZADO DIEZ | G39: DANIEL VICENTE | H39: DVLD | I39: 2 | J39: 4 | K39: 0.7 | L39: 5.16669 | M39: 115.0621863 | N39: IP | O39: SORANZOL | P39: 0500150V01 | Q39: A-02 | R39: 1 | S39: MP-1 | T39: 1 | U39: 0.3 | X39: 09:00 | Y39: 11:00 | Z39: 09 | AA39: 00 | AB39: 9 | AC39: 0 | AD39: 0 | AE39: 9 | AF39: 11 | AG39: 00 | AH39: 11,00 | AI39: 0,00 | AJ39: 0 | AK39: 11 | AL39: 2 | AM39: 0 | AN39: 1 | AO39: 44.54 | AP39: 0730503 | AQ39: 6.681 | AR39: 44.54 | AS39: 2016 | AT39: JULIO | AU39: =IFERROR(VLOOKUP(Q39,Clasificacion!$C$3:$F$96,4,FALSE),"") ->  | AW39: 0
A40: 119376 | B40: 43B | C40: 2016-07-15 | D40: 22.27 | E40: 0301648150 | F40: LOZADO DIEZ | G40: DANIEL VICENTE | H40: DVLD | I40: 2 | J40: 2 | K40: 0.6 | L40: 3.00002 | M40: 66.8104454 | N40: IP | O40: CAHUAZHUN | P40: 0500150V02 | Q40: A-02 | R40: 1 | S40: MP-1 | T40: 1 | U40: 0.3 | X40: 14:00 | Y40: 15:00 | Z40: 14 | AA40: 00 | AB40: 14 | AC40: 0 | AD40: 0 | AE40: 14 | AF40: 15 | AG40: 00 | AH40: 15,00 | AI40: 0,00 | AJ40: 0 | AK40: 15 | AL40: 1 | AM40: 0 | AN40: 1 | AO40: 22.27 | AP40: 0730503 | AQ40: 6.681 | AR40: 22.27 | AS40: 2016 | AT40: JULIO | AU40: =IFERROR(VLOOKUP(Q40,Clasificacion!$C$3:$F$96,4,FALSE),"") ->  | AW40: 0
A41: 119217 | B41: 54B | C41: 2016-07-13 | D41: 22.27 | E41: 0300934155 | F41: VELEZ ROMERO | G41: RENE MIGUEL | H41: VRRM | I41: 1 | J41: 4 | K41: 0 | L41: 4 | M41: 89.08 | N41: IP | O41: CHILCHIL | P41: 0500180V03 | Q41: A-02 | R41: 1 | S41: MP-6 | T41: 1 | U41: 0 | X41: 08:00 | Y41: 12:00 | Z41: 08 | AA41: 00 | AB41: 8 | AC41: 0 | AD41: 0 | AE41: 8 | AF41: 12 | AG41: 00 | AH41: 12,00 | AI41: 0,00 | AJ41: 0 | AK41: 12 | AL41: 4 | AM41: 0 | AN41: 1 | AO41: 89.08 | AP41: 0720703 | AQ41: 0 | AR41: 89.08 | AS41: 2016 | AT41: JULIO | AU41: =IFERROR(VLOOKUP(Q41,Clasificacion!$C$3:$F$96,4,FALSE),"") ->  | AW41: 0
A42: 119328 | B42: 54B | C42: 2016-07-21 | D42: 22.27 | E42: 0300934155 | F42: VELEZ ROMERO | G42: RENE MIGUEL | H42: VRRM | I42: 1 | J42: 6 | K42: 0 | L42: 6 | M42: 133.62 | N42: RS | O42: CHONTAMARCA | P42: 0500180V03 | Q42: A-02 | R42: 1 | S42: MP-6 | T42: 1 | U42: 0 | X42: 09:00 | Y42: 15:30 | Z42: 09 | AA42: 00 | AB42: 9 | AC42: 0 | AD42: 0 | AE42: 9 | AF42: 15 | AG42: 30 | AH42: 15,00 | AI42: 30,00 | AJ42: 0.5 | AK42: 15.5 | AL42: 6.5 | AM42: 0 | AN42: 1 | AO42: 133.62 | AP42: 0720702 | AQ42: 0 | AR42: 144.755 | AS42: 2016 | AT42: JULIO | AU42: =IFERROR(VLOOKUP(Q42,Clasificacion!$C$3:$F$96,4,FALSE),"") ->  | AW42: 0
A43: 120488 | B43: 54B | C43: 2016-08-17 | D43: 22.27 | E43: 0300934155 | F43: VELEZ ROMERO | G43: RENE MIGUEL | H43: VRRM | I43: 1 | J43: 1 | K43: 0 | L43: 1 | M43: 22.27 | N43: IP | O43: CERCAPATA | P43: 0500180V03 | Q43: A-02 | R43: 1 | S43: MP-6 | T43: 1 | U43: 0 | X43: 15:00 | Y43: 16:20 | Z43: 15 | AA43: 00 | AB43: 15 | AC43: 0 | AD43: 0 | AE43: 15 | AF43: 16 | AG43: 20 | AH43: 16,00 | AI43: 20,00 | AJ43: 0.3333333333 | AK43: 16.33333333 | AL43: 1.333333333 | AM43: 1 | AN43: 0 | AO43: 22.27 | AP43: 0720703 | AQ43: 0 | AR43: 29.69333333 | AS43: 2016 | AT43: AGOSTO | AU43: =IFERROR(VLOOKUP(Q43,Clasificacion!$C$3:$F$96,4,FALSE),"") ->  | AW43: 0
A44: 120574 | B44: 54B | C44: 2016-09-07 | D44: 22.27 | E44: 0300934155 | F44: VELEZ ROMERO | G44: RENE MIGUEL | H44: VRRM | I44: 1 | J44: 5 | K44: 0 | L44: 5 | M44: 111.35 | N44: IP | O44: SAMBOLOMA | P44: 0500180V03 | Q44: A-02 | R44: 1 | S44: MP-1 | T44: 1 | U44: 0 | X44: 13:45 | Y44: 15:15 | Z44: 13 | AA44: 45 | AB44: 13 | AC44: 45 | AD44: 0.75 | AE44: 13.75 | AF44: 15 | AG44: 15 | AH44: 15,00 | AI44: 15,00 | AJ44: 0.25 | AK44: 15.25 | AL44: 1.5 | AM44: 2 | AN44: 0 | AO44: 44.54 | AP44: 0720703 | AQ44: 0 | AR44: 33.405 | AS44: 2016 | AT44: SEPTIEMBRE | AU44: =IFERROR(VLOOKUP(Q44,Clasificacion!$C$3:$F$96,4,FALSE),"") ->  | AW44: 0
A45: 120574 | B45: 54B | C45: 2016-09-07 | D45: 22.27 | E45: 0300934155 | F45: VELEZ ROMERO | G45: RENE MIGUEL | H45: VRRM | I45: 1 | J45: 5 | K45: 0 | L45: 5 | M45: 111.35 | N45: IP | O45: GUN CHICO | P45: 0500180V03 | Q45: A-02 | R45: 1 | S45: MP-1 | T45: 1 | U45: 0 | X45: 11:00 | Y45: 12:00 | Z45: 11 | AA45: 00 | AB45: 11 | AC45: 0 | AD45: 0 | AE45: 11 | AF45: 12 | AG45: 00 | AH45: 12,00 | AI45: 0,00 | AJ45: 0 | AK45: 12 | AL45: 1 | AM45: 1 | AN45: 0 | AO45: 22.27 | AP45: 0720703 | AQ45: 0 | AR45: 22.27 | AS45: 2016 | AT45: SEPTIEMBRE | AU45: =IFERROR(VLOOKUP(Q45,Clasificacion!$C$3:$F$96,4,FALSE),"") ->  | AW45: 0
A46: 120574 | B46: 54B | C46: 2016-09-07 | D46: 22.27 | E46: 0300934155 | F46: VELEZ ROMERO | G46: RENE MIGUEL | H46: VRRM | I46: 1 | J46: 5 | K46: 0 | L46: 5 | M46: 111.35 | N46: IP | O46: DUCUR | P46: 0500180V03 | Q46: A-02 | R46: 1 | S46: MP-1 | T46: 1 | U46: 0 | X46: 16:25 | Y46: 17:00 | Z46: 16 | AA46: 25 | AB46: 16 | AC46: 25 | AD46: 0.4166666667 | AE46: 16.41666667 | AF46: 17 | AG46: 00 | AH46: 17,00 | AI46: 0,00 | AJ46: 0 | AK46: 17 | AL46: 0.5833333333 | AM46: 1 | AN46: 0 | AO46: 22.27 | AP46: 0720703 | AQ46: 0 | AR46: 12.99083333 | AS46: 2016 | AT46: SEPTIEMBRE | AU46: =IFERROR(VLOOKUP(Q46,Clasificacion!$C$3:$F$96,4,FALSE),"") ->  | AW46: 0
A47: 121529 | B47: 44B | C47: 2016-10-27 | D47: 22.27 | E47: 0101219749 | F47: ABRIL ABRIL | G47: MANUEL ROSENDO | H47: AAMR | I47: 2 | J47: 5 | K47: 1.1 | L47: 6.16667 | M47: 137.3317409 | N47: IP | O47: ABDON CALDERON | P47: 0500150V03 | Q47: A-02 | R47: 1 | S47: MP-1 | T47: 1 | U47: 0.1 | X47: 09:30 | Y47: 10:00 | Z47: 09 | AA47: 30 | AB47: 9 | AC47: 30 | AD47: 0.5 | AE47: 9.5 | AF47: 10 | AG47: 00 | AH47: 10,00 | AI47: 0,00 | AJ47: 0 | AK47: 10 | AL47: 0.5 | AM47: 1 | AN47: 1 | AO47: 22.27 | AP47: 0730603 | AQ47: 2.227 | AR47: 11.135 | AS47: 2016 | AT47: OCTUBRE | AU47: =IFERROR(VLOOKUP(Q47,Clasificacion!$C$3:$F$96,4,FALSE),"") ->  | AW47: 0
A48: 121895 | B48: 11 | C48: 2016-11-12 | D48: 41.48 | E48: 0103040309 | F48: AUCAPIÑA QUINDE | G48: JOHNSON OSWALDO | H48: JOAQ | I48: 3 | J48: 7 | K48: 1 | L48: 8 | M48: 331.84 | N48: AP | O48: VIA CUMBE LOJA RETIRADO DE LUMINARIAS | P48: 0500050V01 | Q48: A-02 | R48: 25 | S48: MP-1 | T48: 1 | U48: 0.5 | X48: 07:30 | Y48: 14:30 | Z48: 07 | AA48: 30 | AB48: 7 | AC48: 30 | AD48: 0.5 | AE48: 7.5 | AF48: 14 | AG48: 30 | AH48: 14,00 | AI48: 30,00 | AJ48: 0.5 | AK48: 14.5 | AL48: 7 | AM48: 7 | AN48: 1 | AO48: 290.36 | AP48: 0740401 | AQ48: 20.74 | AR48: 290.36 | AS48: 2016 | AT48: NOVIEMBRE | AU48: =IFERROR(VLOOKUP(Q48,Clasificacion!$C$3:$F$96,4,FALSE),"") ->  | AW48: 0
A49: 122027 | B49: 41A | C49: 2016-11-12 | D49: 23.15 | E49: 0103561643 | F49: SALDAÑA TAPIA | G49: JAIME FERNANDO | H49: JS | I49: 1 | J49: 7 | K49: 0.15 | L49: 7.250005 | M49: 167.8376157 | N49: IP | O49: CACHI, SAGEO, SAN LUIS | P49: 0500090V01 | Q49: A-02 | R49: 5 | S49: MP-1 | T49: 1 | U49: 0.15 | X49: 07:30 | Y49: 14:45 | Z49: 07 | AA49: 30 | AB49: 7 | AC49: 30 | AD49: 0.5 | AE49: 7.5 | AF49: 14 | AG49: 45 | AH49: 14,00 | AI49: 45,00 | AJ49: 0.75 | AK49: 14.75 | AL49: 7.25 | AM49: 7 | AN49: 1 | AO49: 162.05 | AQ49: 3.4725 | AR49: 167.8375 | AS49: 2016 | AT49: NOVIEMBRE | AU49: =IFERROR(VLOOKUP(Q49,Clasificacion!$C$3:$F$96,4,FALSE),"") ->  | AW49: 0
A50: 115611 | B50: 71 | C50: 2016-01-06 | D50: 65.5 | E50: 0102283876 | F50: GENOVEZ ZUÑIGA | G50: IVAN PATRICIO | H50: IPGZ | I50: 10 | J50: 6 | K50: 2 | L50: 8 | M50: 524 | N50: IP | O50: Z #17,LARGA Y HERMANO MIGUEL | P50: 0500020S01 | Q50: A-03 | R50: 10 | S50: MP-1 | T50: 1 | U50: 1 | X50: 11:00 | Y50: 16:00 | Z50: 11 | AA50: 00 | AB50: 11 | AC50: 0 | AD50: 0 | AE50: 11 | AF50: 16 | AG50: 00 | AH50: 16,00 | AI50: 0,00 | AJ50: 0 | AK50: 16 | AL50: 5 | AM50: 0 | AN50: 1 | AO50: 327.5 | AP50: 0750502 | AQ50: 65.5 | AR50: 327.5 | AS50: 2016 | AT50: ENERO | AU50: =IFERROR(VLOOKUP(Q50,Clasificacion!$C$3:$F$96,4,FALSE),"") ->  | AW50: 0
A51: 115615 | B51: 71 | C51: 2016-01-11 | D51: 65.5 | E51: 0102283876 | F51: GENOVEZ ZUÑIGA | G51: IVAN PATRICIO | H51: IPGZ | I51: 10 | J51: 7 | K51: 1 | L51: 8 | M51: 524 | N51: IP | O51: ZONA #17 LUIS CORDERO | P51: 0500020S02 | Q51: A-03 | R51: 6 | S51: MP-1 | T51: 1 | U51: 1 | X51: 09:00 | Y51: 14:00 | Z51: 09 | AA51: 00 | AB51: 9 | AC51: 0 | AD51: 0 | AE51: 9 | AF51: 14 | AG51: 00 | AH51: 14,00 | AI51: 0,00 | AJ51: 0 | AK51: 14 | AL51: 5 | AM51: 0 | AN51: 1 | AO51: 327.5 | AP51: 0750502 | AQ51: 65.5 | AR51: 327.5 | AS51: 2016 | AT51: ENERO | AU51: =IFERROR(VLOOKUP(Q51,Clasificacion!$C$3:$F$96,4,FALSE),"") ->  | AW51: 0
A52: 115780 | B52: 05 | C52: 2016-01-19 | D52: 32.97 | E52: 0101526895 | F52: DURAN CONTRERAS | G52: EDGAR FERNANDO | H52: DCEF | I52: 1 | J52: 7 | K52: 1 | L52: 8 | M52: 263.76 | N52: RS | O52: JOSE PERALTA Y AV. DEL ESTADIO | P52: 0500020S04 | Q52: A-03 | R52: 1 | S52: MP-1 | T52: 1 | U52: 0 | X52: 11:30 | Y52: 12:30 | Z52: 11 | AA52: 30 | AB52: 11 | AC52: 30 | AD52: 0.5 | AE52: 11.5 | AF52: 12 | AG52: 30 | AH52: 12,00 | AI52: 30,00 | AJ52: 0.5 | AK52: 12.5 | AL52: 1 | AM52: 0 | AN52: 1 | AO52: 32.97 | AP52: 0720401 | AQ52: 0 | AR52: 32.97 | AS52: 2016 | AT52: ENERO | AU52: =IFERROR(VLOOKUP(Q52,Clasificacion!$C$3:$F$96,4,FALSE),"") ->  | AW52: 0
A53: 115610 | B53: 71 | C53: 2016-01-05 | D53: 65.5 | E53: 0102283876 | F53: GENOVEZ ZUÑIGA | G53: IVAN PATRICIO | H53: IPGZ | I53: 10 | J53: 7 | K53: 1 | L53: 8 | M53: 524 | N53: IP | O53: BODEGA DE MONAY | P53: 0500030V01 | Q53: A-03 | R53: 4 | S53: MP-1 | T53: 1 | U53: 0 | X53: 08:00 | Y53: 10:00 | Z53: 08 | AA53: 00 | AB53: 8 | AC53: 0 | AD53: 0 | AE53: 8 | AF53: 10 | AG53: 00 | AH53: 10,00 | AI53: 0,00 | AJ53: 0 | AK53: 10 | AL53: 2 | AM53: 0 | AN53: 1 | AO53: 131 | AP53: 0750502 | AQ53: 0 | AR53: 131 | AS53: 2016 | AT53: ENERO | AU53: =IFERROR(VLOOKUP(Q53,Clasificacion!$C$3:$F$96,4,FALSE),"") ->  | AW53: 0
A54: 115613 | B54: 71 | C54: 2016-01-07 | D54: 65.5 | E54: 0102283876 | F54: GENOVEZ ZUÑIGA | G54: IVAN PATRICIO | H54: IPGZ | I54: 10 | J54: 6 | K54: 2 | L54: 8 | M54: 524 | N54: IP | O54: AMERICAS Y ENTRADA A QUITA CHICA | P54: 0500040V02 | Q54: A-03 | R54: 2 | S54: MP-1 | T54: 1 | U54: 1 | X54: 15:00 | Y54: 16:00 | Z54: 15 | AA54: 00 | AB54: 15 | AC54: 0 | AD54: 0 | AE54: 15 | AF54: 16 | AG54: 00 | AH54: 16,00 | AI54: 0,00 | AJ54: 0 | AK54: 16 | AL54: 1 | AM54: 0 | AN54: 1 | AO54: 65.5 | AP54: 0750502 | AQ54: 65.5 | AR54: 65.5 | AS54: 2016 | AT54: ENERO | AU54: =IFERROR(VLOOKUP(Q54,Clasificacion!$C$3:$F$96,4,FALSE),"") ->  | AW54: 0
A55: 115610 | B55: 71 | C55: 2016-01-05 | D55: 65.5 | E55: 0102283876 | F55: GENOVEZ ZUÑIGA | G55: IVAN PATRICIO | H55: IPGZ | I55: 10 | J55: 7 | K55: 1 | L55: 8 | M55: 524 | N55: IP | O55: H DE VERDELOMA ENTRE GIL R.D Y AMERICAS | P55: 0500040V02 | Q55: A-03 | R55: 17 | S55: MP-1 | T55: 1 | U55: 1 | X55: 11:00 | Y55: 16:00 | Z55: 11 | AA55: 00 | AB55: 11 | AC55: 0 | AD55: 0 | AE55: 11 | AF55: 16 | AG55: 00 | AH55: 16,00 | AI55: 0,00 | AJ55: 0 | AK55: 16 | AL55: 5 | AM55: 0 | AN55: 1 | AO55: 327.5 | AP55: 0750502 | AQ55: 65.5 | AR55: 327.5 | AS55: 2016 | AT55: ENERO | AU55: =IFERROR(VLOOKUP(Q55,Clasificacion!$C$3:$F$96,4,FALSE),"") ->  | AW55: 0
A56: 115535 | B56: 71 | C56: 2016-01-04 | D56: 65.5 | E56: 0102283876 | F56: GENOVEZ ZUÑIGA | G56: IVAN PATRICIO | H56: IPGZ | I56: 10 | J56: 6 | K56: 2 | L56: 8 | M56: 524 | N56: IP | O56: HEROES DE VERDELOMA Y MARIANO C-GIL RAMI | P56: 0500040V03 | Q56: A-03 | R56: 14 | S56: MP-1 | T56: 1 | U56: 2 | X56: 09:00 | Y56: 15:00 | Z56: 09 | AA56: 00 | AB56: 9 | AC56: 0 | AD56: 0 | AE56: 9 | AF56: 15 | AG56: 00 | AH56: 15,00 | AI56: 0,00 | AJ56: 0 | AK56: 15 | AL56: 6 | AM56: 0 | AN56: 1 | AO56: 393 | AP56: 0750502 | AQ56: 131 | AR56: 393 | AS56: 2016 | AT56: ENERO | AU56: =IFERROR(VLOOKUP(Q56,Clasificacion!$C$3:$F$96,4,FALSE),"") ->  | AW56: 0
A57: 115613 | B57: 71 | C57: 2016-01-07 | D57: 65.5 | E57: 0102283876 | F57: GENOVEZ ZUÑIGA | G57: IVAN PATRICIO | H57: IPGZ | I57: 10 | J57: 6 | K57: 2 | L57: 8 | M57: 524 | N57: IP | O57: RACAR SAN MATEO | P57: 0500050V02 | Q57: A-03 | R57: 1 | S57: MP-1 | T57: 1 | U57: 1 | X57: 09:00 | Y57: 10:00 | Z57: 09 | AA57: 00 | AB57: 9 | AC57: 0 | AD57: 0 | AE57: 9 | AF57: 10 | AG57: 00 | AH57: 10,00 | AI57: 0,00 | AJ57: 0 | AK57: 10 | AL57: 1 | AM57: 0 | AN57: 1 | AO57: 65.5 | AP57: 0750502 | AQ57: 65.5 | AR57: 65.5 | AS57: 2016 | AT57: ENERO | AU57: =IFERROR(VLOOKUP(Q57,Clasificacion!$C$3:$F$96,4,FALSE),"") ->  | AW57: 0
A58: 115874 | B58: 49A | C58: 2016-01-15 | D58: 13.77 | E58: 0102354040 | F58: PIEDRA MARTINEZ | G58: JORGE IVAN | H58: PMJI | I58: 3 | J58: 7 | K58: 1 | L58: 8 | M58: 110.16 | N58: RS | O58: NARANJOS | P58: 0500050V05 | Q58: A-03 | R58: 1 | S58: MP-1 | T58: 1 | U58: 0 | X58: 12:30 | Y58: 13:30 | Z58: 12 | AA58: 30 | AB58: 12 | AC58: 30 | AD58: 0.5 | AE58: 12.5 | AF58: 13 | AG58: 30 | AH58: 13,00 | AI58: 30,00 | AJ58: 0.5 | AK58: 13.5 | AL58: 1 | AM58: 0 | AN58: 1 | AO58: 13.77 | AP58: 0741103 | AQ58: 0 | AR58: 13.77 | AS58: 2016 | AT58: ENERO | AU58: =IFERROR(VLOOKUP(Q58,Clasificacion!$C$3:$F$96,4,FALSE),"") ->  | AW58: 0
A59: 115942 | B59: 49A | C59: 2016-01-30 | D59: 13.77 | E59: 0102354040 | F59: PIEDRA MARTINEZ | G59: JORGE IVAN | H59: PMJI | I59: 3 | J59: 9 | K59: 1 | L59: 10 | M59: 137.7 | N59: IP | O59: SAN ANTONIO | P59: 0500050V05 | Q59: A-03 | R59: 3 | S59: MP-1 | T59: 1 | U59: 1 | X59: 10:30 | Y59: 11:30 | Z59: 10 | AA59: 30 | AB59: 10 | AC59: 30 | AD59: 0.5 | AE59: 10.5 | AF59: 11 | AG59: 30 | AH59: 11,00 | AI59: 30,00 | AJ59: 0.5 | AK59: 11.5 | AL59: 1 | AM59: 0 | AN59: 1 | AO59: 13.77 | AP59: 0741103 | AQ59: 13.77 | AR59: 13.77 | AS59: 2016 | AT59: ENERO | AU59: =IFERROR(VLOOKUP(Q59,Clasificacion!$C$3:$F$96,4,FALSE),"") ->  | AW59: 0
A60: 116062 | B60: 41A | C60: 2016-01-08 | D60: 23.15 | E60: 0103561643 | F60: SALDAÑA TAPIA | G60: JAIME FERNANDO | H60: JS | I60: 1 | J60: 6 | K60: 0.6 | L60: 7.00002 | M60: 162.050463 | N60: IP | O60: AGUARONGO | P60: 0500090V01 | Q60: A-03 | R60: 2 | S60: MP-6 | T60: 1 | U60: 0.3 | X60: 14:15 | Y60: 16:45 | Z60: 14 | AA60: 15 | AB60: 14 | AC60: 15 | AD60: 0.25 | AE60: 14.25 | AF60: 16 | AG60: 45 | AH60: 16,00 | AI60: 45,00 | AJ60: 0.75 | AK60: 16.75 | AL60: 2.5 | AM60: 0 | AN60: 1 | AO60: 46.3 | AP60: 0720503 | AQ60: 6.945 | AR60: 57.875 | AS60: 2016 | AT60: ENERO | AU60: =IFERROR(VLOOKUP(Q60,Clasificacion!$C$3:$F$96,4,FALSE),"") ->  | AW60: 0
A61: 116078 | B61: 41A | C61: 2016-01-29 | D61: 23.15 | E61: 0103561643 | F61: SALDAÑA TAPIA | G61: JAIME FERNANDO | H61: JS | I61: 1 | J61: 6 | K61: 0.6 | L61: 7.00002 | M61: 162.050463 | N61: IP | O61: JERUSALEN | P61: 0500090V01 | Q61: A-03 | R61: 6 | S61: MP-4 | T61: 1 | U61: 0.3 | X61: 14:15 | Y61: 16:45 | Z61: 14 | AA61: 15 | AB61: 14 | AC61: 15 | AD61: 0.25 | AE61: 14.25 | AF61: 16 | AG61: 45 | AH61: 16,00 | AI61: 45,00 | AJ61: 0.75 | AK61: 16.75 | AL61: 2.5 | AM61: 0 | AN61: 1 | AO61: 46.3 | AP61: 0720503 | AQ61: 6.945 | AR61: 57.875 | AS61: 2016 | AT61: ENERO | AU61: =IFERROR(VLOOKUP(Q61,Clasificacion!$C$3:$F$96,4,FALSE),"") ->  | AW61: 0
A62: 116066 | B62: 41A | C62: 2016-01-14 | D62: 23.15 | E62: 0103561643 | F62: SALDAÑA TAPIA | G62: JAIME FERNANDO | H62: JS | I62: 1 | J62: 6 | K62: 0.6 | L62: 7.00002 | M62: 162.050463 | N62: RS | O62: MARISCAL SUCRE | P62: 0500090V01 | Q62: A-03 | R62: 4 | S62: MP-4 | T62: 1 | U62: 0.3 | X62: 14:15 | Y62: 16:45 | Z62: 14 | AA62: 15 | AB62: 14 | AC62: 15 | AD62: 0.25 | AE62: 14.25 | AF62: 16 | AG62: 45 | AH62: 16,00 | AI62: 45,00 | AJ62: 0.75 | AK62: 16.75 | AL62: 2.5 | AM62: 0 | AN62: 1 | AO62: 46.3 | AP62: 0720503 | AQ62: 6.945 | AR62: 57.875 | AS62: 2016 | AT62: ENERO | AU62: =IFERROR(VLOOKUP(Q62,Clasificacion!$C$3:$F$96,4,FALSE),"") ->  | AW62: 0
A63: 116072 | B63: 41A | C63: 2016-01-22 | D63: 23.15 | E63: 0103561643 | F63: SALDAÑA TAPIA | G63: JAIME FERNANDO | H63: JS | I63: 1 | J63: 8 | K63: 0.6 | L63: 9.00002 | M63: 208.350463 | N63: IP | O63: MOSQUERA | P63: 0500090V01 | Q63: A-03 | R63: 4 | S63: MP-6 | T63: 1 | U63: 0.3 | X63: 14:15 | Y63: 16:45 | Z63: 14 | AA63: 15 | AB63: 14 | AC63: 15 | AD63: 0.25 | AE63: 14.25 | AF63: 16 | AG63: 45 | AH63: 16,00 | AI63: 45,00 | AJ63: 0.75 | AK63: 16.75 | AL63: 2.5 | AM63: 0 | AN63: 1 | AO63: 46.3 | AP63: 0720503 | AQ63: 6.945 | AR63: 57.875 | AS63: 2016 | AT63: ENERO | AU63: =IFERROR(VLOOKUP(Q63,Clasificacion!$C$3:$F$96,4,FALSE),"") ->  | AW63: 0
A64: 116061 | B64: 41A | C64: 2016-01-07 | D64: 23.15 | E64: 0103561643 | F64: SALDAÑA TAPIA | G64: JAIME FERNANDO | H64: JS | I64: 1 | J64: 6 | K64: 0.6 | L64: 7.00002 | M64: 162.050463 | N64: IP | O64: SAN JAVIER | P64: 0500090V01 | Q64: A-03 | R64: 3 | S64: MP-6 | T64: 1 | U64: 0.3 | X64: 14:15 | Y64: 16:45 | Z64: 14 | AA64: 15 | AB64: 14 | AC64: 15 | AD64: 0.25 | AE64: 14.25 | AF64: 16 | AG64: 45 | AH64: 16,00 | AI64: 45,00 | AJ64: 0.75 | AK64: 16.75 | AL64: 2.5 | AM64: 0 | AN64: 1 | AO64: 46.3 | AP64: 0720503 | AQ64: 6.945 | AR64: 57.875 | AS64: 2016 | AT64: ENERO | AU64: =IFERROR(VLOOKUP(Q64,Clasificacion!$C$3:$F$96,4,FALSE),"") ->  | AW64: 0
A65: 116066 | B65: 41A | C65: 2016-01-14 | D65: 23.15 | E65: 0103561643 | F65: SALDAÑA TAPIA | G65: JAIME FERNANDO | H65: JS | I65: 1 | J65: 6 | K65: 0.6 | L65: 7.00002 | M65: 162.050463 | N65: RS | O65: AV. ALBERTO OCHOA | P65: 0500090V01 | Q65: A-03 | R65: 5 | S65: MP-4 | T65: 1 | U65: 0.3 | X65: 08:15 | Y65: 12:45 | Z65: 08 | AA65: 15 | AB65: 8 | AC65: 15 | AD65: 0.25 | AE65: 8.25 | AF65: 12 | AG65: 45 | AH65: 12,00 | AI65: 45,00 | AJ65: 0.75 | AK65: 12.75 | AL65: 4.5 | AM65: 0 | AN65: 1 | AO65: 92.6 | AP65: 0720503 | AQ65: 6.945 | AR65: 104.175 | AS65: 2016 | AT65: ENERO | AU65: =IFERROR(VLOOKUP(Q65,Clasificacion!$C$3:$F$96,4,FALSE),"") ->  | AW65: 0
A66: 116062 | B66: 41A | C66: 2016-01-08 | D66: 23.15 | E66: 0103561643 | F66: SALDAÑA TAPIA | G66: JAIME FERNANDO | H66: JS | I66: 1 | J66: 6 | K66: 0.6 | L66: 7.00002 | M66: 162.050463 | N66: IP | O66: CIRCUNVALACIÓN | P66: 0500090V01 | Q66: A-03 | R66: 6 | S66: MP-6 | T66: 1 | U66: 0.3 | X66: 08:15 | Y66: 12:45 | Z66: =LEFT(X66,2) -> 08 | AA66: =RIGHT(X66,2) -> 15 | AB66: =FIXED(Z66,0) -> 8 | AC66: 15 | AD66: =+AC66/60 -> 0.25 | AE66: =+AB66+AD66 -> 8.25 | AF66: =LEFT(Y66,2) -> 12 | AG66: =RIGHT(Y66,2) -> 45 | AH66: =FIXED(AF66,2) -> 12,00 | AI66: 45,00 | AJ66: =+AI66/60 -> 0.75 | AK66: =+AH66+AJ66 -> 12.75 | AL66: =+AK66-AE66 -> 4.5 | AM66: 0 | AN66: 1 | AO66: 92.6 | AP66: 0720503 | AQ66: =+U66*D66 -> 6.945 | AR66: =+AL66*D66 -> 104.175 | AS66: 2016 | AT66: ENERO | AU66: =IFERROR(VLOOKUP(Q66,Clasificacion!$C$3:$F$96,4,FALSE),"") ->  | AW66: 0
A67: 116061 | B67: 41A | C67: 2016-01-07 | D67: 23.15 | E67: 0103561643 | F67: SALDAÑA TAPIA | G67: JAIME FERNANDO | H67: JS | I67: 1 | J67: 6 | K67: 0.6 | L67: 7.00002 | M67: 162.050463 | N67: IP | O67: SALTO | P67: 0500090V01 | Q67: A-03 | R67: 4 | S67: MP-6 | T67: 1 | U67: 0.3 | X67: 08:15 | Y67: 12:45 | Z67: 08 | AA67: 15 | AB67: 8 | AC67: 15 | AD67: 0.25 | AE67: 8.25 | AF67: 12 | AG67: 45 | AH67: 12,00 | AI67: 45,00 | AJ67: 0.75 | AK67: 12.75 | AL67: 4.5 | AM67: 0 | AN67: 1 | AO67: 92.6 | AP67: 0720503 | AQ67: 6.945 | AR67: 104.175 | AS67: =IF(A67>0,YEAR(C67),"") -> 2016 | AT67: =VLOOKUP(IF(A67>0,MONTH(C67),""),$BA$2:$BB$13,2,FALSE) -> ENERO | AU67: =IFERROR(VLOOKUP(Q67,Clasificacion!$C$3:$F$96,4,FALSE),"") ->  | AV67: =+IF(AU67="mantenimiento preventivo",Q67,"") ->  | AW67: =+IF(OR(Q67="F-01",Q67="f-02"),1*0.15,0) -> 0
A68: 116072 | B68: 41A | C68: 2016-01-22 | D68: 23.15 | E68: 0103561643 | F68: SALDAÑA TAPIA | G68: JAIME FERNANDO | H68: JS | I68: 1 | J68: 8 | K68: 0.6 | L68: 9.00002 | M68: 208.350463 | N68: IP | O68: NAZÓN | P68: 0500090V01 | Q68: A-03 | R68: 5 | S68: MP-6 | T68: 1 | U68: 0.3 | X68: 08:15 | Y68: 14:45 | Z68: 08 | AA68: 15 | AB68: 8 | AC68: 15 | AD68: 0.25 | AE68: 8.25 | AF68: 14 | AG68: 45 | AH68: 14,00 | AI68: 45,00 | AJ68: 0.75 | AK68: 14.75 | AL68: 6.5 | AM68: 0 | AN68: 1 | AO68: 138.9 | AP68: 0720503 | AQ68: 6.945 | AR68: 150.475 | AS68: 2016 | AT68: ENERO | AU68: =IFERROR(VLOOKUP(Q68,Clasificacion!$C$3:$F$96,4,FALSE),"") ->  | AW68: 0
A69: 115927 | B69: 44A | C69: 2016-01-29 | D69: 31.67 | E69: 0101219749 | F69: ABRIL ABRIL | G69: MANUEL ROSENDO | H69: AAMR | I69: 2 | J69: 3 | K69: 0.9 | L69: 4.50003 | M69: 142.5159501 | N69: IP | O69: LUGMAPAMBA | P69: 0500120V02 | Q69: A-03 | R69: 1 | S69: MP-1 | T69: 1 | U69: 0.15 | X69: 10:00 | Y69: 10:10 | Z69: 10 | AA69: 00 | AB69: 10 | AC69: 0 | AD69: 0 | AE69: 10 | AF69: 10 | AG69: 10 | AH69: 10,00 | AI69: 10,00 | AJ69: 0.1666666667 | AK69: 10.16666667 | AL69: 0.1666666667 | AM69: 0 | AN69: 1 | AO69: 0 | AP69: 0730603 | AQ69: 4.7505 | AR69: 5.278333333 | AS69: 2016 | AT69: ENERO | AU69: =IFERROR(VLOOKUP(Q69,Clasificacion!$C$3:$F$96,4,FALSE),"") ->  | AW69: 0
A70: 115927 | B70: 44A | C70: 2016-01-29 | D70: 31.67 | E70: 0101219749 | F70: ABRIL ABRIL | G70: MANUEL ROSENDO | H70: AAMR | I70: 2 | J70: 3 | K70: 0.9 | L70: 4.50003 | M70: 142.5159501 | N70: IP | O70: LA HIGUERA | P70: 0500120V02 | Q70: A-03 | R70: 1 | S70: MP-1 | T70: 1 | U70: 0.1 | X70: 11:30 | Y70: 12:00 | Z70: 11 | AA70: 30 | AB70: 11 | AC70: 30 | AD70: 0.5 | AE70: 11.5 | AF70: 12 | AG70: 00 | AH70: 12,00 | AI70: 0,00 | AJ70: 0 | AK70: 12 | AL70: 0.5 | AM70: 0 | AN70: 1 | AO70: 31.67 | AP70: 0730602 | AQ70: 3.167 | AR70: 15.835 | AS70: 2016 | AT70: ENERO | AU70: =IFERROR(VLOOKUP(Q70,Clasificacion!$C$3:$F$96,4,FALSE),"") ->  | AW70: 0
A71: 115927 | B71: 44A | C71: 2016-01-29 | D71: 31.67 | E71: 0101219749 | F71: ABRIL ABRIL | G71: MANUEL ROSENDO | H71: AAMR | I71: 2 | J71: 3 | K71: 0.9 | L71: 4.50003 | M71: 142.5159501 | N71: IP | O71: EL DESCANSO | P71: 0500120V02 | Q71: A-03 | R71: 1 | S71: MP-1 | T71: 1 | U71: 0.15 | X71: 09:00 | Y71: 09:45 | Z71: 09 | AA71: 00 | AB71: 9 | AC71: 0 | AD71: 0 | AE71: 9 | AF71: 09 | AG71: 45 | AH71: 9,00 | AI71: 45,00 | AJ71: 0.75 | AK71: 9.75 | AL71: 0.75 | AM71: 0 | AN71: 1 | AO71: 0 | AP71: 0730603 | AQ71: 4.7505 | AR71: 23.7525 | AS71: 2016 | AT71: ENERO | AU71: =IFERROR(VLOOKUP(Q71,Clasificacion!$C$3:$F$96,4,FALSE),"") ->  | AW71: 0
A72: 115743 | B72: 44A | C72: 2016-01-19 | D72: 31.67 | E72: 0101219749 | F72: ABRIL ABRIL | G72: MANUEL ROSENDO | H72: AAMR | I72: 2 | J72: 5 | K72: 1.1 | L72: 6.16667 | M72: 195.2984389 | N72: IP | O72: TERMINAL TERRESTRE | P72: 0500120V02 | Q72: A-03 | R72: 1 | S72: MP-1 | T72: 1 | U72: 0.1 | X72: 10:10 | Y72: 11:00 | Z72: 10 | AA72: 10 | AB72: 10 | AC72: 10 | AD72: 0.1666666667 | AE72: 10.16666667 | AF72: 11 | AG72: 00 | AH72: 11,00 | AI72: 0,00 | AJ72: 0 | AK72: 11 | AL72: 0.8333333333 | AM72: 0 | AN72: 1 | AO72: 31.67 | AP72: 0730603 | AQ72: 3.167 | AR72: 26.39166667 | AS72: 2016 | AT72: ENERO | AU72: =IFERROR(VLOOKUP(Q72,Clasificacion!$C$3:$F$96,4,FALSE),"") ->  | AW72: 0
A73: 115653 | B73: 44A | C73: 2016-01-13 | D73: 31.67 | E73: 0101219749 | F73: ABRIL ABRIL | G73: MANUEL ROSENDO | H73: AAMR | I73: 2 | J73: 6 | K73: 0.5 | L73: 6.83335 | M73: 216.4121945 | N73: IP | O73: HUACHI | P73: 0500120V02 | Q73: A-03 | R73: 1 | S73: MP-1 | T73: 1 | U73: 0.2 | X73: 14:30 | Y73: 15:30 | Z73: 14 | AA73: 30 | AB73: 14 | AC73: 30 | AD73: 0.5 | AE73: 14.5 | AF73: 15 | AG73: 30 | AH73: 15,00 | AI73: 30,00 | AJ73: 0.5 | AK73: 15.5 | AL73: 1 | AM73: 0 | AN73: 1 | AO73: 31.67 | AP73: 0730603 | AQ73: 6.334 | AR73: 31.67 | AS73: 2016 | AT73: ENERO | AU73: =IFERROR(VLOOKUP(Q73,Clasificacion!$C$3:$F$96,4,FALSE),"") ->  | AW73: 0
A74: 115758 | B74: 44A | C74: 2016-01-20 | D74: 31.67 | E74: 0101219749 | F74: ABRIL ABRIL | G74: MANUEL ROSENDO | H74: AAMR | I74: 2 | J74: 6 | K74: 0.8 | L74: 7.33336 | M74: 232.2475112 | N74: IP | O74: RUMIHURCO | P74: 0500120V02 | Q74: A-03 | R74: 1 | S74: MP-1 | T74: 1 | U74: 0.2 | X74: 10:30 | Y74: 11:30 | Z74: 10 | AA74: 30 | AB74: 10 | AC74: 30 | AD74: 0.5 | AE74: 10.5 | AF74: 11 | AG74: 30 | AH74: 11,00 | AI74: 30,00 | AJ74: 0.5 | AK74: 11.5 | AL74: 1 | AM74: 0 | AN74: 1 | AO74: 31.67 | AP74: 0730603 | AQ74: 6.334 | AR74: 31.67 | AS74: 2016 | AT74: ENERO | AU74: =IFERROR(VLOOKUP(Q74,Clasificacion!$C$3:$F$96,4,FALSE),"") ->  | AW74: 0
A75: 115697 | B75: 44A | C75: 2016-01-15 | D75: 31.67 | E75: 0101219749 | F75: ABRIL ABRIL | G75: MANUEL ROSENDO | H75: AAMR | I75: 2 | J75: 5 | K75: 0.8 | L75: 6.33336 | M75: 200.5775112 | N75: IP | O75: LUGMAPAMBA | P75: 0500120V03 | Q75: A-03 | R75: 1 | S75: MP-1 | T75: 1 | U75: 0.1 | X75: 09:10 | Y75: 09:30 | Z75: 09 | AA75: 10 | AB75: 9 | AC75: 10 | AD75: 0.1666666667 | AE75: 9.166666667 | AF75: 09 | AG75: 30 | AH75: 9,00 | AI75: 30,00 | AJ75: 0.5 | AK75: 9.5 | AL75: 0.3333333333 | AM75: 0 | AN75: 1 | AO75: 0 | AP75: 0730603 | AQ75: 3.167 | AR75: 10.55666667 | AS75: 2016 | AT75: ENERO | AU75: =IFERROR(VLOOKUP(Q75,Clasificacion!$C$3:$F$96,4,FALSE),"") ->  | AW75: 0
A76: 115927 | B76: 44A | C76: 2016-01-29 | D76: 31.67 | E76: 0101219749 | F76: ABRIL ABRIL | G76: MANUEL ROSENDO | H76: AAMR | I76: 2 | J76: 3 | K76: 0.9 | L76: 4.50003 | M76: 142.5159501 | N76: IP | O76: SAN IGNACIO | P76: 0500120V03 | Q76: A-03 | R76: 1 | S76: MP-1 | T76: 1 | U76: 0.1 | X76: 12:10 | Y76: 12:30 | Z76: 12 | AA76: 10 | AB76: 12 | AC76: 10 | AD76: 0.1666666667 | AE76: 12.16666667 | AF76: 12 | AG76: 30 | AH76: 12,00 | AI76: 30,00 | AJ76: 0.5 | AK76: 12.5 | AL76: 0.3333333333 | AM76: 0 | AN76: 1 | AO76: 0 | AP76: 0730603 | AQ76: 3.167 | AR76: 10.55666667 | AS76: 2016 | AT76: ENERO | AU76: =IFERROR(VLOOKUP(Q76,Clasificacion!$C$3:$F$96,4,FALSE),"") ->  | AW76: 0
A77: 115758 | B77: 44A | C77: 2016-01-20 | D77: 31.67 | E77: 0101219749 | F77: ABRIL ABRIL | G77: MANUEL ROSENDO | H77: AAMR | I77: 2 | J77: 6 | K77: 0.8 | L77: 7.33336 | M77: 232.2475112 | N77: IP | O77: GUACHAPALA | P77: 0500120V03 | Q77: A-03 | R77: 1 | S77: MP-1 | T77: 1 | U77: 0.2 | X77: 09:30 | Y77: 10:00 | Z77: 09 | AA77: 30 | AB77: 9 | AC77: 30 | AD77: 0.5 | AE77: 9.5 | AF77: 10 | AG77: 00 | AH77: 10,00 | AI77: 0,00 | AJ77: 0 | AK77: 10 | AL77: 0.5 | AM77: 0 | AN77: 1 | AO77: 31.67 | AP77: 0730603 | AQ77: 6.334 | AR77: 15.835 | AS77: 2016 | AT77: ENERO | AU77: =IFERROR(VLOOKUP(Q77,Clasificacion!$C$3:$F$96,4,FALSE),"") ->  | AW77: 0
A78: 115743 | B78: 44A | C78: 2016-01-19 | D78: 31.67 | E78: 0101219749 | F78: ABRIL ABRIL | G78: MANUEL ROSENDO | H78: AAMR | I78: 2 | J78: 5 | K78: 1.1 | L78: 6.16667 | M78: 195.2984389 | N78: IP | O78: LUGMAPAMBA | P78: 0500120V03 | Q78: A-03 | R78: 1 | S78: MP-1 | T78: 1 | U78: 0.2 | X78: 12:00 | Y78: 12:30 | Z78: 12 | AA78: 00 | AB78: 12 | AC78: 0 | AD78: 0 | AE78: 12 | AF78: 12 | AG78: 30 | AH78: 12,00 | AI78: 30,00 | AJ78: 0.5 | AK78: 12.5 | AL78: 0.5 | AM78: 0 | AN78: 1 | AO78: 0 | AP78: 0730603 | AQ78: 6.334 | AR78: 15.835 | AS78: 2016 | AT78: ENERO | AU78: =IFERROR(VLOOKUP(Q78,Clasificacion!$C$3:$F$96,4,FALSE),"") ->  | AW78: 0
A79: 115743 | B79: 44A | C79: 2016-01-19 | D79: 31.67 | E79: 0101219749 | F79: ABRIL ABRIL | G79: MANUEL ROSENDO | H79: AAMR | I79: 2 | J79: 5 | K79: 1.1 | L79: 6.16667 | M79: 195.2984389 | N79: IP | O79: GUACHAPALA | P79: 0500120V03 | Q79: A-03 | R79: 1 | S79: MP-1 | T79: 1 | U79: 0.2 | X79: 14:30 | Y79: 16:00 | Z79: 14 | AA79: 30 | AB79: 14 | AC79: 30 | AD79: 0.5 | AE79: 14.5 | AF79: 16 | AG79: 00 | AH79: 16,00 | AI79: 0,00 | AJ79: 0 | AK79: 16 | AL79: 1.5 | AM79: 0 | AN79: 1 | AO79: 63.34 | AP79: 0730603 | AQ79: 6.334 | AR79: 47.505 | AS79: 2016 | AT79: ENERO | AU79: =IFERROR(VLOOKUP(Q79,Clasificacion!$C$3:$F$96,4,FALSE),"") ->  | AW79: 0
A80: 115575 | B80: 47B | C80: 2016-01-05 | D80: 25.14 | E80: 0103072583 | F80: VAZQUEZ CALVACHE | G80: GERARDO PATRICIO | H80: VCGP | I80: 3 | J80: 3 | K80: 2 | L80: 5 | M80: 125.7 | N80: IP | O80: CACHI, LENTAG | P80: 0500140V03 | Q80: A-03 | R80: 2 | S80: MP-6 | T80: 1 | U80: 1 | X80: 11:00 | Y80: 13:00 | Z80: 11 | AA80: 00 | AB80: 11 | AC80: 0 | AD80: 0 | AE80: 11 | AF80: 13 | AG80: 00 | AH80: 13,00 | AI80: 0,00 | AJ80: 0 | AK80: 13 | AL80: 2 | AM80: 0 | AN80: 1 | AO80: 50.28 | AP80: 0740603 | AQ80: 25.14 | AR80: 50.28 | AS80: 2016 | AT80: ENERO | AU80: =IFERROR(VLOOKUP(Q80,Clasificacion!$C$3:$F$96,4,FALSE),"") ->  | AW80: 0
A81: 116101 | B81: 47B | C81: 2016-01-03 | D81: 25.14 | E81: 0103072583 | F81: VAZQUEZ CALVACHE | G81: GERARDO PATRICIO | H81: VCGP | I81: 3 | J81: 4 | K81: 2 | L81: 6 | M81: 150.84 | N81: IP | O81: LENTAG, FATIMA, CENTRO SAN FERNANDO | P81: 0500140V03 | Q81: A-03 | R81: 6 | S81: MP-1 | T81: 1 | U81: 2 | X81: 11:00 | Y81: 15:00 | Z81: 11 | AA81: 00 | AB81: 11 | AC81: 0 | AD81: 0 | AE81: 11 | AF81: 15 | AG81: 00 | AH81: 15,00 | AI81: 0,00 | AJ81: 0 | AK81: 15 | AL81: 4 | AM81: 0 | AN81: 1 | AO81: 100.56 | AP81: 0740603 | AQ81: 50.28 | AR81: 100.56 | AS81: 2016 | AT81: ENERO | AU81: =IFERROR(VLOOKUP(Q81,Clasificacion!$C$3:$F$96,4,FALSE),"") ->  | AW81: 0
A82: 115571 | B82: 47B | C82: 2016-01-03 | D82: 25.14 | E82: 0103072583 | F82: VAZQUEZ CALVACHE | G82: GERARDO PATRICIO | H82: VCGP | I82: 3 | J82: 4 | K82: 3 | L82: 7 | M82: 175.98 | N82: IP | O82: DIFERENTES SECTORES | P82: 0500140V03 | Q82: A-03 | R82: 12 | S82: MP-1 | T82: 1 | U82: 3 | X82: 11:00 | Y82: 15:30 | Z82: 11 | AA82: 00 | AB82: 11 | AC82: 0 | AD82: 0 | AE82: 11 | AF82: 15 | AG82: 30 | AH82: 15,00 | AI82: 30,00 | AJ82: 0.5 | AK82: 15.5 | AL82: 4.5 | AM82: 0 | AN82: 1 | AO82: 100.56 | AP82: 0740603 | AQ82: 75.42 | AR82: 113.13 | AS82: 2016 | AT82: ENERO | AU82: =IFERROR(VLOOKUP(Q82,Clasificacion!$C$3:$F$96,4,FALSE),"") ->  | AW82: 0
A83: 115980 | B83: 43B | C83: 2016-01-28 | D83: 22.27 | E83: 0301648150 | F83: LOZADO DIEZ | G83: DANIEL VICENTE | H83: DVLD | I83: 2 | J83: 4 | K83: 1.9 | L83: 6.50003 | M83: 144.7556681 | N83: IP | O83: LLINTIG | P83: 0500150V01 | Q83: A-03 | R83: 1 | S83: MP-1 | T83: 1 | U83: 0.3 | X83: 10:30 | Y83: 11:00 | Z83: 10 | AA83: 30 | AB83: 10 | AC83: 30 | AD83: 0.5 | AE83: 10.5 | AF83: 11 | AG83: 00 | AH83: 11,00 | AI83: 0,00 | AJ83: 0 | AK83: 11 | AL83: 0.5 | AM83: 0 | AN83: 0 | AO83: 22.27 | AP83: 0730503 | AQ83: 6.681 | AR83: 11.135 | AS83: 2016 | AT83: ENERO | AU83: =IFERROR(VLOOKUP(Q83,Clasificacion!$C$3:$F$96,4,FALSE),"") ->  | AW83: 0
A84: 115980 | B84: 43B | C84: 2016-01-28 | D84: 22.27 | E84: 0301648150 | F84: LOZADO DIEZ | G84: DANIEL VICENTE | H84: DVLD | I84: 2 | J84: 4 | K84: 1.9 | L84: 6.50003 | M84: 144.7556681 | N84: IP | O84: CHIQUINQUIR | P84: 0500150V01 | Q84: A-03 | R84: 3 | S84: MP-1 | T84: 1 | U84: 0.3 | X84: 12:00 | Y84: 13:00 | Z84: 12 | AA84: 00 | AB84: 12 | AC84: 0 | AD84: 0 | AE84: 12 | AF84: 13 | AG84: 00 | AH84: 13,00 | AI84: 0,00 | AJ84: 0 | AK84: 13 | AL84: 1 | AM84: 0 | AN84: 1 | AO84: 22.27 | AP84: 0730503 | AQ84: 6.681 | AR84: 22.27 | AS84: 2016 | AT84: ENERO | AU84: =IFERROR(VLOOKUP(Q84,Clasificacion!$C$3:$F$96,4,FALSE),"") ->  | AW84: 0
A85: 115925 | B85: 43B | C85: 2016-01-05 | D85: 22.27 | E85: 0301648150 | F85: LOZADO DIEZ | G85: DANIEL VICENTE | H85: DVLD | I85: 2 | J85: 2 | K85: 0.6 | L85: 3.00002 | M85: 66.8104454 | N85: IP | O85: DELEGSOL, LA UNIÓN | P85: 0500150V01 | Q85: A-03 | R85: 2 | S85: MP-1 | T85: 1 | U85: 0.3 | X85: 15:00 | Y85: 16:00 | Z85: 15 | AA85: 00 | AB85: 15 | AC85: 0 | AD85: 0 | AE85: 15 | AF85: 16 | AG85: 00 | AH85: 16,00 | AI85: 0,00 | AJ85: 0 | AK85: 16 | AL85: 1 | AM85: 0 | AN85: 1 | AO85: 22.27 | AP85: 0730503 | AQ85: 6.681 | AR85: 22.27 | AS85: 2016 | AT85: ENERO | AU85: =IFERROR(VLOOKUP(Q85,Clasificacion!$C$3:$F$96,4,FALSE),"") ->  | AW85: 0
A86: 115925 | B86: 43B | C86: 2016-01-05 | D86: 22.27 | E86: 0301648150 | F86: LOZADO DIEZ | G86: DANIEL VICENTE | H86: DVLD | I86: 2 | J86: 2 | K86: 0.6 | L86: 3.00002 | M86: 66.8104454 | N86: IP | O86: SAN MIGUEL | P86: 0500150V01 | Q86: A-03 | R86: 2 | S86: MP-1 | T86: 1 | U86: 0.3 | X86: 11:00 | Y86: 12:00 | Z86: 11 | AA86: 00 | AB86: 11 | AC86: 0 | AD86: 0 | AE86: 11 | AF86: 12 | AG86: 00 | AH86: 12,00 | AI86: 0,00 | AJ86: 0 | AK86: 12 | AL86: 1 | AM86: 0 | AN86: 1 | AO86: 22.27 | AP86: 0730503 | AQ86: 6.681 | AR86: 22.27 | AS86: 2016 | AT86: ENERO | AU86: =IFERROR(VLOOKUP(Q86,Clasificacion!$C$3:$F$96,4,FALSE),"") ->  | AW86: 0
A87: 115984 | B87: 43B | C87: 2016-01-29 | D87: 22.27 | E87: 0301648150 | F87: LOZADO DIEZ | G87: DANIEL VICENTE | H87: DVLD | I87: 2 | J87: 4 | K87: 1.6 | L87: 6.00002 | M87: 133.6204454 | N87: IP | O87: SORANSOL | P87: 0500150V01 | Q87: A-03 | R87: 1 | S87: MP-1 | T87: 1 | U87: 0.3 | X87: 11:30 | Y87: 12:30 | Z87: 11 | AA87: 30 | AB87: 11 | AC87: 30 | AD87: 0.5 | AE87: 11.5 | AF87: 12 | AG87: 30 | AH87: 12,00 | AI87: 30,00 | AJ87: 0.5 | AK87: 12.5 | AL87: 1 | AM87: 0 | AN87: 1 | AO87: 22.27 | AP87: 0730503 | AQ87: 6.681 | AR87: 22.27 | AS87: 2016 | AT87: ENERO | AU87: =IFERROR(VLOOKUP(Q87,Clasificacion!$C$3:$F$96,4,FALSE),"") ->  | AW87: 0
A88: 115980 | B88: 43B | C88: 2016-01-28 | D88: 22.27 | E88: 0301648150 | F88: LOZADO DIEZ | G88: DANIEL VICENTE | H88: DVLD | I88: 2 | J88: 4 | K88: 1.9 | L88: 6.50003 | M88: 144.7556681 | N88: IP | O88: TOCTELOMA | P88: 0500150V01 | Q88: A-03 | R88: 1 | S88: MP-1 | T88: 1 | U88: 0.3 | X88: 15:00 | Y88: 16:00 | Z88: 15 | AA88: 00 | AB88: 15 | AC88: 0 | AD88: 0 | AE88: 15 | AF88: 16 | AG88: 00 | AH88: 16,00 | AI88: 0,00 | AJ88: 0 | AK88: 16 | AL88: 1 | AM88: 0 | AN88: 1 | AO88: 22.27 | AP88: 0730503 | AQ88: 6.681 | AR88: 22.27 | AS88: 2016 | AT88: ENERO | AU88: =IFERROR(VLOOKUP(Q88,Clasificacion!$C$3:$F$96,4,FALSE),"") ->  | AW88: 0
A89: 114633 | B89: 43B | C89: 2016-01-26 | D89: 22.27 | E89: 0301648150 | F89: LOZADO DIEZ | G89: DANIEL VICENTE | H89: DVLD | I89: 2 | J89: 5 | K89: 2.6 | L89: 8.00002 | M89: 178.1604454 | N89: IP | O89: SAN JUAN | P89: 0500150V01 | Q89: A-03 | R89: 4 | S89: MP-1 | T89: 1 | U89: 2 | X89: 10:00 | Y89: 12:00 | Z89: 10 | AA89: 00 | AB89: 10 | AC89: 0 | AD89: 0 | AE89: 10 | AF89: 12 | AG89: 00 | AH89: 12,00 | AI89: 0,00 | AJ89: 0 | AK89: 12 | AL89: 2 | AM89: 0 | AN89: 1 | AO89: 44.54 | AP89: 0730503 | AQ89: 44.54 | AR89: 44.54 | AS89: 2016 | AT89: ENERO | AU89: =IFERROR(VLOOKUP(Q89,Clasificacion!$C$3:$F$96,4,FALSE),"") ->  | AW89: 0
A90: 115981 | B90: 43B | C90: 2016-01-27 | D90: 22.27 | E90: 0301648150 | F90: LOZADO DIEZ | G90: DANIEL VICENTE | H90: DVLD | I90: 2 | J90: 6 | K90: 1.6 | L90: 8.00002 | M90: 178.1604454 | N90: IP | O90: BULLCAY | P90: 0500150V02 | Q90: A-03 | R90: 1 | S90: MP-1 | T90: 1 | U90: 0 | X90: 14:30 | Y90: 15:00 | Z90: 14 | AA90: 30 | AB90: 14 | AC90: 30 | AD90: 0.5 | AE90: 14.5 | AF90: 15 | AG90: 00 | AH90: 15,00 | AI90: 0,00 | AJ90: 0 | AK90: 15 | AL90: 0.5 | AM90: 0 | AN90: 1 | AO90: 22.27 | AP90: 0730503 | AQ90: 0 | AR90: 11.135 | AS90: 2016 | AT90: ENERO | AU90: =IFERROR(VLOOKUP(Q90,Clasificacion!$C$3:$F$96,4,FALSE),"") ->  | AW90: 0
A91: 115929 | B91: 43B | C91: 2016-01-06 | D91: 22.27 | E91: 0301648150 | F91: LOZADO DIEZ | G91: DANIEL VICENTE | H91: DVLD | I91: 2 | J91: 2 | K91: 0.45 | L91: 2.750015 | M91: 61.24283405 | N91: IP | O91: CENTRO GUALACEO | P91: 0500150V02 | Q91: A-03 | R91: 1 | S91: MP-1 | T91: 1 | U91: 0.15 | X91: 14:30 | Y91: 15:00 | Z91: 14 | AA91: 30 | AB91: 14 | AC91: 30 | AD91: 0.5 | AE91: 14.5 | AF91: 15 | AG91: 00 | AH91: 15,00 | AI91: 0,00 | AJ91: 0 | AK91: 15 | AL91: 0.5 | AM91: 0 | AN91: 1 | AO91: 22.27 | AP91: 0730503 | AQ91: 3.3405 | AR91: 11.135 | AS91: 2016 | AT91: ENERO | AU91: =IFERROR(VLOOKUP(Q91,Clasificacion!$C$3:$F$96,4,FALSE),"") ->  | AW91: 0
A92: 115929 | B92: 43B | C92: 2016-01-06 | D92: 22.27 | E92: 0301648150 | F92: LOZADO DIEZ | G92: DANIEL VICENTE | H92: DVLD | I92: 2 | J92: 2 | K92: 0.45 | L92: 2.750015 | M92: 61.24283405 | N92: IP | O92: PICAY | P92: 0500150V02 | Q92: A-03 | R92: 1 | S92: MP-1 | T92: 1 | U92: 0.3 | X92: 15:30 | Y92: 16:00 | Z92: 15 | AA92: 30 | AB92: 15 | AC92: 30 | AD92: 0.5 | AE92: 15.5 | AF92: 16 | AG92: 00 | AH92: 16,00 | AI92: 0,00 | AJ92: 0 | AK92: 16 | AL92: 0.5 | AM92: 0 | AN92: 1 | AO92: 22.27 | AP92: 0730503 | AQ92: 6.681 | AR92: 11.135 | AS92: 2016 | AT92: ENERO | AU92: =IFERROR(VLOOKUP(Q92,Clasificacion!$C$3:$F$96,4,FALSE),"") ->  | AW92: 0
A93: 114633 | B93: 43B | C93: 2016-01-26 | D93: 22.27 | E93: 0301648150 | F93: LOZADO DIEZ | G93: DANIEL VICENTE | H93: DVLD | I93: 2 | J93: 5 | K93: 2.6 | L93: 8.00002 | M93: 178.1604454 | N93: IP | O93: QUIMZHI | P93: 0500150V02 | Q93: A-03 | R93: 2 | S93: MP-1 | T93: 1 | U93: 0.3 | X93: 15:30 | Y93: 16:00 | Z93: 15 | AA93: 30 | AB93: 15 | AC93: 30 | AD93: 0.5 | AE93: 15.5 | AF93: 16 | AG93: 00 | AH93: 16,00 | AI93: 0,00 | AJ93: 0 | AK93: 16 | AL93: 0.5 | AM93: 0 | AN93: 1 | AO93: 22.27 | AP93: 0730503 | AQ93: 6.681 | AR93: 11.135 | AS93: 2016 | AT93: ENERO | AU93: =IFERROR(VLOOKUP(Q93,Clasificacion!$C$3:$F$96,4,FALSE),"") ->  | AW93: 0
A94: 114633 | B94: 43B | C94: 2016-01-26 | D94: 22.27 | E94: 0301648150 | F94: LOZADO DIEZ | G94: DANIEL VICENTE | H94: DVLD | I94: 2 | J94: 5 | K94: 2.6 | L94: 8.00002 | M94: 178.1604454 | N94: IP | O94: AYALOMA | P94: 0500150V02 | Q94: A-03 | R94: 3 | S94: MP-1 | T94: 1 | U94: 0 | X94: 12:00 | Y94: 13:00 | Z94: 12 | AA94: 00 | AB94: 12 | AC94: 0 | AD94: 0 | AE94: 12 | AF94: 13 | AG94: 00 | AH94: 13,00 | AI94: 0,00 | AJ94: 0 | AK94: 13 | AL94: 1 | AM94: 0 | AN94: 1 | AO94: 22.27 | AP94: 0730503 | AQ94: 0 | AR94: 22.27 | AS94: 2016 | AT94: ENERO | AU94: =IFERROR(VLOOKUP(Q94,Clasificacion!$C$3:$F$96,4,FALSE),"") ->  | AW94: 0
A95: 115977 | B95: 43B | C95: 2016-01-22 | D95: 22.27 | E95: 0301648150 | F95: LOZADO DIEZ | G95: DANIEL VICENTE | H95: DVLD | I95: 2 | J95: 4 | K95: 1.3 | L95: 5.50001 | M95: 122.4852227 | N95: IP | O95: BULLZHUN ARENAL | P95: 0500150V02 | Q95: A-03 | R95: 3 | S95: MP-1 | T95: 1 | U95: 0 | X95: 10:00 | Y95: 11:00 | Z95: 10 | AA95: 00 | AB95: 10 | AC95: 0 | AD95: 0 | AE95: 10 | AF95: 11 | AG95: 00 | AH95: 11,00 | AI95: 0,00 | AJ95: 0 | AK95: 11 | AL95: 1 | AM95: 0 | AN95: 1 | AO95: 22.27 | AP95: 0730503 | AQ95: 0 | AR95: 22.27 | AS95: 2016 | AT95: ENERO | AU95: =IFERROR(VLOOKUP(Q95,Clasificacion!$C$3:$F$96,4,FALSE),"") ->  | AW95: 0
A96: 115977 | B96: 43B | C96: 2016-01-22 | D96: 22.27 | E96: 0301648150 | F96: LOZADO DIEZ | G96: DANIEL VICENTE | H96: DVLD | I96: 2 | J96: 4 | K96: 1.3 | L96: 5.50001 | M96: 122.4852227 | N96: IP | O96: CAHUAZHUN | P96: 0500150V02 | Q96: A-03 | R96: 1 | S96: MP-1 | T96: 1 | U96: 0 | X96: 11:30 | Y96: 12:30 | Z96: 11 | AA96: 30 | AB96: 11 | AC96: 30 | AD96: 0.5 | AE96: 11.5 | AF96: 12 | AG96: 30 | AH96: 12,00 | AI96: 30,00 | AJ96: 0.5 | AK96: 12.5 | AL96: 1 | AM96: 0 | AN96: 1 | AO96: 22.27 | AP96: 0730503 | AQ96: 0 | AR96: 22.27 | AS96: 2016 | AT96: ENERO | AU96: =IFERROR(VLOOKUP(Q96,Clasificacion!$C$3:$F$96,4,FALSE),"") ->  | AW96: 0
A97: 115984 | B97: 43B | C97: 2016-01-29 | D97: 22.27 | E97: 0301648150 | F97: LOZADO DIEZ | G97: DANIEL VICENTE | H97: DVLD | I97: 2 | J97: 4 | K97: 1.6 | L97: 6.00002 | M97: 133.6204454 | N97: IP | O97: GULUC GRANDE | P97: 0500150V02 | Q97: A-03 | R97: 1 | S97: MP-1 | T97: 1 | U97: 0 | X97: 15:00 | Y97: 16:00 | Z97: 15 | AA97: 00 | AB97: 15 | AC97: 0 | AD97: 0 | AE97: 15 | AF97: 16 | AG97: 00 | AH97: 16,00 | AI97: 0,00 | AJ97: 0 | AK97: 16 | AL97: 1 | AM97: 0 | AN97: 1 | AO97: 22.27 | AP97: 0730503 | AQ97: 0 | AR97: 22.27 | AS97: 2016 | AT97: ENERO | AU97: =IFERROR(VLOOKUP(Q97,Clasificacion!$C$3:$F$96,4,FALSE),"") ->  | AW97: 0
A98: 115938 | B98: 43B | C98: 2016-01-07 | D98: 22.27 | E98: 0301648150 | F98: LOZADO DIEZ | G98: DANIEL VICENTE | H98: DVLD | I98: 2 | J98: 3 | K98: 0.45 | L98: 3.750015 | M98: 83.51283405 | N98: IP | O98: CENTRO GUALACEO | P98: 0500150V02 | Q98: A-03 | R98: 2 | S98: MP-1 | T98: 1 | U98: 0.15 | X98: 09:00 | Y98: 10:00 | Z98: 09 | AA98: 00 | AB98: 9 | AC98: 0 | AD98: 0 | AE98: 9 | AF98: 10 | AG98: 00 | AH98: 10,00 | AI98: 0,00 | AJ98: 0 | AK98: 10 | AL98: 1 | AM98: 0 | AN98: 1 | AO98: 22.27 | AP98: 0730503 | AQ98: 3.3405 | AR98: 22.27 | AS98: 2016 | AT98: ENERO | AU98: =IFERROR(VLOOKUP(Q98,Clasificacion!$C$3:$F$96,4,FALSE),"") ->  | AW98: 0
A99: 115947 | B99: 43B | C99: 2016-01-08 | D99: 22.27 | E99: 0301648150 | F99: LOZADO DIEZ | G99: DANIEL VICENTE | H99: DVLD | I99: 2 | J99: 3 | K99: 2.15 | L99: 5.250005 | M99: 116.9176114 | N99: IP | O99: GUALACEO | P99: 0500150V02 | Q99: A-03 | R99: 2 | S99: MP-1 | T99: 1 | U99: 0.15 | X99: 08:30 | Y99: 09:30 | Z99: 08 | AA99: 30 | AB99: 8 | AC99: 30 | AD99: 0.5 | AE99: 8.5 | AF99: 09 | AG99: 30 | AH99: 9,00 | AI99: 30,00 | AJ99: 0.5 | AK99: 9.5 | AL99: 1 | AM99: 0 | AN99: 1 | AO99: 22.27 | AP99: 0730503 | AQ99: 3.3405 | AR99: 22.27 | AS99: 2016 | AT99: ENERO | AU99: =IFERROR(VLOOKUP(Q99,Clasificacion!$C$3:$F$96,4,FALSE),"") ->  | AW99: 0
A100: 115981 | B100: 43B | C100: 2016-01-27 | D100: 22.27 | E100: 0301648150 | F100: LOZADO DIEZ | G100: DANIEL VICENTE | H100: DVLD | I100: 2 | J100: 6 | K100: 1.6 | L100: 8.00002 | M100: 178.1604454 | N100: IP | O100: BARRIO LINDO | P100: 0500150V02 | Q100: A-03 | R100: 2 | S100: MP-1 | T100: 1 | U100: 0.3 | X100: 12:00 | Y100: 13:00 | Z100: 12 | AA100: 00 | AB100: 12 | AC100: 0 | AD100: 0 | AE100: 12 | AF100: 13 | AG100: 00 | AH100: 13,00 | AI100: 0,00 | AJ100: 0 | AK100: 13 | AL100: 1 | AM100: 0 | AN100: 1 | AO100: 22.27 | AP100: 0730503 | AQ100: 6.681 | AR100: 22.27 | AS100: 2016 | AT100: ENERO | AU100: =IFERROR(VLOOKUP(Q100,Clasificacion!$C$3:$F$96,4,FALSE),"") ->  | AW100: 0
A101: 115972 | B101: 43B | C101: 2016-01-15 | D101: 22.27 | E101: 0301648150 | F101: LOZADO DIEZ | G101: DANIEL VICENTE | H101: DVLD | I101: 2 | J101: 3 | K101: 0.9 | L101: 4.50003 | M101: 100.2156681 | N101: IP | O101: GUALACEO | P101: 0500150V02 | Q101: A-03 | R101: 1 | S101: MP-1 | T101: 1 | U101: 0.3 | X101: 09:00 | Y101: 10:00 | Z101: 09 | AA101: 00 | AB101: 9 | AC101: 0 | AD101: 0 | AE101: 9 | AF101: 10 | AG101: 00 | AH101: 10,00 | AI101: 0,00 | AJ101: 0 | AK101: 10 | AL101: 1 | AM101: 0 | AN101: 1 | AO101: 22.27 | AP101: 0730503 | AQ101: 6.681 | AR101: 22.27 | AS101: 2016 | AT101: ENERO | AU101: =IFERROR(VLOOKUP(Q101,Clasificacion!$C$3:$F$96,4,FALSE),"") ->  | AW101: 0
A102: 115977 | B102: 43B | C102: 2016-01-22 | D102: 22.27 | E102: 0301648150 | F102: LOZADO DIEZ | G102: DANIEL VICENTE | H102: DVLD | I102: 2 | J102: 4 | K102: 1.3 | L102: 5.50001 | M102: 122.4852227 | N102: IP | O102: GUALACEO CENTRO | P102: 0500150V02 | Q102: A-03 | R102: 1 | S102: MP-1 | T102: 1 | U102: 0.3 | X102: 15:00 | Y102: 16:00 | Z102: 15 | AA102: 00 | AB102: 15 | AC102: 0 | AD102: 0 | AE102: 15 | AF102: 16 | AG102: 00 | AH102: 16,00 | AI102: 0,00 | AJ102: 0 | AK102: 16 | AL102: 1 | AM102: 0 | AN102: 1 | AO102: 22.27 | AP102: 0730503 | AQ102: 6.681 | AR102: 22.27 | AS102: 2016 | AT102: ENERO | AU102: =IFERROR(VLOOKUP(Q102,Clasificacion!$C$3:$F$96,4,FALSE),"") ->  | AW102: 0
A103: 115981 | B103: 43B | C103: 2016-01-27 | D103: 22.27 | E103: 0301648150 | F103: LOZADO DIEZ | G103: DANIEL VICENTE | H103: DVLD | I103: 2 | J103: 6 | K103: 1.6 | L103: 8.00002 | M103: 178.1604454 | N103: IP | O103: LLAMPASAY | P103: 0500150V02 | Q103: A-03 | R103: 2 | S103: MP-1 | T103: 1 | U103: 0.3 | X103: 15:00 | Y103: 16:00 | Z103: 15 | AA103: 00 | AB103: 15 | AC103: 0 | AD103: 0 | AE103: 15 | AF103: 16 | AG103: 00 | AH103: 16,00 | AI103: 0,00 | AJ103: 0 | AK103: 16 | AL103: 1 | AM103: 0 | AN103: 1 | AO103: 22.27 | AP103: 0730503 | AQ103: 6.681 | AR103: 22.27 | AS103: 2016 | AT103: ENERO | AU103: =IFERROR(VLOOKUP(Q103,Clasificacion!$C$3:$F$96,4,FALSE),"") ->  | AW103: 0
A104: 115977 | B104: 43B | C104: 2016-01-22 | D104: 22.27 | E104: 0301648150 | F104: LOZADO DIEZ | G104: DANIEL VICENTE | H104: DVLD | I104: 2 | J104: 4 | K104: 1.3 | L104: 5.50001 | M104: 122.4852227 | N104: IP | O104: BULLCAY | P104: 0500150V02 | Q104: A-03 | R104: 2 | S104: MP-1 | T104: 1 | U104: 1 | X104: 09:00 | Y104: 10:00 | Z104: 09 | AA104: 00 | AB104: 9 | AC104: 0 | AD104: 0 | AE104: 9 | AF104: 10 | AG104: 00 | AH104: 10,00 | AI104: 0,00 | AJ104: 0 | AK104: 10 | AL104: 1 | AM104: 0 | AN104: 1 | AO104: 22.27 | AP104: 0730503 | AQ104: 22.27 | AR104: 22.27 | AS104: 2016 | AT104: ENERO | AU104: =IFERROR(VLOOKUP(Q104,Clasificacion!$C$3:$F$96,4,FALSE),"") ->  | AW104: 0
A105: 115947 | B105: 43B | C105: 2016-01-08 | D105: 22.27 | E105: 0301648150 | F105: LOZADO DIEZ | G105: DANIEL VICENTE | H105: DVLD | I105: 2 | J105: 3 | K105: 2.15 | L105: 5.250005 | M105: 116.9176114 | N105: IP | O105: PORUN | P105: 0500150V02 | Q105: A-03 | R105: 1 | S105: MP-1 | T105: 1 | U105: 1 | X105: 10:00 | Y105: 11:00 | Z105: 10 | AA105: 00 | AB105: 10 | AC105: 0 | AD105: 0 | AE105: 10 | AF105: 11 | AG105: 00 | AH105: 11,00 | AI105: 0,00 | AJ105: 0 | AK105: 11 | AL105: 1 | AM105: 0 | AN105: 1 | AO105: 22.27 | AP105: 0730503 | AQ105: 22.27 | AR105: 22.27 | AS105: 2016 | AT105: ENERO | AU105: =IFERROR(VLOOKUP(Q105,Clasificacion!$C$3:$F$96,4,FALSE),"") ->  | AW105: 0
A106: 115947 | B106: 43B | C106: 2016-01-08 | D106: 22.27 | E106: 0301648150 | F106: LOZADO DIEZ | G106: DANIEL VICENTE | H106: DVLD | I106: 2 | J106: 3 | K106: 2.15 | L106: 5.250005 | M106: 116.9176114 | N106: IP | O106: YUQUIN | P106: 0500150V02 | Q106: A-03 | R106: 1 | S106: MP-1 | T106: 1 | U106: 1 | X106: 14:00 | Y106: 15:00 | Z106: 14 | AA106: 00 | AB106: 14 | AC106: 0 | AD106: 0 | AE106: 14 | AF106: 15 | AG106: 00 | AH106: 15,00 | AI106: 0,00 | AJ106: 0 | AK106: 15 | AL106: 1 | AM106: 0 | AN106: 1 | AO106: 22.27 | AP106: 0730503 | AQ106: 22.27 | AR106: 22.27 | AS106: 2016 | AT106: ENERO | AU106: =IFERROR(VLOOKUP(Q106,Clasificacion!$C$3:$F$96,4,FALSE),"") ->  | AW106: 0
A107: 115938 | B107: 43B | C107: 2016-01-07 | D107: 22.27 | E107: 0301648150 | F107: LOZADO DIEZ | G107: DANIEL VICENTE | H107: DVLD | I107: 2 | J107: 3 | K107: 0.45 | L107: 3.750015 | M107: 83.51283405 | N107: IP | O107: SAN JUAN | P107: 0500150V02 | Q107: A-03 | R107: 5 | S107: MP-1 | T107: 1 | U107: 0.3 | X107: 10:30 | Y107: 12:30 | Z107: 10 | AA107: 30 | AB107: 10 | AC107: 30 | AD107: 0.5 | AE107: 10.5 | AF107: 12 | AG107: 30 | AH107: 12,00 | AI107: 30,00 | AJ107: 0.5 | AK107: 12.5 | AL107: 2 | AM107: 0 | AN107: 1 | AO107: 44.54 | AP107: 0730503 | AQ107: 6.681 | AR107: 44.54 | AS107: 2016 | AT107: ENERO | AU107: =IFERROR(VLOOKUP(Q107,Clasificacion!$C$3:$F$96,4,FALSE),"") ->  | AW107: 0
A108: 115981 | B108: 43B | C108: 2016-01-27 | D108: 22.27 | E108: 0301648150 | F108: LOZADO DIEZ | G108: DANIEL VICENTE | H108: DVLD | I108: 2 | J108: 6 | K108: 1.6 | L108: 8.00002 | M108: 178.1604454 | N108: IP | O108: ZHORDAN | P108: 0500150V03 | Q108: A-03 | R108: 1 | S108: MP-1 | T108: 1 | U108: 1 | X108: 09:00 | Y108: 09:30 | Z108: 09 | AA108: 00 | AB108: 9 | AC108: 0 | AD108: 0 | AE108: 9 | AF108: 09 | AG108: 30 | AH108: 9,00 | AI108: 30,00 | AJ108: 0.5 | AK108: 9.5 | AL108: 0.5 | AM108: 0 | AN108: 1 | AO108: 0 | AP108: 0730503 | AQ108: 22.27 | AR108: 11.135 | AS108: 2016 | AT108: ENERO | AU108: =IFERROR(VLOOKUP(Q108,Clasificacion!$C$3:$F$96,4,FALSE),"") ->  | AW108: 0
A109: 115208 | B109: 44A | C109: 2016-01-04 | D109: 31.67 | E109: 0101219749 | F109: ABRIL ABRIL | G109: MANUEL ROSENDO | H109: AAMR | I109: 2 | J109: 5 | K109: 1.2 | L109: 6.33334 | M109: 200.5768778 | N109: IP | O109: GUAYAN | P109: 0500150V03 | Q109: A-03 | R109: 1 | S109: MP-1 | T109: 1 | U109: 0.2 | X109: 12:30 | Y109: 13:00 | Z109: 12 | AA109: 30 | AB109: 12 | AC109: 30 | AD109: 0.5 | AE109: 12.5 | AF109: 13 | AG109: 00 | AH109: 13,00 | AI109: 0,00 | AJ109: 0 | AK109: 13 | AL109: 0.5 | AM109: 0 | AN109: 1 | AO109: 31.67 | AP109: 0730603 | AQ109: 6.334 | AR109: 15.835 | AS109: 2016 | AT109: ENERO | AU109: =IFERROR(VLOOKUP(Q109,Clasificacion!$C$3:$F$96,4,FALSE),"") ->  | AW109: 0
A110: 115984 | B110: 43B | C110: 2016-01-29 | D110: 22.27 | E110: 0301648150 | F110: LOZADO DIEZ | G110: DANIEL VICENTE | H110: DVLD | I110: 2 | J110: 4 | K110: 1.6 | L110: 6.00002 | M110: 133.6204454 | N110: IP | O110: COCHALOMA | P110: 0500150V03 | Q110: A-03 | R110: 2 | S110: MP-1 | T110: 1 | U110: 0 | X110: 09:30 | Y110: 10:30 | Z110: 09 | AA110: 30 | AB110: 9 | AC110: 30 | AD110: 0.5 | AE110: 9.5 | AF110: 10 | AG110: 30 | AH110: 10,00 | AI110: 30,00 | AJ110: 0.5 | AK110: 10.5 | AL110: 1 | AM110: 0 | AN110: 1 | AO110: 22.27 | AP110: 0730503 | AQ110: 0 | AR110: 22.27 | AS110: 2016 | AT110: ENERO | AU110: =IFERROR(VLOOKUP(Q110,Clasificacion!$C$3:$F$96,4,FALSE),"") ->  | AW110: 0
A111: 115972 | B111: 43B | C111: 2016-01-15 | D111: 22.27 | E111: 0301648150 | F111: LOZADO DIEZ | G111: DANIEL VICENTE | H111: DVLD | I111: 2 | J111: 3 | K111: 0.9 | L111: 4.50003 | M111: 100.2156681 | N111: IP | O111: SAN FRANCISCO | P111: 0500150V03 | Q111: A-03 | R111: 1 | S111: MP-1 | T111: 1 | U111: 0.3 | X111: 10:30 | Y111: 11:30 | Z111: 10 | AA111: 30 | AB111: 10 | AC111: 30 | AD111: 0.5 | AE111: 10.5 | AF111: 11 | AG111: 30 | AH111: 11,00 | AI111: 30,00 | AJ111: 0.5 | AK111: 11.5 | AL111: 1 | AM111: 0 | AN111: 1 | AO111: 22.27 | AP111: 0730503 | AQ111: 6.681 | AR111: 22.27 | AS111: 2016 | AT111: ENERO | AU111: =IFERROR(VLOOKUP(Q111,Clasificacion!$C$3:$F$96,4,FALSE),"") ->  | AW111: 0
A112: 115972 | B112: 43B | C112: 2016-01-15 | D112: 22.27 | E112: 0301648150 | F112: LOZADO DIEZ | G112: DANIEL VICENTE | H112: DVLD | I112: 2 | J112: 3 | K112: 0.9 | L112: 4.50003 | M112: 100.2156681 | N112: IP | O112: SHIQUIL | P112: 0500150V03 | Q112: A-03 | R112: 1 | S112: MP-1 | T112: 1 | U112: 0.3 | X112: 12:00 | Y112: 13:00 | Z112: 12 | AA112: 00 | AB112: 12 | AC112: 0 | AD112: 0 | AE112: 12 | AF112: 13 | AG112: 00 | AH112: 13,00 | AI112: 0,00 | AJ112: 0 | AK112: 13 | AL112: 1 | AM112: 0 | AN112: 1 | AO112: 22.27 | AP112: 0730503 | AQ112: 6.681 | AR112: 22.27 | AS112: 2016 | AT112: ENERO | AU112: =IFERROR(VLOOKUP(Q112,Clasificacion!$C$3:$F$96,4,FALSE),"") ->  | AW112: 0
A113: 115585 | B113: 44A | C113: 2016-01-07 | D113: 31.67 | E113: 0101219749 | F113: ABRIL ABRIL | G113: MANUEL ROSENDO | H113: AAMR | I113: 2 | J113: 8 | K113: 1.3 | L113: 9.50001 | M113: 300.8653167 | N113: IP | O113: MARCOLOMA | P113: 0500150V03 | Q113: A-03 | R113: 1 | S113: MP-1 | T113: 1 | U113: 0.2 | X113: 10:30 | Y113: 11:30 | Z113: 10 | AA113: 30 | AB113: 10 | AC113: 30 | AD113: 0.5 | AE113: 10.5 | AF113: 11 | AG113: 30 | AH113: 11,00 | AI113: 30,00 | AJ113: 0.5 | AK113: 11.5 | AL113: 1 | AM113: 0 | AN113: 1 | AO113: 31.67 | AP113: 0730603 | AQ113: 6.334 | AR113: 31.67 | AS113: 2016 | AT113: ENERO | AU113: =IFERROR(VLOOKUP(Q113,Clasificacion!$C$3:$F$96,4,FALSE),"") ->  | AW113: 0
A114: 115981 | B114: 43B | C114: 2016-01-27 | D114: 22.27 | E114: 0301648150 | F114: LOZADO DIEZ | G114: DANIEL VICENTE | H114: DVLD | I114: 2 | J114: 6 | K114: 1.6 | L114: 8.00002 | M114: 178.1604454 | N114: IP | O114: PAGRAN | P114: 0500150V03 | Q114: A-03 | R114: 2 | S114: MP-1 | T114: 1 | U114: 0 | X114: 09:30 | Y114: 11:00 | Z114: 09 | AA114: 30 | AB114: 9 | AC114: 30 | AD114: 0.5 | AE114: 9.5 | AF114: 11 | AG114: 00 | AH114: 11,00 | AI114: 0,00 | AJ114: 0 | AK114: 11 | AL114: 1.5 | AM114: 0 | AN114: 1 | AO114: 44.54 | AP114: 0730503 | AQ114: 0 | AR114: 33.405 | AS114: 2016 | AT114: ENERO | AU114: =IFERROR(VLOOKUP(Q114,Clasificacion!$C$3:$F$96,4,FALSE),"") ->  | AW114: 0
A115: 115734 | B115: 42B | C115: 2016-01-19 | D115: 13.77 | E115: 0301175360 | F115: GUAMAN GUAMAN | G115: CESAR | H115: GGC | I115: 1 | J115: 7 | K115: 0 | L115: 7 | M115: 96.39 | N115: RS | O115: GALLORRUMI | P115: 0500180V01 | Q115: A-03 | R115: 1 | S115: MP-1 | T115: 1 | U115: 0 | X115: 16:15 | Y115: 16:35 | Z115: 16 | AA115: 15 | AB115: 16 | AC115: 15 | AD115: 0.25 | AE115: 16.25 | AF115: 16 | AG115: 35 | AH115: 16,00 | AI115: 35,00 | AJ115: 0.5833333333 | AK115: 16.58333333 | AL115: 0.3333333333 | AM115: 0 | AN115: 1 | AO115: 0 | AP115: 0720602 | AQ115: 0 | AR115: 4.59 | AS115: 2016 | AT115: ENERO | AU115: =IFERROR(VLOOKUP(Q115,Clasificacion!$C$3:$F$96,4,FALSE),"") ->  | AW115: 0
A116: 115635 | B116: 42B | C116: 2016-01-12 | D116: 13.77 | E116: 0301175360 | F116: GUAMAN GUAMAN | G116: CESAR | H116: GGC | I116: 1 | J116: 6 | K116: 0 | L116: 6 | M116: 82.62 | N116: IP | O116: GALLORRUMI | P116: 0500180V01 | Q116: A-03 | R116: 1 | S116: MP-1 | T116: 1 | U116: 0 | X116: 12:00 | Y116: 12:30 | Z116: 12 | AA116: 00 | AB116: 12 | AC116: 0 | AD116: 0 | AE116: 12 | AF116: 12 | AG116: 30 | AH116: 12,00 | AI116: 30,00 | AJ116: 0.5 | AK116: 12.5 | AL116: 0.5 | AM116: 0 | AN116: 1 | AO116: 0 | AP116: 0720603 | AQ116: 0 | AR116: 6.885 | AS116: 2016 | AT116: ENERO | AU116: =IFERROR(VLOOKUP(Q116,Clasificacion!$C$3:$F$96,4,FALSE),"") ->  | AW116: 0
A117: 115645 | B117: 42B | C117: 2016-01-13 | D117: 13.77 | E117: 0301175360 | F117: GUAMAN GUAMAN | G117: CESAR | H117: GGC | I117: 1 | J117: 7 | K117: 0 | L117: 7 | M117: 96.39 | N117: IP | O117: SAN PEDRO | P117: 0500180V01 | Q117: A-03 | R117: 1 | S117: MP-1 | T117: 1 | U117: 0 | X117: 15:35 | Y117: 16:15 | Z117: 15 | AA117: 35 | AB117: 15 | AC117: 35 | AD117: 0.5833333333 | AE117: 15.58333333 | AF117: 16 | AG117: 15 | AH117: 16,00 | AI117: 15,00 | AJ117: 0.25 | AK117: 16.25 | AL117: 0.6666666667 | AM117: 0 | AN117: 1 | AO117: 13.77 | AP117: 0720603 | AQ117: 0 | AR117: 9.18 | AS117: 2016 | AT117: ENERO | AU117: =IFERROR(VLOOKUP(Q117,Clasificacion!$C$3:$F$96,4,FALSE),"") ->  | AW117: 0
A118: 115635 | B118: 42B | C118: 2016-01-12 | D118: 13.77 | E118: 0301175360 | F118: GUAMAN GUAMAN | G118: CESAR | H118: GGC | I118: 1 | J118: 6 | K118: 0 | L118: 6 | M118: 82.62 | N118: IP | O118: QUINOAPATA | P118: 0500180V01 | Q118: A-03 | R118: 2 | S118: MP-1 | T118: 1 | U118: 0 | X118: 13:45 | Y118: 14:30 | Z118: 13 | AA118: 45 | AB118: 13 | AC118: 45 | AD118: 0.75 | AE118: 13.75 | AF118: 14 | AG118: 30 | AH118: 14,00 | AI118: 30,00 | AJ118: 0.5 | AK118: 14.5 | AL118: 0.75 | AM118: 0 | AN118: 1 | AO118: 13.77 | AP118: 0720603 | AQ118: 0 | AR118: 10.3275 | AS118: 2016 | AT118: ENERO | AU118: =IFERROR(VLOOKUP(Q118,Clasificacion!$C$3:$F$96,4,FALSE),"") ->  | AW118: 0
A119: 115860 | B119: 42B | C119: 2016-01-28 | D119: 13.77 | E119: 0301175360 | F119: GUAMAN GUAMAN | G119: CESAR | H119: GGC | I119: 1 | J119: 8 | K119: 0 | L119: 8 | M119: 110.16 | N119: IP | O119: CHUGUIN CHICO | P119: 0500180V01 | Q119: A-03 | R119: 3 | S119: MP-1 | T119: 1 | U119: 0 | X119: 10:30 | Y119: 11:25 | Z119: 10 | AA119: 30 | AB119: 10 | AC119: 30 | AD119: 0.5 | AE119: 10.5 | AF119: 11 | AG119: 25 | AH119: 11,00 | AI119: 25,00 | AJ119: 0.4166666667 | AK119: 11.41666667 | AL119: 0.9166666667 | AM119: 0 | AN119: 1 | AO119: 13.77 | AP119: 0720603 | AQ119: 0 | AR119: 12.6225 | AS119: 2016 | AT119: ENERO | AU119: =IFERROR(VLOOKUP(Q119,Clasificacion!$C$3:$F$96,4,FALSE),"") ->  | AW119: 0
A120: 115600 | B120: 42B | C120: 2016-01-07 | D120: 13.77 | E120: 0301175360 | F120: GUAMAN GUAMAN | G120: CESAR | H120: GGC | I120: 1 | J120: 6 | K120: 0 | L120: 6 | M120: 82.62 | N120: IP | O120: GALLORRUMI | P120: 0500180V01 | Q120: A-03 | R120: 3 | S120: MP-1 | T120: 1 | U120: 0 | X120: 14:00 | Y120: 15:05 | Z120: 14 | AA120: 00 | AB120: 14 | AC120: 0 | AD120: 0 | AE120: 14 | AF120: 15 | AG120: 05 | AH120: 15,00 | AI120: 5,00 | AJ120: 0.08333333333 | AK120: 15.08333333 | AL120: 1.083333333 | AM120: 0 | AN120: 1 | AO120: 13.77 | AP120: 0720603 | AQ120: 0 | AR120: 14.9175 | AS120: 2016 | AT120: ENERO | AU120: =IFERROR(VLOOKUP(Q120,Clasificacion!$C$3:$F$96,4,FALSE),"") ->  | AW120: 0
A121: 115645 | B121: 42B | C121: 2016-01-13 | D121: 13.77 | E121: 0301175360 | F121: GUAMAN GUAMAN | G121: CESAR | H121: GGC | I121: 1 | J121: 7 | K121: 0 | L121: 7 | M121: 96.39 | N121: IP | O121: ROMERILLO (CHOROCOPTE) | P121: 0500180V01 | Q121: A-03 | R121: 2 | S121: MP-1 | T121: 1 | U121: 0 | X121: 12:30 | Y121: 13:40 | Z121: 12 | AA121: 30 | AB121: 12 | AC121: 30 | AD121: 0.5 | AE121: 12.5 | AF121: 13 | AG121: 40 | AH121: 13,00 | AI121: 40,00 | AJ121: 0.6666666667 | AK121: 13.66666667 | AL121: 1.166666667 | AM121: 0 | AN121: 1 | AO121: 13.77 | AP121: 0720603 | AQ121: 0 | AR121: 16.065 | AS121: 2016 | AT121: ENERO | AU121: =IFERROR(VLOOKUP(Q121,Clasificacion!$C$3:$F$96,4,FALSE),"") ->  | AW121: 0
A122: 115645 | B122: 42B | C122: 2016-01-13 | D122: 13.77 | E122: 0301175360 | F122: GUAMAN GUAMAN | G122: CESAR | H122: GGC | I122: 1 | J122: 7 | K122: 0 | L122: 7 | M122: 96.39 | N122: IP | O122: SITACAR | P122: 0500180V01 | Q122: A-03 | R122: 2 | S122: MP-1 | T122: 1 | U122: 0 | X122: 13:50 | Y122: 15:10 | Z122: 13 | AA122: 50 | AB122: 13 | AC122: 50 | AD122: 0.8333333333 | AE122: 13.83333333 | AF122: 15 | AG122: 10 | AH122: 15,00 | AI122: 10,00 | AJ122: 0.1666666667 | AK122: 15.16666667 | AL122: 1.333333333 | AM122: 0 | AN122: 1 | AO122: 27.54 | AP122: 0720603 | AQ122: 0 | AR122: 18.36 | AS122: 2016 | AT122: ENERO | AU122: =IFERROR(VLOOKUP(Q122,Clasificacion!$C$3:$F$96,4,FALSE),"") ->  | AW122: 0
A123: 115795 | B123: 42B | C123: 2016-01-25 | D123: 13.77 | E123: 0301175360 | F123: GUAMAN GUAMAN | G123: CESAR | H123: GGC | I123: 1 | J123: 6 | K123: 0 | L123: 6 | M123: 82.62 | N123: IP | O123: SAN PEDRO | P123: 0500180V01 | Q123: A-03 | R123: 2 | S123: MP-1 | T123: 1 | U123: 0 | X123: 09:00 | Y123: 10:20 | Z123: 09 | AA123: 00 | AB123: 9 | AC123: 0 | AD123: 0 | AE123: 9 | AF123: 10 | AG123: 20 | AH123: 10,00 | AI123: 20,00 | AJ123: 0.3333333333 | AK123: 10.33333333 | AL123: 1.333333333 | AM123: 0 | AN123: 1 | AO123: 13.77 | AP123: 0720603 | AQ123: 0 | AR123: 18.36 | AS123: 2016 | AT123: ENERO | AU123: =IFERROR(VLOOKUP(Q123,Clasificacion!$C$3:$F$96,4,FALSE),"") ->  | AW123: 0
A124: 115635 | B124: 42B | C124: 2016-01-12 | D124: 13.77 | E124: 0301175360 | F124: GUAMAN GUAMAN | G124: CESAR | H124: GGC | I124: 1 | J124: 6 | K124: 0 | L124: 6 | M124: 82.62 | N124: IP | O124: MOLOBOG GRANDE | P124: 0500180V01 | Q124: A-03 | R124: 3 | S124: MP-1 | T124: 1 | U124: 0 | X124: 14:50 | Y124: 16:25 | Z124: 14 | AA124: 50 | AB124: 14 | AC124: 50 | AD124: 0.8333333333 | AE124: 14.83333333 | AF124: 16 | AG124: 25 | AH124: 16,00 | AI124: 25,00 | AJ124: 0.4166666667 | AK124: 16.41666667 | AL124: 1.583333333 | AM124: 0 | AN124: 1 | AO124: 27.54 | AP124: 0720603 | AQ124: 0 | AR124: 21.8025 | AS124: 2016 | AT124: ENERO | AU124: =IFERROR(VLOOKUP(Q124,Clasificacion!$C$3:$F$96,4,FALSE),"") ->  | AW124: 0
A125: 115600 | B125: 42B | C125: 2016-01-07 | D125: 13.77 | E125: 0301175360 | F125: GUAMAN GUAMAN | G125: CESAR | H125: GGC | I125: 1 | J125: 6 | K125: 0 | L125: 6 | M125: 82.62 | N125: IP | O125: LLUILLAN | P125: 0500180V01 | Q125: A-03 | R125: 5 | S125: MP-1 | T125: 1 | U125: 0 | X125: 15:10 | Y125: 16:55 | Z125: 15 | AA125: 10 | AB125: 15 | AC125: 10 | AD125: 0.1666666667 | AE125: 15.16666667 | AF125: 16 | AG125: 55 | AH125: 16,00 | AI125: 55,00 | AJ125: 0.9166666667 | AK125: 16.91666667 | AL125: 1.75 | AM125: 0 | AN125: 1 | AO125: 13.77 | AP125: 0720603 | AQ125: 0 | AR125: 24.0975 | AS125: 2016 | AT125: ENERO | AU125: =IFERROR(VLOOKUP(Q125,Clasificacion!$C$3:$F$96,4,FALSE),"") ->  | AW125: 0
